Workbook

Sheet Vejledning
B10: Version 2.4
B12: Velkommen til Indsatstrappens Udgiftsmodel. Indsatstrappens Udgiftsmodel er et redskab til at fordele de kommunale udgifter på indsatstrappens trin. Redskabet indeholder kommunale regnskabstal for området for udsatte børn og unge fra 2018 og frem til nyeste offentliggjorte regnskabsår. Data stammer fra et særtræk af de godkendte årsregnskaber fra Danmarks Statistik. Du har mulighed for at se en enkelt kommunes udgifter samt at sammenligne med udvalgte sammenligningskommuner og hele landet. Du kan desuden se udgiftsudviklingen over tid samt lave en analyse af ændringen i udgifter på området. Indsatstrappens trin er illustreret i figuren til højre. Du kan se, hvordan det enkelte års poster i regnskabet er fordelt på trappen under de enkelte regnskabsår. På Socialstyrelsens hjemmeside kan du finde en vejledning til, hvordan du bruger redskabet. Du kan tilgå siden ved at trykke på globussen til højre. I selve redskabet er der også vejledninger til hvert trin, ligesom du kan få yderligere informationer ved at trykke på info-boksene.
M26: Anm.: Nederste trin på indsatstrappen (forebyggende indsatser i almen) kan ikke udskilles som selvstændig udgift i den autoriserede kontoplan. Derfor indgår dette trin ikke i Indsatstrappens Udgiftsmodel.
B32: Version
B34: Version | C34: Dato | D34: Ændring
B36: Version 2.4 | C36: oktober 2024 | D36: Modellen er opdateret med regnskabstal for 2023
D37: Befolkningstallet er opdateret.
D38: Den kommunale service-PL er opdateret.
B40: Version 2.3 | C40: september 2023 | D40: Modellen er opdateret med regnskabstal for 2022
D41: Befolkningstallet er opdateret.
D42: Den kommunale service-PL er opdateret.
B44: Version 2.2 | C44: september 2021 | D44: Modellen indeholder nu regnskabstal for 2020.
D45: Befolkningstallet er opdateret.
D46: Den kommunale service-PL er opdateret.
D47: Der er tilføjet en ny resultatside "Fordeling", der viser udgiftsfordelingen over tid.
B49: Version 2.1 | C49: 20. maj 2020 | D49: Modellen indeholder nu regnskabstal for 2019.
D50: Udgifter til 5.28.21, gruppering 004 er flyttet fra trinnet "Anbringelse på institution" til trinnet "Hjemmebaserede foranstaltninger".
D51: Den kommunale service-PL er opdateret.
D52: Befolkningstallet er opdateret.
D53: Rapporten til udskrift har fået en forside.
B55: Version 2.0 | C55: 22. oktober 2019 | D55: Modellen indeholder nu data fra de kommunale regnskaber fra 2007 til 2018.
D56: Modellens brugerflade er tilpasset.
D57: Der er nu mulighed for at sammenligne med hele landet og med en gruppe af sammenligningskommuner.
D58: Der er nu mulighed for at vælge de regnskabsår, som man ønsker at lave analyse for.
D59: Den kommunale service-PL er opdateret.
B61: Version 1.1 | C61: 20. februar 2019 | D61: Modellen er opdateret med en indtastningstabel for 2018.
D62: PL er opdateret.
B64: Version 1.0 | C64: 28. februar 2018 | D64: Første version
D65: Beregningsramme, hvor indtastning er nødvendig.
D66: Indtastningstabeller fra 2007-2017.
D67: Mulighed for analyser for hvert regnskabsår, over alle år og af merudgifter.
D68: Mulighed for at printe en rapport med resultaterne til PDF.

Sheet Dine valg
B3: Dine valg
B4: Før du går igang med at bruge redskabet, skal du tage stilling til en række forudsætninger for, hvordan udgifterne bliver præsenteret. Du skal foretage dine valg i de fire rullemenuer nedenfor. Du skal vælge den kommune, som du ønsker skal være udgangspunktet for din analyse. Du skal desuden vælge det prisår, som du ønsker udgifterne skal præsenteres i. Omregning af prisniveauet tager udgangspunkt i den kommunale service-PL. Du har mulighed for at vælge ét eller flere regnskabsår, som vil fremgå af din analyse. Når du har valgt de år, du ønsker, skal du vælge "Dan gruppe" for at se, hvilke regnskabsår du har valgt at bruge i din analyse. Det er kun de år, som fremgår under "Valgte regnskabsår", som indgår i analysen. Du har også mulighed for at vælge en gruppe af kommuner, som du ønsker at sammenligne med. Du kan vælge 1-7 kommuner , som vil fremgå som én gruppe baseret på de gennemsnitlige udgifter. Når du har valgt de kommuner, som du ønsker at sammenligne med, skal du vælge "Dan gruppe" for at se, hvilke kommuner, der indgår i sammenligningsgruppen. Det er kun de kommuner, der fremgår under "Valgte kommuner", som indgår i analysen. Når du har foretaget dine valg, kan du se resultatet som udgiftsudvikling ved at bruge knappen "Gå til Udgiftsudvikling", eller du kan gå videre til at lave en analyse af merudgifter ved at bruge knappen "Gå til Udgiftsændring". Hvis du foretager ændringer under "Dine valg", så skal du lade redskabet beregne på ny, når du vælger at gå videre.
X7: 2018 | Y7: Aarhus
X8: 2019
B9: Vælg kommune | D9: Vælg regnskabsperiode | J9: Valgte regnskabsår | R9: Valgte kommuner: | X9: 2020
B10: =VLOOKUP(kom_valg,Hjælpeark!B11:C108,2,FALSE) -> Fredericia | J10: =IF($X$7="","",$X$7) -> 2018 | K10: =IF($X$14="","",$X$14) ->  | L10: =IF($X$21="","",$X$21) ->  | X10: 2021
J11: =IF($X$8="","",$X$8) -> 2019 | K11: =IF($X$15="","",$X$15) ->  | L11: =IF($X$22="","",$X$22) ->  | X11: 2022
J12: =IF($X$9="","",$X$9) -> 2020 | K12: =IF($X$16="","",$X$16) ->  | L12: =IF($X$23="","",$X$23) ->  | X12: 2023
B13: Vælg prisår | J13: =IF($X$10="","",$X$10) -> 2021 | K13: =IF($X$17="","",$X$17) ->  | L13: =IF($X$24="","",$X$24) -> 
B14: =VLOOKUP(PL_valg,Hjælpeark!I11:J25,2,FALSE) -> 2023 | J14: =IF($X$11="","",$X$11) -> 2022 | K14: =IF($X$18="","",$X$18) ->  | L14: =IF($X$25="","",$X$25) -> 
J15: =IF($X$12="","",$X$12) -> 2023 | K15: =IF($X$19="","",$X$19) ->  | L15: =IF($X$26="","",$X$26) -> 
J16: =IF($X$13="","",$X$13) ->  | K16: =IF($X$20="","",$X$20) ->  | L16: =IF($X$27="","",$X$27) -> 
R17: =IF(V17="","",V17) ->  | S17: =IF(V25="","",V25) -> 
D19: Vælg sammenligningsgruppe | J19: Valgte kommuner
J20: =IF($Y$7="","",$Y$7) -> Aarhus | K20: =IF($Y$14="","",$Y$14) ->  | L20: =IF($Y$21="","",$Y$21) -> 
J21: =IF($Y$8="","",$Y$8) ->  | K21: =IF($Y$15="","",$Y$15) ->  | L21: =IF($Y$22="","",$Y$22) -> 
J22: =IF($Y$9="","",$Y$9) ->  | K22: =IF($Y$16="","",$Y$16) ->  | L22: =IF($Y$23="","",$Y$23) -> 
J23: =IF($Y$10="","",$Y$10) ->  | K23: =IF($Y$17="","",$Y$17) ->  | L23: =IF($Y$24="","",$Y$24) -> 
J24: =IF($Y$11="","",$Y$11) ->  | K24: =IF($Y$18="","",$Y$18) ->  | L24: =IF($Y$25="","",$Y$25) -> 
J25: =IF($Y$12="","",$Y$12) ->  | K25: =IF($Y$19="","",$Y$19) ->  | L25: =IF($Y$26="","",$Y$26) -> 
J26: =IF($Y$13="","",$Y$13) ->  | K26: =IF($Y$20="","",$Y$20) ->  | L26: =IF($Y$27="","",$Y$27) -> 

Sheet vælg_basisperiode
B3: Vælg basisperiode for analysen
B5: Når du vil lave en analyse af udgifterne fordelt på indsatstrappen, kan du i dette redskab lave en analyse af merudgifter. Analysen vil vise, hvordan din kommunes økonomi er blevet påvirket af en given ændring i lokale forhold. Merudgifter er ændringen i udgifter sammenlignet med en given basisperiode. Basisperioden er et gennemsnitligt udgiftsniveau over ét eller flere år, som du vurderer, repræsenterer et godt udgangspunkt for en ændring. Det kan fx være en årrække, der ligger før en omlægning af indsatsen på området. Før du kan se resultatet af din analyse, skal du derfor vælge den basisperiode, som analysen skal tage udgangspunkt i. Det gør du i de to tabeller nedenfor. Basisperioden skal være ét eller flere år før din analyse påbegyndes.
B15: Vælg startår for basisperiode
B16: For service og administration | C16: 2018
B18: Vælg slutår for basisperiode
B19: For service og administration | C19: 2020

Sheet Analyse
B6: På denne side fremgår en analyse af en ændring i udgiftsniveauet (merudgifter). Merudgifterne er udgifter, der overstiger udgiftsniveauet i den basisperiode, som du har valgt på forrige side. Du kan se merudgifterne for den kommune, som du har valgt som udgangspunkt for din analyse. Du kan ikke sammenligne merudgifter med merudgifter for hverken sammenliningsgruppen, regionen eller hele landet. Det skyldes, at den basisperiode, som du har valgt, ikke kan forventes at være relevant for andre kommuner. Det vil altid bero på lokalt kendskab, hvilken periode, der er relevant at benytte som en basisperiode. Du kan se udviklingen i merudgifter i alt, for administration og service samt fordelt indenfor og udenfor indsatstrappen. Udviklingen i merudgifter er præsenteret både i tabeller og grafisk. Nederst på siden kan du se, de årlige udgifter og udgiftsniveauet i basisperioden, som analysen baseres på. Du kan tilføje næste regnskabsår, hvis du ønsker at bruge regnskabs- eller budgettal, som endnu ikke er offentliggjorte. Du skal vælge "Tilføj tomt" i den røde bjælke ovenfor. Du kan gå tilbage til valget af basisperioden ved at benytte knappen til højre.
B15: Merudgifter for service, administration og i alt
B17: ="Merudgifter for service, administration og i alt for "&Kommune&", 1.000 kr., "&Prisår&"-priser" -> Merudgifter for service, administration og i alt for Fredericia, 1.000 kr., 2023-priser
AB19: =Slut+1 -> 2021 | AC19: =IF(AB19="","",IF(Hjælpeark!$G$17="",IF(AB19+1<=2023,AB19+1,""),IF(AB19+1<=2024,AB19+1,""))) -> 2022 | AD19: =IF(AC19="","",IF(Hjælpeark!$G$17="",IF(AC19+1<=2023,AC19+1,""),IF(AC19+1<=2024,AC19+1,""))) -> 2023 | AE19: =IF(AD19="","",IF(Hjælpeark!$G$17="",IF(AD19+1<=2023,AD19+1,""),IF(AD19+1<=2024,AD19+1,""))) ->  | AF19: =IF(AE19="","",IF(Hjælpeark!$G$17="",IF(AE19+1<=2023,AE19+1,""),IF(AE19+1<=2024,AE19+1,""))) -> 
AA20: I alt | AB20: =IF(AB19="","",IF(AB$19<=MAX(ÅR),IF(HLOOKUP(AB$19,$C$104:$J$114,2,FALSE)<>0,HLOOKUP(AB$19,$C$104:$J$114,2,FALSE)-$C118,"Ikke udfyldt"),"år er ikke tilføjet")) -> -2067.400618 | AC20: =IF(AC19="","",IF(AC$19<=MAX(ÅR),IF(HLOOKUP(AC$19,$C$104:$J$114,2,FALSE)<>0,HLOOKUP(AC$19,$C$104:$J$114,2,FALSE)-$C118,"Ikke udfyldt"),"år er ikke tilføjet")) -> 17183.4897 | AD20: =IF(AD19="","",IF(AD$19<=MAX(ÅR),IF(HLOOKUP(AD$19,$C$104:$J$114,2,FALSE)<>0,HLOOKUP(AD$19,$C$104:$J$114,2,FALSE)-$C118,"Ikke udfyldt"),"år er ikke tilføjet")) -> 33326.4257 | AE20: =IF(AE19="","",IF(AE$19<=MAX(ÅR),IF(HLOOKUP(AE$19,$C$104:$J$114,2,FALSE)<>0,HLOOKUP(AE$19,$C$104:$J$114,2,FALSE)-$C118,"Ikke udfyldt"),"år er ikke tilføjet")) ->  | AF20: =IF(AF19="","",IF(AF$19<=MAX(ÅR),IF(HLOOKUP(AF$19,$C$104:$J$114,2,FALSE)<>0,HLOOKUP(AF$19,$C$104:$J$114,2,FALSE)-$C118,"Ikke udfyldt"),"år er ikke tilføjet")) -> 
AA21: Administration | AB21: =IF(AB$19="","",IF(AB$19<=MAX(ÅR),IF(HLOOKUP(AB$19,$C$104:$J$114,3,FALSE)<>0,HLOOKUP(AB$19,$C$104:$J$114,3,FALSE)-$D119,"Ikke udfyldt"),"år er ikke tilføjet")) -> 1450.34873 | AC21: =IF(AC$19="","",IF(AC$19<=MAX(ÅR),IF(HLOOKUP(AC$19,$C$104:$J$114,3,FALSE)<>0,HLOOKUP(AC$19,$C$104:$J$114,3,FALSE)-$D119,"Ikke udfyldt"),"år er ikke tilføjet")) -> 3750.017626 | AD21: =IF(AD$19="","",IF(AD$19<=MAX(ÅR),IF(HLOOKUP(AD$19,$C$104:$J$114,3,FALSE)<>0,HLOOKUP(AD$19,$C$104:$J$114,3,FALSE)-$D119,"Ikke udfyldt"),"år er ikke tilføjet")) -> 9122.537626 | AE21: =IF(AE$19="","",IF(AE$19<=MAX(ÅR),IF(HLOOKUP(AE$19,$C$104:$J$114,3,FALSE)<>0,HLOOKUP(AE$19,$C$104:$J$114,3,FALSE)-$D119,"Ikke udfyldt"),"år er ikke tilføjet")) ->  | AF21: =IF(AF$19="","",IF(AF$19<=MAX(ÅR),IF(HLOOKUP(AF$19,$C$104:$J$114,3,FALSE)<>0,HLOOKUP(AF$19,$C$104:$J$114,3,FALSE)-$D119,"Ikke udfyldt"),"år er ikke tilføjet")) -> 
AA22: Service | AB22: =IF(AB$19="","",IF(AB$19<=MAX(ÅR),IF(HLOOKUP(AB$19,$C$104:$J$114,4,FALSE)<>0,HLOOKUP(AB$19,$C$104:$J$114,4,FALSE)-$E120,"Ikke udfyldt"),"år er ikke tilføjet")) -> -3517.749348 | AC22: =IF(AC$19="","",IF(AC$19<=MAX(ÅR),IF(HLOOKUP(AC$19,$C$104:$J$114,4,FALSE)<>0,HLOOKUP(AC$19,$C$104:$J$114,4,FALSE)-$E120,"Ikke udfyldt"),"år er ikke tilføjet")) -> 13433.47207 | AD22: =IF(AD$19="","",IF(AD$19<=MAX(ÅR),IF(HLOOKUP(AD$19,$C$104:$J$114,4,FALSE)<>0,HLOOKUP(AD$19,$C$104:$J$114,4,FALSE)-$E120,"Ikke udfyldt"),"år er ikke tilføjet")) -> 24203.88807 | AE22: =IF(AE$19="","",IF(AE$19<=MAX(ÅR),IF(HLOOKUP(AE$19,$C$104:$J$114,4,FALSE)<>0,HLOOKUP(AE$19,$C$104:$J$114,4,FALSE)-$E120,"Ikke udfyldt"),"år er ikke tilføjet")) ->  | AF22: =IF(AF$19="","",IF(AF$19<=MAX(ÅR),IF(HLOOKUP(AF$19,$C$104:$J$114,4,FALSE)<>0,HLOOKUP(AF$19,$C$104:$J$114,4,FALSE)-$E120,"Ikke udfyldt"),"år er ikke tilføjet")) -> 
B32: =B41 -> Note: Merudgifterne er beregnet ud fra følgende basisperioden 2018-2020.
B34: ="Tabel - Merudgifter for service, administration og i alt for "&Kommune&", 1.000 kr., "&Prisår&"-priser" -> Tabel - Merudgifter for service, administration og i alt for Fredericia, 1.000 kr., 2023-priser
B36: ="Merudgifter for service, administration og i alt for "&Kommune&", 1.000 kr., "&Prisår&"-priser" -> Merudgifter for service, administration og i alt for Fredericia, 1.000 kr., 2023-priser
C37: =Slut+1 -> 2021 | D37: =IF(C37="","",IF(Hjælpeark!$G$17="",IF(C37+1<=2023,C37+1,""),IF(C37+1<=2024,C37+1,""))) -> 2022 | E37: =IF(D37="","",IF(Hjælpeark!$G$17="",IF(D37+1<=2023,D37+1,""),IF(D37+1<=2024,D37+1,""))) -> 2023 | F37: =IF(E37="","",IF(Hjælpeark!$G$17="",IF(E37+1<=2023,E37+1,""),IF(E37+1<=2024,E37+1,""))) ->  | G37: =IF(F37="","",IF(Hjælpeark!$G$17="",IF(F37+1<=2023,F37+1,""),IF(F37+1<=2024,F37+1,""))) -> 
B38: I alt | C38: =IF(C37="","",IF(C$37<=MAX(regnskab_liste),IF(HLOOKUP(C$37,$C$104:$J$114,2,FALSE)<>0,HLOOKUP(C$37,$C$104:$J$114,2,FALSE)-$C118,"Ikke udfyldt"),"år er ikke tilføjet")) -> -2067.400618 | D38: =IF(D37="","",IF(D$37<=MAX(regnskab_liste),IF(HLOOKUP(D$37,$C$104:$J$114,2,FALSE)<>0,HLOOKUP(D$37,$C$104:$J$114,2,FALSE)-$C118,"Ikke udfyldt"),"år er ikke tilføjet")) -> 17183.4897 | E38: =IF(E37="","",IF(E$37<=MAX(regnskab_liste),IF(HLOOKUP(E$37,$C$104:$J$114,2,FALSE)<>0,HLOOKUP(E$37,$C$104:$J$114,2,FALSE)-$C118,"Ikke udfyldt"),"år er ikke tilføjet")) -> 33326.4257 | F38: =IF(F37="","",IF(F$37<=MAX(regnskab_liste),IF(HLOOKUP(F$37,$C$104:$J$114,2,FALSE)<>0,HLOOKUP(F$37,$C$104:$J$114,2,FALSE)-$C118,"Ikke udfyldt"),"år er ikke tilføjet")) ->  | G38: =IF(G37="","",IF(G$37<=MAX(regnskab_liste),IF(HLOOKUP(G$37,$C$104:$J$114,2,FALSE)<>0,HLOOKUP(G$37,$C$104:$J$114,2,FALSE)-$C118,"Ikke udfyldt"),"år er ikke tilføjet")) -> 
B39: Administration | C39: =IF(C$37="","",IF(C$37<=MAX(regnskab_liste),IF(HLOOKUP(C$37,$C$104:$J$114,3,FALSE)<>0,HLOOKUP(C$37,$C$104:$J$114,3,FALSE)-$D119,"Ikke udfyldt"),"år er ikke tilføjet")) -> 1450.34873 | D39: =IF(D$37="","",IF(D$37<=MAX(regnskab_liste),IF(HLOOKUP(D$37,$C$104:$J$114,3,FALSE)<>0,HLOOKUP(D$37,$C$104:$J$114,3,FALSE)-$D119,"Ikke udfyldt"),"år er ikke tilføjet")) -> 3750.017626 | E39: =IF(E$37="","",IF(E$37<=MAX(regnskab_liste),IF(HLOOKUP(E$37,$C$104:$J$114,3,FALSE)<>0,HLOOKUP(E$37,$C$104:$J$114,3,FALSE)-$D119,"Ikke udfyldt"),"år er ikke tilføjet")) -> 9122.537626 | F39: =IF(F$37="","",IF(F$37<=MAX(regnskab_liste),IF(HLOOKUP(F$37,$C$104:$J$114,3,FALSE)<>0,HLOOKUP(F$37,$C$104:$J$114,3,FALSE)-$D119,"Ikke udfyldt"),"år er ikke tilføjet")) ->  | G39: =IF(G$37="","",IF(G$37<=MAX(regnskab_liste),IF(HLOOKUP(G$37,$C$104:$J$114,3,FALSE)<>0,HLOOKUP(G$37,$C$104:$J$114,3,FALSE)-$D119,"Ikke udfyldt"),"år er ikke tilføjet")) -> 
B40: Service | C40: =IF(C$37="","",IF(C$37<=MAX(regnskab_liste),IF(HLOOKUP(C$37,$C$104:$J$114,4,FALSE)<>0,HLOOKUP(C$37,$C$104:$J$114,4,FALSE)-$E120,"Ikke udfyldt"),"år er ikke tilføjet")) -> -3517.749348 | D40: =IF(D$37="","",IF(D$37<=MAX(regnskab_liste),IF(HLOOKUP(D$37,$C$104:$J$114,4,FALSE)<>0,HLOOKUP(D$37,$C$104:$J$114,4,FALSE)-$E120,"Ikke udfyldt"),"år er ikke tilføjet")) -> 13433.47207 | E40: =IF(E$37="","",IF(E$37<=MAX(regnskab_liste),IF(HLOOKUP(E$37,$C$104:$J$114,4,FALSE)<>0,HLOOKUP(E$37,$C$104:$J$114,4,FALSE)-$E120,"Ikke udfyldt"),"år er ikke tilføjet")) -> 24203.88807 | F40: =IF(F$37="","",IF(F$37<=MAX(regnskab_liste),IF(HLOOKUP(F$37,$C$104:$J$114,4,FALSE)<>0,HLOOKUP(F$37,$C$104:$J$114,4,FALSE)-$E120,"Ikke udfyldt"),"år er ikke tilføjet")) ->  | G40: =IF(G$37="","",IF(G$37<=MAX(regnskab_liste),IF(HLOOKUP(G$37,$C$104:$J$114,4,FALSE)<>0,HLOOKUP(G$37,$C$104:$J$114,4,FALSE)-$E120,"Ikke udfyldt"),"år er ikke tilføjet")) -> 
B41: ="Note: Merudgifterne er beregnet ud fra følgende basisperioden "&Start&"-"&Slut&"." -> Note: Merudgifterne er beregnet ud fra følgende basisperioden 2018-2020.
B44: Merudgifter indenfor og udenfor indsatstrappen
B46: ="Merudgifter fordelt på indsatstrappen for "&Kommune&", 1.000 kr., "&Prisår&"-priser" -> Merudgifter fordelt på indsatstrappen for Fredericia, 1.000 kr., 2023-priser
AB48: =Slut+1 -> 2021 | AC48: =IF(AB48="","",IF(Hjælpeark!$G$17="",IF(AB48+1<=2023,AB48+1,""),IF(AB48+1<=2024,AB48+1,""))) -> 2022 | AD48: =IF(AC48="","",IF(Hjælpeark!$G$17="",IF(AC48+1<=2023,AC48+1,""),IF(AC48+1<=2024,AC48+1,""))) -> 2023 | AE48: =IF(AD48="","",IF(Hjælpeark!$G$17="",IF(AD48+1<=2023,AD48+1,""),IF(AD48+1<=2024,AD48+1,""))) ->  | AF48: =IF(AE48="","",IF(Hjælpeark!$G$17="",IF(AE48+1<=2023,AE48+1,""),IF(AE48+1<=2024,AE48+1,""))) -> 
AA49: Forebyggende indsatser | AB49: =IF(AB$48="","",IF(AB$48<=MAX(ÅR),IF(Start>=2015,IF(HLOOKUP(AB$48,$C$104:$J$114,5,FALSE)<>0,HLOOKUP(AB$48,$C$104:$J$114,5,FALSE)-$E121,"Ikke udfyldt"),"-"),"år er ikke tilføjet")) -> -381.2730226 | AC49: =IF(AC$48="","",IF(AC$48<=MAX(ÅR),IF(Start>=2015,IF(HLOOKUP(AC$48,$C$104:$J$114,5,FALSE)<>0,HLOOKUP(AC$48,$C$104:$J$114,5,FALSE)-$E121,"Ikke udfyldt"),"-"),"år er ikke tilføjet")) -> 140.5336094 | AD49: =IF(AD$48="","",IF(AD$48<=MAX(ÅR),IF(Start>=2015,IF(HLOOKUP(AD$48,$C$104:$J$114,5,FALSE)<>0,HLOOKUP(AD$48,$C$104:$J$114,5,FALSE)-$E121,"Ikke udfyldt"),"-"),"år er ikke tilføjet")) -> 28.18160936 | AE49: =IF(AE$48="","",IF(AE$48<=MAX(ÅR),IF(Start>=2015,IF(HLOOKUP(AE$48,$C$104:$J$114,5,FALSE)<>0,HLOOKUP(AE$48,$C$104:$J$114,5,FALSE)-$E121,"Ikke udfyldt"),"-"),"år er ikke tilføjet")) ->  | AF49: =IF(AF$48="","",IF(AF$48<=MAX(ÅR),IF(Start>=2015,IF(HLOOKUP(AF$48,$C$104:$J$114,5,FALSE)<>0,HLOOKUP(AF$48,$C$104:$J$114,5,FALSE)-$E121,"Ikke udfyldt"),"-"),"år er ikke tilføjet")) -> 
AA50: Hjemmebaserede foranstaltninger | AB50: =IF(AB$48="","",IF(AB$48<=MAX(ÅR),IF(Start>=2015,IF(HLOOKUP(AB$48,$C$104:$J$114,6,FALSE)<>0,HLOOKUP(AB$48,$C$104:$J$114,6,FALSE)-$E122,"Ikke udfyldt"),"-"),"år er ikke tilføjet")) -> 2670.849868 | AC50: =IF(AC$48="","",IF(AC$48<=MAX(ÅR),IF(Start>=2015,IF(HLOOKUP(AC$48,$C$104:$J$114,6,FALSE)<>0,HLOOKUP(AC$48,$C$104:$J$114,6,FALSE)-$E122,"Ikke udfyldt"),"-"),"år er ikke tilføjet")) -> 9430.684888 | AD50: =IF(AD$48="","",IF(AD$48<=MAX(ÅR),IF(Start>=2015,IF(HLOOKUP(AD$48,$C$104:$J$114,6,FALSE)<>0,HLOOKUP(AD$48,$C$104:$J$114,6,FALSE)-$E122,"Ikke udfyldt"),"-"),"år er ikke tilføjet")) -> 15494.95289 | AE50: =IF(AE$48="","",IF(AE$48<=MAX(ÅR),IF(Start>=2015,IF(HLOOKUP(AE$48,$C$104:$J$114,6,FALSE)<>0,HLOOKUP(AE$48,$C$104:$J$114,6,FALSE)-$E122,"Ikke udfyldt"),"-"),"år er ikke tilføjet")) ->  | AF50: =IF(AF$48="","",IF(AF$48<=MAX(ÅR),IF(Start>=2015,IF(HLOOKUP(AF$48,$C$104:$J$114,6,FALSE)<>0,HLOOKUP(AF$48,$C$104:$J$114,6,FALSE)-$E122,"Ikke udfyldt"),"-"),"år er ikke tilføjet")) -> 
AA51: Slægt- eller netværkspleje | AB51: =IF(AB$48="","",IF(AB$48<=MAX(ÅR),IF(HLOOKUP(AB$48,$C$104:$J$114,7,FALSE)<>0,HLOOKUP(AB$48,$C$104:$J$114,7,FALSE)-$E123,"Ikke udfyldt"),"år er ikke tilføjet")) -> 185.9674248 | AC51: =IF(AC$48="","",IF(AC$48<=MAX(ÅR),IF(HLOOKUP(AC$48,$C$104:$J$114,7,FALSE)<>0,HLOOKUP(AC$48,$C$104:$J$114,7,FALSE)-$E123,"Ikke udfyldt"),"år er ikke tilføjet")) -> 140.3108608 | AD51: =IF(AD$48="","",IF(AD$48<=MAX(ÅR),IF(HLOOKUP(AD$48,$C$104:$J$114,7,FALSE)<>0,HLOOKUP(AD$48,$C$104:$J$114,7,FALSE)-$E123,"Ikke udfyldt"),"år er ikke tilføjet")) -> 467.8668608 | AE51: =IF(AE$48="","",IF(AE$48<=MAX(ÅR),IF(HLOOKUP(AE$48,$C$104:$J$114,7,FALSE)<>0,HLOOKUP(AE$48,$C$104:$J$114,7,FALSE)-$E123,"Ikke udfyldt"),"år er ikke tilføjet")) ->  | AF51: =IF(AF$48="","",IF(AF$48<=MAX(ÅR),IF(HLOOKUP(AF$48,$C$104:$J$114,7,FALSE)<>0,HLOOKUP(AF$48,$C$104:$J$114,7,FALSE)-$E123,"Ikke udfyldt"),"år er ikke tilføjet")) -> 
AA52: Familiepleje | AB52: =IF(AB$48="","",IF(AB$48<=MAX(ÅR),IF(HLOOKUP(AB$48,$C$104:$J$114,8,FALSE)<>0,HLOOKUP(AB$48,$C$104:$J$114,8,FALSE)-$E124,"Ikke udfyldt"),"år er ikke tilføjet")) -> 372.6567452 | AC52: =IF(AC$48="","",IF(AC$48<=MAX(ÅR),IF(HLOOKUP(AC$48,$C$104:$J$114,8,FALSE)<>0,HLOOKUP(AC$48,$C$104:$J$114,8,FALSE)-$E124,"Ikke udfyldt"),"år er ikke tilføjet")) -> 4699.079041 | AD52: =IF(AD$48="","",IF(AD$48<=MAX(ÅR),IF(HLOOKUP(AD$48,$C$104:$J$114,8,FALSE)<>0,HLOOKUP(AD$48,$C$104:$J$114,8,FALSE)-$E124,"Ikke udfyldt"),"år er ikke tilføjet")) -> 9235.175041 | AE52: =IF(AE$48="","",IF(AE$48<=MAX(ÅR),IF(HLOOKUP(AE$48,$C$104:$J$114,8,FALSE)<>0,HLOOKUP(AE$48,$C$104:$J$114,8,FALSE)-$E124,"Ikke udfyldt"),"år er ikke tilføjet")) ->  | AF52: =IF(AF$48="","",IF(AF$48<=MAX(ÅR),IF(HLOOKUP(AF$48,$C$104:$J$114,8,FALSE)<>0,HLOOKUP(AF$48,$C$104:$J$114,8,FALSE)-$E124,"Ikke udfyldt"),"år er ikke tilføjet")) -> 
AA53: Institutionsanbringelser | AB53: =IF(AB$48="","",IF(AB$48<=MAX(ÅR),IF(HLOOKUP(AB$48,$C$104:$J$114,9,FALSE)<>0,HLOOKUP(AB$48,$C$104:$J$114,9,FALSE)-$E125,"Ikke udfyldt"),"år er ikke tilføjet")) -> -3831.827379 | AC53: =IF(AC$48="","",IF(AC$48<=MAX(ÅR),IF(HLOOKUP(AC$48,$C$104:$J$114,9,FALSE)<>0,HLOOKUP(AC$48,$C$104:$J$114,9,FALSE)-$E125,"Ikke udfyldt"),"år er ikke tilføjet")) -> 7878.455749 | AD53: =IF(AD$48="","",IF(AD$48<=MAX(ÅR),IF(HLOOKUP(AD$48,$C$104:$J$114,9,FALSE)<>0,HLOOKUP(AD$48,$C$104:$J$114,9,FALSE)-$E125,"Ikke udfyldt"),"år er ikke tilføjet")) -> 19605.63575 | AE53: =IF(AE$48="","",IF(AE$48<=MAX(ÅR),IF(HLOOKUP(AE$48,$C$104:$J$114,9,FALSE)<>0,HLOOKUP(AE$48,$C$104:$J$114,9,FALSE)-$E125,"Ikke udfyldt"),"år er ikke tilføjet")) ->  | AF53: =IF(AF$48="","",IF(AF$48<=MAX(ÅR),IF(HLOOKUP(AF$48,$C$104:$J$114,9,FALSE)<>0,HLOOKUP(AF$48,$C$104:$J$114,9,FALSE)-$E125,"Ikke udfyldt"),"år er ikke tilføjet")) -> 
AB54: =AB48 -> 2021 | AC54: =AC48 -> 2022 | AD54: =AD48 -> 2023 | AE54: =AE48 ->  | AF54: =AF48 -> 
AA55: ikke-trinspecifikke grupperinger | AB55: =IF(AB$48="","",IF(AB$48<=MAX(ÅR),IF(HLOOKUP(AB$48,$C$104:$J$114,10,FALSE)<>0,HLOOKUP(AB$48,$C$104:$J$114,10,FALSE)-$E126,"Ikke udfyldt"),"år er ikke tilføjet")) -> 454.2495988 | AC55: =IF(AC$48="","",IF(AC$48<=MAX(ÅR),IF(HLOOKUP(AC$48,$C$104:$J$114,10,FALSE)<>0,HLOOKUP(AC$48,$C$104:$J$114,10,FALSE)-$E126,"Ikke udfyldt"),"år er ikke tilføjet")) -> 2296.522231 | AD55: =IF(AD$48="","",IF(AD$48<=MAX(ÅR),IF(HLOOKUP(AD$48,$C$104:$J$114,10,FALSE)<>0,HLOOKUP(AD$48,$C$104:$J$114,10,FALSE)-$E126,"Ikke udfyldt"),"år er ikke tilføjet")) -> 5496.714231 | AE55: =IF(AE$48="","",IF(AE$48<=MAX(ÅR),IF(HLOOKUP(AE$48,$C$104:$J$114,10,FALSE)<>0,HLOOKUP(AE$48,$C$104:$J$114,10,FALSE)-$E126,"Ikke udfyldt"),"år er ikke tilføjet")) ->  | AF55: =IF(AF$48="","",IF(AF$48<=MAX(ÅR),IF(HLOOKUP(AF$48,$C$104:$J$114,10,FALSE)<>0,HLOOKUP(AF$48,$C$104:$J$114,10,FALSE)-$E126,"Ikke udfyldt"),"år er ikke tilføjet")) -> 
AA56: Refusioner | AB56: =IF(AB$48="","",IF(AB$48<=MAX(ÅR),IF(HLOOKUP(AB$48,$C$104:$J$114,11,FALSE)<>0,HLOOKUP(AB$48,$C$104:$J$114,11,FALSE)-$E127,"Ikke udfyldt"),"år er ikke tilføjet")) -> -2988.372583 | AC56: =IF(AC$48="","",IF(AC$48<=MAX(ÅR),IF(HLOOKUP(AC$48,$C$104:$J$114,11,FALSE)<>0,HLOOKUP(AC$48,$C$104:$J$114,11,FALSE)-$E127,"Ikke udfyldt"),"år er ikke tilføjet")) -> -11152.11431 | AD56: =IF(AD$48="","",IF(AD$48<=MAX(ÅR),IF(HLOOKUP(AD$48,$C$104:$J$114,11,FALSE)<>0,HLOOKUP(AD$48,$C$104:$J$114,11,FALSE)-$E127,"Ikke udfyldt"),"år er ikke tilføjet")) -> -26124.63831 | AE56: =IF(AE$48="","",IF(AE$48<=MAX(ÅR),IF(HLOOKUP(AE$48,$C$104:$J$114,11,FALSE)<>0,HLOOKUP(AE$48,$C$104:$J$114,11,FALSE)-$E127,"Ikke udfyldt"),"år er ikke tilføjet")) ->  | AF56: =IF(AF$48="","",IF(AF$48<=MAX(ÅR),IF(HLOOKUP(AF$48,$C$104:$J$114,11,FALSE)<>0,HLOOKUP(AF$48,$C$104:$J$114,11,FALSE)-$E127,"Ikke udfyldt"),"år er ikke tilføjet")) -> 
B61: =B96 -> Note: Merudgifterne er beregnet ud fra basisperioden 2018-2020. Note: Udgifterne er defineret som art>0 og ekskl. refusioner.
B64: ="Merudgifter for ikke-trinspecifikke grupperinger og refusion for "&Kommune&", 1.000 kr., "&Prisår&"-priser" -> Merudgifter for ikke-trinspecifikke grupperinger og refusion for Fredericia, 1.000 kr., 2023-priser
B80: ="Note: Merudgifterne er beregnet ud fra basisperioden "&Start&"-"&Slut&". Note: Udgifterne er defineret som art>0 og ekskl. refusioner." -> Note: Merudgifterne er beregnet ud fra basisperioden 2018-2020. Note: Udgifterne er defineret som art>0 og ekskl. refusioner.
B83: ="Tabel - Merudgifter indenfor og udenfor indsatstrappen for "&Kommune&", 1.000 kr., "&Prisår&"-priser" -> Tabel - Merudgifter indenfor og udenfor indsatstrappen for Fredericia, 1.000 kr., 2023-priser
B85: ="Merudgifter indenfor og udenfor indsatstrappen for "&Kommune&", 1.000 kr., "&Prisår&"-priser" -> Merudgifter indenfor og udenfor indsatstrappen for Fredericia, 1.000 kr., 2023-priser
C86: =Slut+1 -> 2021 | D86: =IF(C86="","",IF(Hjælpeark!$G$17="",IF(C86+1<=2023,C86+1,""),IF(C86+1<=2024,C86+1,""))) -> 2022 | E86: =IF(D86="","",IF(Hjælpeark!$G$17="",IF(D86+1<=2023,D86+1,""),IF(D86+1<=2024,D86+1,""))) -> 2023 | F86: =IF(E86="","",IF(Hjælpeark!$G$17="",IF(E86+1<=2023,E86+1,""),IF(E86+1<=2024,E86+1,""))) ->  | G86: =IF(F86="","",IF(Hjælpeark!$G$17="",IF(F86+1<=2023,F86+1,""),IF(F86+1<=2024,F86+1,""))) -> 
B87: Indenfor indsatstrappen | C87: ="" ->  | D87: ="" ->  | E87: ="" ->  | F87: ="" ->  | G87: ="" -> 
B88: Trin 2: Forebyggende indsatser | C88: =IF(C$86="","",IF(C$86<=MAX(regnskab_liste),IF(Start>=2015,IF(HLOOKUP(C$86,$C$104:$J$114,5,FALSE)<>0,HLOOKUP(C$86,$C$104:$J$114,5,FALSE)-$E121,"Ikke udfyldt"),"-"),"år er ikke tilføjet")) -> -381.2730226 | D88: =IF(D$86="","",IF(D$86<=MAX(regnskab_liste),IF(Start>=2015,IF(HLOOKUP(D$86,$C$104:$J$114,5,FALSE)<>0,HLOOKUP(D$86,$C$104:$J$114,5,FALSE)-$E121,"Ikke udfyldt"),"-"),"år er ikke tilføjet")) -> 140.5336094 | E88: =IF(E$86="","",IF(E$86<=MAX(regnskab_liste),IF(Start>=2015,IF(HLOOKUP(E$86,$C$104:$J$114,5,FALSE)<>0,HLOOKUP(E$86,$C$104:$J$114,5,FALSE)-$E121,"Ikke udfyldt"),"-"),"år er ikke tilføjet")) -> 28.18160936 | F88: =IF(F$86="","",IF(F$86<=MAX(regnskab_liste),IF(Start>=2015,IF(HLOOKUP(F$86,$C$104:$J$114,5,FALSE)<>0,HLOOKUP(F$86,$C$104:$J$114,5,FALSE)-$E121,"Ikke udfyldt"),"-"),"år er ikke tilføjet")) ->  | G88: =IF(G$86="","",IF(G$86<=MAX(regnskab_liste),IF(Start>=2015,IF(HLOOKUP(G$86,$C$104:$J$114,5,FALSE)<>0,HLOOKUP(G$86,$C$104:$J$114,5,FALSE)-$E121,"Ikke udfyldt"),"-"),"år er ikke tilføjet")) -> 
B89: Trin 3: Hjemmebaserede foranstaltninger | C89: =IF(C$86="","",IF(C$86<=MAX(regnskab_liste),IF(Start>=2015,IF(HLOOKUP(C$86,$C$104:$J$114,6,FALSE)<>0,HLOOKUP(C$86,$C$104:$J$114,6,FALSE)-$E122,"Ikke udfyldt"),"-"),"år er ikke tilføjet")) -> 2670.849868 | D89: =IF(D$86="","",IF(D$86<=MAX(regnskab_liste),IF(Start>=2015,IF(HLOOKUP(D$86,$C$104:$J$114,6,FALSE)<>0,HLOOKUP(D$86,$C$104:$J$114,6,FALSE)-$E122,"Ikke udfyldt"),"-"),"år er ikke tilføjet")) -> 9430.684888 | E89: =IF(E$86="","",IF(E$86<=MAX(regnskab_liste),IF(Start>=2015,IF(HLOOKUP(E$86,$C$104:$J$114,6,FALSE)<>0,HLOOKUP(E$86,$C$104:$J$114,6,FALSE)-$E122,"Ikke udfyldt"),"-"),"år er ikke tilføjet")) -> 15494.95289 | F89: =IF(F$86="","",IF(F$86<=MAX(regnskab_liste),IF(Start>=2015,IF(HLOOKUP(F$86,$C$104:$J$114,6,FALSE)<>0,HLOOKUP(F$86,$C$104:$J$114,6,FALSE)-$E122,"Ikke udfyldt"),"-"),"år er ikke tilføjet")) ->  | G89: =IF(G$86="","",IF(G$86<=MAX(regnskab_liste),IF(Start>=2015,IF(HLOOKUP(G$86,$C$104:$J$114,6,FALSE)<>0,HLOOKUP(G$86,$C$104:$J$114,6,FALSE)-$E122,"Ikke udfyldt"),"-"),"år er ikke tilføjet")) -> 
B90: Trin 4: Slægt- eller netværkspleje | C90: =IF(C$86="","",IF(C$86<=MAX(regnskab_liste),IF(HLOOKUP(C$86,$C$104:$J$114,7,FALSE)<>0,HLOOKUP(C$86,$C$104:$J$114,7,FALSE)-$E123,"Ikke udfyldt"),"år er ikke tilføjet")) -> 185.9674248 | D90: =IF(D$86="","",IF(D$86<=MAX(regnskab_liste),IF(HLOOKUP(D$86,$C$104:$J$114,7,FALSE)<>0,HLOOKUP(D$86,$C$104:$J$114,7,FALSE)-$E123,"Ikke udfyldt"),"år er ikke tilføjet")) -> 140.3108608 | E90: =IF(E$86="","",IF(E$86<=MAX(regnskab_liste),IF(HLOOKUP(E$86,$C$104:$J$114,7,FALSE)<>0,HLOOKUP(E$86,$C$104:$J$114,7,FALSE)-$E123,"Ikke udfyldt"),"år er ikke tilføjet")) -> 467.8668608 | F90: =IF(F$86="","",IF(F$86<=MAX(regnskab_liste),IF(HLOOKUP(F$86,$C$104:$J$114,7,FALSE)<>0,HLOOKUP(F$86,$C$104:$J$114,7,FALSE)-$E123,"Ikke udfyldt"),"år er ikke tilføjet")) ->  | G90: =IF(G$86="","",IF(G$86<=MAX(regnskab_liste),IF(HLOOKUP(G$86,$C$104:$J$114,7,FALSE)<>0,HLOOKUP(G$86,$C$104:$J$114,7,FALSE)-$E123,"Ikke udfyldt"),"år er ikke tilføjet")) -> 
B91: Trin 5: Familiepleje | C91: =IF(C$86="","",IF(C$86<=MAX(regnskab_liste),IF(HLOOKUP(C$86,$C$104:$J$114,8,FALSE)<>0,HLOOKUP(C$86,$C$104:$J$114,8,FALSE)-$E124,"Ikke udfyldt"),"år er ikke tilføjet")) -> 372.6567452 | D91: =IF(D$86="","",IF(D$86<=MAX(regnskab_liste),IF(HLOOKUP(D$86,$C$104:$J$114,8,FALSE)<>0,HLOOKUP(D$86,$C$104:$J$114,8,FALSE)-$E124,"Ikke udfyldt"),"år er ikke tilføjet")) -> 4699.079041 | E91: =IF(E$86="","",IF(E$86<=MAX(regnskab_liste),IF(HLOOKUP(E$86,$C$104:$J$114,8,FALSE)<>0,HLOOKUP(E$86,$C$104:$J$114,8,FALSE)-$E124,"Ikke udfyldt"),"år er ikke tilføjet")) -> 9235.175041 | F91: =IF(F$86="","",IF(F$86<=MAX(regnskab_liste),IF(HLOOKUP(F$86,$C$104:$J$114,8,FALSE)<>0,HLOOKUP(F$86,$C$104:$J$114,8,FALSE)-$E124,"Ikke udfyldt"),"år er ikke tilføjet")) ->  | G91: =IF(G$86="","",IF(G$86<=MAX(regnskab_liste),IF(HLOOKUP(G$86,$C$104:$J$114,8,FALSE)<>0,HLOOKUP(G$86,$C$104:$J$114,8,FALSE)-$E124,"Ikke udfyldt"),"år er ikke tilføjet")) -> 
B92: Trin 6: Institutionsanbringelser | C92: =IF(C$86="","",IF(C$86<=MAX(regnskab_liste),IF(HLOOKUP(C$86,$C$104:$J$114,9,FALSE)<>0,HLOOKUP(C$86,$C$104:$J$114,9,FALSE)-$E125,"Ikke udfyldt"),"år er ikke tilføjet")) -> -3831.827379 | D92: =IF(D$86="","",IF(D$86<=MAX(regnskab_liste),IF(HLOOKUP(D$86,$C$104:$J$114,9,FALSE)<>0,HLOOKUP(D$86,$C$104:$J$114,9,FALSE)-$E125,"Ikke udfyldt"),"år er ikke tilføjet")) -> 7878.455749 | E92: =IF(E$86="","",IF(E$86<=MAX(regnskab_liste),IF(HLOOKUP(E$86,$C$104:$J$114,9,FALSE)<>0,HLOOKUP(E$86,$C$104:$J$114,9,FALSE)-$E125,"Ikke udfyldt"),"år er ikke tilføjet")) -> 19605.63575 | F92: =IF(F$86="","",IF(F$86<=MAX(regnskab_liste),IF(HLOOKUP(F$86,$C$104:$J$114,9,FALSE)<>0,HLOOKUP(F$86,$C$104:$J$114,9,FALSE)-$E125,"Ikke udfyldt"),"år er ikke tilføjet")) ->  | G92: =IF(G$86="","",IF(G$86<=MAX(regnskab_liste),IF(HLOOKUP(G$86,$C$104:$J$114,9,FALSE)<>0,HLOOKUP(G$86,$C$104:$J$114,9,FALSE)-$E125,"Ikke udfyldt"),"år er ikke tilføjet")) -> 
B93: Udenfor indsatstrappen | C93: ="" ->  | D93: ="" ->  | E93: ="" ->  | F93: ="" ->  | G93: ="" -> 
B94: Ikke-trinspecifikke grupperinger | C94: =IF(C$86="","",IF(C$86<=MAX(regnskab_liste),IF(HLOOKUP(C$86,$C$104:$J$114,10,FALSE)<>0,HLOOKUP(C$86,$C$104:$J$114,10,FALSE)-$E126,"Ikke udfyldt"),"år er ikke tilføjet")) -> 454.2495988 | D94: =IF(D$86="","",IF(D$86<=MAX(regnskab_liste),IF(HLOOKUP(D$86,$C$104:$J$114,10,FALSE)<>0,HLOOKUP(D$86,$C$104:$J$114,10,FALSE)-$E126,"Ikke udfyldt"),"år er ikke tilføjet")) -> 2296.522231 | E94: =IF(E$86="","",IF(E$86<=MAX(regnskab_liste),IF(HLOOKUP(E$86,$C$104:$J$114,10,FALSE)<>0,HLOOKUP(E$86,$C$104:$J$114,10,FALSE)-$E126,"Ikke udfyldt"),"år er ikke tilføjet")) -> 5496.714231 | F94: =IF(F$86="","",IF(F$86<=MAX(regnskab_liste),IF(HLOOKUP(F$86,$C$104:$J$114,10,FALSE)<>0,HLOOKUP(F$86,$C$104:$J$114,10,FALSE)-$E126,"Ikke udfyldt"),"år er ikke tilføjet")) ->  | G94: =IF(G$86="","",IF(G$86<=MAX(regnskab_liste),IF(HLOOKUP(G$86,$C$104:$J$114,10,FALSE)<>0,HLOOKUP(G$86,$C$104:$J$114,10,FALSE)-$E126,"Ikke udfyldt"),"år er ikke tilføjet")) -> 
B95: Refusioner | C95: =IF(C$86="","",IF(C$86<=MAX(regnskab_liste),IF(HLOOKUP(C$86,$C$104:$J$114,11,FALSE)<>0,HLOOKUP(C$86,$C$104:$J$114,11,FALSE)-$E127,"Ikke udfyldt"),"år er ikke tilføjet")) -> -2988.372583 | D95: =IF(D$86="","",IF(D$86<=MAX(regnskab_liste),IF(HLOOKUP(D$86,$C$104:$J$114,11,FALSE)<>0,HLOOKUP(D$86,$C$104:$J$114,11,FALSE)-$E127,"Ikke udfyldt"),"år er ikke tilføjet")) -> -11152.11431 | E95: =IF(E$86="","",IF(E$86<=MAX(regnskab_liste),IF(HLOOKUP(E$86,$C$104:$J$114,11,FALSE)<>0,HLOOKUP(E$86,$C$104:$J$114,11,FALSE)-$E127,"Ikke udfyldt"),"år er ikke tilføjet")) -> -26124.63831 | F95: =IF(F$86="","",IF(F$86<=MAX(regnskab_liste),IF(HLOOKUP(F$86,$C$104:$J$114,11,FALSE)<>0,HLOOKUP(F$86,$C$104:$J$114,11,FALSE)-$E127,"Ikke udfyldt"),"år er ikke tilføjet")) ->  | G95: =IF(G$86="","",IF(G$86<=MAX(regnskab_liste),IF(HLOOKUP(G$86,$C$104:$J$114,11,FALSE)<>0,HLOOKUP(G$86,$C$104:$J$114,11,FALSE)-$E127,"Ikke udfyldt"),"år er ikke tilføjet")) -> 
B96: =IF(Start<2015,"Note: Merudgifterne er beregnet ud fra basisperioden "&Start&"-"&Slut&"."&" Merudgifter for forebyggende indsatser og hjemmebaserede foranstaltninger kan ikke beregnes, når basisperioden starter før 2015. "&CONCATENATE("Det skyldes, at forebyggende indsatser indgår som en del af hjemmebaserede foranstaltninger før 2015."," Det er således ikke muligt, at lave en gennemsnitlig udgift i en basisperiode for hver af de to opgørelser forud for 2015."," Udgifterne er defineret som art>0 og ekskl. refusioner."),"Note: Merudgifterne er beregnet ud fra basisperioden "&Start&"-"&Slut&". Note: Udgifterne er defineret som art>0 og ekskl. refusioner.") -> Note: Merudgifterne er beregnet ud fra basisperioden 2018-2020. Note: Udgifterne er defineret som art>0 og ekskl. refusioner.
B101: Udgifter og definition af basisperiode
B103: ="Udgifter til det specialiserede børneområde for "&Kommune&", 1.000 kr., "&Prisår&"-priser" -> Udgifter til det specialiserede børneområde for Fredericia, 1.000 kr., 2023-priser
C104: 2018 | D104: 2019 | E104: 2020 | F104: 2021 | G104: 2022 | H104: 2023 | I104: ='2024'!B2 -> 2024
B105: I alt | C105: =INDIRECT(C$104&"!Samlede_NDU")*INDEX(PL!$F$11:$F$57,COLUMN()-2) -> 137134.3721 | D105: =INDIRECT(D$104&"!Samlede_NDU")*INDEX(PL!$F$11:$F$57,COLUMN()-2) -> 129393.7196 | E105: =INDIRECT(E$104&"!Samlede_NDU")*INDEX(PL!$F$11:$F$57,COLUMN()-2) -> 132302.6311 | F105: =INDIRECT(F$104&"!Samlede_NDU")*INDEX(PL!$F$11:$F$57,COLUMN()-2) -> 130876.1737 | G105: =INDIRECT(G$104&"!Samlede_NDU")*INDEX(PL!$F$11:$F$57,COLUMN()-2) -> 150127.064 | H105: =INDIRECT(H$104&"!Samlede_NDU")*INDEX(PL!$F$11:$F$57,COLUMN()-2) -> 166270 | I105: =INDIRECT(I$104&"!Samlede_NDU")*INDEX(PL!$F$11:$F$57,COLUMN()-2) -> 0
B106: Administration | C106: =INDIRECT(C$104&"!Administration")*INDEX(PL!$F$11:$F$57,COLUMN()-2) -> 22755.63718 | D106: =INDIRECT(D$104&"!Administration")*INDEX(PL!$F$11:$F$57,COLUMN()-2) -> 21218.41818 | E106: =INDIRECT(E$104&"!Administration")*INDEX(PL!$F$11:$F$57,COLUMN()-2) -> 21598.33176 | F106: =INDIRECT(F$104&"!Administration")*INDEX(PL!$F$11:$F$57,COLUMN()-2) -> 23307.8111 | G106: =INDIRECT(G$104&"!Administration")*INDEX(PL!$F$11:$F$57,COLUMN()-2) -> 25607.48 | H106: =INDIRECT(H$104&"!Administration")*INDEX(PL!$F$11:$F$57,COLUMN()-2) -> 30980 | I106: =INDIRECT(I$104&"!Administration")*INDEX(PL!$F$11:$F$57,COLUMN()-2) -> 0
B107: Service | C107: =INDIRECT(C$104&"!NDU_Service")*INDEX(PL!$F$11:$F$57,COLUMN()-2) -> 114378.735 | D107: =INDIRECT(D$104&"!NDU_Service")*INDEX(PL!$F$11:$F$57,COLUMN()-2) -> 108175.3015 | E107: =INDIRECT(E$104&"!NDU_Service")*INDEX(PL!$F$11:$F$57,COLUMN()-2) -> 110704.2994 | F107: =INDIRECT(F$104&"!NDU_Service")*INDEX(PL!$F$11:$F$57,COLUMN()-2) -> 107568.3626 | G107: =INDIRECT(G$104&"!NDU_Service")*INDEX(PL!$F$11:$F$57,COLUMN()-2) -> 124519.584 | H107: =INDIRECT(H$104&"!NDU_Service")*INDEX(PL!$F$11:$F$57,COLUMN()-2) -> 135290 | I107: =INDIRECT(I$104&"!NDU_Service")*INDEX(PL!$F$11:$F$57,COLUMN()-2) -> 0
B108: Heraf trin 2: Forebyggende indsatser | C108: =INDIRECT(C$104&"!BDU_forebyggende")*INDEX(PL!$F$11:$F$57,COLUMN()-2) -> 1214.593662 | D108: =INDIRECT(D$104&"!BDU_forebyggende")*INDEX(PL!$F$11:$F$57,COLUMN()-2) -> 1856.293353 | E108: =INDIRECT(E$104&"!BDU_forebyggende")*INDEX(PL!$F$11:$F$57,COLUMN()-2) -> 1392.568157 | F108: =INDIRECT(F$104&"!BDU_forebyggende")*INDEX(PL!$F$11:$F$57,COLUMN()-2) -> 1106.545368 | G108: =INDIRECT(G$104&"!BDU_forebyggende")*INDEX(PL!$F$11:$F$57,COLUMN()-2) -> 1628.352 | H108: =INDIRECT(H$104&"!BDU_forebyggende")*INDEX(PL!$F$11:$F$57,COLUMN()-2) -> 1516 | I108: =INDIRECT(I$104&"!BDU_forebyggende")*INDEX(PL!$F$11:$F$57,COLUMN()-2) -> 0
B109: Heraf trin 3: Hjemmebaserede foranstaltninger | C109: =INDIRECT(C$104&"!BDU_hjemme")*INDEX(PL!$F$11:$F$57,COLUMN()-2) -> 20766.17774 | D109: =INDIRECT(D$104&"!BDU_hjemme")*INDEX(PL!$F$11:$F$57,COLUMN()-2) -> 16766.41349 | E109: =INDIRECT(E$104&"!BDU_hjemme")*INDEX(PL!$F$11:$F$57,COLUMN()-2) -> 22590.5501 | F109: =INDIRECT(F$104&"!BDU_hjemme")*INDEX(PL!$F$11:$F$57,COLUMN()-2) -> 22711.89698 | G109: =INDIRECT(G$104&"!BDU_hjemme")*INDEX(PL!$F$11:$F$57,COLUMN()-2) -> 29471.732 | H109: =INDIRECT(H$104&"!BDU_hjemme")*INDEX(PL!$F$11:$F$57,COLUMN()-2) -> 35536 | I109: =INDIRECT(I$104&"!BDU_hjemme")*INDEX(PL!$F$11:$F$57,COLUMN()-2) -> 0
B110: Heraf trin 4: Slægt- eller netværkspleje | C110: =INDIRECT(C$104&"!BDU_netværk")*INDEX(PL!$F$11:$F$57,COLUMN()-2) -> 1674.56478 | D110: =INDIRECT(D$104&"!BDU_netværk")*INDEX(PL!$F$11:$F$57,COLUMN()-2) -> 1482.156708 | E110: =INDIRECT(E$104&"!BDU_netværk")*INDEX(PL!$F$11:$F$57,COLUMN()-2) -> 2198.677929 | F110: =INDIRECT(F$104&"!BDU_netværk")*INDEX(PL!$F$11:$F$57,COLUMN()-2) -> 1971.100564 | G110: =INDIRECT(G$104&"!BDU_netværk")*INDEX(PL!$F$11:$F$57,COLUMN()-2) -> 1925.444 | H110: =INDIRECT(H$104&"!BDU_netværk")*INDEX(PL!$F$11:$F$57,COLUMN()-2) -> 2253 | I110: =INDIRECT(I$104&"!BDU_netværk")*INDEX(PL!$F$11:$F$57,COLUMN()-2) -> 0
B111: Heraf trin 5: Familiepleje | C111: =INDIRECT(C$104&"!BDU_familiepleje")*INDEX(PL!$F$11:$F$57,COLUMN()-2) -> 41109.49695 | D111: =INDIRECT(D$104&"!BDU_familiepleje")*INDEX(PL!$F$11:$F$57,COLUMN()-2) -> 39448.17085 | E111: =INDIRECT(E$104&"!BDU_familiepleje")*INDEX(PL!$F$11:$F$57,COLUMN()-2) -> 38937.80707 | F111: =INDIRECT(F$104&"!BDU_familiepleje")*INDEX(PL!$F$11:$F$57,COLUMN()-2) -> 40204.4817 | G111: =INDIRECT(G$104&"!BDU_familiepleje")*INDEX(PL!$F$11:$F$57,COLUMN()-2) -> 44530.904 | H111: =INDIRECT(H$104&"!BDU_familiepleje")*INDEX(PL!$F$11:$F$57,COLUMN()-2) -> 49067 | I111: =INDIRECT(I$104&"!BDU_familiepleje")*INDEX(PL!$F$11:$F$57,COLUMN()-2) -> 0
B112: Heraf trin 6: Institutionsanbringelser | C112: =INDIRECT(C$104&"!BDU_institution")*INDEX(PL!$F$11:$F$57,COLUMN()-2) -> 23600.22962 | D112: =INDIRECT(D$104&"!BDU_institution")*INDEX(PL!$F$11:$F$57,COLUMN()-2) -> 23147.7678 | E112: =INDIRECT(E$104&"!BDU_institution")*INDEX(PL!$F$11:$F$57,COLUMN()-2) -> 18482.09533 | F112: =INDIRECT(F$104&"!BDU_institution")*INDEX(PL!$F$11:$F$57,COLUMN()-2) -> 17911.53687 | G112: =INDIRECT(G$104&"!BDU_institution")*INDEX(PL!$F$11:$F$57,COLUMN()-2) -> 29621.82 | H112: =INDIRECT(H$104&"!BDU_institution")*INDEX(PL!$F$11:$F$57,COLUMN()-2) -> 41349 | I112: =INDIRECT(I$104&"!BDU_institution")*INDEX(PL!$F$11:$F$57,COLUMN()-2) -> 0
B113: Heraf Ikke-trinspecifikke grupperinger | C113: =INDIRECT(C$104&"!BDU_universal")*INDEX(PL!$F$11:$F$57,COLUMN()-2) -> 29335.8108 | D113: =INDIRECT(D$104&"!BDU_universal")*INDEX(PL!$F$11:$F$57,COLUMN()-2) -> 29810.27805 | E113: =INDIRECT(E$104&"!BDU_universal")*INDEX(PL!$F$11:$F$57,COLUMN()-2) -> 30758.76845 | F113: =INDIRECT(F$104&"!BDU_universal")*INDEX(PL!$F$11:$F$57,COLUMN()-2) -> 30422.53537 | G113: =INDIRECT(G$104&"!BDU_universal")*INDEX(PL!$F$11:$F$57,COLUMN()-2) -> 32264.808 | H113: =INDIRECT(H$104&"!BDU_universal")*INDEX(PL!$F$11:$F$57,COLUMN()-2) -> 35465 | I113: =INDIRECT(I$104&"!BDU_universal")*INDEX(PL!$F$11:$F$57,COLUMN()-2) -> 0
B114: Heraf refusioner | C114: =INDIRECT(C$104&"!Ref")*INDEX(PL!$F$11:$F$57,COLUMN()-2) -> -3322.138589 | D114: =INDIRECT(D$104&"!Ref")*INDEX(PL!$F$11:$F$57,COLUMN()-2) -> -4335.77881 | E114: =INDIRECT(E$104&"!Ref")*INDEX(PL!$F$11:$F$57,COLUMN()-2) -> -3656.167679 | F114: =INDIRECT(F$104&"!Ref")*INDEX(PL!$F$11:$F$57,COLUMN()-2) -> -6759.734276 | G114: =INDIRECT(G$104&"!Ref")*INDEX(PL!$F$11:$F$57,COLUMN()-2) -> -14923.476 | H114: =INDIRECT(H$104&"!Ref")*INDEX(PL!$F$11:$F$57,COLUMN()-2) -> -29896 | I114: =INDIRECT(I$104&"!Ref")*INDEX(PL!$F$11:$F$57,COLUMN()-2) -> 0
B116: Basisperiode
C117: ="Gennemsnitlige udgifter i alt "&Start&" - "&Slut&"" -> Gennemsnitlige udgifter i alt 2018 - 2020 | D117: ="Gennemsnitlige administrations-udgifter "&Start&" - "&Slut&"" -> Gennemsnitlige administrations-udgifter 2018 - 2020 | E117: ="Gennemsnitlige serviceudgifter "&Start&" - "&Slut&"" -> Gennemsnitlige serviceudgifter 2018 - 2020
B118: I alt | C118: =IF(Start<=Slut,AVERAGEIFS(Sam_NDU,ÅR,">="&Start,ÅR,"<="&Slut),"Fejl i slutår") -> 132943.5743
B119: Administration | D119: =IF(Start<=Slut,AVERAGEIFS(Adm,ÅR,">="&Start,ÅR,"<="&Slut),"Fejl i slutår") -> 21857.46237
B120: Service | E120: =IF(Start<=Slut,AVERAGEIFS(Service,ÅR,">="&Start,ÅR,"<="&Slut),"Fejl i slutår") -> 111086.1119
B121: Heraf trin 2: Forebyggende indsatser | E121: =IF(Start<=Slut,AVERAGEIFS(Forebyggende,ÅR,">="&Start,ÅR,"<="&Slut),"Fejl i slutår") -> 1487.818391
B122: Heraf trin 3: Hjemmebaserede foranstaltninger | E122: =IF(Start<=Slut,AVERAGEIFS(Hjemme,ÅR,">="&Start,ÅR,"<="&Slut),"Fejl i slutår") -> 20041.04711
B123: Heraf trin 4: Slægt- eller netværkspleje | E123: =IF(Start<=Slut,AVERAGEIFS(Netværks,ÅR,">="&Start,ÅR,"<="&Slut),"Fejl i slutår") -> 1785.133139
B124: Heraf trin 5: Familiepleje | E124: =IF(Start<=Slut,AVERAGEIFS(Pleje,ÅR,">="&Start,ÅR,"<="&Slut),"Fejl i slutår") -> 39831.82496
B125: Heraf trin 6: Institutionsanbringelser | E125: =IF(Start<=Slut,AVERAGEIFS(Institution,ÅR,">="&Start,ÅR,"<="&Slut),"Fejl i slutår") -> 21743.36425
B126: Heraf Ikke-trinspecifikke grupperinger | E126: =IF(Start<=Slut,AVERAGEIFS(Universale,ÅR,">="&Start,ÅR,"<="&Slut),"Fejl i slutår") -> 29968.28577
B127: Heraf refusioner | E127: =IF(Start<=Slut,AVERAGEIFS(Refusion,ÅR,">="&Start,ÅR,"<="&Slut),"Fejl i slutår") -> -3771.361693

Sheet Alle år
B8: På denne side kan du se udgiftsudviklingen fordelt indenfor og udenfor indsatstrappen og sammenligne med din sammenligningsgruppe, region og hele landet. Udgiftsudviklingen præsenteres på to måder: 1) Du kan vælge at se udgiftsudviklingen for enten din valgte kommune, sammenligningsgruppen, regionen eller hele landet. For hver aktør kan du sammenligne udgiftsopgørelserne med hinanden og se, hvordan fordelingen ændres over tid. 2) Du kan vælge at se hver enkelt opgørelse for alle aktører over tid. Det giver dig mulighed for, at sammenligne den enkelte opgørelse over tid for de forskellige aktører. Du kan se beregningen af de enkelte regnskabsår ved at bruge knappen "Regnskabsår" i den øverste røde bjælke. For hvert regnskabsår kan du se udgiftsfordelingen for din valgte kommune. Du kan også se hvordan serviceudgifternes fordeling på de enkelte trin ændrer sig over tid, ved at vælge knappen ”Fordeling”, eller du kan lave en analyse af udgiftsændringer ved at vælge knappen "Ændring". Begge knapper er placeret i den røde bjælke. Du kan altid ændre på dine valg ved at bruge knappen "Dine valg" ligeledes placeret i den røde bjælke.
B11: Udgiftsudvikling for hver aktør
B13: Vælg aktør
B17: Udgifter til service, administration og i alt
B19: ="Udgifter til service, administration og i alt for "&alle_aar_tekst_valg&", 1.000 kr., "&Prisår&"-priser" -> Udgifter til service, administration og i alt for Fredericia, 1.000 kr., 2023-priser
B40: ="Note: Udgifterne er defineret som art>0. De valgte sammenligningskommuner er "&Samkom1&" "&Samkom2&" "&Samkom3&" "&Samkom4&" "&Samkom5&" "&Samkom6&" "&Samkom7&" "&Samkom8&" "&Samkom9&" "&Samkom10&" "&Samkom11&" "&Samkom12&" "&Samkom13&" "&Samkom14&" "&Samkom15&" "&Samkom16&" "&Samkom17&" "&Samkom18&" " -> Note: Udgifterne er defineret som art>0. De valgte sammenligningskommuner er Aarhus
B41: Kilde: Danmarks Statistik
B43: ="Tabel - Udgifter til service, administration og i alt for "&alle_aar_tekst_valg&"" -> Tabel - Udgifter til service, administration og i alt for Fredericia
B45: ="Udgifter til service, administration og i alt for "&alle_aar_tekst_valg&", 1.000 kr., "&Prisår&"-priser" -> Udgifter til service, administration og i alt for Fredericia, 1.000 kr., 2023-priser
C46: ='Udgifter til figur'!C6 -> 2018 | D46: ='Udgifter til figur'!D6 -> 2019 | E46: ='Udgifter til figur'!E6 -> 2020 | F46: ='Udgifter til figur'!F6 -> 2021 | G46: ='Udgifter til figur'!G6 -> 2022 | H46: ='Udgifter til figur'!H6 -> 2023 | I46: ='Udgifter til figur'!I6 ->  | J46: ='Udgifter til figur'!J6 ->  | K46: ='Udgifter til figur'!K6 ->  | L46: ='Udgifter til figur'!L6 ->  | M46: ='Udgifter til figur'!M6 ->  | N46: ='Udgifter til figur'!N6 ->  | O46: ='Udgifter til figur'!O6 ->  | P46: ='Udgifter til figur'!P6 ->  | Q46: ='Dine valg'!L10 ->  | R46: ='Dine valg'!L11 ->  | S46: ='Dine valg'!L12 ->  | T46: ='Dine valg'!L13 ->  | U46: ='Dine valg'!L14 ->  | V46: ='Dine valg'!L15 ->  | W46: ='Dine valg'!L16 -> 
B47: =""&alle_aar_tekst_valg&"" -> Fredericia | C47: ="" ->  | D47: ="" ->  | E47: ="" ->  | F47: ="" ->  | G47: ="" ->  | H47: ="" ->  | I47: ="" ->  | J47: ="" ->  | K47: ="" ->  | L47: ="" ->  | M47: ="" ->  | N47: ="" ->  | O47: ="" ->  | P47: ="" ->  | Q47: ="" ->  | R47: ="" ->  | S47: ="" ->  | T47: ="" ->  | U47: ="" ->  | V47: ="" ->  | W47: ="" -> 
B48: I alt | C48: ='Udgifter til figur'!C8 -> 137134.3721 | D48: ='Udgifter til figur'!D8 -> 129393.7196 | E48: ='Udgifter til figur'!E8 -> 132302.6311 | F48: ='Udgifter til figur'!F8 -> 130876.1737 | G48: ='Udgifter til figur'!G8 -> 150127.064 | H48: ='Udgifter til figur'!H8 -> 166270 | I48: ='Udgifter til figur'!I8 ->  | J48: ='Udgifter til figur'!J8 ->  | K48: ='Udgifter til figur'!K8 ->  | L48: ='Udgifter til figur'!L8 ->  | M48: ='Udgifter til figur'!M8 ->  | N48: ='Udgifter til figur'!N8 ->  | O48: ='Udgifter til figur'!O8 ->  | P48: ='Udgifter til figur'!P8 ->  | Q48: =IF(Q46="","",IF(Q46='2024'!$B$2,(IF(alle_aar_valg=1,Samlede_NDU*INDEX(PL!$F$11:$F$57,MATCH(Q46,PL!$C$11:$C$57,0)),"Kan ikke vises")),IF(alle_aar_valg=1,INDIRECT(Q46&"!Samlede_NDU")*INDEX(PL!$F$11:$F$57,MATCH(Q46,PL!$C$11:$C$57,0)),IF(alle_aar_valg=2,INDIRECT(Q46&"_sam!Samlede_NDU_sam")*INDEX(PL!$F$11:$F$57,MATCH(Q46,PL!$C$11:$C$57,0)),INDIRECT(Q46&"_sam!Samlede_NDU")*INDEX(PL!$F$11:$F$57,MATCH(Q46,PL!$C$11:$C$57,0)))))) ->  | R48: =IF(R46="","",IF(R46='2024'!$B$2,(IF(alle_aar_valg=1,Samlede_NDU*INDEX(PL!$F$11:$F$57,MATCH(R46,PL!$C$11:$C$57,0)),"Kan ikke vises")),IF(alle_aar_valg=1,INDIRECT(R46&"!Samlede_NDU")*INDEX(PL!$F$11:$F$57,MATCH(R46,PL!$C$11:$C$57,0)),IF(alle_aar_valg=2,INDIRECT(R46&"_sam!Samlede_NDU_sam")*INDEX(PL!$F$11:$F$57,MATCH(R46,PL!$C$11:$C$57,0)),INDIRECT(R46&"_sam!Samlede_NDU")*INDEX(PL!$F$11:$F$57,MATCH(R46,PL!$C$11:$C$57,0)))))) ->  | S48: =IF(S46="","",IF(S46='2024'!$B$2,(IF(alle_aar_valg=1,Samlede_NDU*INDEX(PL!$F$11:$F$57,MATCH(S46,PL!$C$11:$C$57,0)),"Kan ikke vises")),IF(alle_aar_valg=1,INDIRECT(S46&"!Samlede_NDU")*INDEX(PL!$F$11:$F$57,MATCH(S46,PL!$C$11:$C$57,0)),IF(alle_aar_valg=2,INDIRECT(S46&"_sam!Samlede_NDU_sam")*INDEX(PL!$F$11:$F$57,MATCH(S46,PL!$C$11:$C$57,0)),INDIRECT(S46&"_sam!Samlede_NDU")*INDEX(PL!$F$11:$F$57,MATCH(S46,PL!$C$11:$C$57,0)))))) ->  | T48: =IF(T46="","",IF(T46='2024'!$B$2,(IF(alle_aar_valg=1,Samlede_NDU*INDEX(PL!$F$11:$F$57,MATCH(T46,PL!$C$11:$C$57,0)),"Kan ikke vises")),IF(alle_aar_valg=1,INDIRECT(T46&"!Samlede_NDU")*INDEX(PL!$F$11:$F$57,MATCH(T46,PL!$C$11:$C$57,0)),IF(alle_aar_valg=2,INDIRECT(T46&"_sam!Samlede_NDU_sam")*INDEX(PL!$F$11:$F$57,MATCH(T46,PL!$C$11:$C$57,0)),INDIRECT(T46&"_sam!Samlede_NDU")*INDEX(PL!$F$11:$F$57,MATCH(T46,PL!$C$11:$C$57,0)))))) ->  | U48: =IF(U46="","",IF(U46='2024'!$B$2,(IF(alle_aar_valg=1,Samlede_NDU*INDEX(PL!$F$11:$F$57,MATCH(U46,PL!$C$11:$C$57,0)),"Kan ikke vises")),IF(alle_aar_valg=1,INDIRECT(U46&"!Samlede_NDU")*INDEX(PL!$F$11:$F$57,MATCH(U46,PL!$C$11:$C$57,0)),IF(alle_aar_valg=2,INDIRECT(U46&"_sam!Samlede_NDU_sam")*INDEX(PL!$F$11:$F$57,MATCH(U46,PL!$C$11:$C$57,0)),INDIRECT(U46&"_sam!Samlede_NDU")*INDEX(PL!$F$11:$F$57,MATCH(U46,PL!$C$11:$C$57,0)))))) ->  | V48: =IF(V46="","",IF(V46='2024'!$B$2,(IF(alle_aar_valg=1,Samlede_NDU*INDEX(PL!$F$11:$F$57,MATCH(V46,PL!$C$11:$C$57,0)),"Kan ikke vises")),IF(alle_aar_valg=1,INDIRECT(V46&"!Samlede_NDU")*INDEX(PL!$F$11:$F$57,MATCH(V46,PL!$C$11:$C$57,0)),IF(alle_aar_valg=2,INDIRECT(V46&"_sam!Samlede_NDU_sam")*INDEX(PL!$F$11:$F$57,MATCH(V46,PL!$C$11:$C$57,0)),INDIRECT(V46&"_sam!Samlede_NDU")*INDEX(PL!$F$11:$F$57,MATCH(V46,PL!$C$11:$C$57,0)))))) ->  | W48: =IF(W46="","",IF(W46='2024'!$B$2,(IF(alle_aar_valg=1,Samlede_NDU*INDEX(PL!$F$11:$F$57,MATCH(W46,PL!$C$11:$C$57,0)),"Kan ikke vises")),IF(alle_aar_valg=1,INDIRECT(W46&"!Samlede_NDU")*INDEX(PL!$F$11:$F$57,MATCH(W46,PL!$C$11:$C$57,0)),IF(alle_aar_valg=2,INDIRECT(W46&"_sam!Samlede_NDU_sam")*INDEX(PL!$F$11:$F$57,MATCH(W46,PL!$C$11:$C$57,0)),INDIRECT(W46&"_sam!Samlede_NDU")*INDEX(PL!$F$11:$F$57,MATCH(W46,PL!$C$11:$C$57,0)))))) -> 
B49: Administration | C49: ='Udgifter til figur'!C9 -> 22755.63718 | D49: ='Udgifter til figur'!D9 -> 21218.41818 | E49: ='Udgifter til figur'!E9 -> 21598.33176 | F49: ='Udgifter til figur'!F9 -> 23307.8111 | G49: ='Udgifter til figur'!G9 -> 25607.48 | H49: ='Udgifter til figur'!H9 -> 30980 | I49: ='Udgifter til figur'!I9 ->  | J49: ='Udgifter til figur'!J9 ->  | K49: ='Udgifter til figur'!K9 ->  | L49: ='Udgifter til figur'!L9 ->  | M49: ='Udgifter til figur'!M9 ->  | N49: ='Udgifter til figur'!N9 ->  | O49: ='Udgifter til figur'!O9 ->  | P49: ='Udgifter til figur'!P9 ->  | Q49: =IF(Q46="","",IF(Q46='2024'!$B$2,(IF(alle_aar_valg=1,Administration*INDEX(PL!$F$11:$F$57,MATCH(Q46,PL!$C$11:$C$57,0)),"Kan ikke vises")),IF(alle_aar_valg=1,INDIRECT(Q46&"!Administration")*INDEX(PL!$F$11:$F$57,MATCH(Q46,PL!$C$11:$C$57,0)),IF(alle_aar_valg=2,INDIRECT(Q46&"_sam!Administration_sam")*INDEX(PL!$F$11:$F$57,MATCH(Q46,PL!$C$11:$C$57,0)),INDIRECT(Q46&"_sam!Administration")*INDEX(PL!$F$11:$F$57,MATCH(Q46,PL!$C$11:$C$57,0)))))) ->  | R49: =IF(R46="","",IF(R46='2024'!$B$2,(IF(alle_aar_valg=1,Administration*INDEX(PL!$F$11:$F$57,MATCH(R46,PL!$C$11:$C$57,0)),"Kan ikke vises")),IF(alle_aar_valg=1,INDIRECT(R46&"!Administration")*INDEX(PL!$F$11:$F$57,MATCH(R46,PL!$C$11:$C$57,0)),IF(alle_aar_valg=2,INDIRECT(R46&"_sam!Administration_sam")*INDEX(PL!$F$11:$F$57,MATCH(R46,PL!$C$11:$C$57,0)),INDIRECT(R46&"_sam!Administration")*INDEX(PL!$F$11:$F$57,MATCH(R46,PL!$C$11:$C$57,0)))))) ->  | S49: =IF(S46="","",IF(S46='2024'!$B$2,(IF(alle_aar_valg=1,Administration*INDEX(PL!$F$11:$F$57,MATCH(S46,PL!$C$11:$C$57,0)),"Kan ikke vises")),IF(alle_aar_valg=1,INDIRECT(S46&"!Administration")*INDEX(PL!$F$11:$F$57,MATCH(S46,PL!$C$11:$C$57,0)),IF(alle_aar_valg=2,INDIRECT(S46&"_sam!Administration_sam")*INDEX(PL!$F$11:$F$57,MATCH(S46,PL!$C$11:$C$57,0)),INDIRECT(S46&"_sam!Administration")*INDEX(PL!$F$11:$F$57,MATCH(S46,PL!$C$11:$C$57,0)))))) ->  | T49: =IF(T46="","",IF(T46='2024'!$B$2,(IF(alle_aar_valg=1,Administration*INDEX(PL!$F$11:$F$57,MATCH(T46,PL!$C$11:$C$57,0)),"Kan ikke vises")),IF(alle_aar_valg=1,INDIRECT(T46&"!Administration")*INDEX(PL!$F$11:$F$57,MATCH(T46,PL!$C$11:$C$57,0)),IF(alle_aar_valg=2,INDIRECT(T46&"_sam!Administration_sam")*INDEX(PL!$F$11:$F$57,MATCH(T46,PL!$C$11:$C$57,0)),INDIRECT(T46&"_sam!Administration")*INDEX(PL!$F$11:$F$57,MATCH(T46,PL!$C$11:$C$57,0)))))) ->  | U49: =IF(U46="","",IF(U46='2024'!$B$2,(IF(alle_aar_valg=1,Administration*INDEX(PL!$F$11:$F$57,MATCH(U46,PL!$C$11:$C$57,0)),"Kan ikke vises")),IF(alle_aar_valg=1,INDIRECT(U46&"!Administration")*INDEX(PL!$F$11:$F$57,MATCH(U46,PL!$C$11:$C$57,0)),IF(alle_aar_valg=2,INDIRECT(U46&"_sam!Administration_sam")*INDEX(PL!$F$11:$F$57,MATCH(U46,PL!$C$11:$C$57,0)),INDIRECT(U46&"_sam!Administration")*INDEX(PL!$F$11:$F$57,MATCH(U46,PL!$C$11:$C$57,0)))))) ->  | V49: =IF(V46="","",IF(V46='2024'!$B$2,(IF(alle_aar_valg=1,Administration*INDEX(PL!$F$11:$F$57,MATCH(V46,PL!$C$11:$C$57,0)),"Kan ikke vises")),IF(alle_aar_valg=1,INDIRECT(V46&"!Administration")*INDEX(PL!$F$11:$F$57,MATCH(V46,PL!$C$11:$C$57,0)),IF(alle_aar_valg=2,INDIRECT(V46&"_sam!Administration_sam")*INDEX(PL!$F$11:$F$57,MATCH(V46,PL!$C$11:$C$57,0)),INDIRECT(V46&"_sam!Administration")*INDEX(PL!$F$11:$F$57,MATCH(V46,PL!$C$11:$C$57,0)))))) ->  | W49: =IF(W46="","",IF(W46='2024'!$B$2,(IF(alle_aar_valg=1,Administration*INDEX(PL!$F$11:$F$57,MATCH(W46,PL!$C$11:$C$57,0)),"Kan ikke vises")),IF(alle_aar_valg=1,INDIRECT(W46&"!Administration")*INDEX(PL!$F$11:$F$57,MATCH(W46,PL!$C$11:$C$57,0)),IF(alle_aar_valg=2,INDIRECT(W46&"_sam!Administration_sam")*INDEX(PL!$F$11:$F$57,MATCH(W46,PL!$C$11:$C$57,0)),INDIRECT(W46&"_sam!Administration")*INDEX(PL!$F$11:$F$57,MATCH(W46,PL!$C$11:$C$57,0)))))) -> 
B50: Service | C50: ='Udgifter til figur'!C10 -> 114378.735 | D50: ='Udgifter til figur'!D10 -> 108175.3015 | E50: ='Udgifter til figur'!E10 -> 110704.2994 | F50: ='Udgifter til figur'!F10 -> 107568.3626 | G50: ='Udgifter til figur'!G10 -> 124519.584 | H50: ='Udgifter til figur'!H10 -> 135290 | I50: ='Udgifter til figur'!I10 ->  | J50: ='Udgifter til figur'!J10 ->  | K50: ='Udgifter til figur'!K10 ->  | L50: ='Udgifter til figur'!L10 ->  | M50: ='Udgifter til figur'!M10 ->  | N50: ='Udgifter til figur'!N10 ->  | O50: ='Udgifter til figur'!O10 ->  | P50: ='Udgifter til figur'!P10 ->  | Q50: =IF(Q46="","",IF(Q46='2024'!$B$2,(IF(alle_aar_valg=1,NDU_service*INDEX(PL!$F$11:$F$57,MATCH(Q46,PL!$C$11:$C$57,0)),"Kan ikke vises")),IF(alle_aar_valg=1,INDIRECT(Q46&"!NDU_service")*INDEX(PL!$F$11:$F$57,MATCH(Q46,PL!$C$11:$C$57,0)),IF(alle_aar_valg=2,INDIRECT(Q46&"_sam!NDU_service_sam")*INDEX(PL!$F$11:$F$57,MATCH(Q46,PL!$C$11:$C$57,0)),INDIRECT(Q46&"_sam!NDU_service")*INDEX(PL!$F$11:$F$57,MATCH(Q46,PL!$C$11:$C$57,0)))))) ->  | R50: =IF(R46="","",IF(R46='2024'!$B$2,(IF(alle_aar_valg=1,NDU_service*INDEX(PL!$F$11:$F$57,MATCH(R46,PL!$C$11:$C$57,0)),"Kan ikke vises")),IF(alle_aar_valg=1,INDIRECT(R46&"!NDU_service")*INDEX(PL!$F$11:$F$57,MATCH(R46,PL!$C$11:$C$57,0)),IF(alle_aar_valg=2,INDIRECT(R46&"_sam!NDU_service_sam")*INDEX(PL!$F$11:$F$57,MATCH(R46,PL!$C$11:$C$57,0)),INDIRECT(R46&"_sam!NDU_service")*INDEX(PL!$F$11:$F$57,MATCH(R46,PL!$C$11:$C$57,0)))))) ->  | S50: =IF(S46="","",IF(S46='2024'!$B$2,(IF(alle_aar_valg=1,NDU_service*INDEX(PL!$F$11:$F$57,MATCH(S46,PL!$C$11:$C$57,0)),"Kan ikke vises")),IF(alle_aar_valg=1,INDIRECT(S46&"!NDU_service")*INDEX(PL!$F$11:$F$57,MATCH(S46,PL!$C$11:$C$57,0)),IF(alle_aar_valg=2,INDIRECT(S46&"_sam!NDU_service_sam")*INDEX(PL!$F$11:$F$57,MATCH(S46,PL!$C$11:$C$57,0)),INDIRECT(S46&"_sam!NDU_service")*INDEX(PL!$F$11:$F$57,MATCH(S46,PL!$C$11:$C$57,0)))))) ->  | T50: =IF(T46="","",IF(T46='2024'!$B$2,(IF(alle_aar_valg=1,NDU_service*INDEX(PL!$F$11:$F$57,MATCH(T46,PL!$C$11:$C$57,0)),"Kan ikke vises")),IF(alle_aar_valg=1,INDIRECT(T46&"!NDU_service")*INDEX(PL!$F$11:$F$57,MATCH(T46,PL!$C$11:$C$57,0)),IF(alle_aar_valg=2,INDIRECT(T46&"_sam!NDU_service_sam")*INDEX(PL!$F$11:$F$57,MATCH(T46,PL!$C$11:$C$57,0)),INDIRECT(T46&"_sam!NDU_service")*INDEX(PL!$F$11:$F$57,MATCH(T46,PL!$C$11:$C$57,0)))))) ->  | U50: =IF(U46="","",IF(U46='2024'!$B$2,(IF(alle_aar_valg=1,NDU_service*INDEX(PL!$F$11:$F$57,MATCH(U46,PL!$C$11:$C$57,0)),"Kan ikke vises")),IF(alle_aar_valg=1,INDIRECT(U46&"!NDU_service")*INDEX(PL!$F$11:$F$57,MATCH(U46,PL!$C$11:$C$57,0)),IF(alle_aar_valg=2,INDIRECT(U46&"_sam!NDU_service_sam")*INDEX(PL!$F$11:$F$57,MATCH(U46,PL!$C$11:$C$57,0)),INDIRECT(U46&"_sam!NDU_service")*INDEX(PL!$F$11:$F$57,MATCH(U46,PL!$C$11:$C$57,0)))))) ->  | V50: =IF(V46="","",IF(V46='2024'!$B$2,(IF(alle_aar_valg=1,NDU_service*INDEX(PL!$F$11:$F$57,MATCH(V46,PL!$C$11:$C$57,0)),"Kan ikke vises")),IF(alle_aar_valg=1,INDIRECT(V46&"!NDU_service")*INDEX(PL!$F$11:$F$57,MATCH(V46,PL!$C$11:$C$57,0)),IF(alle_aar_valg=2,INDIRECT(V46&"_sam!NDU_service_sam")*INDEX(PL!$F$11:$F$57,MATCH(V46,PL!$C$11:$C$57,0)),INDIRECT(V46&"_sam!NDU_service")*INDEX(PL!$F$11:$F$57,MATCH(V46,PL!$C$11:$C$57,0)))))) ->  | W50: =IF(W46="","",IF(W46='2024'!$B$2,(IF(alle_aar_valg=1,NDU_service*INDEX(PL!$F$11:$F$57,MATCH(W46,PL!$C$11:$C$57,0)),"Kan ikke vises")),IF(alle_aar_valg=1,INDIRECT(W46&"!NDU_service")*INDEX(PL!$F$11:$F$57,MATCH(W46,PL!$C$11:$C$57,0)),IF(alle_aar_valg=2,INDIRECT(W46&"_sam!NDU_service_sam")*INDEX(PL!$F$11:$F$57,MATCH(W46,PL!$C$11:$C$57,0)),INDIRECT(W46&"_sam!NDU_service")*INDEX(PL!$F$11:$F$57,MATCH(W46,PL!$C$11:$C$57,0)))))) -> 
B51: ="Note: Udgifterne er defineret som art>0. De valgte sammenligningskommuner er "&Samkom1&" "&Samkom2&" "&Samkom3&" "&Samkom4&" "&Samkom5&" "&Samkom6&" "&Samkom7&" "&Samkom8&" "&Samkom9&" "&Samkom10&" "&Samkom11&" "&Samkom12&" "&Samkom13&" "&Samkom14&" "&Samkom15&" "&Samkom16&" "&Samkom17&" "&Samkom18&" " -> Note: Udgifterne er defineret som art>0. De valgte sammenligningskommuner er Aarhus
B52: Kilde: Danmarks Statistik
B54: Udgifter fordelt på indsatstrappen
B56: ="Udgifter fordelt på indsatstrappen for "&alle_aar_tekst_valg&", 1.000 kr., "&Prisår&"-priser" -> Udgifter fordelt på indsatstrappen for Fredericia, 1.000 kr., 2023-priser
B78: ="Note: Udgifterne er defineret som art>0. De valgte sammenligningskommuner er "&Samkom1&" "&Samkom2&" "&Samkom3&" "&Samkom4&" "&Samkom5&" "&Samkom6&" "&Samkom7&" "&Samkom8&" "&Samkom9&" "&Samkom10&" "&Samkom11&" "&Samkom12&" "&Samkom13&" "&Samkom14&" "&Samkom15&" "&Samkom16&" "&Samkom17&" "&Samkom18&" " -> Note: Udgifterne er defineret som art>0. De valgte sammenligningskommuner er Aarhus
B79: Kilde: Danmarks Statistik
B81: ="Tabel - Udgifter fordelt på indsatstrappen for "&alle_aar_tekst_valg&"" -> Tabel - Udgifter fordelt på indsatstrappen for Fredericia
B83: ="Udgifter fordelt på indsatstrappen for "&alle_aar_tekst_valg&", 1.000 kr., "&Prisår&"-priser" -> Udgifter fordelt på indsatstrappen for Fredericia, 1.000 kr., 2023-priser
C84: ='Dine valg'!J10 -> 2018 | D84: ='Dine valg'!J11 -> 2019 | E84: ='Dine valg'!J12 -> 2020 | F84: ='Dine valg'!J13 -> 2021 | G84: ='Dine valg'!J14 -> 2022 | H84: ='Dine valg'!J15 -> 2023 | I84: ='Dine valg'!J16 ->  | J84: ='Dine valg'!K10 ->  | K84: ='Dine valg'!K11 ->  | L84: ='Dine valg'!K12 ->  | M84: ='Dine valg'!K13 ->  | N84: ='Dine valg'!K14 ->  | O84: ='Dine valg'!K15 ->  | P84: ='Dine valg'!K16 ->  | Q84: ='Dine valg'!L10 ->  | R84: ='Dine valg'!L11 ->  | S84: ='Dine valg'!L12 ->  | T84: ='Dine valg'!L13 ->  | U84: ='Dine valg'!L14 ->  | V84: ='Dine valg'!L15 ->  | W84: ='Dine valg'!L16 -> 
B85: =""&alle_aar_tekst_valg&"" -> Fredericia | C85: ="" ->  | D85: ="" ->  | E85: ="" ->  | F85: ="" ->  | G85: ="" ->  | H85: ="" ->  | I85: ="" ->  | J85: ="" ->  | K85: ="" ->  | L85: ="" ->  | M85: ="" ->  | N85: ="" ->  | O85: ="" ->  | P85: ="" ->  | Q85: ="" ->  | R85: ="" ->  | S85: ="" ->  | T85: ="" ->  | U85: ="" ->  | V85: ="" ->  | W85: ="" -> 
B86: Trin 2: Forebyggende indsatser | C86: ='Udgifter til figur'!C16 -> 1214.593662 | D86: ='Udgifter til figur'!D16 -> 1856.293353 | E86: ='Udgifter til figur'!E16 -> 1392.568157 | F86: ='Udgifter til figur'!F16 -> 1106.545368 | G86: ='Udgifter til figur'!G16 -> 1628.352 | H86: ='Udgifter til figur'!H16 -> 1516 | I86: ='Udgifter til figur'!I16 ->  | J86: ='Udgifter til figur'!J16 ->  | K86: ='Udgifter til figur'!K16 ->  | L86: ='Udgifter til figur'!L16 ->  | M86: ='Udgifter til figur'!M16 ->  | N86: ='Udgifter til figur'!N16 ->  | O86: ='Udgifter til figur'!O16 ->  | P86: ='Udgifter til figur'!P16 ->  | Q86: ='Udgifter til figur'!Q16 ->  | R86: ='Udgifter til figur'!R16 ->  | S86: ='Udgifter til figur'!S16 ->  | T86: ='Udgifter til figur'!T16 ->  | U86: ='Udgifter til figur'!U16 ->  | V86: ='Udgifter til figur'!V16 ->  | W86: ='Udgifter til figur'!W16 -> 
B87: Trin 3: Hjemmebaserede foranstaltninger | C87: ='Udgifter til figur'!C17 -> 20766.17774 | D87: ='Udgifter til figur'!D17 -> 16766.41349 | E87: ='Udgifter til figur'!E17 -> 22590.5501 | F87: ='Udgifter til figur'!F17 -> 22711.89698 | G87: ='Udgifter til figur'!G17 -> 29471.732 | H87: ='Udgifter til figur'!H17 -> 35536 | I87: ='Udgifter til figur'!I17 ->  | J87: ='Udgifter til figur'!J17 ->  | K87: ='Udgifter til figur'!K17 ->  | L87: ='Udgifter til figur'!L17 ->  | M87: ='Udgifter til figur'!M17 ->  | N87: ='Udgifter til figur'!N17 ->  | O87: ='Udgifter til figur'!O17 ->  | P87: ='Udgifter til figur'!P17 ->  | Q87: ='Udgifter til figur'!Q17 ->  | R87: ='Udgifter til figur'!R17 ->  | S87: ='Udgifter til figur'!S17 ->  | T87: ='Udgifter til figur'!T17 ->  | U87: ='Udgifter til figur'!U17 ->  | V87: ='Udgifter til figur'!V17 ->  | W87: ='Udgifter til figur'!W17 -> 
B88: Trin 4: Slægt- eller netværkspleje | C88: ='Udgifter til figur'!C18 -> 1674.56478 | D88: ='Udgifter til figur'!D18 -> 1482.156708 | E88: ='Udgifter til figur'!E18 -> 2198.677929 | F88: ='Udgifter til figur'!F18 -> 1971.100564 | G88: ='Udgifter til figur'!G18 -> 1925.444 | H88: ='Udgifter til figur'!H18 -> 2253 | I88: ='Udgifter til figur'!I18 ->  | J88: ='Udgifter til figur'!J18 ->  | K88: ='Udgifter til figur'!K18 ->  | L88: ='Udgifter til figur'!L18 ->  | M88: ='Udgifter til figur'!M18 ->  | N88: ='Udgifter til figur'!N18 ->  | O88: ='Udgifter til figur'!O18 ->  | P88: ='Udgifter til figur'!P18 ->  | Q88: ='Udgifter til figur'!Q18 ->  | R88: ='Udgifter til figur'!R18 ->  | S88: ='Udgifter til figur'!S18 ->  | T88: ='Udgifter til figur'!T18 ->  | U88: ='Udgifter til figur'!U18 ->  | V88: ='Udgifter til figur'!V18 ->  | W88: ='Udgifter til figur'!W18 -> 
B89: Trin 5: Familiepleje | C89: ='Udgifter til figur'!C19 -> 41109.49695 | D89: ='Udgifter til figur'!D19 -> 39448.17085 | E89: ='Udgifter til figur'!E19 -> 38937.80707 | F89: ='Udgifter til figur'!F19 -> 40204.4817 | G89: ='Udgifter til figur'!G19 -> 44530.904 | H89: ='Udgifter til figur'!H19 -> 49067 | I89: ='Udgifter til figur'!I19 ->  | J89: ='Udgifter til figur'!J19 ->  | K89: ='Udgifter til figur'!K19 ->  | L89: ='Udgifter til figur'!L19 ->  | M89: ='Udgifter til figur'!M19 ->  | N89: ='Udgifter til figur'!N19 ->  | O89: ='Udgifter til figur'!O19 ->  | P89: ='Udgifter til figur'!P19 ->  | Q89: ='Udgifter til figur'!Q19 ->  | R89: ='Udgifter til figur'!R19 ->  | S89: ='Udgifter til figur'!S19 ->  | T89: ='Udgifter til figur'!T19 ->  | U89: ='Udgifter til figur'!U19 ->  | V89: ='Udgifter til figur'!V19 ->  | W89: ='Udgifter til figur'!W19 -> 
B90: Trin 6: Institutionsanbringelser | C90: ='Udgifter til figur'!C20 -> 23600.22962 | D90: ='Udgifter til figur'!D20 -> 23147.7678 | E90: ='Udgifter til figur'!E20 -> 18482.09533 | F90: ='Udgifter til figur'!F20 -> 17911.53687 | G90: ='Udgifter til figur'!G20 -> 29621.82 | H90: ='Udgifter til figur'!H20 -> 41349 | I90: ='Udgifter til figur'!I20 ->  | J90: ='Udgifter til figur'!J20 ->  | K90: ='Udgifter til figur'!K20 ->  | L90: ='Udgifter til figur'!L20 ->  | M90: ='Udgifter til figur'!M20 ->  | N90: ='Udgifter til figur'!N20 ->  | O90: ='Udgifter til figur'!O20 ->  | P90: ='Udgifter til figur'!P20 ->  | Q90: ='Udgifter til figur'!Q20 ->  | R90: ='Udgifter til figur'!R20 ->  | S90: ='Udgifter til figur'!S20 ->  | T90: ='Udgifter til figur'!T20 ->  | U90: ='Udgifter til figur'!U20 ->  | V90: ='Udgifter til figur'!V20 ->  | W90: ='Udgifter til figur'!W20 -> 
B91: Ikke-trinspecifikke grupperinger | C91: ='Udgifter til figur'!C21 -> 29335.8108 | D91: ='Udgifter til figur'!D21 -> 29810.27805 | E91: ='Udgifter til figur'!E21 -> 30758.76845 | F91: ='Udgifter til figur'!F21 -> 30422.53537 | G91: ='Udgifter til figur'!G21 -> 32264.808 | H91: ='Udgifter til figur'!H21 -> 35465 | I91: ='Udgifter til figur'!I21 ->  | J91: ='Udgifter til figur'!J21 ->  | K91: ='Udgifter til figur'!K21 ->  | L91: ='Udgifter til figur'!L21 ->  | M91: ='Udgifter til figur'!M21 ->  | N91: ='Udgifter til figur'!N21 ->  | O91: ='Udgifter til figur'!O21 ->  | P91: ='Udgifter til figur'!P21 ->  | Q91: ='Udgifter til figur'!Q21 ->  | R91: ='Udgifter til figur'!R21 ->  | S91: ='Udgifter til figur'!S21 ->  | T91: ='Udgifter til figur'!T21 ->  | U91: ='Udgifter til figur'!U21 ->  | V91: ='Udgifter til figur'!V21 ->  | W91: ='Udgifter til figur'!W21 -> 
B92: Refusioner | C92: ='Udgifter til figur'!C22 -> -3322.138589 | D92: ='Udgifter til figur'!D22 -> -4335.77881 | E92: ='Udgifter til figur'!E22 -> -3656.167679 | F92: ='Udgifter til figur'!F22 -> -6759.734276 | G92: ='Udgifter til figur'!G22 -> -14923.476 | H92: ='Udgifter til figur'!H22 -> -29896 | I92: ='Udgifter til figur'!I22 ->  | J92: ='Udgifter til figur'!J22 ->  | K92: ='Udgifter til figur'!K22 ->  | L92: ='Udgifter til figur'!L22 ->  | M92: ='Udgifter til figur'!M22 ->  | N92: ='Udgifter til figur'!N22 ->  | O92: ='Udgifter til figur'!O22 ->  | P92: ='Udgifter til figur'!P22 ->  | Q92: ='Udgifter til figur'!Q22 ->  | R92: ='Udgifter til figur'!R22 ->  | S92: ='Udgifter til figur'!S22 ->  | T92: ='Udgifter til figur'!T22 ->  | U92: ='Udgifter til figur'!U22 ->  | V92: ='Udgifter til figur'!V22 ->  | W92: ='Udgifter til figur'!W22 -> 
B93: ="Note: Udgifterne er defineret som art>0. De valgte sammenligningskommuner er "&Samkom1&" "&Samkom2&" "&Samkom3&" "&Samkom4&" "&Samkom5&" "&Samkom6&" "&Samkom7&" "&Samkom8&" "&Samkom9&" "&Samkom10&" "&Samkom11&" "&Samkom12&" "&Samkom13&" "&Samkom14&" "&Samkom15&" "&Samkom16&" "&Samkom17&" "&Samkom18&" " -> Note: Udgifterne er defineret som art>0. De valgte sammenligningskommuner er Aarhus
B94: Kilde: Danmarks Statistik
B96: Udgiftsudvikling på tværs af aktører
B98: Udgiftsudvikling på overordnede opgørelser
B100: Vælg opgørelse
B103: =IF(figur4_valg=1,"Udgifter i alt pr. barn, kr., "&Prisår&"-priser",IF(figur4_valg=2,"Administrationsudgifter pr. barn, kr., "&Prisår&"-priser","Serviceudgifter pr. barn, kr., "&Prisår&"-priser")) -> Serviceudgifter pr. barn, kr., 2023-priser
B120: Note: Antal børn er defineret som antallet af 0-22 årige pr. 1. januar i regnskabsåret.
B121: ="Note: Udgifterne er defineret som art>0. De valgte sammenligningskommuner er "&Samkom1&" "&Samkom2&" "&Samkom3&" "&Samkom4&" "&Samkom5&" "&Samkom6&" "&Samkom7&" "&Samkom8&" "&Samkom9&" "&Samkom10&" "&Samkom11&" "&Samkom12&" "&Samkom13&" "&Samkom14&" "&Samkom15&" "&Samkom16&" "&Samkom17&" "&Samkom18&" " -> Note: Udgifterne er defineret som art>0. De valgte sammenligningskommuner er Aarhus
B122: Kilde: Danmarks Statistik.
B124: =IF(figur4_valg=1,"Tabel - Udgifter i alt pr. barn, kr., "&Prisår&"-priser",IF(figur4_valg=2,"Tabel - Administrationsudgifter pr. barn, kr., "&Prisår&"-priser","Tabel - Serviceudgifter pr. barn, kr., "&Prisår&"-priser")) -> Tabel - Serviceudgifter pr. barn, kr., 2023-priser
B126: =IF(figur4_valg=1,"Udgifter i alt pr. barn, kr., "&Prisår&"-priser",IF(figur4_valg=2,"Administrationsudgifter pr. barn, kr., "&Prisår&"-priser","Serviceudgifter pr. barn, kr., "&Prisår&"-priser")) -> Serviceudgifter pr. barn, kr., 2023-priser
C127: ='Dine valg'!$J$10 -> 2018 | D127: ='Dine valg'!$J$11 -> 2019 | E127: ='Dine valg'!$J$12 -> 2020 | F127: ='Dine valg'!$J$13 -> 2021 | G127: ='Dine valg'!$J$14 -> 2022 | H127: ='Dine valg'!$J$15 -> 2023 | I127: ='Dine valg'!$J$16 ->  | J127: ='Dine valg'!$K$10 ->  | K127: ='Dine valg'!$K$11 ->  | L127: ='Dine valg'!$K$12 ->  | M127: ='Dine valg'!$K$13 ->  | N127: ='Dine valg'!$K$14 ->  | O127: ='Dine valg'!$K$15 ->  | P127: ='Dine valg'!$K$16 -> 
B128: =""&Kommune&"" -> Fredericia | C128: ="" ->  | D128: ="" ->  | E128: ="" ->  | F128: ="" ->  | G128: ="" ->  | H128: ="" ->  | I128: ="" ->  | J128: ="" ->  | K128: ="" ->  | L128: ="" ->  | M128: ="" ->  | N128: ="" ->  | O128: ="" ->  | P128: ="" -> 
B129: =IF(figur4_valg=1,"Udgifter i alt pr. barn",IF(figur4_valg=2,"Administrationsudgifter pr. barn","Serviceudgifter pr. barn")) -> Serviceudgifter pr. barn | C129: ='Udgifter til figur'!C29 -> 7475.486953 | D129: ='Udgifter til figur'!D29 -> 7271.89523 | E129: ='Udgifter til figur'!E29 -> 7725.158562 | F129: ='Udgifter til figur'!F29 -> 7826.946944 | G129: ='Udgifter til figur'!G29 -> 9363.636364 | H129: ='Udgifter til figur'!H29 -> 10386.94818 | I129: ='Udgifter til figur'!I29 ->  | J129: ='Udgifter til figur'!J29 ->  | K129: ='Udgifter til figur'!K29 ->  | L129: ='Udgifter til figur'!L29 ->  | M129: ='Udgifter til figur'!M29 ->  | N129: ='Udgifter til figur'!N29 ->  | O129: ='Udgifter til figur'!O29 ->  | P129: ='Udgifter til figur'!P29 -> 
B130: Antal 0-22-årige | C130: ='Udgifter til figur'!C30 -> 13605 | D130: ='Udgifter til figur'!D30 -> 13439 | E130: ='Udgifter til figur'!E30 -> 13244 | F130: ='Udgifter til figur'!F30 -> 12892 | G130: ='Udgifter til figur'!G30 -> 12936 | H130: ='Udgifter til figur'!H30 -> 13025 | I130: ='Udgifter til figur'!I30 -> 0 | J130: ='Udgifter til figur'!J30 -> 0 | K130: ='Udgifter til figur'!K30 -> 0 | L130: ='Udgifter til figur'!L30 -> 0 | M130: ='Udgifter til figur'!M30 -> 0 | N130: ='Udgifter til figur'!N30 -> 0 | O130: ='Udgifter til figur'!O30 -> 0 | P130: ='Udgifter til figur'!P30 -> 0
B131: Sammenligningsgruppe, gns. | C131: ="" ->  | D131: ="" ->  | E131: ="" ->  | F131: ="" ->  | G131: ="" ->  | H131: ="" ->  | I131: ="" ->  | J131: ="" ->  | K131: ="" ->  | L131: ="" ->  | M131: ="" ->  | N131: ="" ->  | O131: ="" ->  | P131: ="" -> 
B132: =IF(figur4_valg=1,"Udgifter i alt pr. barn",IF(figur4_valg=2,"Administrationsudgifter pr. barn","Serviceudgifter pr. barn")) -> Serviceudgifter pr. barn | C132: ='Udgifter til figur'!C32 -> 6227.504689 | D132: ='Udgifter til figur'!D32 -> 6038.302267 | E132: ='Udgifter til figur'!E32 -> 5840.437932 | F132: ='Udgifter til figur'!F32 -> 6104.505066 | G132: ='Udgifter til figur'!G32 -> 6709.006784 | H132: ='Udgifter til figur'!H32 -> 6795.824318 | I132: ='Udgifter til figur'!I32 ->  | J132: ='Udgifter til figur'!J32 ->  | K132: ='Udgifter til figur'!K32 ->  | L132: ='Udgifter til figur'!L32 ->  | M132: ='Udgifter til figur'!M32 ->  | N132: ='Udgifter til figur'!N32 ->  | O132: ='Udgifter til figur'!O32 ->  | P132: ='Udgifter til figur'!P32 -> 
B133: Antal 0-22-årige | C133: ='Udgifter til figur'!C33 -> 95431 | D133: ='Udgifter til figur'!D33 -> 95869 | E133: ='Udgifter til figur'!E33 -> 96088 | F133: ='Udgifter til figur'!F33 -> 96225 | G133: ='Udgifter til figur'!G33 -> 95961 | H133: ='Udgifter til figur'!H33 -> 96128 | I133: ='Udgifter til figur'!I33 ->  | J133: ='Udgifter til figur'!J33 ->  | K133: ='Udgifter til figur'!K33 ->  | L133: ='Udgifter til figur'!L33 ->  | M133: ='Udgifter til figur'!M33 ->  | N133: ='Udgifter til figur'!N33 ->  | O133: ='Udgifter til figur'!O33 ->  | P133: ='Udgifter til figur'!P33 -> 
B134: =""&Region&"" -> Syddanmark | C134: ="" ->  | D134: ="" ->  | E134: ="" ->  | F134: ="" ->  | G134: ="" ->  | H134: ="" ->  | I134: ="" ->  | J134: ="" ->  | K134: ="" ->  | L134: ="" ->  | M134: ="" ->  | N134: ="" ->  | O134: ="" ->  | P134: ="" -> 
B135: =IF(figur4_valg=1,"Udgifter i alt pr. barn",IF(figur4_valg=2,"Administrationsudgifter pr. barn","Serviceudgifter pr. barn")) -> Serviceudgifter pr. barn | C135: ='Udgifter til figur'!C35 -> 8431.921987 | D135: ='Udgifter til figur'!D35 -> 8898.800672 | E135: ='Udgifter til figur'!E35 -> 9422.087894 | F135: ='Udgifter til figur'!F35 -> 9608.99331 | G135: ='Udgifter til figur'!G35 -> 9876.506226 | H135: ='Udgifter til figur'!H35 -> 10512.18758 | I135: ='Udgifter til figur'!I35 ->  | J135: ='Udgifter til figur'!J35 ->  | K135: ='Udgifter til figur'!K35 ->  | L135: ='Udgifter til figur'!L35 ->  | M135: ='Udgifter til figur'!M35 ->  | N135: ='Udgifter til figur'!N35 ->  | O135: ='Udgifter til figur'!O35 ->  | P135: ='Udgifter til figur'!P35 -> 
B136: Antal 0-22-årige | C136: ='Udgifter til figur'!C36 -> 324253 | D136: ='Udgifter til figur'!D36 -> 320763 | E136: ='Udgifter til figur'!E36 -> 317133 | F136: ='Udgifter til figur'!F36 -> 313900 | G136: ='Udgifter til figur'!G36 -> 313117 | H136: ='Udgifter til figur'!H36 -> 313598 | I136: ='Udgifter til figur'!I36 ->  | J136: ='Udgifter til figur'!J36 ->  | K136: ='Udgifter til figur'!K36 ->  | L136: ='Udgifter til figur'!L36 ->  | M136: ='Udgifter til figur'!M36 ->  | N136: ='Udgifter til figur'!N36 ->  | O136: ='Udgifter til figur'!O36 ->  | P136: ='Udgifter til figur'!P36 -> 
B137: Hele landet | C137: ="" ->  | D137: ="" ->  | E137: ="" ->  | F137: ="" ->  | G137: ="" ->  | H137: ="" ->  | I137: ="" ->  | J137: ="" ->  | K137: ="" ->  | L137: ="" ->  | M137: ="" ->  | N137: ="" ->  | O137: ="" ->  | P137: ="" -> 
B138: =IF(figur4_valg=1,"Udgifter i alt pr. barn",IF(figur4_valg=2,"Administrationsudgifter pr. barn","Serviceudgifter pr. barn")) -> Serviceudgifter pr. barn | C138: ='Udgifter til figur'!C38 -> 8491.852999 | D138: ='Udgifter til figur'!D38 -> 8731.652751 | E138: ='Udgifter til figur'!E38 -> 9036.051446 | F138: ='Udgifter til figur'!F38 -> 9238.245953 | G138: ='Udgifter til figur'!G38 -> 9645.779582 | H138: ='Udgifter til figur'!H38 -> 10117.63619 | I138: ='Udgifter til figur'!I38 ->  | J138: ='Udgifter til figur'!J38 ->  | K138: ='Udgifter til figur'!K38 ->  | L138: ='Udgifter til figur'!L38 ->  | M138: ='Udgifter til figur'!M38 ->  | N138: ='Udgifter til figur'!N38 ->  | O138: ='Udgifter til figur'!O38 ->  | P138: ='Udgifter til figur'!P38 -> 
B139: Antal 0-22-årige | C139: ='Udgifter til figur'!C39 -> 1537130 | D139: ='Udgifter til figur'!D39 -> 1527804 | E139: ='Udgifter til figur'!E39 -> 1518885 | F139: ='Udgifter til figur'!F39 -> 1510267 | G139: ='Udgifter til figur'!G39 -> 1510040 | H139: ='Udgifter til figur'!H39 -> 1516081 | I139: ='Udgifter til figur'!I39 ->  | J139: ='Udgifter til figur'!J39 ->  | K139: ='Udgifter til figur'!K39 ->  | L139: ='Udgifter til figur'!L39 ->  | M139: ='Udgifter til figur'!M39 ->  | N139: ='Udgifter til figur'!N39 ->  | O139: ='Udgifter til figur'!O39 ->  | P139: ='Udgifter til figur'!P39 -> 
B140: Note: Antal børn er defineret som antallet af 0-22 årige pr. 1. januar i regnskabsåret.
B141: ="Note: Udgifterne er defineret som art>0. De valgte sammenligningskommuner er "&Samkom1&" "&Samkom2&" "&Samkom3&" "&Samkom4&" "&Samkom5&" "&Samkom6&" "&Samkom7&" "&Samkom8&" "&Samkom9&" "&Samkom10&" "&Samkom11&" "&Samkom12&" "&Samkom13&" "&Samkom14&" "&Samkom15&" "&Samkom16&" "&Samkom17&" "&Samkom18&" " -> Note: Udgifterne er defineret som art>0. De valgte sammenligningskommuner er Aarhus
B142: Kilde: Danmarks Statistik.
B147: Udgiftsudvikling fordelt på trin
B149: Vælg opgørelse
B152: =IF(figur5_valg=1,"Udgifter til forebyggende indsatser pr. barn, kr., "&Prisår&"-priser",IF(figur5_valg=2,"Udgifter til hjemmebaserede foranstaltninger pr. barn, kr., "&Prisår&"-priser",IF(figur5_valg=3,"Udgifter til slægts- eller netværkspleje pr. barn, kr., "&Prisår&"-priser",IF(figur5_valg=4,"Udgifter til familiepleje pr. barn, kr., "&Prisår&"-priser",IF(figur5_valg=5,"Udgifter til institutionsanbringelser pr. barn, kr., "&Prisår&"-priser",IF(figur5_valg=6,"Udgifter til ikke-trinspecifikke grupperinger pr. barn, kr., "&Prisår&"-priser","Refusioner pr. barn, kr., "&Prisår&"-priser")))))) -> Udgifter til hjemmebaserede foranstaltninger pr. barn, kr., 2023-priser
B169: Anm.: Antal børn er defineret som antallet af 0-22 årige pr. 1. januar i regnskabsåret.
B170: ="Note: Udgifterne er defineret som art>0. De valgte sammenligningskommuner er "&Samkom1&" "&Samkom2&" "&Samkom3&" "&Samkom4&" "&Samkom5&" "&Samkom6&" "&Samkom7&" "&Samkom8&" "&Samkom9&" "&Samkom10&" "&Samkom11&" "&Samkom12&" "&Samkom13&" "&Samkom14&" "&Samkom15&" "&Samkom16&" "&Samkom17&" "&Samkom18&" " -> Note: Udgifterne er defineret som art>0. De valgte sammenligningskommuner er Aarhus
B171: Kilde: Danmarks Statistik.
B174: =IF(figur5_valg=1,"Tabel - Udgifter til forebyggende indsatser pr. barn, kr., "&Prisår&"-priser",IF(figur5_valg=2,"Tabel - Udgifter til hjemmebaserede foranstaltninger pr. barn, kr., "&Prisår&"-priser",IF(figur5_valg=3,"Tabel - Udgifter til slægts- eller netværkspleje pr. barn, kr., "&Prisår&"-priser",IF(figur5_valg=4,"Tabel - Udgifter til familiepleje pr. barn, kr., "&Prisår&"-priser",IF(figur5_valg=5,"Tabel - Udgifter til institutionsanbringelser pr. barn, kr., "&Prisår&"-priser",IF(figur5_valg=6,"Tabel - Udgifter til ikke-trinspecifikke grupperinger pr. barn, kr., "&Prisår&"-priser","Tabel - Refusioner pr. barn, kr., "&Prisår&"-priser")))))) -> Tabel - Udgifter til hjemmebaserede foranstaltninger pr. barn, kr., 2023-priser
B176: =IF(figur5_valg=1,"Udgifter til forebyggende indsatser pr. barn, kr., "&Prisår&"-priser",IF(figur5_valg=2,"Udgifter til hjemmebaserede foranstaltninger pr. barn, kr., "&Prisår&"-priser",IF(figur5_valg=3,"Udgifter til slægts- eller netværkspleje pr. barn, kr., "&Prisår&"-priser",IF(figur5_valg=4,"Udgifter til familiepleje pr. barn, kr., "&Prisår&"-priser",IF(figur5_valg=5,"Udgifter til institutionsanbringelser pr. barn, kr., "&Prisår&"-priser",IF(figur5_valg=6,"Udgifter til ikke-trinspecifikke grupperinger pr. barn, kr., "&Prisår&"-priser","Refusioner pr. barn, kr., "&Prisår&"-priser")))))) -> Udgifter til hjemmebaserede foranstaltninger pr. barn, kr., 2023-priser
C177: ='Dine valg'!$J$10 -> 2018 | D177: ='Dine valg'!$J$11 -> 2019 | E177: ='Dine valg'!$J$12 -> 2020 | F177: ='Dine valg'!$J$13 -> 2021 | G177: ='Dine valg'!$J$14 -> 2022 | H177: ='Dine valg'!$J$15 -> 2023 | I177: ='Dine valg'!$J$16 ->  | J177: ='Dine valg'!$K$10 ->  | K177: ='Dine valg'!$K$11 ->  | L177: ='Dine valg'!$K$12 ->  | M177: ='Dine valg'!$K$13 ->  | N177: ='Dine valg'!$K$14 ->  | O177: ='Dine valg'!$K$15 ->  | P177: ='Dine valg'!$K$16 -> 
B178: =""&Kommune&"" -> Fredericia | C178: ="" ->  | D178: ="" ->  | E178: ="" ->  | F178: ="" ->  | G178: ="" ->  | H178: ="" ->  | I178: ="" ->  | J178: ="" ->  | K178: ="" ->  | L178: ="" ->  | M178: ="" ->  | N178: ="" ->  | O178: ="" ->  | P178: ="" -> 
B179: Udgifter pr. barn | C179: ='Udgifter til figur'!C45 -> 1357.22161 | D179: ='Udgifter til figur'!D45 -> 1127.09279 | E179: ='Udgifter til figur'!E45 -> 1576.41196 | F179: ='Udgifter til figur'!F45 -> 1652.57524 | G179: ='Udgifter til figur'!G45 -> 2216.218306 | H179: ='Udgifter til figur'!H45 -> 2728.291747 | I179: ='Udgifter til figur'!I45 ->  | J179: ='Udgifter til figur'!J45 ->  | K179: ='Udgifter til figur'!K45 ->  | L179: ='Udgifter til figur'!L45 ->  | M179: ='Udgifter til figur'!M45 ->  | N179: ='Udgifter til figur'!N45 ->  | O179: ='Udgifter til figur'!O45 ->  | P179: ='Udgifter til figur'!P45 -> 
B180: Antal 0-22-årige | C180: ='Udgifter til figur'!C46 -> 13605 | D180: ='Udgifter til figur'!D46 -> 13439 | E180: ='Udgifter til figur'!E46 -> 13244 | F180: ='Udgifter til figur'!F46 -> 12892 | G180: ='Udgifter til figur'!G46 -> 12936 | H180: ='Udgifter til figur'!H46 -> 13025 | I180: ='Udgifter til figur'!I46 -> 0 | J180: ='Udgifter til figur'!J46 -> 0 | K180: ='Udgifter til figur'!K46 -> 0 | L180: ='Udgifter til figur'!L46 -> 0 | M180: ='Udgifter til figur'!M46 -> 0 | N180: ='Udgifter til figur'!N46 -> 0 | O180: ='Udgifter til figur'!O46 -> 0 | P180: ='Udgifter til figur'!P46 -> 0
B181: Sammenligningsgruppe, gns. | C181: ="" ->  | D181: ="" ->  | E181: ="" ->  | F181: ="" ->  | G181: ="" ->  | H181: ="" ->  | I181: ="" ->  | J181: ="" ->  | K181: ="" ->  | L181: ="" ->  | M181: ="" ->  | N181: ="" ->  | O181: ="" ->  | P181: ="" -> 
B182: Udgifter pr. barn | C182: ='Udgifter til figur'!C48 -> 3126.594084 | D182: ='Udgifter til figur'!D48 -> 3010.086681 | E182: ='Udgifter til figur'!E48 -> 2857.28707 | F182: ='Udgifter til figur'!F48 -> 3157.672123 | G182: ='Udgifter til figur'!G48 -> 3795.760778 | H182: ='Udgifter til figur'!H48 -> 3844.072487 | I182: ='Udgifter til figur'!I48 ->  | J182: ='Udgifter til figur'!J48 ->  | K182: ='Udgifter til figur'!K48 ->  | L182: ='Udgifter til figur'!L48 ->  | M182: ='Udgifter til figur'!M48 ->  | N182: ='Udgifter til figur'!N48 ->  | O182: ='Udgifter til figur'!O48 ->  | P182: ='Udgifter til figur'!P48 -> 
B183: Antal 0-22-årige | C183: ='Udgifter til figur'!C49 -> 95431 | D183: ='Udgifter til figur'!D49 -> 95869 | E183: ='Udgifter til figur'!E49 -> 96088 | F183: ='Udgifter til figur'!F49 -> 96225 | G183: ='Udgifter til figur'!G49 -> 95961 | H183: ='Udgifter til figur'!H49 -> 96128 | I183: ='Udgifter til figur'!I49 ->  | J183: ='Udgifter til figur'!J49 ->  | K183: ='Udgifter til figur'!K49 ->  | L183: ='Udgifter til figur'!L49 ->  | M183: ='Udgifter til figur'!M49 ->  | N183: ='Udgifter til figur'!N49 ->  | O183: ='Udgifter til figur'!O49 ->  | P183: ='Udgifter til figur'!P49 -> 
B184: =""&Region&"" -> Syddanmark | C184: ="" ->  | D184: ="" ->  | E184: ="" ->  | F184: ="" ->  | G184: ="" ->  | H184: ="" ->  | I184: ="" ->  | J184: ="" ->  | K184: ="" ->  | L184: ="" ->  | M184: ="" ->  | N184: ="" ->  | O184: ="" ->  | P184: ="" -> 
B185: Udgifter pr. barn | C185: ='Udgifter til figur'!C51 -> 2786.179311 | D185: ='Udgifter til figur'!D51 -> 2886.15894 | E185: ='Udgifter til figur'!E51 -> 3017.667666 | F185: ='Udgifter til figur'!F51 -> 3241.784008 | G185: ='Udgifter til figur'!G51 -> 3359.817576 | H185: ='Udgifter til figur'!H51 -> 3614.315142 | I185: ='Udgifter til figur'!I51 ->  | J185: ='Udgifter til figur'!J51 ->  | K185: ='Udgifter til figur'!K51 ->  | L185: ='Udgifter til figur'!L51 ->  | M185: ='Udgifter til figur'!M51 ->  | N185: ='Udgifter til figur'!N51 ->  | O185: ='Udgifter til figur'!O51 ->  | P185: ='Udgifter til figur'!P51 -> 
B186: Antal 0-22-årige | C186: ='Udgifter til figur'!C52 -> 324253 | D186: ='Udgifter til figur'!D52 -> 320763 | E186: ='Udgifter til figur'!E52 -> 317133 | F186: ='Udgifter til figur'!F52 -> 313900 | G186: ='Udgifter til figur'!G52 -> 313117 | H186: ='Udgifter til figur'!H52 -> 313598 | I186: ='Udgifter til figur'!I52 ->  | J186: ='Udgifter til figur'!J52 ->  | K186: ='Udgifter til figur'!K52 ->  | L186: ='Udgifter til figur'!L52 ->  | M186: ='Udgifter til figur'!M52 ->  | N186: ='Udgifter til figur'!N52 ->  | O186: ='Udgifter til figur'!O52 ->  | P186: ='Udgifter til figur'!P52 -> 
B187: Hele landet | C187: ="" ->  | D187: ="" ->  | E187: ="" ->  | F187: ="" ->  | G187: ="" ->  | H187: ="" ->  | I187: ="" ->  | J187: ="" ->  | K187: ="" ->  | L187: ="" ->  | M187: ="" ->  | N187: ="" ->  | O187: ="" ->  | P187: ="" -> 
B188: Udgifter pr. barn | C188: ='Udgifter til figur'!C54 -> 3241.943752 | D188: ='Udgifter til figur'!D54 -> 3343.272435 | E188: ='Udgifter til figur'!E54 -> 3433.485089 | F188: ='Udgifter til figur'!F54 -> 3642.40429 | G188: ='Udgifter til figur'!G54 -> 3919.472994 | H188: ='Udgifter til figur'!H54 -> 4193.598495 | I188: ='Udgifter til figur'!I54 ->  | J188: ='Udgifter til figur'!J54 ->  | K188: ='Udgifter til figur'!K54 ->  | L188: ='Udgifter til figur'!L54 ->  | M188: ='Udgifter til figur'!M54 ->  | N188: ='Udgifter til figur'!N54 ->  | O188: ='Udgifter til figur'!O54 ->  | P188: ='Udgifter til figur'!P54 -> 
B189: Antal 0-22-årige | C189: ='Udgifter til figur'!C55 -> 1537130 | D189: ='Udgifter til figur'!D55 -> 1527804 | E189: ='Udgifter til figur'!E55 -> 1518885 | F189: ='Udgifter til figur'!F55 -> 1510267 | G189: ='Udgifter til figur'!G55 -> 1510040 | H189: ='Udgifter til figur'!H55 -> 1516081 | I189: ='Udgifter til figur'!I55 ->  | J189: ='Udgifter til figur'!J55 ->  | K189: ='Udgifter til figur'!K55 ->  | L189: ='Udgifter til figur'!L55 ->  | M189: ='Udgifter til figur'!M55 ->  | N189: ='Udgifter til figur'!N55 ->  | O189: ='Udgifter til figur'!O55 ->  | P189: ='Udgifter til figur'!P55 -> 
B190: Anm.: Antal børn er defineret som antallet af 0-22 årige pr. 1. januar i regnskabsåret.
B191: ="Note: Udgifterne er defineret som art>0. De valgte sammenligningskommuner er "&Samkom1&" "&Samkom2&" "&Samkom3&" "&Samkom4&" "&Samkom5&" "&Samkom6&" "&Samkom7&" "&Samkom8&" "&Samkom9&" "&Samkom10&" "&Samkom11&" "&Samkom12&" "&Samkom13&" "&Samkom14&" "&Samkom15&" "&Samkom16&" "&Samkom17&" "&Samkom18&" " -> Note: Udgifterne er defineret som art>0. De valgte sammenligningskommuner er Aarhus
B192: Kilde: Danmarks Statistik.

Sheet Udgiftsfordeling
B3: Udgiftsfordeling
B6: På denne side kan du se, hvordan serviceudgifternes fordeling på de enkelte trin, ændrer sig over tid. Serviceudgifterne er opgjort som andele fordelt på indsatstrappens trin og på ikke-trinspecifikke grupperinger. Udgiftsfordelingen præsenteres på to måder: 1) Du kan vælge at se udgiftsfordelingen for enten din valgte kommune, sammenligningsgruppen, regionen eller hele landet. For hver aktør kan du sammenligne udgiftsandelene med hinanden og se, hvordan fordelingen ændres over tid. 2) Du kan vælge at se hver enkelt udgiftsandel for alle aktører over tid. Det giver dig mulighed for, at sammenligne den enkelte udgiftsandel over tid for de forskellige aktører. Du kan se beregningen af de enkelte regnskabsår ved at bruge knappen "Regnskabsår" i den øverste røde bjælke. For hvert regnskabsår kan du se udgiftsfordelingen for din valgte kommune. Du kan også se udgiftsudviklingen indenfor og udenfor indsatstrappen over tid, ved at vælge knappen ”Udvikling” eller du kan lave en analyse af udgiftsændringer ved at vælge knappen "Ændring". Begge knapper er placeret i den røde bjælke. Du kan altid ændre på dine valg ved at bruge knappen "Dine valg" ligeledes placeret i den røde bjælke.
B12: Udgiftsfordeling for hver aktør
B14: Vælg aktør
B17: ="Fordeling af serviceudgifter for "&fordeling_tekst&"" -> Fordeling af serviceudgifter for Fredericia
B42: ="Note: Udgifterne er defineret som art>0. De valgte sammenligningskommuner er "&Samkom1&" "&Samkom2&" "&Samkom3&" "&Samkom4&" "&Samkom5&" "&Samkom6&" "&Samkom7&" "&Samkom8&" "&Samkom9&" "&Samkom10&" "&Samkom11&" "&Samkom12&" "&Samkom13&" "&Samkom14&" "&Samkom15&" "&Samkom16&" "&Samkom17&" "&Samkom18&" " -> Note: Udgifterne er defineret som art>0. De valgte sammenligningskommuner er Aarhus
B43: Kilde: Danmarks Statistik
B45: ="Tabel - Fordeling af serviceudgifter for "&fordeling_tekst&"" -> Tabel - Fordeling af serviceudgifter for Fredericia
B47: ="Fordeling af serviceudgifter for "&fordeling_tekst&"" -> Fordeling af serviceudgifter for Fredericia
C48: ='Dine valg'!$J$10 -> 2018 | D48: ='Dine valg'!$J$11 -> 2019 | E48: ='Dine valg'!$J$12 -> 2020 | F48: ='Dine valg'!$J$13 -> 2021 | G48: ='Dine valg'!$J$14 -> 2022 | H48: ='Dine valg'!$J$15 -> 2023 | I48: ='Dine valg'!$J$16 ->  | J48: ='Dine valg'!$K$10 ->  | K48: ='Dine valg'!$K$11 ->  | L48: ='Dine valg'!$K$12 ->  | M48: ='Dine valg'!$K$13 ->  | N48: ='Dine valg'!$K$14 ->  | O48: ='Dine valg'!$K$15 ->  | P48: ='Dine valg'!$K$16 -> 
B49: =""&fordeling_tekst&"" -> Fredericia | C49: ="" ->  | D49: ="" ->  | E49: ="" ->  | F49: ="" ->  | G49: ="" ->  | H49: ="" ->  | I49: ="" ->  | J49: ="" ->  | K49: ="" ->  | L49: ="" ->  | M49: ="" ->  | N49: ="" ->  | O49: ="" ->  | P49: ="" ->  | Q49: ="" ->  | R49: ="" ->  | S49: ="" ->  | T49: ="" ->  | U49: ="" ->  | V49: ="" ->  | W49: ="" -> 
B50: Trin 2: Forebyggende indsatser | C50: ='Udgifter til figur'!C62 -> 0.0103193258 | D50: ='Udgifter til figur'!D62 -> 0.01649876038 | E50: ='Udgifter til figur'!E62 -> 0.01217700656 | F50: ='Udgifter til figur'!F62 -> 0.009678682655 | G50: ='Udgifter til figur'!G62 -> 0.01167754064 | H50: ='Udgifter til figur'!H62 -> 0.009177533205 | I50: ='Udgifter til figur'!I62 -> 0 | J50: ='Udgifter til figur'!J62 -> 0 | K50: ='Udgifter til figur'!K62 -> 0 | L50: ='Udgifter til figur'!L62 -> 0 | M50: ='Udgifter til figur'!M62 -> 0 | N50: ='Udgifter til figur'!N62 -> 0 | O50: ='Udgifter til figur'!O62 -> 0 | P50: ='Udgifter til figur'!P62 -> 0 | Q50: ='Udgifter til figur'!Q62 -> 0 | R50: ='Udgifter til figur'!R62 -> 0 | S50: ='Udgifter til figur'!S62 -> 0 | T50: ='Udgifter til figur'!T62 -> 0 | U50: ='Udgifter til figur'!U62 -> 0 | V50: ='Udgifter til figur'!V62 -> 0 | W50: ='Udgifter til figur'!W62 -> 0
B51: Trin 3: Hjemmebaserede foranstaltninger | C51: ='Udgifter til figur'!C63 -> 0.1764318065 | D51: ='Udgifter til figur'!D63 -> 0.1490201094 | E51: ='Udgifter til figur'!E63 -> 0.1975381064 | F51: ='Udgifter til figur'!F63 -> 0.1986554277 | G51: ='Udgifter til figur'!G63 -> 0.2113531645 | H51: ='Udgifter til figur'!H63 -> 0.21512719 | I51: ='Udgifter til figur'!I63 -> 0 | J51: ='Udgifter til figur'!J63 -> 0 | K51: ='Udgifter til figur'!K63 -> 0 | L51: ='Udgifter til figur'!L63 -> 0 | M51: ='Udgifter til figur'!M63 -> 0 | N51: ='Udgifter til figur'!N63 -> 0 | O51: ='Udgifter til figur'!O63 -> 0 | P51: ='Udgifter til figur'!P63 -> 0 | Q51: ='Udgifter til figur'!Q63 -> 0 | R51: ='Udgifter til figur'!R63 -> 0 | S51: ='Udgifter til figur'!S63 -> 0 | T51: ='Udgifter til figur'!T63 -> 0 | U51: ='Udgifter til figur'!U63 -> 0 | V51: ='Udgifter til figur'!V63 -> 0 | W51: ='Udgifter til figur'!W63 -> 0
B52: Trin 4: Slægts- og netværkspleje | C52: ='Udgifter til figur'!C64 -> 0.01422729271 | D52: ='Udgifter til figur'!D64 -> 0.01317342883 | E52: ='Udgifter til figur'!E64 -> 0.01922585651 | F52: ='Udgifter til figur'!F64 -> 0.01724073625 | G52: ='Udgifter til figur'!G64 -> 0.01380810203 | H52: ='Udgifter til figur'!H64 -> 0.01363917039 | I52: ='Udgifter til figur'!I64 -> 0 | J52: ='Udgifter til figur'!J64 -> 0 | K52: ='Udgifter til figur'!K64 -> 0 | L52: ='Udgifter til figur'!L64 -> 0 | M52: ='Udgifter til figur'!M64 -> 0 | N52: ='Udgifter til figur'!N64 -> 0 | O52: ='Udgifter til figur'!O64 -> 0 | P52: ='Udgifter til figur'!P64 -> 0 | Q52: ='Udgifter til figur'!Q64 -> 0 | R52: ='Udgifter til figur'!R64 -> 0 | S52: ='Udgifter til figur'!S64 -> 0 | T52: ='Udgifter til figur'!T64 -> 0 | U52: ='Udgifter til figur'!U64 -> 0 | V52: ='Udgifter til figur'!V64 -> 0 | W52: ='Udgifter til figur'!W64 -> 0
B53: Trin 5: Familiepleje | C53: ='Udgifter til figur'!C65 -> 0.3492709587 | D53: ='Udgifter til figur'!D65 -> 0.350615875 | E53: ='Udgifter til figur'!E65 -> 0.3404831064 | F53: ='Udgifter til figur'!F65 -> 0.3516588031 | G53: ='Udgifter til figur'!G65 -> 0.3193482989 | H53: ='Udgifter til figur'!H65 -> 0.2970409115 | I53: ='Udgifter til figur'!I65 -> 0 | J53: ='Udgifter til figur'!J65 -> 0 | K53: ='Udgifter til figur'!K65 -> 0 | L53: ='Udgifter til figur'!L65 -> 0 | M53: ='Udgifter til figur'!M65 -> 0 | N53: ='Udgifter til figur'!N65 -> 0 | O53: ='Udgifter til figur'!O65 -> 0 | P53: ='Udgifter til figur'!P65 -> 0 | Q53: ='Udgifter til figur'!Q65 -> 0 | R53: ='Udgifter til figur'!R65 -> 0 | S53: ='Udgifter til figur'!S65 -> 0 | T53: ='Udgifter til figur'!T65 -> 0 | U53: ='Udgifter til figur'!U65 -> 0 | V53: ='Udgifter til figur'!V65 -> 0 | W53: ='Udgifter til figur'!W65 -> 0
B54: Trin 6: Institutionsanbringelser | C54: ='Udgifter til figur'!C66 -> 0.2005102333 | D54: ='Udgifter til figur'!D66 -> 0.2057376727 | E54: ='Udgifter til figur'!E66 -> 0.1616126255 | F54: ='Udgifter til figur'!F66 -> 0.1566678478 | G54: ='Udgifter til figur'!G66 -> 0.2124295035 | H54: ='Udgifter til figur'!H66 -> 0.2503178235 | I54: ='Udgifter til figur'!I66 -> 0 | J54: ='Udgifter til figur'!J66 -> 0 | K54: ='Udgifter til figur'!K66 -> 0 | L54: ='Udgifter til figur'!L66 -> 0 | M54: ='Udgifter til figur'!M66 -> 0 | N54: ='Udgifter til figur'!N66 -> 0 | O54: ='Udgifter til figur'!O66 -> 0 | P54: ='Udgifter til figur'!P66 -> 0 | Q54: ='Udgifter til figur'!Q66 -> 0 | R54: ='Udgifter til figur'!R66 -> 0 | S54: ='Udgifter til figur'!S66 -> 0 | T54: ='Udgifter til figur'!T66 -> 0 | U54: ='Udgifter til figur'!U66 -> 0 | V54: ='Udgifter til figur'!V66 -> 0 | W54: ='Udgifter til figur'!W66 -> 0
B55: Ikke-trinspecifikke grupperinger | C55: ='Udgifter til figur'!C67 -> 0.249240383 | D55: ='Udgifter til figur'!D67 -> 0.2649541537 | E55: ='Udgifter til figur'!E67 -> 0.2689632987 | F55: ='Udgifter til figur'!F67 -> 0.2660985025 | G55: ='Udgifter til figur'!G67 -> 0.2313833905 | H55: ='Udgifter til figur'!H67 -> 0.2146973714 | I55: ='Udgifter til figur'!I67 -> 0 | J55: ='Udgifter til figur'!J67 -> 0 | K55: ='Udgifter til figur'!K67 -> 0 | L55: ='Udgifter til figur'!L67 -> 0 | M55: ='Udgifter til figur'!M67 -> 0 | N55: ='Udgifter til figur'!N67 -> 0 | O55: ='Udgifter til figur'!O67 -> 0 | P55: ='Udgifter til figur'!P67 -> 0 | Q55: ='Udgifter til figur'!Q67 -> 0 | R55: ='Udgifter til figur'!R67 -> 0 | S55: ='Udgifter til figur'!S67 -> 0 | T55: ='Udgifter til figur'!T67 -> 0 | U55: ='Udgifter til figur'!U67 -> 0 | V55: ='Udgifter til figur'!V67 -> 0 | W55: ='Udgifter til figur'!W67 -> 0
B56: I alt | C56: ='Udgifter til figur'!C68 -> 1 | D56: ='Udgifter til figur'!D68 -> 1 | E56: ='Udgifter til figur'!E68 -> 1 | F56: ='Udgifter til figur'!F68 -> 1 | G56: ='Udgifter til figur'!G68 -> 1 | H56: ='Udgifter til figur'!H68 -> 1 | I56: ='Udgifter til figur'!I68 -> 0 | J56: ='Udgifter til figur'!J68 -> 0 | K56: ='Udgifter til figur'!K68 -> 0 | L56: ='Udgifter til figur'!L68 -> 0 | M56: ='Udgifter til figur'!M68 -> 0 | N56: ='Udgifter til figur'!N68 -> 0 | O56: ='Udgifter til figur'!O68 -> 0 | P56: ='Udgifter til figur'!P68 -> 0 | Q56: ='Udgifter til figur'!Q68 -> 0 | R56: ='Udgifter til figur'!R68 -> 0 | S56: ='Udgifter til figur'!S68 -> 0 | T56: ='Udgifter til figur'!T68 -> 0 | U56: ='Udgifter til figur'!U68 -> 0 | V56: ='Udgifter til figur'!V68 -> 0 | W56: ='Udgifter til figur'!W68 -> 0
B57: ="Note: Udgifterne er defineret som art>0. De valgte sammenligningskommuner er "&Samkom1&" "&Samkom2&" "&Samkom3&" "&Samkom4&" "&Samkom5&" "&Samkom6&" "&Samkom7&" "&Samkom8&" "&Samkom9&" "&Samkom10&" "&Samkom11&" "&Samkom12&" "&Samkom13&" "&Samkom14&" "&Samkom15&" "&Samkom16&" "&Samkom17&" "&Samkom18&" " -> Note: Udgifterne er defineret som art>0. De valgte sammenligningskommuner er Aarhus
B58: Kilde: Danmarks Statistik
B61: Udgiftsfordeling på tværs af aktører
B63: Vælg opgørelse
B66: =IF(fordeling_trin_valg=1,"Andel udgifter til forebyggende indsatser",IF(fordeling_trin_valg=2,"Andel udgifter til hjemmebaserede foranstaltninger",IF(fordeling_trin_valg=3,"Andel udgifter til slægts- eller netværkspleje",IF(fordeling_trin_valg=4,"Andel udgifter til familiepleje",IF(fordeling_trin_valg=5,"Andel udgifter til institutionsanbringelser","Andel udgifter til ikke-trinspecifikke grupperinger"))))) -> Andel udgifter til hjemmebaserede foranstaltninger
B90: ="Note: Udgifterne er defineret som art>0. De valgte sammenligningskommuner er "&Samkom1&" "&Samkom2&" "&Samkom3&" "&Samkom4&" "&Samkom5&" "&Samkom6&" "&Samkom7&" "&Samkom8&" "&Samkom9&" "&Samkom10&" "&Samkom11&" "&Samkom12&" "&Samkom13&" "&Samkom14&" "&Samkom15&" "&Samkom16&" "&Samkom17&" "&Samkom18&" " -> Note: Udgifterne er defineret som art>0. De valgte sammenligningskommuner er Aarhus
B91: Kilde: Danmarks Statistik
B93: =IF(fordeling_trin_valg=1,"Tabel - Andel udgifter til forebyggende indsatser",IF(fordeling_trin_valg=2,"Tabel - Andel udgifter til hjemmebaserede foranstaltninger",IF(fordeling_trin_valg=3,"Tabel - Andel udgifter til slægts- eller netværkspleje",IF(fordeling_trin_valg=4,"Tabel - Andel udgifter til familiepleje",IF(fordeling_trin_valg=5,"Tabel - Andel udgifter til institutionsanbringelser","Tabel - Andel udgifter til ikke-trinspecifikke grupperinger"))))) -> Tabel - Andel udgifter til hjemmebaserede foranstaltninger
B95: =IF(fordeling_trin_valg=1,"Andel udgifter til forebyggende indsatser",IF(fordeling_trin_valg=2,"Andel udgifter til hjemmebaserede foranstaltninger",IF(fordeling_trin_valg=3,"Andel udgifter til slægts- eller netværkspleje",IF(fordeling_trin_valg=4,"Andel udgifter til familiepleje",IF(fordeling_trin_valg=5,"Andel udgifter til institutionsanbringelser","Andel udgifter til ikke-trinspecifikke grupperinger"))))) -> Andel udgifter til hjemmebaserede foranstaltninger
C96: ='Dine valg'!$J$10 -> 2018 | D96: ='Dine valg'!$J$11 -> 2019 | E96: ='Dine valg'!$J$12 -> 2020 | F96: ='Dine valg'!$J$13 -> 2021 | G96: ='Dine valg'!$J$14 -> 2022 | H96: ='Dine valg'!$J$15 -> 2023 | I96: ='Dine valg'!$J$16 ->  | J96: ='Dine valg'!$K$10 ->  | K96: ='Dine valg'!$K$11 ->  | L96: ='Dine valg'!$K$12 ->  | M96: ='Dine valg'!$K$13 ->  | N96: ='Dine valg'!$K$14 ->  | O96: ='Dine valg'!$K$15 ->  | P96: ='Dine valg'!$K$16 -> 
B97: =""&Kommune&"" -> Fredericia | C97: ="" ->  | D97: ="" ->  | E97: ="" ->  | F97: ="" ->  | G97: ="" ->  | H97: ="" ->  | I97: ="" ->  | J97: ="" ->  | K97: ="" ->  | L97: ="" ->  | M97: ="" ->  | N97: ="" ->  | O97: ="" ->  | P97: ="" -> 
B98: =""&fordeling_trin_tekst&"" -> Trin 3: Hjemmebaserede foranstaltninger | C98: ='Udgifter til figur'!C75 -> 0.1764318065 | D98: ='Udgifter til figur'!D75 -> 0.1490201094 | E98: ='Udgifter til figur'!E75 -> 0.1975381064 | F98: ='Udgifter til figur'!F75 -> 0.1986554277 | G98: ='Udgifter til figur'!G75 -> 0.2113531645 | H98: ='Udgifter til figur'!H75 -> 0.21512719 | I98: ='Udgifter til figur'!I75 -> 0 | J98: ='Udgifter til figur'!J75 -> 0 | K98: ='Udgifter til figur'!K75 -> 0 | L98: ='Udgifter til figur'!L75 -> 0 | M98: ='Udgifter til figur'!M75 -> 0 | N98: ='Udgifter til figur'!N75 -> 0 | O98: ='Udgifter til figur'!O75 -> 0 | P98: ='Udgifter til figur'!P75 -> 0
B99: Sammenligningsgruppe, gns. | C99: ="" ->  | D99: ="" ->  | E99: ="" ->  | F99: ="" ->  | G99: ="" ->  | H99: ="" ->  | I99: ="" ->  | J99: ="" ->  | K99: ="" ->  | L99: ="" ->  | M99: ="" ->  | N99: ="" ->  | O99: ="" ->  | P99: ="" -> 
B100: =""&fordeling_trin_tekst&"" -> Trin 3: Hjemmebaserede foranstaltninger | C100: ='Udgifter til figur'!C77 -> 0.437786754 | D100: ='Udgifter til figur'!D77 -> 0.4421898799 | E100: ='Udgifter til figur'!E77 -> 0.4436614256 | F100: ='Udgifter til figur'!F77 -> 0.4636047244 | G100: ='Udgifter til figur'!G77 -> 0.4895279233 | H100: ='Udgifter til figur'!H77 -> 0.4840039766 | I100: ='Udgifter til figur'!I77 -> 0 | J100: ='Udgifter til figur'!J77 -> 0 | K100: ='Udgifter til figur'!K77 -> 0 | L100: ='Udgifter til figur'!L77 -> 0 | M100: ='Udgifter til figur'!M77 -> 0 | N100: ='Udgifter til figur'!N77 -> 0 | O100: ='Udgifter til figur'!O77 -> 0 | P100: ='Udgifter til figur'!P77 -> 0
B101: =""&Region&"" -> Syddanmark | C101: ="" ->  | D101: ="" ->  | E101: ="" ->  | F101: ="" ->  | G101: ="" ->  | H101: ="" ->  | I101: ="" ->  | J101: ="" ->  | K101: ="" ->  | L101: ="" ->  | M101: ="" ->  | N101: ="" ->  | O101: ="" ->  | P101: ="" -> 
B102: =""&fordeling_trin_tekst&"" -> Trin 3: Hjemmebaserede foranstaltninger | C102: ='Udgifter til figur'!C79 -> 0.3088974087 | D102: ='Udgifter til figur'!D79 -> 0.3055747733 | E102: ='Udgifter til figur'!E79 -> 0.3034771047 | F102: ='Udgifter til figur'!F79 -> 0.3092078735 | G102: ='Udgifter til figur'!G79 -> 0.30355544 | H102: ='Udgifter til figur'!H79 -> 0.305262143 | I102: ='Udgifter til figur'!I79 -> 0 | J102: ='Udgifter til figur'!J79 -> 0 | K102: ='Udgifter til figur'!K79 -> 0 | L102: ='Udgifter til figur'!L79 -> 0 | M102: ='Udgifter til figur'!M79 -> 0 | N102: ='Udgifter til figur'!N79 -> 0 | O102: ='Udgifter til figur'!O79 -> 0 | P102: ='Udgifter til figur'!P79 -> 0
B103: Hele landet | C103: ="" ->  | D103: ="" ->  | E103: ="" ->  | F103: ="" ->  | G103: ="" ->  | H103: ="" ->  | I103: ="" ->  | J103: ="" ->  | K103: ="" ->  | L103: ="" ->  | M103: ="" ->  | N103: ="" ->  | O103: ="" ->  | P103: ="" -> 
B104: =""&fordeling_trin_tekst&"" -> Trin 3: Hjemmebaserede foranstaltninger | C104: ='Udgifter til figur'!C81 -> 0.3505486123 | D104: ='Udgifter til figur'!D81 -> 0.3558347646 | E104: ='Udgifter til figur'!E81 -> 0.3564314731 | F104: ='Udgifter til figur'!F81 -> 0.3590012683 | G104: ='Udgifter til figur'!G81 -> 0.3632820273 | H104: ='Udgifter til figur'!H81 -> 0.3654561408 | I104: ='Udgifter til figur'!I81 -> 0 | J104: ='Udgifter til figur'!J81 -> 0 | K104: ='Udgifter til figur'!K81 -> 0 | L104: ='Udgifter til figur'!L81 -> 0 | M104: ='Udgifter til figur'!M81 -> 0 | N104: ='Udgifter til figur'!N81 -> 0 | O104: ='Udgifter til figur'!O81 -> 0 | P104: ='Udgifter til figur'!P81 -> 0
B105: ="Note: Udgifterne er defineret som art>0. De valgte sammenligningskommuner er "&Samkom1&" "&Samkom2&" "&Samkom3&" "&Samkom4&" "&Samkom5&" "&Samkom6&" "&Samkom7&" "&Samkom8&" "&Samkom9&" "&Samkom10&" "&Samkom11&" "&Samkom12&" "&Samkom13&" "&Samkom14&" "&Samkom15&" "&Samkom16&" "&Samkom17&" "&Samkom18&" " -> Note: Udgifterne er defineret som art>0. De valgte sammenligningskommuner er Aarhus
B106: Kilde: Danmarks Statistik

Sheet Udskrift
A25: Udgiftsudvikling på det specialiserede børneområde
A28: ='Alle år'!B45 -> Udgifter til service, administration og i alt for Fredericia, 1.000 kr., 2023-priser
A29: =IF('Alle år'!B46="","",'Alle år'!B46) ->  | E29: ='Alle år'!C46 -> 2018 | F29: ='Alle år'!D46 -> 2019 | G29: ='Alle år'!E46 -> 2020 | H29: ='Alle år'!F46 -> 2021 | I29: ='Alle år'!G46 -> 2022 | J29: ='Alle år'!H46 -> 2023
A30: =IF('Alle år'!B47="","",'Alle år'!B47) -> Fredericia | E30: ='Alle år'!C47 ->  | F30: ='Alle år'!D47 ->  | G30: ='Alle år'!E47 ->  | H30: ='Alle år'!F47 ->  | I30: ='Alle år'!G47 ->  | J30: ='Alle år'!H47 -> 
A31: =IF('Alle år'!B48="","",'Alle år'!B48) -> I alt | E31: ='Alle år'!C48 -> 137134.3721 | F31: ='Alle år'!D48 -> 129393.7196 | G31: ='Alle år'!E48 -> 132302.6311 | H31: ='Alle år'!F48 -> 130876.1737 | I31: ='Alle år'!G48 -> 150127.064 | J31: ='Alle år'!H48 -> 166270
A32: =IF('Alle år'!B49="","",'Alle år'!B49) -> Administration | E32: ='Alle år'!C49 -> 22755.63718 | F32: ='Alle år'!D49 -> 21218.41818 | G32: ='Alle år'!E49 -> 21598.33176 | H32: ='Alle år'!F49 -> 23307.8111 | I32: ='Alle år'!G49 -> 25607.48 | J32: ='Alle år'!H49 -> 30980
A33: =IF('Alle år'!B50="","",'Alle år'!B50) -> Service | E33: ='Alle år'!C50 -> 114378.735 | F33: ='Alle år'!D50 -> 108175.3015 | G33: ='Alle år'!E50 -> 110704.2994 | H33: ='Alle år'!F50 -> 107568.3626 | I33: ='Alle år'!G50 -> 124519.584 | J33: ='Alle år'!H50 -> 135290
A35: =IF('Alle år'!B83="","",'Alle år'!B83) -> Udgifter fordelt på indsatstrappen for Fredericia, 1.000 kr., 2023-priser
A36: =IF('Alle år'!B84="","",'Alle år'!B84) ->  | E36: ='Alle år'!C84 -> 2018 | F36: ='Alle år'!D84 -> 2019 | G36: ='Alle år'!E84 -> 2020 | H36: ='Alle år'!F84 -> 2021 | I36: ='Alle år'!G84 -> 2022 | J36: ='Alle år'!H84 -> 2023
A37: =IF('Alle år'!B85="","",'Alle år'!B85) -> Fredericia | E37: ='Alle år'!C85 ->  | F37: ='Alle år'!D85 ->  | G37: ='Alle år'!E85 ->  | H37: ='Alle år'!F85 ->  | I37: ='Alle år'!G85 ->  | J37: ='Alle år'!H85 -> 
A38: =IF('Alle år'!B86="","",'Alle år'!B86) -> Trin 2: Forebyggende indsatser | E38: ='Alle år'!C86 -> 1214.593662 | F38: ='Alle år'!D86 -> 1856.293353 | G38: ='Alle år'!E86 -> 1392.568157 | H38: ='Alle år'!F86 -> 1106.545368 | I38: ='Alle år'!G86 -> 1628.352 | J38: ='Alle år'!H86 -> 1516
A39: =IF('Alle år'!B87="","",'Alle år'!B87) -> Trin 3: Hjemmebaserede foranstaltninger | E39: ='Alle år'!C87 -> 20766.17774 | F39: ='Alle år'!D87 -> 16766.41349 | G39: ='Alle år'!E87 -> 22590.5501 | H39: ='Alle år'!F87 -> 22711.89698 | I39: ='Alle år'!G87 -> 29471.732 | J39: ='Alle år'!H87 -> 35536
A40: =IF('Alle år'!B88="","",'Alle år'!B88) -> Trin 4: Slægt- eller netværkspleje | E40: ='Alle år'!C88 -> 1674.56478 | F40: ='Alle år'!D88 -> 1482.156708 | G40: ='Alle år'!E88 -> 2198.677929 | H40: ='Alle år'!F88 -> 1971.100564 | I40: ='Alle år'!G88 -> 1925.444 | J40: ='Alle år'!H88 -> 2253
A41: =IF('Alle år'!B89="","",'Alle år'!B89) -> Trin 5: Familiepleje | E41: ='Alle år'!C89 -> 41109.49695 | F41: ='Alle år'!D89 -> 39448.17085 | G41: ='Alle år'!E89 -> 38937.80707 | H41: ='Alle år'!F89 -> 40204.4817 | I41: ='Alle år'!G89 -> 44530.904 | J41: ='Alle år'!H89 -> 49067
A42: =IF('Alle år'!B90="","",'Alle år'!B90) -> Trin 6: Institutionsanbringelser | E42: ='Alle år'!C90 -> 23600.22962 | F42: ='Alle år'!D90 -> 23147.7678 | G42: ='Alle år'!E90 -> 18482.09533 | H42: ='Alle år'!F90 -> 17911.53687 | I42: ='Alle år'!G90 -> 29621.82 | J42: ='Alle år'!H90 -> 41349
A43: =IF('Alle år'!B91="","",'Alle år'!B91) -> Ikke-trinspecifikke grupperinger | E43: ='Alle år'!C91 -> 29335.8108 | F43: ='Alle år'!D91 -> 29810.27805 | G43: ='Alle år'!E91 -> 30758.76845 | H43: ='Alle år'!F91 -> 30422.53537 | I43: ='Alle år'!G91 -> 32264.808 | J43: ='Alle år'!H91 -> 35465
A44: =IF('Alle år'!B92="","",'Alle år'!B92) -> Refusioner | E44: ='Alle år'!C92 -> -3322.138589 | F44: ='Alle år'!D92 -> -4335.77881 | G44: ='Alle år'!E92 -> -3656.167679 | H44: ='Alle år'!F92 -> -6759.734276 | I44: ='Alle år'!G92 -> -14923.476 | J44: ='Alle år'!H92 -> -29896
A46: =LEFT('Alle år'!B93,40) -> Note: Udgifterne er defineret som art>0.
A47: =A93 -> Kilde: Danmarks Statistik.
A64: Sammenligning af udgiftsudvikling for udvalgte opgørelser
A67: ='Alle år'!B103 -> Serviceudgifter pr. barn, kr., 2023-priser
A91: ='Alle år'!B120 -> Note: Antal børn er defineret som antallet af 0-22 årige pr. 1. januar i regnskabsåret.
A92: ='Alle år'!B121 -> Note: Udgifterne er defineret som art>0. De valgte sammenligningskommuner er Aarhus
A93: ='Alle år'!B122 -> Kilde: Danmarks Statistik.
A98: Sammenligning af udgiftsudvikling for udvalgte opgørelser
A101: ='Alle år'!$B$152 -> Udgifter til hjemmebaserede foranstaltninger pr. barn, kr., 2023-priser
J116: =Analyse!G37 -> 
J117: =Analyse!G38 -> 
J118: =Analyse!G39 -> 
J119: =Analyse!G40 -> 
J123: =Analyse!G86 -> 
J124: =Analyse!G88 -> 
A125: ='Alle år'!B169 -> Anm.: Antal børn er defineret som antallet af 0-22 årige pr. 1. januar i regnskabsåret. | J125: =Analyse!G89 -> 
A126: ='Alle år'!B170 -> Note: Udgifterne er defineret som art>0. De valgte sammenligningskommuner er Aarhus | J126: =Analyse!G90 -> 
A127: ='Alle år'!B171 -> Kilde: Danmarks Statistik. | J127: =Analyse!G91 -> 
J128: =Analyse!G92 -> 
J129: =Analyse!G94 -> 
J130: =Analyse!G95 -> 
A135: Udgiftsændringer (merudgifter) på det specialiserede børneområde
A138: =Analyse!B36 -> Merudgifter for service, administration og i alt for Fredericia, 1.000 kr., 2023-priser
F139: =Analyse!C37 -> 2021 | G139: =Analyse!D37 -> 2022 | H139: =Analyse!E37 -> 2023 | I139: =Analyse!F37 ->  | J139: =Analyse!G37 -> 
A140: =Analyse!B38 -> I alt | F140: =Analyse!C38 -> -2067.400618 | G140: =Analyse!D38 -> 17183.4897 | H140: =Analyse!E38 -> 33326.4257 | I140: =Analyse!F38 ->  | J140: =Analyse!G38 -> 
A141: =Analyse!B39 -> Administration | F141: =Analyse!C39 -> 1450.34873 | G141: =Analyse!D39 -> 3750.017626 | H141: =Analyse!E39 -> 9122.537626 | I141: =Analyse!F39 ->  | J141: =Analyse!G39 -> 
A142: =Analyse!B40 -> Service | F142: =Analyse!C40 -> -3517.749348 | G142: =Analyse!D40 -> 13433.47207 | H142: =Analyse!E40 -> 24203.88807 | I142: =Analyse!F40 ->  | J142: =Analyse!G40 -> 
A143: =Analyse!B41 -> Note: Merudgifterne er beregnet ud fra følgende basisperioden 2018-2020.
A145: =Analyse!B85 -> Merudgifter indenfor og udenfor indsatstrappen for Fredericia, 1.000 kr., 2023-priser
F146: =Analyse!C86 -> 2021 | G146: =Analyse!D86 -> 2022 | H146: =Analyse!E86 -> 2023 | I146: =Analyse!F86 ->  | J146: =Analyse!G86 -> 
A147: Indenfor indsatstrappen | F147: =Analyse!C87 ->  | G147: =Analyse!D87 ->  | H147: =Analyse!E87 ->  | I147: =Analyse!F87 ->  | J147: =Analyse!G87 -> 
A148: =Analyse!B88 -> Trin 2: Forebyggende indsatser | F148: =Analyse!C88 -> -381.2730226 | G148: =Analyse!D88 -> 140.5336094 | H148: =Analyse!E88 -> 28.18160936 | I148: =Analyse!F88 ->  | J148: =Analyse!G88 -> 
A149: =Analyse!B89 -> Trin 3: Hjemmebaserede foranstaltninger | F149: =Analyse!C89 -> 2670.849868 | G149: =Analyse!D89 -> 9430.684888 | H149: =Analyse!E89 -> 15494.95289 | I149: =Analyse!F89 ->  | J149: =Analyse!G89 -> 
A150: =Analyse!B90 -> Trin 4: Slægt- eller netværkspleje | F150: =Analyse!C90 -> 185.9674248 | G150: =Analyse!D90 -> 140.3108608 | H150: =Analyse!E90 -> 467.8668608 | I150: =Analyse!F90 ->  | J150: =Analyse!G90 -> 
A151: =Analyse!B91 -> Trin 5: Familiepleje | F151: =Analyse!C91 -> 372.6567452 | G151: =Analyse!D91 -> 4699.079041 | H151: =Analyse!E91 -> 9235.175041 | I151: =Analyse!F91 ->  | J151: =Analyse!G91 -> 
A152: =Analyse!B92 -> Trin 6: Institutionsanbringelser | F152: =Analyse!C92 -> -3831.827379 | G152: =Analyse!D92 -> 7878.455749 | H152: =Analyse!E92 -> 19605.63575 | I152: =Analyse!F92 ->  | J152: =Analyse!G92 -> 
A153: Udenfor indsatstrappen | F153: =Analyse!C93 ->  | G153: =Analyse!D93 ->  | H153: =Analyse!E93 ->  | I153: =Analyse!F93 ->  | J153: =Analyse!G93 -> 
A154: =Analyse!B94 -> Ikke-trinspecifikke grupperinger | F154: =Analyse!C94 -> 454.2495988 | G154: =Analyse!D94 -> 2296.522231 | H154: =Analyse!E94 -> 5496.714231 | I154: =Analyse!F94 ->  | J154: =Analyse!G94 -> 
A155: =Analyse!B95 -> Refusioner | F155: =Analyse!C95 -> -2988.372583 | G155: =Analyse!D95 -> -11152.11431 | H155: =Analyse!E95 -> -26124.63831 | I155: =Analyse!F95 ->  | J155: =Analyse!G95 -> 
A157: =Analyse!B96 -> Note: Merudgifterne er beregnet ud fra basisperioden 2018-2020. Note: Udgifterne er defineret som art>0 og ekskl. refusioner.
A163: Illustration af udgiftsændringer (merudgifter): Service, administration og i alt
A166: =Analyse!B17 -> Merudgifter for service, administration og i alt for Fredericia, 1.000 kr., 2023-priser
A182: =Analyse!B41 -> Note: Merudgifterne er beregnet ud fra følgende basisperioden 2018-2020.
A194: Illustration af udgiftsændringer (merudgifter): Indsatstrappen
A197: =Analyse!B46 -> Merudgifter fordelt på indsatstrappen for Fredericia, 1.000 kr., 2023-priser
A214: =Analyse!B96 -> Note: Merudgifterne er beregnet ud fra basisperioden 2018-2020. Note: Udgifterne er defineret som art>0 og ekskl. refusioner.
A231: Illustration af udgiftsændringer (merudgifter): Udenfor indsatstrappen
A234: =Analyse!B64 -> Merudgifter for ikke-trinspecifikke grupperinger og refusion for Fredericia, 1.000 kr., 2023-priser
A253: =Analyse!B80 -> Note: Merudgifterne er beregnet ud fra basisperioden 2018-2020. Note: Udgifterne er defineret som art>0 og ekskl. refusioner.

Sheet Udskrift test
A34: Indsatstrappens Udgiftsmodel
A38: =""&Kommune&" Kommune" -> Fredericia Kommune
B74: Baseret på registerdata fra Danmarks Statistik
A79: ="Udgiftsudvikling for den valgte aktør: "&alle_aar_tekst_valg&"" -> Udgiftsudvikling for den valgte aktør: Fredericia
A81: Udgifter til service, administration og i alt
A83: ="Figur: Udgifter til service, administration og i alt for "&alle_aar_tekst_valg&", 1.000 kr., "&Prisår&"-priser" -> Figur: Udgifter til service, administration og i alt for Fredericia, 1.000 kr., 2023-priser
A101: Note: Udgifterne er defineret som art>0
A102: Kilde: Danmarks Statistik
A104: ="Tabel: Udgifter til service, administration og i alt for "&alle_aar_tekst_valg&", 1.000 kr., "&Prisår&"-priser" -> Tabel: Udgifter til service, administration og i alt for Fredericia, 1.000 kr., 2023-priser
A105: =IF('Alle år'!B97="","",'Alle år'!B97) ->  | E105: ='Udgifter til figur'!C6 -> 2018 | F105: ='Udgifter til figur'!D6 -> 2019 | G105: ='Udgifter til figur'!E6 -> 2020 | H105: ='Udgifter til figur'!F6 -> 2021 | I105: ='Udgifter til figur'!G6 -> 2022 | J105: ='Udgifter til figur'!H6 -> 2023
A106: =""&alle_aar_tekst_valg&"" -> Fredericia | E106: ='Udgifter til figur'!C7 ->  | F106: ='Udgifter til figur'!D7 ->  | G106: ='Udgifter til figur'!E7 ->  | H106: ='Udgifter til figur'!F7 ->  | I106: ='Udgifter til figur'!G7 ->  | J106: ='Udgifter til figur'!H7 -> 
A107: I alt | E107: ='Udgifter til figur'!C8 -> 137134.3721 | F107: ='Udgifter til figur'!D8 -> 129393.7196 | G107: ='Udgifter til figur'!E8 -> 132302.6311 | H107: ='Udgifter til figur'!F8 -> 130876.1737 | I107: ='Udgifter til figur'!G8 -> 150127.064 | J107: ='Udgifter til figur'!H8 -> 166270
A108: Administration | E108: ='Udgifter til figur'!C9 -> 22755.63718 | F108: ='Udgifter til figur'!D9 -> 21218.41818 | G108: ='Udgifter til figur'!E9 -> 21598.33176 | H108: ='Udgifter til figur'!F9 -> 23307.8111 | I108: ='Udgifter til figur'!G9 -> 25607.48 | J108: ='Udgifter til figur'!H9 -> 30980
A109: Service | E109: ='Udgifter til figur'!C10 -> 114378.735 | F109: ='Udgifter til figur'!D10 -> 108175.3015 | G109: ='Udgifter til figur'!E10 -> 110704.2994 | H109: ='Udgifter til figur'!F10 -> 107568.3626 | I109: ='Udgifter til figur'!G10 -> 124519.584 | J109: ='Udgifter til figur'!H10 -> 135290
A110: Note: Udgifterne er defineret som art>0
A111: Kilde: Danmarks Statistik
A114: Udgifter fordelt på indsatstrappen
A116: ="Figur: Udgifter fordelt på indsatstrappen for "&alle_aar_tekst_valg&", 1.000 kr., "&Prisår&"-priser" -> Figur: Udgifter fordelt på indsatstrappen for Fredericia, 1.000 kr., 2023-priser
A136: Note: Udgifterne er defineret som art>0
A137: Kilde: Danmarks Statistik
A139: ="Tabel: Udgifter fordelt på indsatstrappen for "&alle_aar_tekst_valg&", 1.000 kr., "&Prisår&"-priser" -> Tabel: Udgifter fordelt på indsatstrappen for Fredericia, 1.000 kr., 2023-priser
E140: ='Udgifter til figur'!C14 -> 2018 | F140: ='Udgifter til figur'!D14 -> 2019 | G140: ='Udgifter til figur'!E14 -> 2020 | H140: ='Udgifter til figur'!F14 -> 2021 | I140: ='Udgifter til figur'!G14 -> 2022 | J140: ='Udgifter til figur'!H14 -> 2023
A141: =""&alle_aar_tekst_valg&"" -> Fredericia | E141: ='Udgifter til figur'!C15 ->  | F141: ='Udgifter til figur'!D15 ->  | G141: ='Udgifter til figur'!E15 ->  | H141: ='Udgifter til figur'!F15 ->  | I141: ='Udgifter til figur'!G15 ->  | J141: ='Udgifter til figur'!H15 -> 
A142: Trin 2: Forebyggende indsatser | E142: ='Udgifter til figur'!C16 -> 1214.593662 | F142: ='Udgifter til figur'!D16 -> 1856.293353 | G142: ='Udgifter til figur'!E16 -> 1392.568157 | H142: ='Udgifter til figur'!F16 -> 1106.545368 | I142: ='Udgifter til figur'!G16 -> 1628.352 | J142: ='Udgifter til figur'!H16 -> 1516
A143: Trin 3: Hjemmebaserede foranstaltninger | E143: ='Udgifter til figur'!C17 -> 20766.17774 | F143: ='Udgifter til figur'!D17 -> 16766.41349 | G143: ='Udgifter til figur'!E17 -> 22590.5501 | H143: ='Udgifter til figur'!F17 -> 22711.89698 | I143: ='Udgifter til figur'!G17 -> 29471.732 | J143: ='Udgifter til figur'!H17 -> 35536
A144: Trin 4: Slægt- eller netværkspleje | E144: ='Udgifter til figur'!C18 -> 1674.56478 | F144: ='Udgifter til figur'!D18 -> 1482.156708 | G144: ='Udgifter til figur'!E18 -> 2198.677929 | H144: ='Udgifter til figur'!F18 -> 1971.100564 | I144: ='Udgifter til figur'!G18 -> 1925.444 | J144: ='Udgifter til figur'!H18 -> 2253
A145: Trin 5: Familiepleje | E145: ='Udgifter til figur'!C19 -> 41109.49695 | F145: ='Udgifter til figur'!D19 -> 39448.17085 | G145: ='Udgifter til figur'!E19 -> 38937.80707 | H145: ='Udgifter til figur'!F19 -> 40204.4817 | I145: ='Udgifter til figur'!G19 -> 44530.904 | J145: ='Udgifter til figur'!H19 -> 49067
A146: Trin 6: Institutionsanbringelser | E146: ='Udgifter til figur'!C20 -> 23600.22962 | F146: ='Udgifter til figur'!D20 -> 23147.7678 | G146: ='Udgifter til figur'!E20 -> 18482.09533 | H146: ='Udgifter til figur'!F20 -> 17911.53687 | I146: ='Udgifter til figur'!G20 -> 29621.82 | J146: ='Udgifter til figur'!H20 -> 41349
A147: Ikke-trinspecifikke grupperinger | E147: ='Udgifter til figur'!C21 -> 29335.8108 | F147: ='Udgifter til figur'!D21 -> 29810.27805 | G147: ='Udgifter til figur'!E21 -> 30758.76845 | H147: ='Udgifter til figur'!F21 -> 30422.53537 | I147: ='Udgifter til figur'!G21 -> 32264.808 | J147: ='Udgifter til figur'!H21 -> 35465
A148: Refusioner | E148: ='Udgifter til figur'!C22 -> -3322.138589 | F148: ='Udgifter til figur'!D22 -> -4335.77881 | G148: ='Udgifter til figur'!E22 -> -3656.167679 | H148: ='Udgifter til figur'!F22 -> -6759.734276 | I148: ='Udgifter til figur'!G22 -> -14923.476 | J148: ='Udgifter til figur'!H22 -> -29896
A149: Note: Udgifterne er defineret som art>0
A150: Kilde: Danmarks Statistik
A155: Udgiftsudvikling på tværs af aktører
A157: Udgiftsudvikling på overordnede opgørelser
A159: =IF(figur4_valg=1,"Figur: Udgifter i alt pr. barn, kr., "&Prisår&"-priser",IF(figur4_valg=2,"Figur: Administrationsudgifter pr. barn, kr., "&Prisår&"-priser","Figur: Serviceudgifter pr. barn, kr., "&Prisår&"-priser")) -> Figur: Serviceudgifter pr. barn, kr., 2023-priser
A181: Note: Antal børn er defineret som antallet af 0-22 årige pr. 1. januar i regnskabsåret.
A182: ="Note: Udgifterne er defineret som art>0. De valgte sammenligningskommuner er "&Samkom1&" "&Samkom2&" "&Samkom3&" "&Samkom4&" "&Samkom5&" "&Samkom6&" "&Samkom7&" "&Samkom8&" "&Samkom9&" "&Samkom10&" "&Samkom11&" "&Samkom12&" "&Samkom13&" "&Samkom14&" "&Samkom15&" "&Samkom16&" "&Samkom17&" "&Samkom18&" " -> Note: Udgifterne er defineret som art>0. De valgte sammenligningskommuner er Aarhus
A183: Kilde: Danmarks Statistik.
A186: =IF(figur4_valg=1,"Tabel: Udgifter i alt pr. barn, kr., "&Prisår&"-priser",IF(figur4_valg=2,"Tabel: Administrationsudgifter pr. barn, kr., "&Prisår&"-priser","Tabel: Serviceudgifter pr. barn, kr., "&Prisår&"-priser")) -> Tabel: Serviceudgifter pr. barn, kr., 2023-priser
E187: ='Udgifter til figur'!C27 -> 2018 | F187: ='Udgifter til figur'!D27 -> 2019 | G187: ='Udgifter til figur'!E27 -> 2020 | H187: ='Udgifter til figur'!F27 -> 2021 | I187: ='Udgifter til figur'!G27 -> 2022 | J187: ='Udgifter til figur'!H27 -> 2023
A188: =""&Kommune&"" -> Fredericia | E188: ='Udgifter til figur'!C28 ->  | F188: ='Udgifter til figur'!D28 ->  | G188: ='Udgifter til figur'!E28 ->  | H188: ='Udgifter til figur'!F28 ->  | I188: ='Udgifter til figur'!G28 ->  | J188: ='Udgifter til figur'!H28 -> 
A189: Udgifter pr. barn | E189: ='Udgifter til figur'!C29 -> 7475.486953 | F189: ='Udgifter til figur'!D29 -> 7271.89523 | G189: ='Udgifter til figur'!E29 -> 7725.158562 | H189: ='Udgifter til figur'!F29 -> 7826.946944 | I189: ='Udgifter til figur'!G29 -> 9363.636364 | J189: ='Udgifter til figur'!H29 -> 10386.94818
A190: Antal 0-22-årige | E190: ='Udgifter til figur'!C30 -> 13605 | F190: ='Udgifter til figur'!D30 -> 13439 | G190: ='Udgifter til figur'!E30 -> 13244 | H190: ='Udgifter til figur'!F30 -> 12892 | I190: ='Udgifter til figur'!G30 -> 12936 | J190: ='Udgifter til figur'!H30 -> 13025
A191: Sammenligningsgruppe, gns. | E191: ='Udgifter til figur'!C31 ->  | F191: ='Udgifter til figur'!D31 ->  | G191: ='Udgifter til figur'!E31 ->  | H191: ='Udgifter til figur'!F31 ->  | I191: ='Udgifter til figur'!G31 ->  | J191: ='Udgifter til figur'!H31 -> 
A192: Udgifter pr. barn | E192: ='Udgifter til figur'!C32 -> 6227.504689 | F192: ='Udgifter til figur'!D32 -> 6038.302267 | G192: ='Udgifter til figur'!E32 -> 5840.437932 | H192: ='Udgifter til figur'!F32 -> 6104.505066 | I192: ='Udgifter til figur'!G32 -> 6709.006784 | J192: ='Udgifter til figur'!H32 -> 6795.824318
A193: Antal 0-22-årige | E193: ='Udgifter til figur'!C33 -> 95431 | F193: ='Udgifter til figur'!D33 -> 95869 | G193: ='Udgifter til figur'!E33 -> 96088 | H193: ='Udgifter til figur'!F33 -> 96225 | I193: ='Udgifter til figur'!G33 -> 95961 | J193: ='Udgifter til figur'!H33 -> 96128
A194: =""&Region&"" -> Syddanmark | E194: ='Udgifter til figur'!C34 ->  | F194: ='Udgifter til figur'!D34 ->  | G194: ='Udgifter til figur'!E34 ->  | H194: ='Udgifter til figur'!F34 ->  | I194: ='Udgifter til figur'!G34 ->  | J194: ='Udgifter til figur'!H34 -> 
A195: Udgifter pr. barn | E195: ='Udgifter til figur'!C35 -> 8431.921987 | F195: ='Udgifter til figur'!D35 -> 8898.800672 | G195: ='Udgifter til figur'!E35 -> 9422.087894 | H195: ='Udgifter til figur'!F35 -> 9608.99331 | I195: ='Udgifter til figur'!G35 -> 9876.506226 | J195: ='Udgifter til figur'!H35 -> 10512.18758
A196: Antal 0-22-årige | E196: ='Udgifter til figur'!C36 -> 324253 | F196: ='Udgifter til figur'!D36 -> 320763 | G196: ='Udgifter til figur'!E36 -> 317133 | H196: ='Udgifter til figur'!F36 -> 313900 | I196: ='Udgifter til figur'!G36 -> 313117 | J196: ='Udgifter til figur'!H36 -> 313598
A197: Hele landet | E197: ='Udgifter til figur'!C37 ->  | F197: ='Udgifter til figur'!D37 ->  | G197: ='Udgifter til figur'!E37 ->  | H197: ='Udgifter til figur'!F37 ->  | I197: ='Udgifter til figur'!G37 ->  | J197: ='Udgifter til figur'!H37 -> 
A198: Udgifter pr. barn | E198: ='Udgifter til figur'!C38 -> 8491.852999 | F198: ='Udgifter til figur'!D38 -> 8731.652751 | G198: ='Udgifter til figur'!E38 -> 9036.051446 | H198: ='Udgifter til figur'!F38 -> 9238.245953 | I198: ='Udgifter til figur'!G38 -> 9645.779582 | J198: ='Udgifter til figur'!H38 -> 10117.63619
A199: Antal 0-22-årige | E199: ='Udgifter til figur'!C39 -> 1537130 | F199: ='Udgifter til figur'!D39 -> 1527804 | G199: ='Udgifter til figur'!E39 -> 1518885 | H199: ='Udgifter til figur'!F39 -> 1510267 | I199: ='Udgifter til figur'!G39 -> 1510040 | J199: ='Udgifter til figur'!H39 -> 1516081
A200: Note: Antal børn er defineret som antallet af 0-22 årige pr. 1. januar i regnskabsåret.
A201: ="Note: Udgifterne er defineret som art>0. De valgte sammenligningskommuner er "&Samkom1&" "&Samkom2&" "&Samkom3&" "&Samkom4&" "&Samkom5&" "&Samkom6&" "&Samkom7&" "&Samkom8&" "&Samkom9&" "&Samkom10&" "&Samkom11&" "&Samkom12&" "&Samkom13&" "&Samkom14&" "&Samkom15&" "&Samkom16&" "&Samkom17&" "&Samkom18&" " -> Note: Udgifterne er defineret som art>0. De valgte sammenligningskommuner er Aarhus
A202: Kilde: Danmarks Statistik.
A232: Udgiftsudvikling på tværs af aktører
A234: Udgiftsudvikling fordelt på trin
A236: =IF(figur5_valg=1,"Figur: Udgifter til forebyggende indsatser pr. barn, kr., "&Prisår&"-priser",IF(figur5_valg=2,"Figur: Udgifter til hjemmebaserede foranstaltninger pr. barn, kr., "&Prisår&"-priser",IF(figur5_valg=3,"Figur: Udgifter til slægts- eller netværkspleje pr. barn, kr., "&Prisår&"-priser",IF(figur5_valg=4,"Figur: Udgifter til familiepleje pr. barn, kr., "&Prisår&"-priser",IF(figur5_valg=5,"Figur: Udgifter til institutionsanbringelser pr. barn, kr., "&Prisår&"-priser",IF(figur5_valg=6,"Figur: Udgifter til ikke-trinspecifikke grupperinger pr. barn, kr., "&Prisår&"-priser","Figur: Refusioner pr. barn, kr., "&Prisår&"-priser")))))) -> Figur: Udgifter til hjemmebaserede foranstaltninger pr. barn, kr., 2023-priser
A260: Anm.: Antal børn er defineret som antallet af 0-22 årige pr. 1. januar i regnskabsåret.
A261: Note: Udgifterne er defineret som art>0. De valgte sammenligningskommuner er Assens Ballerup
A262: Kilde: Danmarks Statistik.
A265: =IF(figur5_valg=1,"Tabel: Udgifter til forebyggende indsatser pr. barn, kr., "&Prisår&"-priser",IF(figur5_valg=2,"Tabel: Udgifter til hjemmebaserede foranstaltninger pr. barn, kr., "&Prisår&"-priser",IF(figur5_valg=3,"Tabel: Udgifter til slægts- eller netværkspleje pr. barn, kr., "&Prisår&"-priser",IF(figur5_valg=4,"Tabel: Udgifter til familiepleje pr. barn, kr., "&Prisår&"-priser",IF(figur5_valg=5,"Tabel: Udgifter til institutionsanbringelser pr. barn, kr., "&Prisår&"-priser",IF(figur5_valg=6,"Tabel: Udgifter til ikke-trinspecifikke grupperinger pr. barn, kr., "&Prisår&"-priser","Tabel: Refusioner pr. barn, kr., "&Prisår&"-priser")))))) -> Tabel: Udgifter til hjemmebaserede foranstaltninger pr. barn, kr., 2023-priser
E266: ='Udgifter til figur'!C43 -> 2018 | F266: ='Udgifter til figur'!D43 -> 2019 | G266: ='Udgifter til figur'!E43 -> 2020 | H266: ='Udgifter til figur'!F43 -> 2021 | I266: ='Udgifter til figur'!G43 -> 2022 | J266: ='Udgifter til figur'!H43 -> 2023
A267: =""&Kommune&"" -> Fredericia | E267: ='Udgifter til figur'!C44 ->  | F267: ='Udgifter til figur'!D44 ->  | G267: ='Udgifter til figur'!E44 ->  | H267: ='Udgifter til figur'!F44 ->  | I267: ='Udgifter til figur'!G44 ->  | J267: ='Udgifter til figur'!H44 -> 
A268: Udgifter pr. barn | E268: ='Udgifter til figur'!C45 -> 1357.22161 | F268: ='Udgifter til figur'!D45 -> 1127.09279 | G268: ='Udgifter til figur'!E45 -> 1576.41196 | H268: ='Udgifter til figur'!F45 -> 1652.57524 | I268: ='Udgifter til figur'!G45 -> 2216.218306 | J268: ='Udgifter til figur'!H45 -> 2728.291747
A269: Antal 0-22-årige | E269: ='Udgifter til figur'!C46 -> 13605 | F269: ='Udgifter til figur'!D46 -> 13439 | G269: ='Udgifter til figur'!E46 -> 13244 | H269: ='Udgifter til figur'!F46 -> 12892 | I269: ='Udgifter til figur'!G46 -> 12936 | J269: ='Udgifter til figur'!H46 -> 13025
A270: Sammenligningsgruppe, gns. | E270: ='Udgifter til figur'!C47 ->  | F270: ='Udgifter til figur'!D47 ->  | G270: ='Udgifter til figur'!E47 ->  | H270: ='Udgifter til figur'!F47 ->  | I270: ='Udgifter til figur'!G47 ->  | J270: ='Udgifter til figur'!H47 -> 
A271: Udgifter pr. barn | E271: ='Udgifter til figur'!C48 -> 3126.594084 | F271: ='Udgifter til figur'!D48 -> 3010.086681 | G271: ='Udgifter til figur'!E48 -> 2857.28707 | H271: ='Udgifter til figur'!F48 -> 3157.672123 | I271: ='Udgifter til figur'!G48 -> 3795.760778 | J271: ='Udgifter til figur'!H48 -> 3844.072487
A272: Antal 0-22-årige | E272: ='Udgifter til figur'!C49 -> 95431 | F272: ='Udgifter til figur'!D49 -> 95869 | G272: ='Udgifter til figur'!E49 -> 96088 | H272: ='Udgifter til figur'!F49 -> 96225 | I272: ='Udgifter til figur'!G49 -> 95961 | J272: ='Udgifter til figur'!H49 -> 96128
A273: =""&Region&"" -> Syddanmark | E273: ='Udgifter til figur'!C50 ->  | F273: ='Udgifter til figur'!D50 ->  | G273: ='Udgifter til figur'!E50 ->  | H273: ='Udgifter til figur'!F50 ->  | I273: ='Udgifter til figur'!G50 ->  | J273: ='Udgifter til figur'!H50 -> 
A274: Udgifter pr. barn | E274: ='Udgifter til figur'!C51 -> 2786.179311 | F274: ='Udgifter til figur'!D51 -> 2886.15894 | G274: ='Udgifter til figur'!E51 -> 3017.667666 | H274: ='Udgifter til figur'!F51 -> 3241.784008 | I274: ='Udgifter til figur'!G51 -> 3359.817576 | J274: ='Udgifter til figur'!H51 -> 3614.315142
A275: Antal 0-22-årige | E275: ='Udgifter til figur'!C52 -> 324253 | F275: ='Udgifter til figur'!D52 -> 320763 | G275: ='Udgifter til figur'!E52 -> 317133 | H275: ='Udgifter til figur'!F52 -> 313900 | I275: ='Udgifter til figur'!G52 -> 313117 | J275: ='Udgifter til figur'!H52 -> 313598
A276: Hele landet | E276: ='Udgifter til figur'!C53 ->  | F276: ='Udgifter til figur'!D53 ->  | G276: ='Udgifter til figur'!E53 ->  | H276: ='Udgifter til figur'!F53 ->  | I276: ='Udgifter til figur'!G53 ->  | J276: ='Udgifter til figur'!H53 -> 
A277: Udgifter pr. barn | E277: ='Udgifter til figur'!C54 -> 3241.943752 | F277: ='Udgifter til figur'!D54 -> 3343.272435 | G277: ='Udgifter til figur'!E54 -> 3433.485089 | H277: ='Udgifter til figur'!F54 -> 3642.40429 | I277: ='Udgifter til figur'!G54 -> 3919.472994 | J277: ='Udgifter til figur'!H54 -> 4193.598495
A278: Antal 0-22-årige | E278: ='Udgifter til figur'!C55 -> 1537130 | F278: ='Udgifter til figur'!D55 -> 1527804 | G278: ='Udgifter til figur'!E55 -> 1518885 | H278: ='Udgifter til figur'!F55 -> 1510267 | I278: ='Udgifter til figur'!G55 -> 1510040 | J278: ='Udgifter til figur'!H55 -> 1516081
A279: Anm.: Antal børn er defineret som antallet af 0-22 årige pr. 1. januar i regnskabsåret.
A280: Note: Udgifterne er defineret som art>0. De valgte sammenligningskommuner er Assens Ballerup
A281: Kilde: Danmarks Statistik.
A309: ="Udgiftsfordeling for "&fordeling_tekst&"" -> Udgiftsfordeling for Fredericia
A311: ="Figur: Fordeling af serviceudgifter for "&fordeling_tekst&"" -> Figur: Fordeling af serviceudgifter for Fredericia
A337: ="Note: Udgifterne er defineret som art>0. " -> Note: Udgifterne er defineret som art>0.
A338: Kilde: Danmarks Statistik
A341: ="Tabel: Fordeling af serviceudgifter for "&fordeling_tekst&"" -> Tabel: Fordeling af serviceudgifter for Fredericia
E342: ='Udgifter til figur'!C60 -> 2018 | F342: ='Udgifter til figur'!D60 -> 2019 | G342: ='Udgifter til figur'!E60 -> 2020 | H342: ='Udgifter til figur'!F60 -> 2021 | I342: ='Udgifter til figur'!G60 -> 2022 | J342: ='Udgifter til figur'!H60 -> 2023
A343: =""&fordeling_tekst&"" -> Fredericia | E343: ='Udgifter til figur'!C61 ->  | F343: ='Udgifter til figur'!D61 ->  | G343: ='Udgifter til figur'!E61 ->  | H343: ='Udgifter til figur'!F61 ->  | I343: ='Udgifter til figur'!G61 ->  | J343: ='Udgifter til figur'!H61 -> 
A344: Trin 2: Forebyggende indsatser | E344: ='Udgifter til figur'!C62 -> 0.0103193258 | F344: ='Udgifter til figur'!D62 -> 0.01649876038 | G344: ='Udgifter til figur'!E62 -> 0.01217700656 | H344: ='Udgifter til figur'!F62 -> 0.009678682655 | I344: ='Udgifter til figur'!G62 -> 0.01167754064 | J344: ='Udgifter til figur'!H62 -> 0.009177533205
A345: Trin 3: Hjemmebaserede foranstaltninger | E345: ='Udgifter til figur'!C63 -> 0.1764318065 | F345: ='Udgifter til figur'!D63 -> 0.1490201094 | G345: ='Udgifter til figur'!E63 -> 0.1975381064 | H345: ='Udgifter til figur'!F63 -> 0.1986554277 | I345: ='Udgifter til figur'!G63 -> 0.2113531645 | J345: ='Udgifter til figur'!H63 -> 0.21512719
A346: Trin 4: Slægt- eller netværkspleje | E346: ='Udgifter til figur'!C64 -> 0.01422729271 | F346: ='Udgifter til figur'!D64 -> 0.01317342883 | G346: ='Udgifter til figur'!E64 -> 0.01922585651 | H346: ='Udgifter til figur'!F64 -> 0.01724073625 | I346: ='Udgifter til figur'!G64 -> 0.01380810203 | J346: ='Udgifter til figur'!H64 -> 0.01363917039
A347: Trin 5: Familiepleje | E347: ='Udgifter til figur'!C65 -> 0.3492709587 | F347: ='Udgifter til figur'!D65 -> 0.350615875 | G347: ='Udgifter til figur'!E65 -> 0.3404831064 | H347: ='Udgifter til figur'!F65 -> 0.3516588031 | I347: ='Udgifter til figur'!G65 -> 0.3193482989 | J347: ='Udgifter til figur'!H65 -> 0.2970409115
A348: Trin 6: Institutionsanbringelser | E348: ='Udgifter til figur'!C66 -> 0.2005102333 | F348: ='Udgifter til figur'!D66 -> 0.2057376727 | G348: ='Udgifter til figur'!E66 -> 0.1616126255 | H348: ='Udgifter til figur'!F66 -> 0.1566678478 | I348: ='Udgifter til figur'!G66 -> 0.2124295035 | J348: ='Udgifter til figur'!H66 -> 0.2503178235
A349: Ikke-trinspecifikke grupperinger | E349: ='Udgifter til figur'!C67 -> 0.249240383 | F349: ='Udgifter til figur'!D67 -> 0.2649541537 | G349: ='Udgifter til figur'!E67 -> 0.2689632987 | H349: ='Udgifter til figur'!F67 -> 0.2660985025 | I349: ='Udgifter til figur'!G67 -> 0.2313833905 | J349: ='Udgifter til figur'!H67 -> 0.2146973714
A350: I alt | E350: ='Udgifter til figur'!C68 -> 1 | F350: ='Udgifter til figur'!D68 -> 1 | G350: ='Udgifter til figur'!E68 -> 1 | H350: ='Udgifter til figur'!F68 -> 1 | I350: ='Udgifter til figur'!G68 -> 1 | J350: ='Udgifter til figur'!H68 -> 1
A351: ="Note: Udgifterne er defineret som art>0. " -> Note: Udgifterne er defineret som art>0.
A352: Kilde: Danmarks Statistik
A387: Udgiftsfordeling på tværs af aktører
A389: ="Figur: Andel udgifter til "&fordeling_trin_tekst&"" -> Figur: Andel udgifter til Trin 3: Hjemmebaserede foranstaltninger
A414: ="Note: Udgifterne er defineret som art>0. De valgte sammenligningskommuner er "&Samkom1&" "&Samkom2&" "&Samkom3&" "&Samkom4&" "&Samkom5&" "&Samkom6&" "&Samkom7&" "&Samkom8&" "&Samkom9&" "&Samkom10&" "&Samkom11&" "&Samkom12&" "&Samkom13&" "&Samkom14&" "&Samkom15&" "&Samkom16&" "&Samkom17&" "&Samkom18&" " -> Note: Udgifterne er defineret som art>0. De valgte sammenligningskommuner er Aarhus
A415: Kilde: Danmarks Statistik
A418: ="Tabel: Andel udgifter til "&fordeling_trin_tekst&"" -> Tabel: Andel udgifter til Trin 3: Hjemmebaserede foranstaltninger
E419: ='Udgifter til figur'!C73 -> 2018 | F419: ='Udgifter til figur'!D73 -> 2019 | G419: ='Udgifter til figur'!E73 -> 2020 | H419: ='Udgifter til figur'!F73 -> 2021 | I419: ='Udgifter til figur'!G73 -> 2022 | J419: ='Udgifter til figur'!H73 -> 2023
A420: =""&Kommune&"" -> Fredericia | E420: ='Udgifter til figur'!C74 ->  | F420: ='Udgifter til figur'!D74 ->  | G420: ='Udgifter til figur'!E74 ->  | H420: ='Udgifter til figur'!F74 ->  | I420: ='Udgifter til figur'!G74 ->  | J420: ='Udgifter til figur'!H74 -> 
A421: ="Andel udgifter til "&fordeling_trin_tekst&"" -> Andel udgifter til Trin 3: Hjemmebaserede foranstaltninger | E421: ='Udgifter til figur'!C75 -> 0.1764318065 | F421: ='Udgifter til figur'!D75 -> 0.1490201094 | G421: ='Udgifter til figur'!E75 -> 0.1975381064 | H421: ='Udgifter til figur'!F75 -> 0.1986554277 | I421: ='Udgifter til figur'!G75 -> 0.2113531645 | J421: ='Udgifter til figur'!H75 -> 0.21512719
A422: Sammenligningsgruppe, gns. | E422: ='Udgifter til figur'!C76 ->  | F422: ='Udgifter til figur'!D76 ->  | G422: ='Udgifter til figur'!E76 ->  | H422: ='Udgifter til figur'!F76 ->  | I422: ='Udgifter til figur'!G76 ->  | J422: ='Udgifter til figur'!H76 -> 
A423: ="Andel udgifter til "&fordeling_trin_tekst&"" -> Andel udgifter til Trin 3: Hjemmebaserede foranstaltninger | E423: ='Udgifter til figur'!C77 -> 0.437786754 | F423: ='Udgifter til figur'!D77 -> 0.4421898799 | G423: ='Udgifter til figur'!E77 -> 0.4436614256 | H423: ='Udgifter til figur'!F77 -> 0.4636047244 | I423: ='Udgifter til figur'!G77 -> 0.4895279233 | J423: ='Udgifter til figur'!H77 -> 0.4840039766
A424: =""&Region&"" -> Syddanmark | E424: ='Udgifter til figur'!C78 ->  | F424: ='Udgifter til figur'!D78 ->  | G424: ='Udgifter til figur'!E78 ->  | H424: ='Udgifter til figur'!F78 ->  | I424: ='Udgifter til figur'!G78 ->  | J424: ='Udgifter til figur'!H78 -> 
A425: ="Andel udgifter til "&fordeling_trin_tekst&"" -> Andel udgifter til Trin 3: Hjemmebaserede foranstaltninger | E425: ='Udgifter til figur'!C79 -> 0.3088974087 | F425: ='Udgifter til figur'!D79 -> 0.3055747733 | G425: ='Udgifter til figur'!E79 -> 0.3034771047 | H425: ='Udgifter til figur'!F79 -> 0.3092078735 | I425: ='Udgifter til figur'!G79 -> 0.30355544 | J425: ='Udgifter til figur'!H79 -> 0.305262143
A426: Hele landet | E426: ='Udgifter til figur'!C80 ->  | F426: ='Udgifter til figur'!D80 ->  | G426: ='Udgifter til figur'!E80 ->  | H426: ='Udgifter til figur'!F80 ->  | I426: ='Udgifter til figur'!G80 ->  | J426: ='Udgifter til figur'!H80 -> 
A427: ="Andel udgifter til "&fordeling_trin_tekst&"" -> Andel udgifter til Trin 3: Hjemmebaserede foranstaltninger | E427: ='Udgifter til figur'!C81 -> 0.3505486123 | F427: ='Udgifter til figur'!D81 -> 0.3558347646 | G427: ='Udgifter til figur'!E81 -> 0.3564314731 | H427: ='Udgifter til figur'!F81 -> 0.3590012683 | I427: ='Udgifter til figur'!G81 -> 0.3632820273 | J427: ='Udgifter til figur'!H81 -> 0.3654561408
A428: ="Note: Udgifterne er defineret som art>0. De valgte sammenligningskommuner er "&Samkom1&" "&Samkom2&" "&Samkom3&" "&Samkom4&" "&Samkom5&" "&Samkom6&" "&Samkom7&" "&Samkom8&" "&Samkom9&" "&Samkom10&" "&Samkom11&" "&Samkom12&" "&Samkom13&" "&Samkom14&" "&Samkom15&" "&Samkom16&" "&Samkom17&" "&Samkom18&" " -> Note: Udgifterne er defineret som art>0. De valgte sammenligningskommuner er Aarhus
A429: Kilde: Danmarks Statistik
A464: Udgiftsændring
A466: Merudgifter for service, administration og i alt
A468: ="Figur: Merudgifter for service, administration og i alt for "&Kommune&", 1.000 kr., "&Prisår&"-priser" -> Figur: Merudgifter for service, administration og i alt for Fredericia, 1.000 kr., 2023-priser
A487: ="Note: Merudgifterne er beregnet ud fra basisperioden "&Start&"-"&Slut&". Note: Udgifterne er defineret som art>0 og ekskl. refusioner." -> Note: Merudgifterne er beregnet ud fra basisperioden 2018-2020. Note: Udgifterne er defineret som art>0 og ekskl. refusioner.
A491: ="Tabel: Merudgifter for service, administration og i alt for "&Kommune&", 1.000 kr., "&Prisår&"-priser" -> Tabel: Merudgifter for service, administration og i alt for Fredericia, 1.000 kr., 2023-priser | J491: =Analyse!G37 -> 
F492: =Analyse!C37 -> 2021 | G492: =Analyse!D37 -> 2022 | H492: =Analyse!E37 -> 2023 | I492: =Analyse!F37 ->  | J492: =Analyse!G37 -> 
A493: I alt | F493: =Analyse!C38 -> -2067.400618 | G493: =Analyse!D38 -> 17183.4897 | H493: =Analyse!E38 -> 33326.4257 | I493: =Analyse!F38 ->  | J493: =Analyse!G38 -> 
A494: Administration | F494: =Analyse!C39 -> 1450.34873 | G494: =Analyse!D39 -> 3750.017626 | H494: =Analyse!E39 -> 9122.537626 | I494: =Analyse!F39 ->  | J494: =Analyse!G39 -> 
A495: Service | F495: =Analyse!C40 -> -3517.749348 | G495: =Analyse!D40 -> 13433.47207 | H495: =Analyse!E40 -> 24203.88807 | I495: =Analyse!F40 ->  | J495: =Analyse!G40 -> 
A496: ="Note: Merudgifterne er beregnet ud fra basisperioden "&Start&"-"&Slut&". Note: Udgifterne er defineret som art>0 og ekskl. refusioner." -> Note: Merudgifterne er beregnet ud fra basisperioden 2018-2020. Note: Udgifterne er defineret som art>0 og ekskl. refusioner.
A540: Udgiftsændring
A542: ="Merudgifter indenfor og udenfor indsatstrappen "&Kommune&"" -> Merudgifter indenfor og udenfor indsatstrappen Fredericia
A544: ="Figur: Merudgifter fordelt på indsatstrappen, 1.000 kr., "&Prisår&"-priser" -> Figur: Merudgifter fordelt på indsatstrappen, 1.000 kr., 2023-priser
A561: ="Note: Merudgifterne er beregnet ud fra basisperioden "&Start&"-"&Slut&". Note: Udgifterne er defineret som art>0 og ekskl. refusioner." -> Note: Merudgifterne er beregnet ud fra basisperioden 2018-2020. Note: Udgifterne er defineret som art>0 og ekskl. refusioner.
A567: ="Figur: Merudgifter for ikke-trinspecifikke grupperinger og refusion, 1.000 kr., "&Prisår&"-priser" -> Figur: Merudgifter for ikke-trinspecifikke grupperinger og refusion, 1.000 kr., 2023-priser
A584: ="Note: Merudgifterne er beregnet ud fra basisperioden "&Start&"-"&Slut&". Note: Udgifterne er defineret som art>0 og ekskl. refusioner." -> Note: Merudgifterne er beregnet ud fra basisperioden 2018-2020. Note: Udgifterne er defineret som art>0 og ekskl. refusioner.
A587: ="Tabel: Merudgifter indenfor og udenfor indsatstrappen, 1.000 kr., "&Prisår&"-priser" -> Tabel: Merudgifter indenfor og udenfor indsatstrappen, 1.000 kr., 2023-priser | J587: =Analyse!G86 -> 
F588: =Analyse!C86 -> 2021 | G588: =Analyse!D86 -> 2022 | H588: =Analyse!E86 -> 2023 | I588: =Analyse!F86 ->  | J588: =Analyse!G86 -> 
A589: Indenfor indsatstrappen | F589: =Analyse!C87 ->  | G589: =Analyse!D87 ->  | H589: =Analyse!E87 ->  | I589: =Analyse!F87 ->  | J589: =Analyse!G87 -> 
A590: Trin 2: Forebyggende indsatser | F590: =Analyse!C88 -> -381.2730226 | G590: =Analyse!D88 -> 140.5336094 | H590: =Analyse!E88 -> 28.18160936 | I590: =Analyse!F88 ->  | J590: =Analyse!G88 -> 
A591: Trin 3: Hjemmebaserede foranstaltninger | F591: =Analyse!C89 -> 2670.849868 | G591: =Analyse!D89 -> 9430.684888 | H591: =Analyse!E89 -> 15494.95289 | I591: =Analyse!F89 ->  | J591: =Analyse!G89 -> 
A592: Trin 4: Slægt- eller netværkspleje | F592: =Analyse!C90 -> 185.9674248 | G592: =Analyse!D90 -> 140.3108608 | H592: =Analyse!E90 -> 467.8668608 | I592: =Analyse!F90 ->  | J592: =Analyse!G90 -> 
A593: Trin 5: Familiepleje | F593: =Analyse!C91 -> 372.6567452 | G593: =Analyse!D91 -> 4699.079041 | H593: =Analyse!E91 -> 9235.175041 | I593: =Analyse!F91 ->  | J593: =Analyse!G91 -> 
A594: Trin 6: Institutionsanbringelser | F594: =Analyse!C92 -> -3831.827379 | G594: =Analyse!D92 -> 7878.455749 | H594: =Analyse!E92 -> 19605.63575 | I594: =Analyse!F92 ->  | J594: =Analyse!G92 -> 
A595: Udenfor indsatstrappen | F595: =Analyse!C93 ->  | G595: =Analyse!D93 ->  | H595: =Analyse!E93 ->  | I595: =Analyse!F93 ->  | J595: =Analyse!G93 -> 
A596: Ikke-trinspecifikke grupperinger | F596: =Analyse!C94 -> 454.2495988 | G596: =Analyse!D94 -> 2296.522231 | H596: =Analyse!E94 -> 5496.714231 | I596: =Analyse!F94 ->  | J596: =Analyse!G94 -> 
A597: Refusioner | F597: =Analyse!C95 -> -2988.372583 | G597: =Analyse!D95 -> -11152.11431 | H597: =Analyse!E95 -> -26124.63831 | I597: =Analyse!F95 ->  | J597: =Analyse!G95 -> 
A598: ="Note: Merudgifterne er beregnet ud fra basisperioden "&Start&"-"&Slut&". Note: Udgifterne er defineret som art>0 og ekskl. refusioner." -> Note: Merudgifterne er beregnet ud fra basisperioden 2018-2020. Note: Udgifterne er defineret som art>0 og ekskl. refusioner.

Sheet PL
B3: Beregning af pris- og lønregulering
B5: På denne side kan du se deflatoren, der bruges til regulering af de enkelte prisår. Deflatoren er baseret på den kommunale service-PL, som kan findes på: https://www.kl.dk/media/xt4f1yqq/pl-skema-juni-2024.pdf. Bemærk, at du selv skal vælge prisåret, som du ønsker at regne med på "Dine valg"-siden.
B9: Den kommunale service-PL | F9: ="Prisår: "&Prisår -> Prisår: 2023
B10: Regulering | C10: År, der skal reguleres | D10: PL | E10: Fremskrivningsfaktor | F10: Deflator
B11: =C11&" - "&C11+1 -> 2018 - 2019 | C11: 2018 | D11: 1.6 | E11: =D11/100+1 -> 1.016 | F11: =PRODUCT($E$11:$E$15) -> 1.124623761
B12: 2019 - 2020 | C12: =C11+1 -> 2019 | D12: 2.3 | E12: 1.023 | F12: =PRODUCT($E$12:$E$15) -> 1.10691315
B13: 2020 - 2021 | C13: =C12+1 -> 2020 | D13: 1.5 | E13: 1.015 | F13: =PRODUCT($E$13:$E$15) -> 1.08202654
B14: 2021 - 2022 | C14: =C13+1 -> 2021 | D14: 3.7 | E14: 1.037 | F14: =PRODUCT($E$14:$E$15) -> 1.066036
B15: 2022 - 2023 | C15: 2022 | D15: 2.8 | E15: 1.028 | F15: =PRODUCT($E$15:$E$15) -> 1.028
B16: 2023 - 2024 | C16: 2023 | D16: 4.5 | E16: 1.045 | F16: 1
B17: 2024 - 2025 | C17: 2024 | D17: 3.9 | E17: 1.039 | F17: 1.005774783
B19: Anm.: PL er opdateret med PL-skema fra juni 2024.

Sheet Udgifter til figur
B1: Udgifter til figur
B3: Udgiftsudvikling
B5: Udgifter til service, administration og i alt
C6: ='Dine valg'!$J$10 -> 2018 | D6: ='Dine valg'!$J$11 -> 2019 | E6: ='Dine valg'!$J$12 -> 2020 | F6: ='Dine valg'!$J$13 -> 2021 | G6: ='Dine valg'!$J$14 -> 2022 | H6: ='Dine valg'!$J$15 -> 2023 | I6: ='Dine valg'!$J$16 ->  | J6: ='Dine valg'!$K$10 ->  | K6: ='Dine valg'!$K$11 ->  | L6: ='Dine valg'!$K$12 ->  | M6: ='Dine valg'!$K$13 ->  | N6: ='Dine valg'!$K$14 ->  | O6: ='Dine valg'!$K$15 ->  | P6: ='Dine valg'!$K$16 ->  | Q6: ='Dine valg'!$L$10 ->  | R6: ='Dine valg'!$L$11 ->  | S6: ='Dine valg'!$L$12 ->  | T6: ='Dine valg'!$L$13 ->  | U6: ='Dine valg'!$L$14 ->  | V6: ='Dine valg'!$L$15 ->  | W6: ='Dine valg'!$L$16 -> 
B7: =""&alle_aar_tekst_valg&"" -> Fredericia | C7: ="" ->  | D7: ="" ->  | E7: ="" ->  | F7: ="" ->  | G7: ="" ->  | H7: ="" ->  | I7: ="" ->  | J7: ="" ->  | K7: ="" ->  | L7: ="" ->  | M7: ="" ->  | N7: ="" ->  | O7: ="" ->  | P7: ="" ->  | Q7: ="" -> 
B8: I alt | C8: =IF(C6="","",IF(C6='2024'!$B$2,(IF(alle_aar_valg=1,Samlede_NDU*INDEX(PL!$F$11:$F$57,MATCH(C6,PL!$C$11:$C$57,0)),"Kan ikke vises")),IF(alle_aar_valg=1,INDIRECT(C6&"!Samlede_NDU")*INDEX(PL!$F$11:$F$57,MATCH(C6,PL!$C$11:$C$57,0)),IF(alle_aar_valg=2,INDIRECT(C6&"_sam!Samlede_NDU_sam")*INDEX(PL!$F$11:$F$57,MATCH(C6,PL!$C$11:$C$57,0)),IF(alle_aar_valg=3,INDIRECT(C6&"_sam!Samlede_NDU_reg")*INDEX(PL!$F$11:$F$57,MATCH(C6,PL!$C$11:$C$57,0)),INDIRECT(C6&"_sam!Samlede_NDU")*INDEX(PL!$F$11:$F$57,MATCH(C6,PL!$C$11:$C$57,0))))))) -> 137134.3721 | D8: =IF(D6="","",IF(D6='2024'!$B$2,(IF(alle_aar_valg=1,Samlede_NDU*INDEX(PL!$F$11:$F$57,MATCH(D6,PL!$C$11:$C$57,0)),"Kan ikke vises")),IF(alle_aar_valg=1,INDIRECT(D6&"!Samlede_NDU")*INDEX(PL!$F$11:$F$57,MATCH(D6,PL!$C$11:$C$57,0)),IF(alle_aar_valg=2,INDIRECT(D6&"_sam!Samlede_NDU_sam")*INDEX(PL!$F$11:$F$57,MATCH(D6,PL!$C$11:$C$57,0)),IF(alle_aar_valg=3,INDIRECT(D6&"_sam!Samlede_NDU_reg")*INDEX(PL!$F$11:$F$57,MATCH(D6,PL!$C$11:$C$57,0)),INDIRECT(D6&"_sam!Samlede_NDU")*INDEX(PL!$F$11:$F$57,MATCH(D6,PL!$C$11:$C$57,0))))))) -> 129393.7196 | E8: =IF(E6="","",IF(E6='2024'!$B$2,(IF(alle_aar_valg=1,Samlede_NDU*INDEX(PL!$F$11:$F$57,MATCH(E6,PL!$C$11:$C$57,0)),"Kan ikke vises")),IF(alle_aar_valg=1,INDIRECT(E6&"!Samlede_NDU")*INDEX(PL!$F$11:$F$57,MATCH(E6,PL!$C$11:$C$57,0)),IF(alle_aar_valg=2,INDIRECT(E6&"_sam!Samlede_NDU_sam")*INDEX(PL!$F$11:$F$57,MATCH(E6,PL!$C$11:$C$57,0)),IF(alle_aar_valg=3,INDIRECT(E6&"_sam!Samlede_NDU_reg")*INDEX(PL!$F$11:$F$57,MATCH(E6,PL!$C$11:$C$57,0)),INDIRECT(E6&"_sam!Samlede_NDU")*INDEX(PL!$F$11:$F$57,MATCH(E6,PL!$C$11:$C$57,0))))))) -> 132302.6311 | F8: =IF(F6="","",IF(F6='2024'!$B$2,(IF(alle_aar_valg=1,Samlede_NDU*INDEX(PL!$F$11:$F$57,MATCH(F6,PL!$C$11:$C$57,0)),"Kan ikke vises")),IF(alle_aar_valg=1,INDIRECT(F6&"!Samlede_NDU")*INDEX(PL!$F$11:$F$57,MATCH(F6,PL!$C$11:$C$57,0)),IF(alle_aar_valg=2,INDIRECT(F6&"_sam!Samlede_NDU_sam")*INDEX(PL!$F$11:$F$57,MATCH(F6,PL!$C$11:$C$57,0)),IF(alle_aar_valg=3,INDIRECT(F6&"_sam!Samlede_NDU_reg")*INDEX(PL!$F$11:$F$57,MATCH(F6,PL!$C$11:$C$57,0)),INDIRECT(F6&"_sam!Samlede_NDU")*INDEX(PL!$F$11:$F$57,MATCH(F6,PL!$C$11:$C$57,0))))))) -> 130876.1737 | G8: =IF(G6="","",IF(G6='2024'!$B$2,(IF(alle_aar_valg=1,Samlede_NDU*INDEX(PL!$F$11:$F$57,MATCH(G6,PL!$C$11:$C$57,0)),"Kan ikke vises")),IF(alle_aar_valg=1,INDIRECT(G6&"!Samlede_NDU")*INDEX(PL!$F$11:$F$57,MATCH(G6,PL!$C$11:$C$57,0)),IF(alle_aar_valg=2,INDIRECT(G6&"_sam!Samlede_NDU_sam")*INDEX(PL!$F$11:$F$57,MATCH(G6,PL!$C$11:$C$57,0)),IF(alle_aar_valg=3,INDIRECT(G6&"_sam!Samlede_NDU_reg")*INDEX(PL!$F$11:$F$57,MATCH(G6,PL!$C$11:$C$57,0)),INDIRECT(G6&"_sam!Samlede_NDU")*INDEX(PL!$F$11:$F$57,MATCH(G6,PL!$C$11:$C$57,0))))))) -> 150127.064 | H8: =IF(H6="","",IF(H6='2024'!$B$2,(IF(alle_aar_valg=1,Samlede_NDU*INDEX(PL!$F$11:$F$57,MATCH(H6,PL!$C$11:$C$57,0)),"Kan ikke vises")),IF(alle_aar_valg=1,INDIRECT(H6&"!Samlede_NDU")*INDEX(PL!$F$11:$F$57,MATCH(H6,PL!$C$11:$C$57,0)),IF(alle_aar_valg=2,INDIRECT(H6&"_sam!Samlede_NDU_sam")*INDEX(PL!$F$11:$F$57,MATCH(H6,PL!$C$11:$C$57,0)),IF(alle_aar_valg=3,INDIRECT(H6&"_sam!Samlede_NDU_reg")*INDEX(PL!$F$11:$F$57,MATCH(H6,PL!$C$11:$C$57,0)),INDIRECT(H6&"_sam!Samlede_NDU")*INDEX(PL!$F$11:$F$57,MATCH(H6,PL!$C$11:$C$57,0))))))) -> 166270 | I8: =IF(I6="","",IF(I6='2024'!$B$2,(IF(alle_aar_valg=1,Samlede_NDU*INDEX(PL!$F$11:$F$57,MATCH(I6,PL!$C$11:$C$57,0)),"Kan ikke vises")),IF(alle_aar_valg=1,INDIRECT(I6&"!Samlede_NDU")*INDEX(PL!$F$11:$F$57,MATCH(I6,PL!$C$11:$C$57,0)),IF(alle_aar_valg=2,INDIRECT(I6&"_sam!Samlede_NDU_sam")*INDEX(PL!$F$11:$F$57,MATCH(I6,PL!$C$11:$C$57,0)),IF(alle_aar_valg=3,INDIRECT(I6&"_sam!Samlede_NDU_reg")*INDEX(PL!$F$11:$F$57,MATCH(I6,PL!$C$11:$C$57,0)),INDIRECT(I6&"_sam!Samlede_NDU")*INDEX(PL!$F$11:$F$57,MATCH(I6,PL!$C$11:$C$57,0))))))) ->  | J8: =IF(J6="","",IF(J6='2024'!$B$2,(IF(alle_aar_valg=1,Samlede_NDU*INDEX(PL!$F$11:$F$57,MATCH(J6,PL!$C$11:$C$57,0)),"Kan ikke vises")),IF(alle_aar_valg=1,INDIRECT(J6&"!Samlede_NDU")*INDEX(PL!$F$11:$F$57,MATCH(J6,PL!$C$11:$C$57,0)),IF(alle_aar_valg=2,INDIRECT(J6&"_sam!Samlede_NDU_sam")*INDEX(PL!$F$11:$F$57,MATCH(J6,PL!$C$11:$C$57,0)),IF(alle_aar_valg=3,INDIRECT(J6&"_sam!Samlede_NDU_reg")*INDEX(PL!$F$11:$F$57,MATCH(J6,PL!$C$11:$C$57,0)),INDIRECT(J6&"_sam!Samlede_NDU")*INDEX(PL!$F$11:$F$57,MATCH(J6,PL!$C$11:$C$57,0))))))) ->  | K8: =IF(K6="","",IF(K6='2024'!$B$2,(IF(alle_aar_valg=1,Samlede_NDU*INDEX(PL!$F$11:$F$57,MATCH(K6,PL!$C$11:$C$57,0)),"Kan ikke vises")),IF(alle_aar_valg=1,INDIRECT(K6&"!Samlede_NDU")*INDEX(PL!$F$11:$F$57,MATCH(K6,PL!$C$11:$C$57,0)),IF(alle_aar_valg=2,INDIRECT(K6&"_sam!Samlede_NDU_sam")*INDEX(PL!$F$11:$F$57,MATCH(K6,PL!$C$11:$C$57,0)),IF(alle_aar_valg=3,INDIRECT(K6&"_sam!Samlede_NDU_reg")*INDEX(PL!$F$11:$F$57,MATCH(K6,PL!$C$11:$C$57,0)),INDIRECT(K6&"_sam!Samlede_NDU")*INDEX(PL!$F$11:$F$57,MATCH(K6,PL!$C$11:$C$57,0))))))) ->  | L8: =IF(L6="","",IF(L6='2024'!$B$2,(IF(alle_aar_valg=1,Samlede_NDU*INDEX(PL!$F$11:$F$57,MATCH(L6,PL!$C$11:$C$57,0)),"Kan ikke vises")),IF(alle_aar_valg=1,INDIRECT(L6&"!Samlede_NDU")*INDEX(PL!$F$11:$F$57,MATCH(L6,PL!$C$11:$C$57,0)),IF(alle_aar_valg=2,INDIRECT(L6&"_sam!Samlede_NDU_sam")*INDEX(PL!$F$11:$F$57,MATCH(L6,PL!$C$11:$C$57,0)),IF(alle_aar_valg=3,INDIRECT(L6&"_sam!Samlede_NDU_reg")*INDEX(PL!$F$11:$F$57,MATCH(L6,PL!$C$11:$C$57,0)),INDIRECT(L6&"_sam!Samlede_NDU")*INDEX(PL!$F$11:$F$57,MATCH(L6,PL!$C$11:$C$57,0))))))) ->  | M8: =IF(M6="","",IF(M6='2024'!$B$2,(IF(alle_aar_valg=1,Samlede_NDU*INDEX(PL!$F$11:$F$57,MATCH(M6,PL!$C$11:$C$57,0)),"Kan ikke vises")),IF(alle_aar_valg=1,INDIRECT(M6&"!Samlede_NDU")*INDEX(PL!$F$11:$F$57,MATCH(M6,PL!$C$11:$C$57,0)),IF(alle_aar_valg=2,INDIRECT(M6&"_sam!Samlede_NDU_sam")*INDEX(PL!$F$11:$F$57,MATCH(M6,PL!$C$11:$C$57,0)),IF(alle_aar_valg=3,INDIRECT(M6&"_sam!Samlede_NDU_reg")*INDEX(PL!$F$11:$F$57,MATCH(M6,PL!$C$11:$C$57,0)),INDIRECT(M6&"_sam!Samlede_NDU")*INDEX(PL!$F$11:$F$57,MATCH(M6,PL!$C$11:$C$57,0))))))) ->  | N8: =IF(N6="","",IF(N6='2024'!$B$2,(IF(alle_aar_valg=1,Samlede_NDU*INDEX(PL!$F$11:$F$57,MATCH(N6,PL!$C$11:$C$57,0)),"Kan ikke vises")),IF(alle_aar_valg=1,INDIRECT(N6&"!Samlede_NDU")*INDEX(PL!$F$11:$F$57,MATCH(N6,PL!$C$11:$C$57,0)),IF(alle_aar_valg=2,INDIRECT(N6&"_sam!Samlede_NDU_sam")*INDEX(PL!$F$11:$F$57,MATCH(N6,PL!$C$11:$C$57,0)),IF(alle_aar_valg=3,INDIRECT(N6&"_sam!Samlede_NDU_reg")*INDEX(PL!$F$11:$F$57,MATCH(N6,PL!$C$11:$C$57,0)),INDIRECT(N6&"_sam!Samlede_NDU")*INDEX(PL!$F$11:$F$57,MATCH(N6,PL!$C$11:$C$57,0))))))) ->  | O8: =IF(O6="","",IF(O6='2024'!$B$2,(IF(alle_aar_valg=1,Samlede_NDU*INDEX(PL!$F$11:$F$57,MATCH(O6,PL!$C$11:$C$57,0)),"Kan ikke vises")),IF(alle_aar_valg=1,INDIRECT(O6&"!Samlede_NDU")*INDEX(PL!$F$11:$F$57,MATCH(O6,PL!$C$11:$C$57,0)),IF(alle_aar_valg=2,INDIRECT(O6&"_sam!Samlede_NDU_sam")*INDEX(PL!$F$11:$F$57,MATCH(O6,PL!$C$11:$C$57,0)),IF(alle_aar_valg=3,INDIRECT(O6&"_sam!Samlede_NDU_reg")*INDEX(PL!$F$11:$F$57,MATCH(O6,PL!$C$11:$C$57,0)),INDIRECT(O6&"_sam!Samlede_NDU")*INDEX(PL!$F$11:$F$57,MATCH(O6,PL!$C$11:$C$57,0))))))) ->  | P8: =IF(P6="","",IF(P6='2024'!$B$2,(IF(alle_aar_valg=1,Samlede_NDU*INDEX(PL!$F$11:$F$57,MATCH(P6,PL!$C$11:$C$57,0)),"Kan ikke vises")),IF(alle_aar_valg=1,INDIRECT(P6&"!Samlede_NDU")*INDEX(PL!$F$11:$F$57,MATCH(P6,PL!$C$11:$C$57,0)),IF(alle_aar_valg=2,INDIRECT(P6&"_sam!Samlede_NDU_sam")*INDEX(PL!$F$11:$F$57,MATCH(P6,PL!$C$11:$C$57,0)),IF(alle_aar_valg=3,INDIRECT(P6&"_sam!Samlede_NDU_reg")*INDEX(PL!$F$11:$F$57,MATCH(P6,PL!$C$11:$C$57,0)),INDIRECT(P6&"_sam!Samlede_NDU")*INDEX(PL!$F$11:$F$57,MATCH(P6,PL!$C$11:$C$57,0))))))) ->  | Q8: =IF(Q6="","",IF(Q6='2024'!$B$2,(IF(alle_aar_valg=1,Samlede_NDU*INDEX(PL!$F$11:$F$57,MATCH(Q6,PL!$C$11:$C$57,0)),"Kan ikke vises")),IF(alle_aar_valg=1,INDIRECT(Q6&"!Samlede_NDU")*INDEX(PL!$F$11:$F$57,MATCH(Q6,PL!$C$11:$C$57,0)),IF(alle_aar_valg=2,INDIRECT(Q6&"_sam!Samlede_NDU_sam")*INDEX(PL!$F$11:$F$57,MATCH(Q6,PL!$C$11:$C$57,0)),IF(alle_aar_valg=3,INDIRECT(Q6&"_sam!Samlede_NDU_reg")*INDEX(PL!$F$11:$F$57,MATCH(Q6,PL!$C$11:$C$57,0)),INDIRECT(Q6&"_sam!Samlede_NDU")*INDEX(PL!$F$11:$F$57,MATCH(Q6,PL!$C$11:$C$57,0))))))) ->  | R8: =IF(R6="","",IF(R6='2024'!$B$2,(IF(alle_aar_valg=1,Samlede_NDU*INDEX(PL!$F$11:$F$57,MATCH(R6,PL!$C$11:$C$57,0)),"Kan ikke vises")),IF(alle_aar_valg=1,INDIRECT(R6&"!Samlede_NDU")*INDEX(PL!$F$11:$F$57,MATCH(R6,PL!$C$11:$C$57,0)),IF(alle_aar_valg=2,INDIRECT(R6&"_sam!Samlede_NDU_sam")*INDEX(PL!$F$11:$F$57,MATCH(R6,PL!$C$11:$C$57,0)),IF(alle_aar_valg=3,INDIRECT(R6&"_sam!Samlede_NDU_reg")*INDEX(PL!$F$11:$F$57,MATCH(R6,PL!$C$11:$C$57,0)),INDIRECT(R6&"_sam!Samlede_NDU")*INDEX(PL!$F$11:$F$57,MATCH(R6,PL!$C$11:$C$57,0))))))) ->  | S8: =IF(S6="","",IF(S6='2024'!$B$2,(IF(alle_aar_valg=1,Samlede_NDU*INDEX(PL!$F$11:$F$57,MATCH(S6,PL!$C$11:$C$57,0)),"Kan ikke vises")),IF(alle_aar_valg=1,INDIRECT(S6&"!Samlede_NDU")*INDEX(PL!$F$11:$F$57,MATCH(S6,PL!$C$11:$C$57,0)),IF(alle_aar_valg=2,INDIRECT(S6&"_sam!Samlede_NDU_sam")*INDEX(PL!$F$11:$F$57,MATCH(S6,PL!$C$11:$C$57,0)),IF(alle_aar_valg=3,INDIRECT(S6&"_sam!Samlede_NDU_reg")*INDEX(PL!$F$11:$F$57,MATCH(S6,PL!$C$11:$C$57,0)),INDIRECT(S6&"_sam!Samlede_NDU")*INDEX(PL!$F$11:$F$57,MATCH(S6,PL!$C$11:$C$57,0))))))) ->  | T8: =IF(T6="","",IF(T6='2024'!$B$2,(IF(alle_aar_valg=1,Samlede_NDU*INDEX(PL!$F$11:$F$57,MATCH(T6,PL!$C$11:$C$57,0)),"Kan ikke vises")),IF(alle_aar_valg=1,INDIRECT(T6&"!Samlede_NDU")*INDEX(PL!$F$11:$F$57,MATCH(T6,PL!$C$11:$C$57,0)),IF(alle_aar_valg=2,INDIRECT(T6&"_sam!Samlede_NDU_sam")*INDEX(PL!$F$11:$F$57,MATCH(T6,PL!$C$11:$C$57,0)),IF(alle_aar_valg=3,INDIRECT(T6&"_sam!Samlede_NDU_reg")*INDEX(PL!$F$11:$F$57,MATCH(T6,PL!$C$11:$C$57,0)),INDIRECT(T6&"_sam!Samlede_NDU")*INDEX(PL!$F$11:$F$57,MATCH(T6,PL!$C$11:$C$57,0))))))) ->  | U8: =IF(U6="","",IF(U6='2024'!$B$2,(IF(alle_aar_valg=1,Samlede_NDU*INDEX(PL!$F$11:$F$57,MATCH(U6,PL!$C$11:$C$57,0)),"Kan ikke vises")),IF(alle_aar_valg=1,INDIRECT(U6&"!Samlede_NDU")*INDEX(PL!$F$11:$F$57,MATCH(U6,PL!$C$11:$C$57,0)),IF(alle_aar_valg=2,INDIRECT(U6&"_sam!Samlede_NDU_sam")*INDEX(PL!$F$11:$F$57,MATCH(U6,PL!$C$11:$C$57,0)),IF(alle_aar_valg=3,INDIRECT(U6&"_sam!Samlede_NDU_reg")*INDEX(PL!$F$11:$F$57,MATCH(U6,PL!$C$11:$C$57,0)),INDIRECT(U6&"_sam!Samlede_NDU")*INDEX(PL!$F$11:$F$57,MATCH(U6,PL!$C$11:$C$57,0))))))) ->  | V8: =IF(V6="","",IF(V6='2024'!$B$2,(IF(alle_aar_valg=1,Samlede_NDU*INDEX(PL!$F$11:$F$57,MATCH(V6,PL!$C$11:$C$57,0)),"Kan ikke vises")),IF(alle_aar_valg=1,INDIRECT(V6&"!Samlede_NDU")*INDEX(PL!$F$11:$F$57,MATCH(V6,PL!$C$11:$C$57,0)),IF(alle_aar_valg=2,INDIRECT(V6&"_sam!Samlede_NDU_sam")*INDEX(PL!$F$11:$F$57,MATCH(V6,PL!$C$11:$C$57,0)),IF(alle_aar_valg=3,INDIRECT(V6&"_sam!Samlede_NDU_reg")*INDEX(PL!$F$11:$F$57,MATCH(V6,PL!$C$11:$C$57,0)),INDIRECT(V6&"_sam!Samlede_NDU")*INDEX(PL!$F$11:$F$57,MATCH(V6,PL!$C$11:$C$57,0))))))) ->  | W8: =IF(W6="","",IF(W6='2024'!$B$2,(IF(alle_aar_valg=1,Samlede_NDU*INDEX(PL!$F$11:$F$57,MATCH(W6,PL!$C$11:$C$57,0)),"Kan ikke vises")),IF(alle_aar_valg=1,INDIRECT(W6&"!Samlede_NDU")*INDEX(PL!$F$11:$F$57,MATCH(W6,PL!$C$11:$C$57,0)),IF(alle_aar_valg=2,INDIRECT(W6&"_sam!Samlede_NDU_sam")*INDEX(PL!$F$11:$F$57,MATCH(W6,PL!$C$11:$C$57,0)),IF(alle_aar_valg=3,INDIRECT(W6&"_sam!Samlede_NDU_reg")*INDEX(PL!$F$11:$F$57,MATCH(W6,PL!$C$11:$C$57,0)),INDIRECT(W6&"_sam!Samlede_NDU")*INDEX(PL!$F$11:$F$57,MATCH(W6,PL!$C$11:$C$57,0))))))) -> 
B9: Administration | C9: =IF(C6="","",IF(C6='2024'!$B$2,(IF(alle_aar_valg=1,Administration*INDEX(PL!$F$11:$F$57,MATCH(C6,PL!$C$11:$C$57,0)),"Kan ikke vises")),IF(alle_aar_valg=1,INDIRECT(C6&"!Administration")*INDEX(PL!$F$11:$F$57,MATCH(C6,PL!$C$11:$C$57,0)),IF(alle_aar_valg=2,INDIRECT(C6&"_sam!Administration_sam")*INDEX(PL!$F$11:$F$57,MATCH(C6,PL!$C$11:$C$57,0)),IF(alle_aar_valg=3,INDIRECT(C6&"_sam!Administration_reg")*INDEX(PL!$F$11:$F$57,MATCH(C6,PL!$C$11:$C$57,0)),INDIRECT(C6&"_sam!Administration")*INDEX(PL!$F$11:$F$57,MATCH(C6,PL!$C$11:$C$57,0))))))) -> 22755.63718 | D9: =IF(D6="","",IF(D6='2024'!$B$2,(IF(alle_aar_valg=1,Administration*INDEX(PL!$F$11:$F$57,MATCH(D6,PL!$C$11:$C$57,0)),"Kan ikke vises")),IF(alle_aar_valg=1,INDIRECT(D6&"!Administration")*INDEX(PL!$F$11:$F$57,MATCH(D6,PL!$C$11:$C$57,0)),IF(alle_aar_valg=2,INDIRECT(D6&"_sam!Administration_sam")*INDEX(PL!$F$11:$F$57,MATCH(D6,PL!$C$11:$C$57,0)),IF(alle_aar_valg=3,INDIRECT(D6&"_sam!Administration_reg")*INDEX(PL!$F$11:$F$57,MATCH(D6,PL!$C$11:$C$57,0)),INDIRECT(D6&"_sam!Administration")*INDEX(PL!$F$11:$F$57,MATCH(D6,PL!$C$11:$C$57,0))))))) -> 21218.41818 | E9: =IF(E6="","",IF(E6='2024'!$B$2,(IF(alle_aar_valg=1,Administration*INDEX(PL!$F$11:$F$57,MATCH(E6,PL!$C$11:$C$57,0)),"Kan ikke vises")),IF(alle_aar_valg=1,INDIRECT(E6&"!Administration")*INDEX(PL!$F$11:$F$57,MATCH(E6,PL!$C$11:$C$57,0)),IF(alle_aar_valg=2,INDIRECT(E6&"_sam!Administration_sam")*INDEX(PL!$F$11:$F$57,MATCH(E6,PL!$C$11:$C$57,0)),IF(alle_aar_valg=3,INDIRECT(E6&"_sam!Administration_reg")*INDEX(PL!$F$11:$F$57,MATCH(E6,PL!$C$11:$C$57,0)),INDIRECT(E6&"_sam!Administration")*INDEX(PL!$F$11:$F$57,MATCH(E6,PL!$C$11:$C$57,0))))))) -> 21598.33176 | F9: =IF(F6="","",IF(F6='2024'!$B$2,(IF(alle_aar_valg=1,Administration*INDEX(PL!$F$11:$F$57,MATCH(F6,PL!$C$11:$C$57,0)),"Kan ikke vises")),IF(alle_aar_valg=1,INDIRECT(F6&"!Administration")*INDEX(PL!$F$11:$F$57,MATCH(F6,PL!$C$11:$C$57,0)),IF(alle_aar_valg=2,INDIRECT(F6&"_sam!Administration_sam")*INDEX(PL!$F$11:$F$57,MATCH(F6,PL!$C$11:$C$57,0)),IF(alle_aar_valg=3,INDIRECT(F6&"_sam!Administration_reg")*INDEX(PL!$F$11:$F$57,MATCH(F6,PL!$C$11:$C$57,0)),INDIRECT(F6&"_sam!Administration")*INDEX(PL!$F$11:$F$57,MATCH(F6,PL!$C$11:$C$57,0))))))) -> 23307.8111 | G9: =IF(G6="","",IF(G6='2024'!$B$2,(IF(alle_aar_valg=1,Administration*INDEX(PL!$F$11:$F$57,MATCH(G6,PL!$C$11:$C$57,0)),"Kan ikke vises")),IF(alle_aar_valg=1,INDIRECT(G6&"!Administration")*INDEX(PL!$F$11:$F$57,MATCH(G6,PL!$C$11:$C$57,0)),IF(alle_aar_valg=2,INDIRECT(G6&"_sam!Administration_sam")*INDEX(PL!$F$11:$F$57,MATCH(G6,PL!$C$11:$C$57,0)),IF(alle_aar_valg=3,INDIRECT(G6&"_sam!Administration_reg")*INDEX(PL!$F$11:$F$57,MATCH(G6,PL!$C$11:$C$57,0)),INDIRECT(G6&"_sam!Administration")*INDEX(PL!$F$11:$F$57,MATCH(G6,PL!$C$11:$C$57,0))))))) -> 25607.48 | H9: =IF(H6="","",IF(H6='2024'!$B$2,(IF(alle_aar_valg=1,Administration*INDEX(PL!$F$11:$F$57,MATCH(H6,PL!$C$11:$C$57,0)),"Kan ikke vises")),IF(alle_aar_valg=1,INDIRECT(H6&"!Administration")*INDEX(PL!$F$11:$F$57,MATCH(H6,PL!$C$11:$C$57,0)),IF(alle_aar_valg=2,INDIRECT(H6&"_sam!Administration_sam")*INDEX(PL!$F$11:$F$57,MATCH(H6,PL!$C$11:$C$57,0)),IF(alle_aar_valg=3,INDIRECT(H6&"_sam!Administration_reg")*INDEX(PL!$F$11:$F$57,MATCH(H6,PL!$C$11:$C$57,0)),INDIRECT(H6&"_sam!Administration")*INDEX(PL!$F$11:$F$57,MATCH(H6,PL!$C$11:$C$57,0))))))) -> 30980 | I9: =IF(I6="","",IF(I6='2024'!$B$2,(IF(alle_aar_valg=1,Administration*INDEX(PL!$F$11:$F$57,MATCH(I6,PL!$C$11:$C$57,0)),"Kan ikke vises")),IF(alle_aar_valg=1,INDIRECT(I6&"!Administration")*INDEX(PL!$F$11:$F$57,MATCH(I6,PL!$C$11:$C$57,0)),IF(alle_aar_valg=2,INDIRECT(I6&"_sam!Administration_sam")*INDEX(PL!$F$11:$F$57,MATCH(I6,PL!$C$11:$C$57,0)),IF(alle_aar_valg=3,INDIRECT(I6&"_sam!Administration_reg")*INDEX(PL!$F$11:$F$57,MATCH(I6,PL!$C$11:$C$57,0)),INDIRECT(I6&"_sam!Administration")*INDEX(PL!$F$11:$F$57,MATCH(I6,PL!$C$11:$C$57,0))))))) ->  | J9: =IF(J6="","",IF(J6='2024'!$B$2,(IF(alle_aar_valg=1,Administration*INDEX(PL!$F$11:$F$57,MATCH(J6,PL!$C$11:$C$57,0)),"Kan ikke vises")),IF(alle_aar_valg=1,INDIRECT(J6&"!Administration")*INDEX(PL!$F$11:$F$57,MATCH(J6,PL!$C$11:$C$57,0)),IF(alle_aar_valg=2,INDIRECT(J6&"_sam!Administration_sam")*INDEX(PL!$F$11:$F$57,MATCH(J6,PL!$C$11:$C$57,0)),IF(alle_aar_valg=3,INDIRECT(J6&"_sam!Administration_reg")*INDEX(PL!$F$11:$F$57,MATCH(J6,PL!$C$11:$C$57,0)),INDIRECT(J6&"_sam!Administration")*INDEX(PL!$F$11:$F$57,MATCH(J6,PL!$C$11:$C$57,0))))))) ->  | K9: =IF(K6="","",IF(K6='2024'!$B$2,(IF(alle_aar_valg=1,Administration*INDEX(PL!$F$11:$F$57,MATCH(K6,PL!$C$11:$C$57,0)),"Kan ikke vises")),IF(alle_aar_valg=1,INDIRECT(K6&"!Administration")*INDEX(PL!$F$11:$F$57,MATCH(K6,PL!$C$11:$C$57,0)),IF(alle_aar_valg=2,INDIRECT(K6&"_sam!Administration_sam")*INDEX(PL!$F$11:$F$57,MATCH(K6,PL!$C$11:$C$57,0)),IF(alle_aar_valg=3,INDIRECT(K6&"_sam!Administration_reg")*INDEX(PL!$F$11:$F$57,MATCH(K6,PL!$C$11:$C$57,0)),INDIRECT(K6&"_sam!Administration")*INDEX(PL!$F$11:$F$57,MATCH(K6,PL!$C$11:$C$57,0))))))) ->  | L9: =IF(L6="","",IF(L6='2024'!$B$2,(IF(alle_aar_valg=1,Administration*INDEX(PL!$F$11:$F$57,MATCH(L6,PL!$C$11:$C$57,0)),"Kan ikke vises")),IF(alle_aar_valg=1,INDIRECT(L6&"!Administration")*INDEX(PL!$F$11:$F$57,MATCH(L6,PL!$C$11:$C$57,0)),IF(alle_aar_valg=2,INDIRECT(L6&"_sam!Administration_sam")*INDEX(PL!$F$11:$F$57,MATCH(L6,PL!$C$11:$C$57,0)),IF(alle_aar_valg=3,INDIRECT(L6&"_sam!Administration_reg")*INDEX(PL!$F$11:$F$57,MATCH(L6,PL!$C$11:$C$57,0)),INDIRECT(L6&"_sam!Administration")*INDEX(PL!$F$11:$F$57,MATCH(L6,PL!$C$11:$C$57,0))))))) ->  | M9: =IF(M6="","",IF(M6='2024'!$B$2,(IF(alle_aar_valg=1,Administration*INDEX(PL!$F$11:$F$57,MATCH(M6,PL!$C$11:$C$57,0)),"Kan ikke vises")),IF(alle_aar_valg=1,INDIRECT(M6&"!Administration")*INDEX(PL!$F$11:$F$57,MATCH(M6,PL!$C$11:$C$57,0)),IF(alle_aar_valg=2,INDIRECT(M6&"_sam!Administration_sam")*INDEX(PL!$F$11:$F$57,MATCH(M6,PL!$C$11:$C$57,0)),IF(alle_aar_valg=3,INDIRECT(M6&"_sam!Administration_reg")*INDEX(PL!$F$11:$F$57,MATCH(M6,PL!$C$11:$C$57,0)),INDIRECT(M6&"_sam!Administration")*INDEX(PL!$F$11:$F$57,MATCH(M6,PL!$C$11:$C$57,0))))))) ->  | N9: =IF(N6="","",IF(N6='2024'!$B$2,(IF(alle_aar_valg=1,Administration*INDEX(PL!$F$11:$F$57,MATCH(N6,PL!$C$11:$C$57,0)),"Kan ikke vises")),IF(alle_aar_valg=1,INDIRECT(N6&"!Administration")*INDEX(PL!$F$11:$F$57,MATCH(N6,PL!$C$11:$C$57,0)),IF(alle_aar_valg=2,INDIRECT(N6&"_sam!Administration_sam")*INDEX(PL!$F$11:$F$57,MATCH(N6,PL!$C$11:$C$57,0)),IF(alle_aar_valg=3,INDIRECT(N6&"_sam!Administration_reg")*INDEX(PL!$F$11:$F$57,MATCH(N6,PL!$C$11:$C$57,0)),INDIRECT(N6&"_sam!Administration")*INDEX(PL!$F$11:$F$57,MATCH(N6,PL!$C$11:$C$57,0))))))) ->  | O9: =IF(O6="","",IF(O6='2024'!$B$2,(IF(alle_aar_valg=1,Administration*INDEX(PL!$F$11:$F$57,MATCH(O6,PL!$C$11:$C$57,0)),"Kan ikke vises")),IF(alle_aar_valg=1,INDIRECT(O6&"!Administration")*INDEX(PL!$F$11:$F$57,MATCH(O6,PL!$C$11:$C$57,0)),IF(alle_aar_valg=2,INDIRECT(O6&"_sam!Administration_sam")*INDEX(PL!$F$11:$F$57,MATCH(O6,PL!$C$11:$C$57,0)),IF(alle_aar_valg=3,INDIRECT(O6&"_sam!Administration_reg")*INDEX(PL!$F$11:$F$57,MATCH(O6,PL!$C$11:$C$57,0)),INDIRECT(O6&"_sam!Administration")*INDEX(PL!$F$11:$F$57,MATCH(O6,PL!$C$11:$C$57,0))))))) ->  | P9: =IF(P6="","",IF(P6='2024'!$B$2,(IF(alle_aar_valg=1,Administration*INDEX(PL!$F$11:$F$57,MATCH(P6,PL!$C$11:$C$57,0)),"Kan ikke vises")),IF(alle_aar_valg=1,INDIRECT(P6&"!Administration")*INDEX(PL!$F$11:$F$57,MATCH(P6,PL!$C$11:$C$57,0)),IF(alle_aar_valg=2,INDIRECT(P6&"_sam!Administration_sam")*INDEX(PL!$F$11:$F$57,MATCH(P6,PL!$C$11:$C$57,0)),IF(alle_aar_valg=3,INDIRECT(P6&"_sam!Administration_reg")*INDEX(PL!$F$11:$F$57,MATCH(P6,PL!$C$11:$C$57,0)),INDIRECT(P6&"_sam!Administration")*INDEX(PL!$F$11:$F$57,MATCH(P6,PL!$C$11:$C$57,0))))))) ->  | Q9: =IF(Q6="","",IF(Q6='2024'!$B$2,(IF(alle_aar_valg=1,Administration*INDEX(PL!$F$11:$F$57,MATCH(Q6,PL!$C$11:$C$57,0)),"Kan ikke vises")),IF(alle_aar_valg=1,INDIRECT(Q6&"!Administration")*INDEX(PL!$F$11:$F$57,MATCH(Q6,PL!$C$11:$C$57,0)),IF(alle_aar_valg=2,INDIRECT(Q6&"_sam!Administration_sam")*INDEX(PL!$F$11:$F$57,MATCH(Q6,PL!$C$11:$C$57,0)),IF(alle_aar_valg=3,INDIRECT(Q6&"_sam!Administration_reg")*INDEX(PL!$F$11:$F$57,MATCH(Q6,PL!$C$11:$C$57,0)),INDIRECT(Q6&"_sam!Administration")*INDEX(PL!$F$11:$F$57,MATCH(Q6,PL!$C$11:$C$57,0))))))) ->  | R9: =IF(R6="","",IF(R6='2024'!$B$2,(IF(alle_aar_valg=1,Administration*INDEX(PL!$F$11:$F$57,MATCH(R6,PL!$C$11:$C$57,0)),"Kan ikke vises")),IF(alle_aar_valg=1,INDIRECT(R6&"!Administration")*INDEX(PL!$F$11:$F$57,MATCH(R6,PL!$C$11:$C$57,0)),IF(alle_aar_valg=2,INDIRECT(R6&"_sam!Administration_sam")*INDEX(PL!$F$11:$F$57,MATCH(R6,PL!$C$11:$C$57,0)),IF(alle_aar_valg=3,INDIRECT(R6&"_sam!Administration_reg")*INDEX(PL!$F$11:$F$57,MATCH(R6,PL!$C$11:$C$57,0)),INDIRECT(R6&"_sam!Administration")*INDEX(PL!$F$11:$F$57,MATCH(R6,PL!$C$11:$C$57,0))))))) ->  | S9: =IF(S6="","",IF(S6='2024'!$B$2,(IF(alle_aar_valg=1,Administration*INDEX(PL!$F$11:$F$57,MATCH(S6,PL!$C$11:$C$57,0)),"Kan ikke vises")),IF(alle_aar_valg=1,INDIRECT(S6&"!Administration")*INDEX(PL!$F$11:$F$57,MATCH(S6,PL!$C$11:$C$57,0)),IF(alle_aar_valg=2,INDIRECT(S6&"_sam!Administration_sam")*INDEX(PL!$F$11:$F$57,MATCH(S6,PL!$C$11:$C$57,0)),IF(alle_aar_valg=3,INDIRECT(S6&"_sam!Administration_reg")*INDEX(PL!$F$11:$F$57,MATCH(S6,PL!$C$11:$C$57,0)),INDIRECT(S6&"_sam!Administration")*INDEX(PL!$F$11:$F$57,MATCH(S6,PL!$C$11:$C$57,0))))))) ->  | T9: =IF(T6="","",IF(T6='2024'!$B$2,(IF(alle_aar_valg=1,Administration*INDEX(PL!$F$11:$F$57,MATCH(T6,PL!$C$11:$C$57,0)),"Kan ikke vises")),IF(alle_aar_valg=1,INDIRECT(T6&"!Administration")*INDEX(PL!$F$11:$F$57,MATCH(T6,PL!$C$11:$C$57,0)),IF(alle_aar_valg=2,INDIRECT(T6&"_sam!Administration_sam")*INDEX(PL!$F$11:$F$57,MATCH(T6,PL!$C$11:$C$57,0)),IF(alle_aar_valg=3,INDIRECT(T6&"_sam!Administration_reg")*INDEX(PL!$F$11:$F$57,MATCH(T6,PL!$C$11:$C$57,0)),INDIRECT(T6&"_sam!Administration")*INDEX(PL!$F$11:$F$57,MATCH(T6,PL!$C$11:$C$57,0))))))) ->  | U9: =IF(U6="","",IF(U6='2024'!$B$2,(IF(alle_aar_valg=1,Administration*INDEX(PL!$F$11:$F$57,MATCH(U6,PL!$C$11:$C$57,0)),"Kan ikke vises")),IF(alle_aar_valg=1,INDIRECT(U6&"!Administration")*INDEX(PL!$F$11:$F$57,MATCH(U6,PL!$C$11:$C$57,0)),IF(alle_aar_valg=2,INDIRECT(U6&"_sam!Administration_sam")*INDEX(PL!$F$11:$F$57,MATCH(U6,PL!$C$11:$C$57,0)),IF(alle_aar_valg=3,INDIRECT(U6&"_sam!Administration_reg")*INDEX(PL!$F$11:$F$57,MATCH(U6,PL!$C$11:$C$57,0)),INDIRECT(U6&"_sam!Administration")*INDEX(PL!$F$11:$F$57,MATCH(U6,PL!$C$11:$C$57,0))))))) ->  | V9: =IF(V6="","",IF(V6='2024'!$B$2,(IF(alle_aar_valg=1,Administration*INDEX(PL!$F$11:$F$57,MATCH(V6,PL!$C$11:$C$57,0)),"Kan ikke vises")),IF(alle_aar_valg=1,INDIRECT(V6&"!Administration")*INDEX(PL!$F$11:$F$57,MATCH(V6,PL!$C$11:$C$57,0)),IF(alle_aar_valg=2,INDIRECT(V6&"_sam!Administration_sam")*INDEX(PL!$F$11:$F$57,MATCH(V6,PL!$C$11:$C$57,0)),IF(alle_aar_valg=3,INDIRECT(V6&"_sam!Administration_reg")*INDEX(PL!$F$11:$F$57,MATCH(V6,PL!$C$11:$C$57,0)),INDIRECT(V6&"_sam!Administration")*INDEX(PL!$F$11:$F$57,MATCH(V6,PL!$C$11:$C$57,0))))))) ->  | W9: =IF(W6="","",IF(W6='2024'!$B$2,(IF(alle_aar_valg=1,Administration*INDEX(PL!$F$11:$F$57,MATCH(W6,PL!$C$11:$C$57,0)),"Kan ikke vises")),IF(alle_aar_valg=1,INDIRECT(W6&"!Administration")*INDEX(PL!$F$11:$F$57,MATCH(W6,PL!$C$11:$C$57,0)),IF(alle_aar_valg=2,INDIRECT(W6&"_sam!Administration_sam")*INDEX(PL!$F$11:$F$57,MATCH(W6,PL!$C$11:$C$57,0)),IF(alle_aar_valg=3,INDIRECT(W6&"_sam!Administration_reg")*INDEX(PL!$F$11:$F$57,MATCH(W6,PL!$C$11:$C$57,0)),INDIRECT(W6&"_sam!Administration")*INDEX(PL!$F$11:$F$57,MATCH(W6,PL!$C$11:$C$57,0))))))) -> 
B10: Service | C10: =IF(C6="","",IF(C6='2024'!$B$2,(IF(alle_aar_valg=1,NDU_service*INDEX(PL!$F$11:$F$57,MATCH(C6,PL!$C$11:$C$57,0)),"Kan ikke vises")),IF(alle_aar_valg=1,INDIRECT(C6&"!NDU_service")*INDEX(PL!$F$11:$F$57,MATCH(C6,PL!$C$11:$C$57,0)),IF(alle_aar_valg=2,INDIRECT(C6&"_sam!NDU_service_sam")*INDEX(PL!$F$11:$F$57,MATCH(C6,PL!$C$11:$C$57,0)),IF(alle_aar_valg=3,INDIRECT(C6&"_sam!NDU_service_reg")*INDEX(PL!$F$11:$F$57,MATCH(C6,PL!$C$11:$C$57,0)),INDIRECT(C6&"_sam!NDU_service")*INDEX(PL!$F$11:$F$57,MATCH(C6,PL!$C$11:$C$57,0))))))) -> 114378.735 | D10: =IF(D6="","",IF(D6='2024'!$B$2,(IF(alle_aar_valg=1,NDU_service*INDEX(PL!$F$11:$F$57,MATCH(D6,PL!$C$11:$C$57,0)),"Kan ikke vises")),IF(alle_aar_valg=1,INDIRECT(D6&"!NDU_service")*INDEX(PL!$F$11:$F$57,MATCH(D6,PL!$C$11:$C$57,0)),IF(alle_aar_valg=2,INDIRECT(D6&"_sam!NDU_service_sam")*INDEX(PL!$F$11:$F$57,MATCH(D6,PL!$C$11:$C$57,0)),IF(alle_aar_valg=3,INDIRECT(D6&"_sam!NDU_service_reg")*INDEX(PL!$F$11:$F$57,MATCH(D6,PL!$C$11:$C$57,0)),INDIRECT(D6&"_sam!NDU_service")*INDEX(PL!$F$11:$F$57,MATCH(D6,PL!$C$11:$C$57,0))))))) -> 108175.3015 | E10: =IF(E6="","",IF(E6='2024'!$B$2,(IF(alle_aar_valg=1,NDU_service*INDEX(PL!$F$11:$F$57,MATCH(E6,PL!$C$11:$C$57,0)),"Kan ikke vises")),IF(alle_aar_valg=1,INDIRECT(E6&"!NDU_service")*INDEX(PL!$F$11:$F$57,MATCH(E6,PL!$C$11:$C$57,0)),IF(alle_aar_valg=2,INDIRECT(E6&"_sam!NDU_service_sam")*INDEX(PL!$F$11:$F$57,MATCH(E6,PL!$C$11:$C$57,0)),IF(alle_aar_valg=3,INDIRECT(E6&"_sam!NDU_service_reg")*INDEX(PL!$F$11:$F$57,MATCH(E6,PL!$C$11:$C$57,0)),INDIRECT(E6&"_sam!NDU_service")*INDEX(PL!$F$11:$F$57,MATCH(E6,PL!$C$11:$C$57,0))))))) -> 110704.2994 | F10: =IF(F6="","",IF(F6='2024'!$B$2,(IF(alle_aar_valg=1,NDU_service*INDEX(PL!$F$11:$F$57,MATCH(F6,PL!$C$11:$C$57,0)),"Kan ikke vises")),IF(alle_aar_valg=1,INDIRECT(F6&"!NDU_service")*INDEX(PL!$F$11:$F$57,MATCH(F6,PL!$C$11:$C$57,0)),IF(alle_aar_valg=2,INDIRECT(F6&"_sam!NDU_service_sam")*INDEX(PL!$F$11:$F$57,MATCH(F6,PL!$C$11:$C$57,0)),IF(alle_aar_valg=3,INDIRECT(F6&"_sam!NDU_service_reg")*INDEX(PL!$F$11:$F$57,MATCH(F6,PL!$C$11:$C$57,0)),INDIRECT(F6&"_sam!NDU_service")*INDEX(PL!$F$11:$F$57,MATCH(F6,PL!$C$11:$C$57,0))))))) -> 107568.3626 | G10: =IF(G6="","",IF(G6='2024'!$B$2,(IF(alle_aar_valg=1,NDU_service*INDEX(PL!$F$11:$F$57,MATCH(G6,PL!$C$11:$C$57,0)),"Kan ikke vises")),IF(alle_aar_valg=1,INDIRECT(G6&"!NDU_service")*INDEX(PL!$F$11:$F$57,MATCH(G6,PL!$C$11:$C$57,0)),IF(alle_aar_valg=2,INDIRECT(G6&"_sam!NDU_service_sam")*INDEX(PL!$F$11:$F$57,MATCH(G6,PL!$C$11:$C$57,0)),IF(alle_aar_valg=3,INDIRECT(G6&"_sam!NDU_service_reg")*INDEX(PL!$F$11:$F$57,MATCH(G6,PL!$C$11:$C$57,0)),INDIRECT(G6&"_sam!NDU_service")*INDEX(PL!$F$11:$F$57,MATCH(G6,PL!$C$11:$C$57,0))))))) -> 124519.584 | H10: =IF(H6="","",IF(H6='2024'!$B$2,(IF(alle_aar_valg=1,NDU_service*INDEX(PL!$F$11:$F$57,MATCH(H6,PL!$C$11:$C$57,0)),"Kan ikke vises")),IF(alle_aar_valg=1,INDIRECT(H6&"!NDU_service")*INDEX(PL!$F$11:$F$57,MATCH(H6,PL!$C$11:$C$57,0)),IF(alle_aar_valg=2,INDIRECT(H6&"_sam!NDU_service_sam")*INDEX(PL!$F$11:$F$57,MATCH(H6,PL!$C$11:$C$57,0)),IF(alle_aar_valg=3,INDIRECT(H6&"_sam!NDU_service_reg")*INDEX(PL!$F$11:$F$57,MATCH(H6,PL!$C$11:$C$57,0)),INDIRECT(H6&"_sam!NDU_service")*INDEX(PL!$F$11:$F$57,MATCH(H6,PL!$C$11:$C$57,0))))))) -> 135290 | I10: =IF(I6="","",IF(I6='2024'!$B$2,(IF(alle_aar_valg=1,NDU_service*INDEX(PL!$F$11:$F$57,MATCH(I6,PL!$C$11:$C$57,0)),"Kan ikke vises")),IF(alle_aar_valg=1,INDIRECT(I6&"!NDU_service")*INDEX(PL!$F$11:$F$57,MATCH(I6,PL!$C$11:$C$57,0)),IF(alle_aar_valg=2,INDIRECT(I6&"_sam!NDU_service_sam")*INDEX(PL!$F$11:$F$57,MATCH(I6,PL!$C$11:$C$57,0)),IF(alle_aar_valg=3,INDIRECT(I6&"_sam!NDU_service_reg")*INDEX(PL!$F$11:$F$57,MATCH(I6,PL!$C$11:$C$57,0)),INDIRECT(I6&"_sam!NDU_service")*INDEX(PL!$F$11:$F$57,MATCH(I6,PL!$C$11:$C$57,0))))))) ->  | J10: =IF(J6="","",IF(J6='2024'!$B$2,(IF(alle_aar_valg=1,NDU_service*INDEX(PL!$F$11:$F$57,MATCH(J6,PL!$C$11:$C$57,0)),"Kan ikke vises")),IF(alle_aar_valg=1,INDIRECT(J6&"!NDU_service")*INDEX(PL!$F$11:$F$57,MATCH(J6,PL!$C$11:$C$57,0)),IF(alle_aar_valg=2,INDIRECT(J6&"_sam!NDU_service_sam")*INDEX(PL!$F$11:$F$57,MATCH(J6,PL!$C$11:$C$57,0)),IF(alle_aar_valg=3,INDIRECT(J6&"_sam!NDU_service_reg")*INDEX(PL!$F$11:$F$57,MATCH(J6,PL!$C$11:$C$57,0)),INDIRECT(J6&"_sam!NDU_service")*INDEX(PL!$F$11:$F$57,MATCH(J6,PL!$C$11:$C$57,0))))))) ->  | K10: =IF(K6="","",IF(K6='2024'!$B$2,(IF(alle_aar_valg=1,NDU_service*INDEX(PL!$F$11:$F$57,MATCH(K6,PL!$C$11:$C$57,0)),"Kan ikke vises")),IF(alle_aar_valg=1,INDIRECT(K6&"!NDU_service")*INDEX(PL!$F$11:$F$57,MATCH(K6,PL!$C$11:$C$57,0)),IF(alle_aar_valg=2,INDIRECT(K6&"_sam!NDU_service_sam")*INDEX(PL!$F$11:$F$57,MATCH(K6,PL!$C$11:$C$57,0)),IF(alle_aar_valg=3,INDIRECT(K6&"_sam!NDU_service_reg")*INDEX(PL!$F$11:$F$57,MATCH(K6,PL!$C$11:$C$57,0)),INDIRECT(K6&"_sam!NDU_service")*INDEX(PL!$F$11:$F$57,MATCH(K6,PL!$C$11:$C$57,0))))))) ->  | L10: =IF(L6="","",IF(L6='2024'!$B$2,(IF(alle_aar_valg=1,NDU_service*INDEX(PL!$F$11:$F$57,MATCH(L6,PL!$C$11:$C$57,0)),"Kan ikke vises")),IF(alle_aar_valg=1,INDIRECT(L6&"!NDU_service")*INDEX(PL!$F$11:$F$57,MATCH(L6,PL!$C$11:$C$57,0)),IF(alle_aar_valg=2,INDIRECT(L6&"_sam!NDU_service_sam")*INDEX(PL!$F$11:$F$57,MATCH(L6,PL!$C$11:$C$57,0)),IF(alle_aar_valg=3,INDIRECT(L6&"_sam!NDU_service_reg")*INDEX(PL!$F$11:$F$57,MATCH(L6,PL!$C$11:$C$57,0)),INDIRECT(L6&"_sam!NDU_service")*INDEX(PL!$F$11:$F$57,MATCH(L6,PL!$C$11:$C$57,0))))))) ->  | M10: =IF(M6="","",IF(M6='2024'!$B$2,(IF(alle_aar_valg=1,NDU_service*INDEX(PL!$F$11:$F$57,MATCH(M6,PL!$C$11:$C$57,0)),"Kan ikke vises")),IF(alle_aar_valg=1,INDIRECT(M6&"!NDU_service")*INDEX(PL!$F$11:$F$57,MATCH(M6,PL!$C$11:$C$57,0)),IF(alle_aar_valg=2,INDIRECT(M6&"_sam!NDU_service_sam")*INDEX(PL!$F$11:$F$57,MATCH(M6,PL!$C$11:$C$57,0)),IF(alle_aar_valg=3,INDIRECT(M6&"_sam!NDU_service_reg")*INDEX(PL!$F$11:$F$57,MATCH(M6,PL!$C$11:$C$57,0)),INDIRECT(M6&"_sam!NDU_service")*INDEX(PL!$F$11:$F$57,MATCH(M6,PL!$C$11:$C$57,0))))))) ->  | N10: =IF(N6="","",IF(N6='2024'!$B$2,(IF(alle_aar_valg=1,NDU_service*INDEX(PL!$F$11:$F$57,MATCH(N6,PL!$C$11:$C$57,0)),"Kan ikke vises")),IF(alle_aar_valg=1,INDIRECT(N6&"!NDU_service")*INDEX(PL!$F$11:$F$57,MATCH(N6,PL!$C$11:$C$57,0)),IF(alle_aar_valg=2,INDIRECT(N6&"_sam!NDU_service_sam")*INDEX(PL!$F$11:$F$57,MATCH(N6,PL!$C$11:$C$57,0)),IF(alle_aar_valg=3,INDIRECT(N6&"_sam!NDU_service_reg")*INDEX(PL!$F$11:$F$57,MATCH(N6,PL!$C$11:$C$57,0)),INDIRECT(N6&"_sam!NDU_service")*INDEX(PL!$F$11:$F$57,MATCH(N6,PL!$C$11:$C$57,0))))))) ->  | O10: =IF(O6="","",IF(O6='2024'!$B$2,(IF(alle_aar_valg=1,NDU_service*INDEX(PL!$F$11:$F$57,MATCH(O6,PL!$C$11:$C$57,0)),"Kan ikke vises")),IF(alle_aar_valg=1,INDIRECT(O6&"!NDU_service")*INDEX(PL!$F$11:$F$57,MATCH(O6,PL!$C$11:$C$57,0)),IF(alle_aar_valg=2,INDIRECT(O6&"_sam!NDU_service_sam")*INDEX(PL!$F$11:$F$57,MATCH(O6,PL!$C$11:$C$57,0)),IF(alle_aar_valg=3,INDIRECT(O6&"_sam!NDU_service_reg")*INDEX(PL!$F$11:$F$57,MATCH(O6,PL!$C$11:$C$57,0)),INDIRECT(O6&"_sam!NDU_service")*INDEX(PL!$F$11:$F$57,MATCH(O6,PL!$C$11:$C$57,0))))))) ->  | P10: =IF(P6="","",IF(P6='2024'!$B$2,(IF(alle_aar_valg=1,NDU_service*INDEX(PL!$F$11:$F$57,MATCH(P6,PL!$C$11:$C$57,0)),"Kan ikke vises")),IF(alle_aar_valg=1,INDIRECT(P6&"!NDU_service")*INDEX(PL!$F$11:$F$57,MATCH(P6,PL!$C$11:$C$57,0)),IF(alle_aar_valg=2,INDIRECT(P6&"_sam!NDU_service_sam")*INDEX(PL!$F$11:$F$57,MATCH(P6,PL!$C$11:$C$57,0)),IF(alle_aar_valg=3,INDIRECT(P6&"_sam!NDU_service_reg")*INDEX(PL!$F$11:$F$57,MATCH(P6,PL!$C$11:$C$57,0)),INDIRECT(P6&"_sam!NDU_service")*INDEX(PL!$F$11:$F$57,MATCH(P6,PL!$C$11:$C$57,0))))))) ->  | Q10: =IF(Q6="","",IF(Q6='2024'!$B$2,(IF(alle_aar_valg=1,NDU_service*INDEX(PL!$F$11:$F$57,MATCH(Q6,PL!$C$11:$C$57,0)),"Kan ikke vises")),IF(alle_aar_valg=1,INDIRECT(Q6&"!NDU_service")*INDEX(PL!$F$11:$F$57,MATCH(Q6,PL!$C$11:$C$57,0)),IF(alle_aar_valg=2,INDIRECT(Q6&"_sam!NDU_service_sam")*INDEX(PL!$F$11:$F$57,MATCH(Q6,PL!$C$11:$C$57,0)),IF(alle_aar_valg=3,INDIRECT(Q6&"_sam!NDU_service_reg")*INDEX(PL!$F$11:$F$57,MATCH(Q6,PL!$C$11:$C$57,0)),INDIRECT(Q6&"_sam!NDU_service")*INDEX(PL!$F$11:$F$57,MATCH(Q6,PL!$C$11:$C$57,0))))))) ->  | R10: =IF(R6="","",IF(R6='2024'!$B$2,(IF(alle_aar_valg=1,NDU_service*INDEX(PL!$F$11:$F$57,MATCH(R6,PL!$C$11:$C$57,0)),"Kan ikke vises")),IF(alle_aar_valg=1,INDIRECT(R6&"!NDU_service")*INDEX(PL!$F$11:$F$57,MATCH(R6,PL!$C$11:$C$57,0)),IF(alle_aar_valg=2,INDIRECT(R6&"_sam!NDU_service_sam")*INDEX(PL!$F$11:$F$57,MATCH(R6,PL!$C$11:$C$57,0)),IF(alle_aar_valg=3,INDIRECT(R6&"_sam!NDU_service_reg")*INDEX(PL!$F$11:$F$57,MATCH(R6,PL!$C$11:$C$57,0)),INDIRECT(R6&"_sam!NDU_service")*INDEX(PL!$F$11:$F$57,MATCH(R6,PL!$C$11:$C$57,0))))))) ->  | S10: =IF(S6="","",IF(S6='2024'!$B$2,(IF(alle_aar_valg=1,NDU_service*INDEX(PL!$F$11:$F$57,MATCH(S6,PL!$C$11:$C$57,0)),"Kan ikke vises")),IF(alle_aar_valg=1,INDIRECT(S6&"!NDU_service")*INDEX(PL!$F$11:$F$57,MATCH(S6,PL!$C$11:$C$57,0)),IF(alle_aar_valg=2,INDIRECT(S6&"_sam!NDU_service_sam")*INDEX(PL!$F$11:$F$57,MATCH(S6,PL!$C$11:$C$57,0)),IF(alle_aar_valg=3,INDIRECT(S6&"_sam!NDU_service_reg")*INDEX(PL!$F$11:$F$57,MATCH(S6,PL!$C$11:$C$57,0)),INDIRECT(S6&"_sam!NDU_service")*INDEX(PL!$F$11:$F$57,MATCH(S6,PL!$C$11:$C$57,0))))))) ->  | T10: =IF(T6="","",IF(T6='2024'!$B$2,(IF(alle_aar_valg=1,NDU_service*INDEX(PL!$F$11:$F$57,MATCH(T6,PL!$C$11:$C$57,0)),"Kan ikke vises")),IF(alle_aar_valg=1,INDIRECT(T6&"!NDU_service")*INDEX(PL!$F$11:$F$57,MATCH(T6,PL!$C$11:$C$57,0)),IF(alle_aar_valg=2,INDIRECT(T6&"_sam!NDU_service_sam")*INDEX(PL!$F$11:$F$57,MATCH(T6,PL!$C$11:$C$57,0)),IF(alle_aar_valg=3,INDIRECT(T6&"_sam!NDU_service_reg")*INDEX(PL!$F$11:$F$57,MATCH(T6,PL!$C$11:$C$57,0)),INDIRECT(T6&"_sam!NDU_service")*INDEX(PL!$F$11:$F$57,MATCH(T6,PL!$C$11:$C$57,0))))))) ->  | U10: =IF(U6="","",IF(U6='2024'!$B$2,(IF(alle_aar_valg=1,NDU_service*INDEX(PL!$F$11:$F$57,MATCH(U6,PL!$C$11:$C$57,0)),"Kan ikke vises")),IF(alle_aar_valg=1,INDIRECT(U6&"!NDU_service")*INDEX(PL!$F$11:$F$57,MATCH(U6,PL!$C$11:$C$57,0)),IF(alle_aar_valg=2,INDIRECT(U6&"_sam!NDU_service_sam")*INDEX(PL!$F$11:$F$57,MATCH(U6,PL!$C$11:$C$57,0)),IF(alle_aar_valg=3,INDIRECT(U6&"_sam!NDU_service_reg")*INDEX(PL!$F$11:$F$57,MATCH(U6,PL!$C$11:$C$57,0)),INDIRECT(U6&"_sam!NDU_service")*INDEX(PL!$F$11:$F$57,MATCH(U6,PL!$C$11:$C$57,0))))))) ->  | V10: =IF(V6="","",IF(V6='2024'!$B$2,(IF(alle_aar_valg=1,NDU_service*INDEX(PL!$F$11:$F$57,MATCH(V6,PL!$C$11:$C$57,0)),"Kan ikke vises")),IF(alle_aar_valg=1,INDIRECT(V6&"!NDU_service")*INDEX(PL!$F$11:$F$57,MATCH(V6,PL!$C$11:$C$57,0)),IF(alle_aar_valg=2,INDIRECT(V6&"_sam!NDU_service_sam")*INDEX(PL!$F$11:$F$57,MATCH(V6,PL!$C$11:$C$57,0)),IF(alle_aar_valg=3,INDIRECT(V6&"_sam!NDU_service_reg")*INDEX(PL!$F$11:$F$57,MATCH(V6,PL!$C$11:$C$57,0)),INDIRECT(V6&"_sam!NDU_service")*INDEX(PL!$F$11:$F$57,MATCH(V6,PL!$C$11:$C$57,0))))))) ->  | W10: =IF(W6="","",IF(W6='2024'!$B$2,(IF(alle_aar_valg=1,NDU_service*INDEX(PL!$F$11:$F$57,MATCH(W6,PL!$C$11:$C$57,0)),"Kan ikke vises")),IF(alle_aar_valg=1,INDIRECT(W6&"!NDU_service")*INDEX(PL!$F$11:$F$57,MATCH(W6,PL!$C$11:$C$57,0)),IF(alle_aar_valg=2,INDIRECT(W6&"_sam!NDU_service_sam")*INDEX(PL!$F$11:$F$57,MATCH(W6,PL!$C$11:$C$57,0)),IF(alle_aar_valg=3,INDIRECT(W6&"_sam!NDU_service_reg")*INDEX(PL!$F$11:$F$57,MATCH(W6,PL!$C$11:$C$57,0)),INDIRECT(W6&"_sam!NDU_service")*INDEX(PL!$F$11:$F$57,MATCH(W6,PL!$C$11:$C$57,0))))))) -> 
B13: Udgifter fordelt på indsatstrappen
C14: ='Dine valg'!$J$10 -> 2018 | D14: ='Dine valg'!$J$11 -> 2019 | E14: ='Dine valg'!$J$12 -> 2020 | F14: ='Dine valg'!$J$13 -> 2021 | G14: ='Dine valg'!$J$14 -> 2022 | H14: ='Dine valg'!$J$15 -> 2023 | I14: ='Dine valg'!$J$16 ->  | J14: ='Dine valg'!$K$10 ->  | K14: ='Dine valg'!$K$11 ->  | L14: ='Dine valg'!$K$12 ->  | M14: ='Dine valg'!$K$13 ->  | N14: ='Dine valg'!$K$14 ->  | O14: ='Dine valg'!$K$15 ->  | P14: ='Dine valg'!$K$16 ->  | Q14: ='Dine valg'!$L$10 ->  | R14: ='Dine valg'!$L$11 ->  | S14: ='Dine valg'!$L$12 ->  | T14: ='Dine valg'!$L$13 ->  | U14: ='Dine valg'!$L$14 ->  | V14: ='Dine valg'!$L$15 ->  | W14: ='Dine valg'!$L$16 -> 
B15: =""&alle_aar_tekst_valg&"" -> Fredericia | C15: ="" ->  | D15: ="" ->  | E15: ="" ->  | F15: ="" ->  | G15: ="" ->  | H15: ="" ->  | I15: ="" ->  | J15: ="" ->  | K15: ="" ->  | L15: ="" ->  | M15: ="" ->  | N15: ="" ->  | O15: ="" ->  | P15: ="" ->  | Q15: ="" -> 
B16: Trin 2: Forebyggende indsatser | C16: =IF(C6="","",IF(C6='2024'!$B$2,(IF(alle_aar_valg=1,'2024'!BDU_forebyggende*INDEX(PL!$F$11:$F$57,MATCH(C6,PL!$C$11:$C$57,0)),"Kan ikke vises")),IF(alle_aar_valg=1,INDIRECT(C6&"!BDU_forebyggende")*INDEX(PL!$F$11:$F$57,MATCH(C6,PL!$C$11:$C$57,0)),IF(alle_aar_valg=2,INDIRECT(C6&"_sam!BDU_forebyggende_sam")*INDEX(PL!$F$11:$F$57,MATCH(C6,PL!$C$11:$C$57,0)),IF(alle_aar_valg=3,INDIRECT(C6&"_sam!BDU_forebyggende_reg")*INDEX(PL!$F$11:$F$57,MATCH(C6,PL!$C$11:$C$57,0)),INDIRECT(C6&"_sam!BDU_forebyggende")*INDEX(PL!$F$11:$F$57,MATCH(C6,PL!$C$11:$C$57,0))))))) -> 1214.593662 | D16: =IF(D6="","",IF(D6='2024'!$B$2,(IF(alle_aar_valg=1,'2024'!BDU_forebyggende*INDEX(PL!$F$11:$F$57,MATCH(D6,PL!$C$11:$C$57,0)),"Kan ikke vises")),IF(alle_aar_valg=1,INDIRECT(D6&"!BDU_forebyggende")*INDEX(PL!$F$11:$F$57,MATCH(D6,PL!$C$11:$C$57,0)),IF(alle_aar_valg=2,INDIRECT(D6&"_sam!BDU_forebyggende_sam")*INDEX(PL!$F$11:$F$57,MATCH(D6,PL!$C$11:$C$57,0)),IF(alle_aar_valg=3,INDIRECT(D6&"_sam!BDU_forebyggende_reg")*INDEX(PL!$F$11:$F$57,MATCH(D6,PL!$C$11:$C$57,0)),INDIRECT(D6&"_sam!BDU_forebyggende")*INDEX(PL!$F$11:$F$57,MATCH(D6,PL!$C$11:$C$57,0))))))) -> 1856.293353 | E16: =IF(E6="","",IF(E6='2024'!$B$2,(IF(alle_aar_valg=1,'2024'!BDU_forebyggende*INDEX(PL!$F$11:$F$57,MATCH(E6,PL!$C$11:$C$57,0)),"Kan ikke vises")),IF(alle_aar_valg=1,INDIRECT(E6&"!BDU_forebyggende")*INDEX(PL!$F$11:$F$57,MATCH(E6,PL!$C$11:$C$57,0)),IF(alle_aar_valg=2,INDIRECT(E6&"_sam!BDU_forebyggende_sam")*INDEX(PL!$F$11:$F$57,MATCH(E6,PL!$C$11:$C$57,0)),IF(alle_aar_valg=3,INDIRECT(E6&"_sam!BDU_forebyggende_reg")*INDEX(PL!$F$11:$F$57,MATCH(E6,PL!$C$11:$C$57,0)),INDIRECT(E6&"_sam!BDU_forebyggende")*INDEX(PL!$F$11:$F$57,MATCH(E6,PL!$C$11:$C$57,0))))))) -> 1392.568157 | F16: =IF(F6="","",IF(F6='2024'!$B$2,(IF(alle_aar_valg=1,'2024'!BDU_forebyggende*INDEX(PL!$F$11:$F$57,MATCH(F6,PL!$C$11:$C$57,0)),"Kan ikke vises")),IF(alle_aar_valg=1,INDIRECT(F6&"!BDU_forebyggende")*INDEX(PL!$F$11:$F$57,MATCH(F6,PL!$C$11:$C$57,0)),IF(alle_aar_valg=2,INDIRECT(F6&"_sam!BDU_forebyggende_sam")*INDEX(PL!$F$11:$F$57,MATCH(F6,PL!$C$11:$C$57,0)),IF(alle_aar_valg=3,INDIRECT(F6&"_sam!BDU_forebyggende_reg")*INDEX(PL!$F$11:$F$57,MATCH(F6,PL!$C$11:$C$57,0)),INDIRECT(F6&"_sam!BDU_forebyggende")*INDEX(PL!$F$11:$F$57,MATCH(F6,PL!$C$11:$C$57,0))))))) -> 1106.545368 | G16: =IF(G6="","",IF(G6='2024'!$B$2,(IF(alle_aar_valg=1,'2024'!BDU_forebyggende*INDEX(PL!$F$11:$F$57,MATCH(G6,PL!$C$11:$C$57,0)),"Kan ikke vises")),IF(alle_aar_valg=1,INDIRECT(G6&"!BDU_forebyggende")*INDEX(PL!$F$11:$F$57,MATCH(G6,PL!$C$11:$C$57,0)),IF(alle_aar_valg=2,INDIRECT(G6&"_sam!BDU_forebyggende_sam")*INDEX(PL!$F$11:$F$57,MATCH(G6,PL!$C$11:$C$57,0)),IF(alle_aar_valg=3,INDIRECT(G6&"_sam!BDU_forebyggende_reg")*INDEX(PL!$F$11:$F$57,MATCH(G6,PL!$C$11:$C$57,0)),INDIRECT(G6&"_sam!BDU_forebyggende")*INDEX(PL!$F$11:$F$57,MATCH(G6,PL!$C$11:$C$57,0))))))) -> 1628.352 | H16: =IF(H6="","",IF(H6='2024'!$B$2,(IF(alle_aar_valg=1,'2024'!BDU_forebyggende*INDEX(PL!$F$11:$F$57,MATCH(H6,PL!$C$11:$C$57,0)),"Kan ikke vises")),IF(alle_aar_valg=1,INDIRECT(H6&"!BDU_forebyggende")*INDEX(PL!$F$11:$F$57,MATCH(H6,PL!$C$11:$C$57,0)),IF(alle_aar_valg=2,INDIRECT(H6&"_sam!BDU_forebyggende_sam")*INDEX(PL!$F$11:$F$57,MATCH(H6,PL!$C$11:$C$57,0)),IF(alle_aar_valg=3,INDIRECT(H6&"_sam!BDU_forebyggende_reg")*INDEX(PL!$F$11:$F$57,MATCH(H6,PL!$C$11:$C$57,0)),INDIRECT(H6&"_sam!BDU_forebyggende")*INDEX(PL!$F$11:$F$57,MATCH(H6,PL!$C$11:$C$57,0))))))) -> 1516 | I16: =IF(I6="","",IF(I6='2024'!$B$2,(IF(alle_aar_valg=1,'2024'!BDU_forebyggende*INDEX(PL!$F$11:$F$57,MATCH(I6,PL!$C$11:$C$57,0)),"Kan ikke vises")),IF(alle_aar_valg=1,INDIRECT(I6&"!BDU_forebyggende")*INDEX(PL!$F$11:$F$57,MATCH(I6,PL!$C$11:$C$57,0)),IF(alle_aar_valg=2,INDIRECT(I6&"_sam!BDU_forebyggende_sam")*INDEX(PL!$F$11:$F$57,MATCH(I6,PL!$C$11:$C$57,0)),IF(alle_aar_valg=3,INDIRECT(I6&"_sam!BDU_forebyggende_reg")*INDEX(PL!$F$11:$F$57,MATCH(I6,PL!$C$11:$C$57,0)),INDIRECT(I6&"_sam!BDU_forebyggende")*INDEX(PL!$F$11:$F$57,MATCH(I6,PL!$C$11:$C$57,0))))))) ->  | J16: =IF(J6="","",IF(J6='2024'!$B$2,(IF(alle_aar_valg=1,'2024'!BDU_forebyggende*INDEX(PL!$F$11:$F$57,MATCH(J6,PL!$C$11:$C$57,0)),"Kan ikke vises")),IF(alle_aar_valg=1,INDIRECT(J6&"!BDU_forebyggende")*INDEX(PL!$F$11:$F$57,MATCH(J6,PL!$C$11:$C$57,0)),IF(alle_aar_valg=2,INDIRECT(J6&"_sam!BDU_forebyggende_sam")*INDEX(PL!$F$11:$F$57,MATCH(J6,PL!$C$11:$C$57,0)),IF(alle_aar_valg=3,INDIRECT(J6&"_sam!BDU_forebyggende_reg")*INDEX(PL!$F$11:$F$57,MATCH(J6,PL!$C$11:$C$57,0)),INDIRECT(J6&"_sam!BDU_forebyggende")*INDEX(PL!$F$11:$F$57,MATCH(J6,PL!$C$11:$C$57,0))))))) ->  | K16: =IF(K6="","",IF(K6='2024'!$B$2,(IF(alle_aar_valg=1,'2024'!BDU_forebyggende*INDEX(PL!$F$11:$F$57,MATCH(K6,PL!$C$11:$C$57,0)),"Kan ikke vises")),IF(alle_aar_valg=1,INDIRECT(K6&"!BDU_forebyggende")*INDEX(PL!$F$11:$F$57,MATCH(K6,PL!$C$11:$C$57,0)),IF(alle_aar_valg=2,INDIRECT(K6&"_sam!BDU_forebyggende_sam")*INDEX(PL!$F$11:$F$57,MATCH(K6,PL!$C$11:$C$57,0)),IF(alle_aar_valg=3,INDIRECT(K6&"_sam!BDU_forebyggende_reg")*INDEX(PL!$F$11:$F$57,MATCH(K6,PL!$C$11:$C$57,0)),INDIRECT(K6&"_sam!BDU_forebyggende")*INDEX(PL!$F$11:$F$57,MATCH(K6,PL!$C$11:$C$57,0))))))) ->  | L16: =IF(L6="","",IF(L6='2024'!$B$2,(IF(alle_aar_valg=1,'2024'!BDU_forebyggende*INDEX(PL!$F$11:$F$57,MATCH(L6,PL!$C$11:$C$57,0)),"Kan ikke vises")),IF(alle_aar_valg=1,INDIRECT(L6&"!BDU_forebyggende")*INDEX(PL!$F$11:$F$57,MATCH(L6,PL!$C$11:$C$57,0)),IF(alle_aar_valg=2,INDIRECT(L6&"_sam!BDU_forebyggende_sam")*INDEX(PL!$F$11:$F$57,MATCH(L6,PL!$C$11:$C$57,0)),IF(alle_aar_valg=3,INDIRECT(L6&"_sam!BDU_forebyggende_reg")*INDEX(PL!$F$11:$F$57,MATCH(L6,PL!$C$11:$C$57,0)),INDIRECT(L6&"_sam!BDU_forebyggende")*INDEX(PL!$F$11:$F$57,MATCH(L6,PL!$C$11:$C$57,0))))))) ->  | M16: =IF(M6="","",IF(M6='2024'!$B$2,(IF(alle_aar_valg=1,'2024'!BDU_forebyggende*INDEX(PL!$F$11:$F$57,MATCH(M6,PL!$C$11:$C$57,0)),"Kan ikke vises")),IF(alle_aar_valg=1,INDIRECT(M6&"!BDU_forebyggende")*INDEX(PL!$F$11:$F$57,MATCH(M6,PL!$C$11:$C$57,0)),IF(alle_aar_valg=2,INDIRECT(M6&"_sam!BDU_forebyggende_sam")*INDEX(PL!$F$11:$F$57,MATCH(M6,PL!$C$11:$C$57,0)),IF(alle_aar_valg=3,INDIRECT(M6&"_sam!BDU_forebyggende_reg")*INDEX(PL!$F$11:$F$57,MATCH(M6,PL!$C$11:$C$57,0)),INDIRECT(M6&"_sam!BDU_forebyggende")*INDEX(PL!$F$11:$F$57,MATCH(M6,PL!$C$11:$C$57,0))))))) ->  | N16: =IF(N6="","",IF(N6='2024'!$B$2,(IF(alle_aar_valg=1,'2024'!BDU_forebyggende*INDEX(PL!$F$11:$F$57,MATCH(N6,PL!$C$11:$C$57,0)),"Kan ikke vises")),IF(alle_aar_valg=1,INDIRECT(N6&"!BDU_forebyggende")*INDEX(PL!$F$11:$F$57,MATCH(N6,PL!$C$11:$C$57,0)),IF(alle_aar_valg=2,INDIRECT(N6&"_sam!BDU_forebyggende_sam")*INDEX(PL!$F$11:$F$57,MATCH(N6,PL!$C$11:$C$57,0)),IF(alle_aar_valg=3,INDIRECT(N6&"_sam!BDU_forebyggende_reg")*INDEX(PL!$F$11:$F$57,MATCH(N6,PL!$C$11:$C$57,0)),INDIRECT(N6&"_sam!BDU_forebyggende")*INDEX(PL!$F$11:$F$57,MATCH(N6,PL!$C$11:$C$57,0))))))) ->  | O16: =IF(O6="","",IF(O6='2024'!$B$2,(IF(alle_aar_valg=1,'2024'!BDU_forebyggende*INDEX(PL!$F$11:$F$57,MATCH(O6,PL!$C$11:$C$57,0)),"Kan ikke vises")),IF(alle_aar_valg=1,INDIRECT(O6&"!BDU_forebyggende")*INDEX(PL!$F$11:$F$57,MATCH(O6,PL!$C$11:$C$57,0)),IF(alle_aar_valg=2,INDIRECT(O6&"_sam!BDU_forebyggende_sam")*INDEX(PL!$F$11:$F$57,MATCH(O6,PL!$C$11:$C$57,0)),IF(alle_aar_valg=3,INDIRECT(O6&"_sam!BDU_forebyggende_reg")*INDEX(PL!$F$11:$F$57,MATCH(O6,PL!$C$11:$C$57,0)),INDIRECT(O6&"_sam!BDU_forebyggende")*INDEX(PL!$F$11:$F$57,MATCH(O6,PL!$C$11:$C$57,0))))))) ->  | P16: =IF(P6="","",IF(P6='2024'!$B$2,(IF(alle_aar_valg=1,'2024'!BDU_forebyggende*INDEX(PL!$F$11:$F$57,MATCH(P6,PL!$C$11:$C$57,0)),"Kan ikke vises")),IF(alle_aar_valg=1,INDIRECT(P6&"!BDU_forebyggende")*INDEX(PL!$F$11:$F$57,MATCH(P6,PL!$C$11:$C$57,0)),IF(alle_aar_valg=2,INDIRECT(P6&"_sam!BDU_forebyggende_sam")*INDEX(PL!$F$11:$F$57,MATCH(P6,PL!$C$11:$C$57,0)),IF(alle_aar_valg=3,INDIRECT(P6&"_sam!BDU_forebyggende_reg")*INDEX(PL!$F$11:$F$57,MATCH(P6,PL!$C$11:$C$57,0)),INDIRECT(P6&"_sam!BDU_forebyggende")*INDEX(PL!$F$11:$F$57,MATCH(P6,PL!$C$11:$C$57,0))))))) ->  | Q16: =IF(Q6="","",IF(Q6='2024'!$B$2,(IF(alle_aar_valg=1,'2024'!BDU_forebyggende*INDEX(PL!$F$11:$F$57,MATCH(Q6,PL!$C$11:$C$57,0)),"Kan ikke vises")),IF(alle_aar_valg=1,INDIRECT(Q6&"!BDU_forebyggende")*INDEX(PL!$F$11:$F$57,MATCH(Q6,PL!$C$11:$C$57,0)),IF(alle_aar_valg=2,INDIRECT(Q6&"_sam!BDU_forebyggende_sam")*INDEX(PL!$F$11:$F$57,MATCH(Q6,PL!$C$11:$C$57,0)),IF(alle_aar_valg=3,INDIRECT(Q6&"_sam!BDU_forebyggende_reg")*INDEX(PL!$F$11:$F$57,MATCH(Q6,PL!$C$11:$C$57,0)),INDIRECT(Q6&"_sam!BDU_forebyggende")*INDEX(PL!$F$11:$F$57,MATCH(Q6,PL!$C$11:$C$57,0))))))) ->  | R16: =IF(R6="","",IF(R6='2024'!$B$2,(IF(alle_aar_valg=1,'2024'!BDU_forebyggende*INDEX(PL!$F$11:$F$57,MATCH(R6,PL!$C$11:$C$57,0)),"Kan ikke vises")),IF(alle_aar_valg=1,INDIRECT(R6&"!BDU_forebyggende")*INDEX(PL!$F$11:$F$57,MATCH(R6,PL!$C$11:$C$57,0)),IF(alle_aar_valg=2,INDIRECT(R6&"_sam!BDU_forebyggende_sam")*INDEX(PL!$F$11:$F$57,MATCH(R6,PL!$C$11:$C$57,0)),IF(alle_aar_valg=3,INDIRECT(R6&"_sam!BDU_forebyggende_reg")*INDEX(PL!$F$11:$F$57,MATCH(R6,PL!$C$11:$C$57,0)),INDIRECT(R6&"_sam!BDU_forebyggende")*INDEX(PL!$F$11:$F$57,MATCH(R6,PL!$C$11:$C$57,0))))))) ->  | S16: =IF(S6="","",IF(S6='2024'!$B$2,(IF(alle_aar_valg=1,'2024'!BDU_forebyggende*INDEX(PL!$F$11:$F$57,MATCH(S6,PL!$C$11:$C$57,0)),"Kan ikke vises")),IF(alle_aar_valg=1,INDIRECT(S6&"!BDU_forebyggende")*INDEX(PL!$F$11:$F$57,MATCH(S6,PL!$C$11:$C$57,0)),IF(alle_aar_valg=2,INDIRECT(S6&"_sam!BDU_forebyggende_sam")*INDEX(PL!$F$11:$F$57,MATCH(S6,PL!$C$11:$C$57,0)),IF(alle_aar_valg=3,INDIRECT(S6&"_sam!BDU_forebyggende_reg")*INDEX(PL!$F$11:$F$57,MATCH(S6,PL!$C$11:$C$57,0)),INDIRECT(S6&"_sam!BDU_forebyggende")*INDEX(PL!$F$11:$F$57,MATCH(S6,PL!$C$11:$C$57,0))))))) ->  | T16: =IF(T6="","",IF(T6='2024'!$B$2,(IF(alle_aar_valg=1,'2024'!BDU_forebyggende*INDEX(PL!$F$11:$F$57,MATCH(T6,PL!$C$11:$C$57,0)),"Kan ikke vises")),IF(alle_aar_valg=1,INDIRECT(T6&"!BDU_forebyggende")*INDEX(PL!$F$11:$F$57,MATCH(T6,PL!$C$11:$C$57,0)),IF(alle_aar_valg=2,INDIRECT(T6&"_sam!BDU_forebyggende_sam")*INDEX(PL!$F$11:$F$57,MATCH(T6,PL!$C$11:$C$57,0)),IF(alle_aar_valg=3,INDIRECT(T6&"_sam!BDU_forebyggende_reg")*INDEX(PL!$F$11:$F$57,MATCH(T6,PL!$C$11:$C$57,0)),INDIRECT(T6&"_sam!BDU_forebyggende")*INDEX(PL!$F$11:$F$57,MATCH(T6,PL!$C$11:$C$57,0))))))) ->  | U16: =IF(U6="","",IF(U6='2024'!$B$2,(IF(alle_aar_valg=1,'2024'!BDU_forebyggende*INDEX(PL!$F$11:$F$57,MATCH(U6,PL!$C$11:$C$57,0)),"Kan ikke vises")),IF(alle_aar_valg=1,INDIRECT(U6&"!BDU_forebyggende")*INDEX(PL!$F$11:$F$57,MATCH(U6,PL!$C$11:$C$57,0)),IF(alle_aar_valg=2,INDIRECT(U6&"_sam!BDU_forebyggende_sam")*INDEX(PL!$F$11:$F$57,MATCH(U6,PL!$C$11:$C$57,0)),IF(alle_aar_valg=3,INDIRECT(U6&"_sam!BDU_forebyggende_reg")*INDEX(PL!$F$11:$F$57,MATCH(U6,PL!$C$11:$C$57,0)),INDIRECT(U6&"_sam!BDU_forebyggende")*INDEX(PL!$F$11:$F$57,MATCH(U6,PL!$C$11:$C$57,0))))))) ->  | V16: =IF(V6="","",IF(V6='2024'!$B$2,(IF(alle_aar_valg=1,'2024'!BDU_forebyggende*INDEX(PL!$F$11:$F$57,MATCH(V6,PL!$C$11:$C$57,0)),"Kan ikke vises")),IF(alle_aar_valg=1,INDIRECT(V6&"!BDU_forebyggende")*INDEX(PL!$F$11:$F$57,MATCH(V6,PL!$C$11:$C$57,0)),IF(alle_aar_valg=2,INDIRECT(V6&"_sam!BDU_forebyggende_sam")*INDEX(PL!$F$11:$F$57,MATCH(V6,PL!$C$11:$C$57,0)),IF(alle_aar_valg=3,INDIRECT(V6&"_sam!BDU_forebyggende_reg")*INDEX(PL!$F$11:$F$57,MATCH(V6,PL!$C$11:$C$57,0)),INDIRECT(V6&"_sam!BDU_forebyggende")*INDEX(PL!$F$11:$F$57,MATCH(V6,PL!$C$11:$C$57,0))))))) ->  | W16: =IF(W6="","",IF(W6='2024'!$B$2,(IF(alle_aar_valg=1,'2024'!BDU_forebyggende*INDEX(PL!$F$11:$F$57,MATCH(W6,PL!$C$11:$C$57,0)),"Kan ikke vises")),IF(alle_aar_valg=1,INDIRECT(W6&"!BDU_forebyggende")*INDEX(PL!$F$11:$F$57,MATCH(W6,PL!$C$11:$C$57,0)),IF(alle_aar_valg=2,INDIRECT(W6&"_sam!BDU_forebyggende_sam")*INDEX(PL!$F$11:$F$57,MATCH(W6,PL!$C$11:$C$57,0)),IF(alle_aar_valg=3,INDIRECT(W6&"_sam!BDU_forebyggende_reg")*INDEX(PL!$F$11:$F$57,MATCH(W6,PL!$C$11:$C$57,0)),INDIRECT(W6&"_sam!BDU_forebyggende")*INDEX(PL!$F$11:$F$57,MATCH(W6,PL!$C$11:$C$57,0))))))) -> 
B17: Trin 3: Hjemmebaserede foranstaltninger | C17: =IF(C$6="","",IF(C6='2024'!$B$2,(IF(alle_aar_valg=1,'2024'!BDU_hjemme*INDEX(PL!$F$11:$F$57,MATCH(C6,PL!$C$11:$C$57,0)),"Kan ikke vises")),IF(alle_aar_valg=1,INDIRECT(C$6&"!BDU_hjemme")*INDEX(PL!$F$11:$F$57,MATCH(C6,PL!$C$11:$C$57,0)),IF(alle_aar_valg=2,INDIRECT(C$6&"_sam!BDU_hjemme_sam")*INDEX(PL!$F$11:$F$57,MATCH(C6,PL!$C$11:$C$57,0)),IF(alle_aar_valg=3,INDIRECT(C$6&"_sam!BDU_hjemme_reg")*INDEX(PL!$F$11:$F$57,MATCH(C6,PL!$C$11:$C$57,0)),INDIRECT(C$6&"_sam!BDU_hjemme")*INDEX(PL!$F$11:$F$57,MATCH(C6,PL!$C$11:$C$57,0))))))) -> 20766.17774 | D17: =IF(D$6="","",IF(D6='2024'!$B$2,(IF(alle_aar_valg=1,'2024'!BDU_hjemme*INDEX(PL!$F$11:$F$57,MATCH(D6,PL!$C$11:$C$57,0)),"Kan ikke vises")),IF(alle_aar_valg=1,INDIRECT(D$6&"!BDU_hjemme")*INDEX(PL!$F$11:$F$57,MATCH(D6,PL!$C$11:$C$57,0)),IF(alle_aar_valg=2,INDIRECT(D$6&"_sam!BDU_hjemme_sam")*INDEX(PL!$F$11:$F$57,MATCH(D6,PL!$C$11:$C$57,0)),IF(alle_aar_valg=3,INDIRECT(D$6&"_sam!BDU_hjemme_reg")*INDEX(PL!$F$11:$F$57,MATCH(D6,PL!$C$11:$C$57,0)),INDIRECT(D$6&"_sam!BDU_hjemme")*INDEX(PL!$F$11:$F$57,MATCH(D6,PL!$C$11:$C$57,0))))))) -> 16766.41349 | E17: =IF(E$6="","",IF(E6='2024'!$B$2,(IF(alle_aar_valg=1,'2024'!BDU_hjemme*INDEX(PL!$F$11:$F$57,MATCH(E6,PL!$C$11:$C$57,0)),"Kan ikke vises")),IF(alle_aar_valg=1,INDIRECT(E$6&"!BDU_hjemme")*INDEX(PL!$F$11:$F$57,MATCH(E6,PL!$C$11:$C$57,0)),IF(alle_aar_valg=2,INDIRECT(E$6&"_sam!BDU_hjemme_sam")*INDEX(PL!$F$11:$F$57,MATCH(E6,PL!$C$11:$C$57,0)),IF(alle_aar_valg=3,INDIRECT(E$6&"_sam!BDU_hjemme_reg")*INDEX(PL!$F$11:$F$57,MATCH(E6,PL!$C$11:$C$57,0)),INDIRECT(E$6&"_sam!BDU_hjemme")*INDEX(PL!$F$11:$F$57,MATCH(E6,PL!$C$11:$C$57,0))))))) -> 22590.5501 | F17: =IF(F$6="","",IF(F6='2024'!$B$2,(IF(alle_aar_valg=1,'2024'!BDU_hjemme*INDEX(PL!$F$11:$F$57,MATCH(F6,PL!$C$11:$C$57,0)),"Kan ikke vises")),IF(alle_aar_valg=1,INDIRECT(F$6&"!BDU_hjemme")*INDEX(PL!$F$11:$F$57,MATCH(F6,PL!$C$11:$C$57,0)),IF(alle_aar_valg=2,INDIRECT(F$6&"_sam!BDU_hjemme_sam")*INDEX(PL!$F$11:$F$57,MATCH(F6,PL!$C$11:$C$57,0)),IF(alle_aar_valg=3,INDIRECT(F$6&"_sam!BDU_hjemme_reg")*INDEX(PL!$F$11:$F$57,MATCH(F6,PL!$C$11:$C$57,0)),INDIRECT(F$6&"_sam!BDU_hjemme")*INDEX(PL!$F$11:$F$57,MATCH(F6,PL!$C$11:$C$57,0))))))) -> 22711.89698 | G17: =IF(G$6="","",IF(G6='2024'!$B$2,(IF(alle_aar_valg=1,'2024'!BDU_hjemme*INDEX(PL!$F$11:$F$57,MATCH(G6,PL!$C$11:$C$57,0)),"Kan ikke vises")),IF(alle_aar_valg=1,INDIRECT(G$6&"!BDU_hjemme")*INDEX(PL!$F$11:$F$57,MATCH(G6,PL!$C$11:$C$57,0)),IF(alle_aar_valg=2,INDIRECT(G$6&"_sam!BDU_hjemme_sam")*INDEX(PL!$F$11:$F$57,MATCH(G6,PL!$C$11:$C$57,0)),IF(alle_aar_valg=3,INDIRECT(G$6&"_sam!BDU_hjemme_reg")*INDEX(PL!$F$11:$F$57,MATCH(G6,PL!$C$11:$C$57,0)),INDIRECT(G$6&"_sam!BDU_hjemme")*INDEX(PL!$F$11:$F$57,MATCH(G6,PL!$C$11:$C$57,0))))))) -> 29471.732 | H17: =IF(H$6="","",IF(H6='2024'!$B$2,(IF(alle_aar_valg=1,'2024'!BDU_hjemme*INDEX(PL!$F$11:$F$57,MATCH(H6,PL!$C$11:$C$57,0)),"Kan ikke vises")),IF(alle_aar_valg=1,INDIRECT(H$6&"!BDU_hjemme")*INDEX(PL!$F$11:$F$57,MATCH(H6,PL!$C$11:$C$57,0)),IF(alle_aar_valg=2,INDIRECT(H$6&"_sam!BDU_hjemme_sam")*INDEX(PL!$F$11:$F$57,MATCH(H6,PL!$C$11:$C$57,0)),IF(alle_aar_valg=3,INDIRECT(H$6&"_sam!BDU_hjemme_reg")*INDEX(PL!$F$11:$F$57,MATCH(H6,PL!$C$11:$C$57,0)),INDIRECT(H$6&"_sam!BDU_hjemme")*INDEX(PL!$F$11:$F$57,MATCH(H6,PL!$C$11:$C$57,0))))))) -> 35536 | I17: =IF(I$6="","",IF(I6='2024'!$B$2,(IF(alle_aar_valg=1,'2024'!BDU_hjemme*INDEX(PL!$F$11:$F$57,MATCH(I6,PL!$C$11:$C$57,0)),"Kan ikke vises")),IF(alle_aar_valg=1,INDIRECT(I$6&"!BDU_hjemme")*INDEX(PL!$F$11:$F$57,MATCH(I6,PL!$C$11:$C$57,0)),IF(alle_aar_valg=2,INDIRECT(I$6&"_sam!BDU_hjemme_sam")*INDEX(PL!$F$11:$F$57,MATCH(I6,PL!$C$11:$C$57,0)),IF(alle_aar_valg=3,INDIRECT(I$6&"_sam!BDU_hjemme_reg")*INDEX(PL!$F$11:$F$57,MATCH(I6,PL!$C$11:$C$57,0)),INDIRECT(I$6&"_sam!BDU_hjemme")*INDEX(PL!$F$11:$F$57,MATCH(I6,PL!$C$11:$C$57,0))))))) ->  | J17: =IF(J$6="","",IF(J6='2024'!$B$2,(IF(alle_aar_valg=1,'2024'!BDU_hjemme*INDEX(PL!$F$11:$F$57,MATCH(J6,PL!$C$11:$C$57,0)),"Kan ikke vises")),IF(alle_aar_valg=1,INDIRECT(J$6&"!BDU_hjemme")*INDEX(PL!$F$11:$F$57,MATCH(J6,PL!$C$11:$C$57,0)),IF(alle_aar_valg=2,INDIRECT(J$6&"_sam!BDU_hjemme_sam")*INDEX(PL!$F$11:$F$57,MATCH(J6,PL!$C$11:$C$57,0)),IF(alle_aar_valg=3,INDIRECT(J$6&"_sam!BDU_hjemme_reg")*INDEX(PL!$F$11:$F$57,MATCH(J6,PL!$C$11:$C$57,0)),INDIRECT(J$6&"_sam!BDU_hjemme")*INDEX(PL!$F$11:$F$57,MATCH(J6,PL!$C$11:$C$57,0))))))) ->  | K17: =IF(K$6="","",IF(K6='2024'!$B$2,(IF(alle_aar_valg=1,'2024'!BDU_hjemme*INDEX(PL!$F$11:$F$57,MATCH(K6,PL!$C$11:$C$57,0)),"Kan ikke vises")),IF(alle_aar_valg=1,INDIRECT(K$6&"!BDU_hjemme")*INDEX(PL!$F$11:$F$57,MATCH(K6,PL!$C$11:$C$57,0)),IF(alle_aar_valg=2,INDIRECT(K$6&"_sam!BDU_hjemme_sam")*INDEX(PL!$F$11:$F$57,MATCH(K6,PL!$C$11:$C$57,0)),IF(alle_aar_valg=3,INDIRECT(K$6&"_sam!BDU_hjemme_reg")*INDEX(PL!$F$11:$F$57,MATCH(K6,PL!$C$11:$C$57,0)),INDIRECT(K$6&"_sam!BDU_hjemme")*INDEX(PL!$F$11:$F$57,MATCH(K6,PL!$C$11:$C$57,0))))))) ->  | L17: =IF(L$6="","",IF(L6='2024'!$B$2,(IF(alle_aar_valg=1,'2024'!BDU_hjemme*INDEX(PL!$F$11:$F$57,MATCH(L6,PL!$C$11:$C$57,0)),"Kan ikke vises")),IF(alle_aar_valg=1,INDIRECT(L$6&"!BDU_hjemme")*INDEX(PL!$F$11:$F$57,MATCH(L6,PL!$C$11:$C$57,0)),IF(alle_aar_valg=2,INDIRECT(L$6&"_sam!BDU_hjemme_sam")*INDEX(PL!$F$11:$F$57,MATCH(L6,PL!$C$11:$C$57,0)),IF(alle_aar_valg=3,INDIRECT(L$6&"_sam!BDU_hjemme_reg")*INDEX(PL!$F$11:$F$57,MATCH(L6,PL!$C$11:$C$57,0)),INDIRECT(L$6&"_sam!BDU_hjemme")*INDEX(PL!$F$11:$F$57,MATCH(L6,PL!$C$11:$C$57,0))))))) ->  | M17: =IF(M$6="","",IF(M6='2024'!$B$2,(IF(alle_aar_valg=1,'2024'!BDU_hjemme*INDEX(PL!$F$11:$F$57,MATCH(M6,PL!$C$11:$C$57,0)),"Kan ikke vises")),IF(alle_aar_valg=1,INDIRECT(M$6&"!BDU_hjemme")*INDEX(PL!$F$11:$F$57,MATCH(M6,PL!$C$11:$C$57,0)),IF(alle_aar_valg=2,INDIRECT(M$6&"_sam!BDU_hjemme_sam")*INDEX(PL!$F$11:$F$57,MATCH(M6,PL!$C$11:$C$57,0)),IF(alle_aar_valg=3,INDIRECT(M$6&"_sam!BDU_hjemme_reg")*INDEX(PL!$F$11:$F$57,MATCH(M6,PL!$C$11:$C$57,0)),INDIRECT(M$6&"_sam!BDU_hjemme")*INDEX(PL!$F$11:$F$57,MATCH(M6,PL!$C$11:$C$57,0))))))) ->  | N17: =IF(N$6="","",IF(N6='2024'!$B$2,(IF(alle_aar_valg=1,'2024'!BDU_hjemme*INDEX(PL!$F$11:$F$57,MATCH(N6,PL!$C$11:$C$57,0)),"Kan ikke vises")),IF(alle_aar_valg=1,INDIRECT(N$6&"!BDU_hjemme")*INDEX(PL!$F$11:$F$57,MATCH(N6,PL!$C$11:$C$57,0)),IF(alle_aar_valg=2,INDIRECT(N$6&"_sam!BDU_hjemme_sam")*INDEX(PL!$F$11:$F$57,MATCH(N6,PL!$C$11:$C$57,0)),IF(alle_aar_valg=3,INDIRECT(N$6&"_sam!BDU_hjemme_reg")*INDEX(PL!$F$11:$F$57,MATCH(N6,PL!$C$11:$C$57,0)),INDIRECT(N$6&"_sam!BDU_hjemme")*INDEX(PL!$F$11:$F$57,MATCH(N6,PL!$C$11:$C$57,0))))))) ->  | O17: =IF(O$6="","",IF(O6='2024'!$B$2,(IF(alle_aar_valg=1,'2024'!BDU_hjemme*INDEX(PL!$F$11:$F$57,MATCH(O6,PL!$C$11:$C$57,0)),"Kan ikke vises")),IF(alle_aar_valg=1,INDIRECT(O$6&"!BDU_hjemme")*INDEX(PL!$F$11:$F$57,MATCH(O6,PL!$C$11:$C$57,0)),IF(alle_aar_valg=2,INDIRECT(O$6&"_sam!BDU_hjemme_sam")*INDEX(PL!$F$11:$F$57,MATCH(O6,PL!$C$11:$C$57,0)),IF(alle_aar_valg=3,INDIRECT(O$6&"_sam!BDU_hjemme_reg")*INDEX(PL!$F$11:$F$57,MATCH(O6,PL!$C$11:$C$57,0)),INDIRECT(O$6&"_sam!BDU_hjemme")*INDEX(PL!$F$11:$F$57,MATCH(O6,PL!$C$11:$C$57,0))))))) ->  | P17: =IF(P$6="","",IF(P6='2024'!$B$2,(IF(alle_aar_valg=1,'2024'!BDU_hjemme*INDEX(PL!$F$11:$F$57,MATCH(P6,PL!$C$11:$C$57,0)),"Kan ikke vises")),IF(alle_aar_valg=1,INDIRECT(P$6&"!BDU_hjemme")*INDEX(PL!$F$11:$F$57,MATCH(P6,PL!$C$11:$C$57,0)),IF(alle_aar_valg=2,INDIRECT(P$6&"_sam!BDU_hjemme_sam")*INDEX(PL!$F$11:$F$57,MATCH(P6,PL!$C$11:$C$57,0)),IF(alle_aar_valg=3,INDIRECT(P$6&"_sam!BDU_hjemme_reg")*INDEX(PL!$F$11:$F$57,MATCH(P6,PL!$C$11:$C$57,0)),INDIRECT(P$6&"_sam!BDU_hjemme")*INDEX(PL!$F$11:$F$57,MATCH(P6,PL!$C$11:$C$57,0))))))) ->  | Q17: =IF(Q$6="","",IF(Q6='2024'!$B$2,(IF(alle_aar_valg=1,'2024'!BDU_hjemme*INDEX(PL!$F$11:$F$57,MATCH(Q6,PL!$C$11:$C$57,0)),"Kan ikke vises")),IF(alle_aar_valg=1,INDIRECT(Q$6&"!BDU_hjemme")*INDEX(PL!$F$11:$F$57,MATCH(Q6,PL!$C$11:$C$57,0)),IF(alle_aar_valg=2,INDIRECT(Q$6&"_sam!BDU_hjemme_sam")*INDEX(PL!$F$11:$F$57,MATCH(Q6,PL!$C$11:$C$57,0)),IF(alle_aar_valg=3,INDIRECT(Q$6&"_sam!BDU_hjemme_reg")*INDEX(PL!$F$11:$F$57,MATCH(Q6,PL!$C$11:$C$57,0)),INDIRECT(Q$6&"_sam!BDU_hjemme")*INDEX(PL!$F$11:$F$57,MATCH(Q6,PL!$C$11:$C$57,0))))))) ->  | R17: =IF(R$6="","",IF(R6='2024'!$B$2,(IF(alle_aar_valg=1,'2024'!BDU_hjemme*INDEX(PL!$F$11:$F$57,MATCH(R6,PL!$C$11:$C$57,0)),"Kan ikke vises")),IF(alle_aar_valg=1,INDIRECT(R$6&"!BDU_hjemme")*INDEX(PL!$F$11:$F$57,MATCH(R6,PL!$C$11:$C$57,0)),IF(alle_aar_valg=2,INDIRECT(R$6&"_sam!BDU_hjemme_sam")*INDEX(PL!$F$11:$F$57,MATCH(R6,PL!$C$11:$C$57,0)),IF(alle_aar_valg=3,INDIRECT(R$6&"_sam!BDU_hjemme_reg")*INDEX(PL!$F$11:$F$57,MATCH(R6,PL!$C$11:$C$57,0)),INDIRECT(R$6&"_sam!BDU_hjemme")*INDEX(PL!$F$11:$F$57,MATCH(R6,PL!$C$11:$C$57,0))))))) ->  | S17: =IF(S$6="","",IF(S6='2024'!$B$2,(IF(alle_aar_valg=1,'2024'!BDU_hjemme*INDEX(PL!$F$11:$F$57,MATCH(S6,PL!$C$11:$C$57,0)),"Kan ikke vises")),IF(alle_aar_valg=1,INDIRECT(S$6&"!BDU_hjemme")*INDEX(PL!$F$11:$F$57,MATCH(S6,PL!$C$11:$C$57,0)),IF(alle_aar_valg=2,INDIRECT(S$6&"_sam!BDU_hjemme_sam")*INDEX(PL!$F$11:$F$57,MATCH(S6,PL!$C$11:$C$57,0)),IF(alle_aar_valg=3,INDIRECT(S$6&"_sam!BDU_hjemme_reg")*INDEX(PL!$F$11:$F$57,MATCH(S6,PL!$C$11:$C$57,0)),INDIRECT(S$6&"_sam!BDU_hjemme")*INDEX(PL!$F$11:$F$57,MATCH(S6,PL!$C$11:$C$57,0))))))) ->  | T17: =IF(T$6="","",IF(T6='2024'!$B$2,(IF(alle_aar_valg=1,'2024'!BDU_hjemme*INDEX(PL!$F$11:$F$57,MATCH(T6,PL!$C$11:$C$57,0)),"Kan ikke vises")),IF(alle_aar_valg=1,INDIRECT(T$6&"!BDU_hjemme")*INDEX(PL!$F$11:$F$57,MATCH(T6,PL!$C$11:$C$57,0)),IF(alle_aar_valg=2,INDIRECT(T$6&"_sam!BDU_hjemme_sam")*INDEX(PL!$F$11:$F$57,MATCH(T6,PL!$C$11:$C$57,0)),IF(alle_aar_valg=3,INDIRECT(T$6&"_sam!BDU_hjemme_reg")*INDEX(PL!$F$11:$F$57,MATCH(T6,PL!$C$11:$C$57,0)),INDIRECT(T$6&"_sam!BDU_hjemme")*INDEX(PL!$F$11:$F$57,MATCH(T6,PL!$C$11:$C$57,0))))))) ->  | U17: =IF(U$6="","",IF(U6='2024'!$B$2,(IF(alle_aar_valg=1,'2024'!BDU_hjemme*INDEX(PL!$F$11:$F$57,MATCH(U6,PL!$C$11:$C$57,0)),"Kan ikke vises")),IF(alle_aar_valg=1,INDIRECT(U$6&"!BDU_hjemme")*INDEX(PL!$F$11:$F$57,MATCH(U6,PL!$C$11:$C$57,0)),IF(alle_aar_valg=2,INDIRECT(U$6&"_sam!BDU_hjemme_sam")*INDEX(PL!$F$11:$F$57,MATCH(U6,PL!$C$11:$C$57,0)),IF(alle_aar_valg=3,INDIRECT(U$6&"_sam!BDU_hjemme_reg")*INDEX(PL!$F$11:$F$57,MATCH(U6,PL!$C$11:$C$57,0)),INDIRECT(U$6&"_sam!BDU_hjemme")*INDEX(PL!$F$11:$F$57,MATCH(U6,PL!$C$11:$C$57,0))))))) ->  | V17: =IF(V$6="","",IF(V6='2024'!$B$2,(IF(alle_aar_valg=1,'2024'!BDU_hjemme*INDEX(PL!$F$11:$F$57,MATCH(V6,PL!$C$11:$C$57,0)),"Kan ikke vises")),IF(alle_aar_valg=1,INDIRECT(V$6&"!BDU_hjemme")*INDEX(PL!$F$11:$F$57,MATCH(V6,PL!$C$11:$C$57,0)),IF(alle_aar_valg=2,INDIRECT(V$6&"_sam!BDU_hjemme_sam")*INDEX(PL!$F$11:$F$57,MATCH(V6,PL!$C$11:$C$57,0)),IF(alle_aar_valg=3,INDIRECT(V$6&"_sam!BDU_hjemme_reg")*INDEX(PL!$F$11:$F$57,MATCH(V6,PL!$C$11:$C$57,0)),INDIRECT(V$6&"_sam!BDU_hjemme")*INDEX(PL!$F$11:$F$57,MATCH(V6,PL!$C$11:$C$57,0))))))) ->  | W17: =IF(W$6="","",IF(W6='2024'!$B$2,(IF(alle_aar_valg=1,'2024'!BDU_hjemme*INDEX(PL!$F$11:$F$57,MATCH(W6,PL!$C$11:$C$57,0)),"Kan ikke vises")),IF(alle_aar_valg=1,INDIRECT(W$6&"!BDU_hjemme")*INDEX(PL!$F$11:$F$57,MATCH(W6,PL!$C$11:$C$57,0)),IF(alle_aar_valg=2,INDIRECT(W$6&"_sam!BDU_hjemme_sam")*INDEX(PL!$F$11:$F$57,MATCH(W6,PL!$C$11:$C$57,0)),IF(alle_aar_valg=3,INDIRECT(W$6&"_sam!BDU_hjemme_reg")*INDEX(PL!$F$11:$F$57,MATCH(W6,PL!$C$11:$C$57,0)),INDIRECT(W$6&"_sam!BDU_hjemme")*INDEX(PL!$F$11:$F$57,MATCH(W6,PL!$C$11:$C$57,0))))))) -> 
B18: Trin 4: Slægt- eller netværkspleje | C18: =IF(C$6="","",IF(C6='2024'!$B$2,(IF(alle_aar_valg=1,'2024'!BDU_netværk*INDEX(PL!$F$11:$F$57,MATCH(C6,PL!$C$11:$C$57,0)),"Kan ikke vises")),IF(alle_aar_valg=1,INDIRECT(C$6&"!BDU_netværk")*INDEX(PL!$F$11:$F$57,MATCH(C6,PL!$C$11:$C$57,0)),IF(alle_aar_valg=2,INDIRECT(C$6&"_sam!BDU_netværk_sam")*INDEX(PL!$F$11:$F$57,MATCH(C6,PL!$C$11:$C$57,0)),IF(alle_aar_valg=3,INDIRECT(C$6&"_sam!BDU_netværk_reg")*INDEX(PL!$F$11:$F$57,MATCH(C6,PL!$C$11:$C$57,0)),INDIRECT(C$6&"_sam!BDU_netværk")*INDEX(PL!$F$11:$F$57,MATCH(C6,PL!$C$11:$C$57,0))))))) -> 1674.56478 | D18: =IF(D$6="","",IF(D6='2024'!$B$2,(IF(alle_aar_valg=1,'2024'!BDU_netværk*INDEX(PL!$F$11:$F$57,MATCH(D6,PL!$C$11:$C$57,0)),"Kan ikke vises")),IF(alle_aar_valg=1,INDIRECT(D$6&"!BDU_netværk")*INDEX(PL!$F$11:$F$57,MATCH(D6,PL!$C$11:$C$57,0)),IF(alle_aar_valg=2,INDIRECT(D$6&"_sam!BDU_netværk_sam")*INDEX(PL!$F$11:$F$57,MATCH(D6,PL!$C$11:$C$57,0)),IF(alle_aar_valg=3,INDIRECT(D$6&"_sam!BDU_netværk_reg")*INDEX(PL!$F$11:$F$57,MATCH(D6,PL!$C$11:$C$57,0)),INDIRECT(D$6&"_sam!BDU_netværk")*INDEX(PL!$F$11:$F$57,MATCH(D6,PL!$C$11:$C$57,0))))))) -> 1482.156708 | E18: =IF(E$6="","",IF(E6='2024'!$B$2,(IF(alle_aar_valg=1,'2024'!BDU_netværk*INDEX(PL!$F$11:$F$57,MATCH(E6,PL!$C$11:$C$57,0)),"Kan ikke vises")),IF(alle_aar_valg=1,INDIRECT(E$6&"!BDU_netværk")*INDEX(PL!$F$11:$F$57,MATCH(E6,PL!$C$11:$C$57,0)),IF(alle_aar_valg=2,INDIRECT(E$6&"_sam!BDU_netværk_sam")*INDEX(PL!$F$11:$F$57,MATCH(E6,PL!$C$11:$C$57,0)),IF(alle_aar_valg=3,INDIRECT(E$6&"_sam!BDU_netværk_reg")*INDEX(PL!$F$11:$F$57,MATCH(E6,PL!$C$11:$C$57,0)),INDIRECT(E$6&"_sam!BDU_netværk")*INDEX(PL!$F$11:$F$57,MATCH(E6,PL!$C$11:$C$57,0))))))) -> 2198.677929 | F18: =IF(F$6="","",IF(F6='2024'!$B$2,(IF(alle_aar_valg=1,'2024'!BDU_netværk*INDEX(PL!$F$11:$F$57,MATCH(F6,PL!$C$11:$C$57,0)),"Kan ikke vises")),IF(alle_aar_valg=1,INDIRECT(F$6&"!BDU_netværk")*INDEX(PL!$F$11:$F$57,MATCH(F6,PL!$C$11:$C$57,0)),IF(alle_aar_valg=2,INDIRECT(F$6&"_sam!BDU_netværk_sam")*INDEX(PL!$F$11:$F$57,MATCH(F6,PL!$C$11:$C$57,0)),IF(alle_aar_valg=3,INDIRECT(F$6&"_sam!BDU_netværk_reg")*INDEX(PL!$F$11:$F$57,MATCH(F6,PL!$C$11:$C$57,0)),INDIRECT(F$6&"_sam!BDU_netværk")*INDEX(PL!$F$11:$F$57,MATCH(F6,PL!$C$11:$C$57,0))))))) -> 1971.100564 | G18: =IF(G$6="","",IF(G6='2024'!$B$2,(IF(alle_aar_valg=1,'2024'!BDU_netværk*INDEX(PL!$F$11:$F$57,MATCH(G6,PL!$C$11:$C$57,0)),"Kan ikke vises")),IF(alle_aar_valg=1,INDIRECT(G$6&"!BDU_netværk")*INDEX(PL!$F$11:$F$57,MATCH(G6,PL!$C$11:$C$57,0)),IF(alle_aar_valg=2,INDIRECT(G$6&"_sam!BDU_netværk_sam")*INDEX(PL!$F$11:$F$57,MATCH(G6,PL!$C$11:$C$57,0)),IF(alle_aar_valg=3,INDIRECT(G$6&"_sam!BDU_netværk_reg")*INDEX(PL!$F$11:$F$57,MATCH(G6,PL!$C$11:$C$57,0)),INDIRECT(G$6&"_sam!BDU_netværk")*INDEX(PL!$F$11:$F$57,MATCH(G6,PL!$C$11:$C$57,0))))))) -> 1925.444 | H18: =IF(H$6="","",IF(H6='2024'!$B$2,(IF(alle_aar_valg=1,'2024'!BDU_netværk*INDEX(PL!$F$11:$F$57,MATCH(H6,PL!$C$11:$C$57,0)),"Kan ikke vises")),IF(alle_aar_valg=1,INDIRECT(H$6&"!BDU_netværk")*INDEX(PL!$F$11:$F$57,MATCH(H6,PL!$C$11:$C$57,0)),IF(alle_aar_valg=2,INDIRECT(H$6&"_sam!BDU_netværk_sam")*INDEX(PL!$F$11:$F$57,MATCH(H6,PL!$C$11:$C$57,0)),IF(alle_aar_valg=3,INDIRECT(H$6&"_sam!BDU_netværk_reg")*INDEX(PL!$F$11:$F$57,MATCH(H6,PL!$C$11:$C$57,0)),INDIRECT(H$6&"_sam!BDU_netværk")*INDEX(PL!$F$11:$F$57,MATCH(H6,PL!$C$11:$C$57,0))))))) -> 2253 | I18: =IF(I$6="","",IF(I6='2024'!$B$2,(IF(alle_aar_valg=1,'2024'!BDU_netværk*INDEX(PL!$F$11:$F$57,MATCH(I6,PL!$C$11:$C$57,0)),"Kan ikke vises")),IF(alle_aar_valg=1,INDIRECT(I$6&"!BDU_netværk")*INDEX(PL!$F$11:$F$57,MATCH(I6,PL!$C$11:$C$57,0)),IF(alle_aar_valg=2,INDIRECT(I$6&"_sam!BDU_netværk_sam")*INDEX(PL!$F$11:$F$57,MATCH(I6,PL!$C$11:$C$57,0)),IF(alle_aar_valg=3,INDIRECT(I$6&"_sam!BDU_netværk_reg")*INDEX(PL!$F$11:$F$57,MATCH(I6,PL!$C$11:$C$57,0)),INDIRECT(I$6&"_sam!BDU_netværk")*INDEX(PL!$F$11:$F$57,MATCH(I6,PL!$C$11:$C$57,0))))))) ->  | J18: =IF(J$6="","",IF(J6='2024'!$B$2,(IF(alle_aar_valg=1,'2024'!BDU_netværk*INDEX(PL!$F$11:$F$57,MATCH(J6,PL!$C$11:$C$57,0)),"Kan ikke vises")),IF(alle_aar_valg=1,INDIRECT(J$6&"!BDU_netværk")*INDEX(PL!$F$11:$F$57,MATCH(J6,PL!$C$11:$C$57,0)),IF(alle_aar_valg=2,INDIRECT(J$6&"_sam!BDU_netværk_sam")*INDEX(PL!$F$11:$F$57,MATCH(J6,PL!$C$11:$C$57,0)),IF(alle_aar_valg=3,INDIRECT(J$6&"_sam!BDU_netværk_reg")*INDEX(PL!$F$11:$F$57,MATCH(J6,PL!$C$11:$C$57,0)),INDIRECT(J$6&"_sam!BDU_netværk")*INDEX(PL!$F$11:$F$57,MATCH(J6,PL!$C$11:$C$57,0))))))) ->  | K18: =IF(K$6="","",IF(K6='2024'!$B$2,(IF(alle_aar_valg=1,'2024'!BDU_netværk*INDEX(PL!$F$11:$F$57,MATCH(K6,PL!$C$11:$C$57,0)),"Kan ikke vises")),IF(alle_aar_valg=1,INDIRECT(K$6&"!BDU_netværk")*INDEX(PL!$F$11:$F$57,MATCH(K6,PL!$C$11:$C$57,0)),IF(alle_aar_valg=2,INDIRECT(K$6&"_sam!BDU_netværk_sam")*INDEX(PL!$F$11:$F$57,MATCH(K6,PL!$C$11:$C$57,0)),IF(alle_aar_valg=3,INDIRECT(K$6&"_sam!BDU_netværk_reg")*INDEX(PL!$F$11:$F$57,MATCH(K6,PL!$C$11:$C$57,0)),INDIRECT(K$6&"_sam!BDU_netværk")*INDEX(PL!$F$11:$F$57,MATCH(K6,PL!$C$11:$C$57,0))))))) ->  | L18: =IF(L$6="","",IF(L6='2024'!$B$2,(IF(alle_aar_valg=1,'2024'!BDU_netværk*INDEX(PL!$F$11:$F$57,MATCH(L6,PL!$C$11:$C$57,0)),"Kan ikke vises")),IF(alle_aar_valg=1,INDIRECT(L$6&"!BDU_netværk")*INDEX(PL!$F$11:$F$57,MATCH(L6,PL!$C$11:$C$57,0)),IF(alle_aar_valg=2,INDIRECT(L$6&"_sam!BDU_netværk_sam")*INDEX(PL!$F$11:$F$57,MATCH(L6,PL!$C$11:$C$57,0)),IF(alle_aar_valg=3,INDIRECT(L$6&"_sam!BDU_netværk_reg")*INDEX(PL!$F$11:$F$57,MATCH(L6,PL!$C$11:$C$57,0)),INDIRECT(L$6&"_sam!BDU_netværk")*INDEX(PL!$F$11:$F$57,MATCH(L6,PL!$C$11:$C$57,0))))))) ->  | M18: =IF(M$6="","",IF(M6='2024'!$B$2,(IF(alle_aar_valg=1,'2024'!BDU_netværk*INDEX(PL!$F$11:$F$57,MATCH(M6,PL!$C$11:$C$57,0)),"Kan ikke vises")),IF(alle_aar_valg=1,INDIRECT(M$6&"!BDU_netværk")*INDEX(PL!$F$11:$F$57,MATCH(M6,PL!$C$11:$C$57,0)),IF(alle_aar_valg=2,INDIRECT(M$6&"_sam!BDU_netværk_sam")*INDEX(PL!$F$11:$F$57,MATCH(M6,PL!$C$11:$C$57,0)),IF(alle_aar_valg=3,INDIRECT(M$6&"_sam!BDU_netværk_reg")*INDEX(PL!$F$11:$F$57,MATCH(M6,PL!$C$11:$C$57,0)),INDIRECT(M$6&"_sam!BDU_netværk")*INDEX(PL!$F$11:$F$57,MATCH(M6,PL!$C$11:$C$57,0))))))) ->  | N18: =IF(N$6="","",IF(N6='2024'!$B$2,(IF(alle_aar_valg=1,'2024'!BDU_netværk*INDEX(PL!$F$11:$F$57,MATCH(N6,PL!$C$11:$C$57,0)),"Kan ikke vises")),IF(alle_aar_valg=1,INDIRECT(N$6&"!BDU_netværk")*INDEX(PL!$F$11:$F$57,MATCH(N6,PL!$C$11:$C$57,0)),IF(alle_aar_valg=2,INDIRECT(N$6&"_sam!BDU_netværk_sam")*INDEX(PL!$F$11:$F$57,MATCH(N6,PL!$C$11:$C$57,0)),IF(alle_aar_valg=3,INDIRECT(N$6&"_sam!BDU_netværk_reg")*INDEX(PL!$F$11:$F$57,MATCH(N6,PL!$C$11:$C$57,0)),INDIRECT(N$6&"_sam!BDU_netværk")*INDEX(PL!$F$11:$F$57,MATCH(N6,PL!$C$11:$C$57,0))))))) ->  | O18: =IF(O$6="","",IF(O6='2024'!$B$2,(IF(alle_aar_valg=1,'2024'!BDU_netværk*INDEX(PL!$F$11:$F$57,MATCH(O6,PL!$C$11:$C$57,0)),"Kan ikke vises")),IF(alle_aar_valg=1,INDIRECT(O$6&"!BDU_netværk")*INDEX(PL!$F$11:$F$57,MATCH(O6,PL!$C$11:$C$57,0)),IF(alle_aar_valg=2,INDIRECT(O$6&"_sam!BDU_netværk_sam")*INDEX(PL!$F$11:$F$57,MATCH(O6,PL!$C$11:$C$57,0)),IF(alle_aar_valg=3,INDIRECT(O$6&"_sam!BDU_netværk_reg")*INDEX(PL!$F$11:$F$57,MATCH(O6,PL!$C$11:$C$57,0)),INDIRECT(O$6&"_sam!BDU_netværk")*INDEX(PL!$F$11:$F$57,MATCH(O6,PL!$C$11:$C$57,0))))))) ->  | P18: =IF(P$6="","",IF(P6='2024'!$B$2,(IF(alle_aar_valg=1,'2024'!BDU_netværk*INDEX(PL!$F$11:$F$57,MATCH(P6,PL!$C$11:$C$57,0)),"Kan ikke vises")),IF(alle_aar_valg=1,INDIRECT(P$6&"!BDU_netværk")*INDEX(PL!$F$11:$F$57,MATCH(P6,PL!$C$11:$C$57,0)),IF(alle_aar_valg=2,INDIRECT(P$6&"_sam!BDU_netværk_sam")*INDEX(PL!$F$11:$F$57,MATCH(P6,PL!$C$11:$C$57,0)),IF(alle_aar_valg=3,INDIRECT(P$6&"_sam!BDU_netværk_reg")*INDEX(PL!$F$11:$F$57,MATCH(P6,PL!$C$11:$C$57,0)),INDIRECT(P$6&"_sam!BDU_netværk")*INDEX(PL!$F$11:$F$57,MATCH(P6,PL!$C$11:$C$57,0))))))) ->  | Q18: =IF(Q$6="","",IF(Q6='2024'!$B$2,(IF(alle_aar_valg=1,'2024'!BDU_netværk*INDEX(PL!$F$11:$F$57,MATCH(Q6,PL!$C$11:$C$57,0)),"Kan ikke vises")),IF(alle_aar_valg=1,INDIRECT(Q$6&"!BDU_netværk")*INDEX(PL!$F$11:$F$57,MATCH(Q6,PL!$C$11:$C$57,0)),IF(alle_aar_valg=2,INDIRECT(Q$6&"_sam!BDU_netværk_sam")*INDEX(PL!$F$11:$F$57,MATCH(Q6,PL!$C$11:$C$57,0)),IF(alle_aar_valg=3,INDIRECT(Q$6&"_sam!BDU_netværk_reg")*INDEX(PL!$F$11:$F$57,MATCH(Q6,PL!$C$11:$C$57,0)),INDIRECT(Q$6&"_sam!BDU_netværk")*INDEX(PL!$F$11:$F$57,MATCH(Q6,PL!$C$11:$C$57,0))))))) ->  | R18: =IF(R$6="","",IF(R6='2024'!$B$2,(IF(alle_aar_valg=1,'2024'!BDU_netværk*INDEX(PL!$F$11:$F$57,MATCH(R6,PL!$C$11:$C$57,0)),"Kan ikke vises")),IF(alle_aar_valg=1,INDIRECT(R$6&"!BDU_netværk")*INDEX(PL!$F$11:$F$57,MATCH(R6,PL!$C$11:$C$57,0)),IF(alle_aar_valg=2,INDIRECT(R$6&"_sam!BDU_netværk_sam")*INDEX(PL!$F$11:$F$57,MATCH(R6,PL!$C$11:$C$57,0)),IF(alle_aar_valg=3,INDIRECT(R$6&"_sam!BDU_netværk_reg")*INDEX(PL!$F$11:$F$57,MATCH(R6,PL!$C$11:$C$57,0)),INDIRECT(R$6&"_sam!BDU_netværk")*INDEX(PL!$F$11:$F$57,MATCH(R6,PL!$C$11:$C$57,0))))))) ->  | S18: =IF(S$6="","",IF(S6='2024'!$B$2,(IF(alle_aar_valg=1,'2024'!BDU_netværk*INDEX(PL!$F$11:$F$57,MATCH(S6,PL!$C$11:$C$57,0)),"Kan ikke vises")),IF(alle_aar_valg=1,INDIRECT(S$6&"!BDU_netværk")*INDEX(PL!$F$11:$F$57,MATCH(S6,PL!$C$11:$C$57,0)),IF(alle_aar_valg=2,INDIRECT(S$6&"_sam!BDU_netværk_sam")*INDEX(PL!$F$11:$F$57,MATCH(S6,PL!$C$11:$C$57,0)),IF(alle_aar_valg=3,INDIRECT(S$6&"_sam!BDU_netværk_reg")*INDEX(PL!$F$11:$F$57,MATCH(S6,PL!$C$11:$C$57,0)),INDIRECT(S$6&"_sam!BDU_netværk")*INDEX(PL!$F$11:$F$57,MATCH(S6,PL!$C$11:$C$57,0))))))) ->  | T18: =IF(T$6="","",IF(T6='2024'!$B$2,(IF(alle_aar_valg=1,'2024'!BDU_netværk*INDEX(PL!$F$11:$F$57,MATCH(T6,PL!$C$11:$C$57,0)),"Kan ikke vises")),IF(alle_aar_valg=1,INDIRECT(T$6&"!BDU_netværk")*INDEX(PL!$F$11:$F$57,MATCH(T6,PL!$C$11:$C$57,0)),IF(alle_aar_valg=2,INDIRECT(T$6&"_sam!BDU_netværk_sam")*INDEX(PL!$F$11:$F$57,MATCH(T6,PL!$C$11:$C$57,0)),IF(alle_aar_valg=3,INDIRECT(T$6&"_sam!BDU_netværk_reg")*INDEX(PL!$F$11:$F$57,MATCH(T6,PL!$C$11:$C$57,0)),INDIRECT(T$6&"_sam!BDU_netværk")*INDEX(PL!$F$11:$F$57,MATCH(T6,PL!$C$11:$C$57,0))))))) ->  | U18: =IF(U$6="","",IF(U6='2024'!$B$2,(IF(alle_aar_valg=1,'2024'!BDU_netværk*INDEX(PL!$F$11:$F$57,MATCH(U6,PL!$C$11:$C$57,0)),"Kan ikke vises")),IF(alle_aar_valg=1,INDIRECT(U$6&"!BDU_netværk")*INDEX(PL!$F$11:$F$57,MATCH(U6,PL!$C$11:$C$57,0)),IF(alle_aar_valg=2,INDIRECT(U$6&"_sam!BDU_netværk_sam")*INDEX(PL!$F$11:$F$57,MATCH(U6,PL!$C$11:$C$57,0)),IF(alle_aar_valg=3,INDIRECT(U$6&"_sam!BDU_netværk_reg")*INDEX(PL!$F$11:$F$57,MATCH(U6,PL!$C$11:$C$57,0)),INDIRECT(U$6&"_sam!BDU_netværk")*INDEX(PL!$F$11:$F$57,MATCH(U6,PL!$C$11:$C$57,0))))))) ->  | V18: =IF(V$6="","",IF(V6='2024'!$B$2,(IF(alle_aar_valg=1,'2024'!BDU_netværk*INDEX(PL!$F$11:$F$57,MATCH(V6,PL!$C$11:$C$57,0)),"Kan ikke vises")),IF(alle_aar_valg=1,INDIRECT(V$6&"!BDU_netværk")*INDEX(PL!$F$11:$F$57,MATCH(V6,PL!$C$11:$C$57,0)),IF(alle_aar_valg=2,INDIRECT(V$6&"_sam!BDU_netværk_sam")*INDEX(PL!$F$11:$F$57,MATCH(V6,PL!$C$11:$C$57,0)),IF(alle_aar_valg=3,INDIRECT(V$6&"_sam!BDU_netværk_reg")*INDEX(PL!$F$11:$F$57,MATCH(V6,PL!$C$11:$C$57,0)),INDIRECT(V$6&"_sam!BDU_netværk")*INDEX(PL!$F$11:$F$57,MATCH(V6,PL!$C$11:$C$57,0))))))) ->  | W18: =IF(W$6="","",IF(W6='2024'!$B$2,(IF(alle_aar_valg=1,'2024'!BDU_netværk*INDEX(PL!$F$11:$F$57,MATCH(W6,PL!$C$11:$C$57,0)),"Kan ikke vises")),IF(alle_aar_valg=1,INDIRECT(W$6&"!BDU_netværk")*INDEX(PL!$F$11:$F$57,MATCH(W6,PL!$C$11:$C$57,0)),IF(alle_aar_valg=2,INDIRECT(W$6&"_sam!BDU_netværk_sam")*INDEX(PL!$F$11:$F$57,MATCH(W6,PL!$C$11:$C$57,0)),IF(alle_aar_valg=3,INDIRECT(W$6&"_sam!BDU_netværk_reg")*INDEX(PL!$F$11:$F$57,MATCH(W6,PL!$C$11:$C$57,0)),INDIRECT(W$6&"_sam!BDU_netværk")*INDEX(PL!$F$11:$F$57,MATCH(W6,PL!$C$11:$C$57,0))))))) -> 
B19: Trin 5: Familiepleje | C19: =IF(C$6="","",IF(C6='2024'!$B$2,(IF(alle_aar_valg=1,'2024'!BDU_familiepleje*INDEX(PL!$F$11:$F$57,MATCH(C6,PL!$C$11:$C$57,0)),"Kan ikke vises")),IF(alle_aar_valg=1,INDIRECT(C$6&"!BDU_familiepleje")*INDEX(PL!$F$11:$F$57,MATCH(C6,PL!$C$11:$C$57,0)),IF(alle_aar_valg=2,INDIRECT(C$6&"_sam!BDU_familiepleje_sam")*INDEX(PL!$F$11:$F$57,MATCH(C6,PL!$C$11:$C$57,0)),IF(alle_aar_valg=3,INDIRECT(C$6&"_sam!BDU_familiepleje_reg")*INDEX(PL!$F$11:$F$57,MATCH(C6,PL!$C$11:$C$57,0)),INDIRECT(C$6&"_sam!BDU_familiepleje")*INDEX(PL!$F$11:$F$57,MATCH(C6,PL!$C$11:$C$57,0))))))) -> 41109.49695 | D19: =IF(D$6="","",IF(D6='2024'!$B$2,(IF(alle_aar_valg=1,'2024'!BDU_familiepleje*INDEX(PL!$F$11:$F$57,MATCH(D6,PL!$C$11:$C$57,0)),"Kan ikke vises")),IF(alle_aar_valg=1,INDIRECT(D$6&"!BDU_familiepleje")*INDEX(PL!$F$11:$F$57,MATCH(D6,PL!$C$11:$C$57,0)),IF(alle_aar_valg=2,INDIRECT(D$6&"_sam!BDU_familiepleje_sam")*INDEX(PL!$F$11:$F$57,MATCH(D6,PL!$C$11:$C$57,0)),IF(alle_aar_valg=3,INDIRECT(D$6&"_sam!BDU_familiepleje_reg")*INDEX(PL!$F$11:$F$57,MATCH(D6,PL!$C$11:$C$57,0)),INDIRECT(D$6&"_sam!BDU_familiepleje")*INDEX(PL!$F$11:$F$57,MATCH(D6,PL!$C$11:$C$57,0))))))) -> 39448.17085 | E19: =IF(E$6="","",IF(E6='2024'!$B$2,(IF(alle_aar_valg=1,'2024'!BDU_familiepleje*INDEX(PL!$F$11:$F$57,MATCH(E6,PL!$C$11:$C$57,0)),"Kan ikke vises")),IF(alle_aar_valg=1,INDIRECT(E$6&"!BDU_familiepleje")*INDEX(PL!$F$11:$F$57,MATCH(E6,PL!$C$11:$C$57,0)),IF(alle_aar_valg=2,INDIRECT(E$6&"_sam!BDU_familiepleje_sam")*INDEX(PL!$F$11:$F$57,MATCH(E6,PL!$C$11:$C$57,0)),IF(alle_aar_valg=3,INDIRECT(E$6&"_sam!BDU_familiepleje_reg")*INDEX(PL!$F$11:$F$57,MATCH(E6,PL!$C$11:$C$57,0)),INDIRECT(E$6&"_sam!BDU_familiepleje")*INDEX(PL!$F$11:$F$57,MATCH(E6,PL!$C$11:$C$57,0))))))) -> 38937.80707 | F19: =IF(F$6="","",IF(F6='2024'!$B$2,(IF(alle_aar_valg=1,'2024'!BDU_familiepleje*INDEX(PL!$F$11:$F$57,MATCH(F6,PL!$C$11:$C$57,0)),"Kan ikke vises")),IF(alle_aar_valg=1,INDIRECT(F$6&"!BDU_familiepleje")*INDEX(PL!$F$11:$F$57,MATCH(F6,PL!$C$11:$C$57,0)),IF(alle_aar_valg=2,INDIRECT(F$6&"_sam!BDU_familiepleje_sam")*INDEX(PL!$F$11:$F$57,MATCH(F6,PL!$C$11:$C$57,0)),IF(alle_aar_valg=3,INDIRECT(F$6&"_sam!BDU_familiepleje_reg")*INDEX(PL!$F$11:$F$57,MATCH(F6,PL!$C$11:$C$57,0)),INDIRECT(F$6&"_sam!BDU_familiepleje")*INDEX(PL!$F$11:$F$57,MATCH(F6,PL!$C$11:$C$57,0))))))) -> 40204.4817 | G19: =IF(G$6="","",IF(G6='2024'!$B$2,(IF(alle_aar_valg=1,'2024'!BDU_familiepleje*INDEX(PL!$F$11:$F$57,MATCH(G6,PL!$C$11:$C$57,0)),"Kan ikke vises")),IF(alle_aar_valg=1,INDIRECT(G$6&"!BDU_familiepleje")*INDEX(PL!$F$11:$F$57,MATCH(G6,PL!$C$11:$C$57,0)),IF(alle_aar_valg=2,INDIRECT(G$6&"_sam!BDU_familiepleje_sam")*INDEX(PL!$F$11:$F$57,MATCH(G6,PL!$C$11:$C$57,0)),IF(alle_aar_valg=3,INDIRECT(G$6&"_sam!BDU_familiepleje_reg")*INDEX(PL!$F$11:$F$57,MATCH(G6,PL!$C$11:$C$57,0)),INDIRECT(G$6&"_sam!BDU_familiepleje")*INDEX(PL!$F$11:$F$57,MATCH(G6,PL!$C$11:$C$57,0))))))) -> 44530.904 | H19: =IF(H$6="","",IF(H6='2024'!$B$2,(IF(alle_aar_valg=1,'2024'!BDU_familiepleje*INDEX(PL!$F$11:$F$57,MATCH(H6,PL!$C$11:$C$57,0)),"Kan ikke vises")),IF(alle_aar_valg=1,INDIRECT(H$6&"!BDU_familiepleje")*INDEX(PL!$F$11:$F$57,MATCH(H6,PL!$C$11:$C$57,0)),IF(alle_aar_valg=2,INDIRECT(H$6&"_sam!BDU_familiepleje_sam")*INDEX(PL!$F$11:$F$57,MATCH(H6,PL!$C$11:$C$57,0)),IF(alle_aar_valg=3,INDIRECT(H$6&"_sam!BDU_familiepleje_reg")*INDEX(PL!$F$11:$F$57,MATCH(H6,PL!$C$11:$C$57,0)),INDIRECT(H$6&"_sam!BDU_familiepleje")*INDEX(PL!$F$11:$F$57,MATCH(H6,PL!$C$11:$C$57,0))))))) -> 49067 | I19: =IF(I$6="","",IF(I6='2024'!$B$2,(IF(alle_aar_valg=1,'2024'!BDU_familiepleje*INDEX(PL!$F$11:$F$57,MATCH(I6,PL!$C$11:$C$57,0)),"Kan ikke vises")),IF(alle_aar_valg=1,INDIRECT(I$6&"!BDU_familiepleje")*INDEX(PL!$F$11:$F$57,MATCH(I6,PL!$C$11:$C$57,0)),IF(alle_aar_valg=2,INDIRECT(I$6&"_sam!BDU_familiepleje_sam")*INDEX(PL!$F$11:$F$57,MATCH(I6,PL!$C$11:$C$57,0)),IF(alle_aar_valg=3,INDIRECT(I$6&"_sam!BDU_familiepleje_reg")*INDEX(PL!$F$11:$F$57,MATCH(I6,PL!$C$11:$C$57,0)),INDIRECT(I$6&"_sam!BDU_familiepleje")*INDEX(PL!$F$11:$F$57,MATCH(I6,PL!$C$11:$C$57,0))))))) ->  | J19: =IF(J$6="","",IF(J6='2024'!$B$2,(IF(alle_aar_valg=1,'2024'!BDU_familiepleje*INDEX(PL!$F$11:$F$57,MATCH(J6,PL!$C$11:$C$57,0)),"Kan ikke vises")),IF(alle_aar_valg=1,INDIRECT(J$6&"!BDU_familiepleje")*INDEX(PL!$F$11:$F$57,MATCH(J6,PL!$C$11:$C$57,0)),IF(alle_aar_valg=2,INDIRECT(J$6&"_sam!BDU_familiepleje_sam")*INDEX(PL!$F$11:$F$57,MATCH(J6,PL!$C$11:$C$57,0)),IF(alle_aar_valg=3,INDIRECT(J$6&"_sam!BDU_familiepleje_reg")*INDEX(PL!$F$11:$F$57,MATCH(J6,PL!$C$11:$C$57,0)),INDIRECT(J$6&"_sam!BDU_familiepleje")*INDEX(PL!$F$11:$F$57,MATCH(J6,PL!$C$11:$C$57,0))))))) ->  | K19: =IF(K$6="","",IF(K6='2024'!$B$2,(IF(alle_aar_valg=1,'2024'!BDU_familiepleje*INDEX(PL!$F$11:$F$57,MATCH(K6,PL!$C$11:$C$57,0)),"Kan ikke vises")),IF(alle_aar_valg=1,INDIRECT(K$6&"!BDU_familiepleje")*INDEX(PL!$F$11:$F$57,MATCH(K6,PL!$C$11:$C$57,0)),IF(alle_aar_valg=2,INDIRECT(K$6&"_sam!BDU_familiepleje_sam")*INDEX(PL!$F$11:$F$57,MATCH(K6,PL!$C$11:$C$57,0)),IF(alle_aar_valg=3,INDIRECT(K$6&"_sam!BDU_familiepleje_reg")*INDEX(PL!$F$11:$F$57,MATCH(K6,PL!$C$11:$C$57,0)),INDIRECT(K$6&"_sam!BDU_familiepleje")*INDEX(PL!$F$11:$F$57,MATCH(K6,PL!$C$11:$C$57,0))))))) ->  | L19: =IF(L$6="","",IF(L6='2024'!$B$2,(IF(alle_aar_valg=1,'2024'!BDU_familiepleje*INDEX(PL!$F$11:$F$57,MATCH(L6,PL!$C$11:$C$57,0)),"Kan ikke vises")),IF(alle_aar_valg=1,INDIRECT(L$6&"!BDU_familiepleje")*INDEX(PL!$F$11:$F$57,MATCH(L6,PL!$C$11:$C$57,0)),IF(alle_aar_valg=2,INDIRECT(L$6&"_sam!BDU_familiepleje_sam")*INDEX(PL!$F$11:$F$57,MATCH(L6,PL!$C$11:$C$57,0)),IF(alle_aar_valg=3,INDIRECT(L$6&"_sam!BDU_familiepleje_reg")*INDEX(PL!$F$11:$F$57,MATCH(L6,PL!$C$11:$C$57,0)),INDIRECT(L$6&"_sam!BDU_familiepleje")*INDEX(PL!$F$11:$F$57,MATCH(L6,PL!$C$11:$C$57,0))))))) ->  | M19: =IF(M$6="","",IF(M6='2024'!$B$2,(IF(alle_aar_valg=1,'2024'!BDU_familiepleje*INDEX(PL!$F$11:$F$57,MATCH(M6,PL!$C$11:$C$57,0)),"Kan ikke vises")),IF(alle_aar_valg=1,INDIRECT(M$6&"!BDU_familiepleje")*INDEX(PL!$F$11:$F$57,MATCH(M6,PL!$C$11:$C$57,0)),IF(alle_aar_valg=2,INDIRECT(M$6&"_sam!BDU_familiepleje_sam")*INDEX(PL!$F$11:$F$57,MATCH(M6,PL!$C$11:$C$57,0)),IF(alle_aar_valg=3,INDIRECT(M$6&"_sam!BDU_familiepleje_reg")*INDEX(PL!$F$11:$F$57,MATCH(M6,PL!$C$11:$C$57,0)),INDIRECT(M$6&"_sam!BDU_familiepleje")*INDEX(PL!$F$11:$F$57,MATCH(M6,PL!$C$11:$C$57,0))))))) ->  | N19: =IF(N$6="","",IF(N6='2024'!$B$2,(IF(alle_aar_valg=1,'2024'!BDU_familiepleje*INDEX(PL!$F$11:$F$57,MATCH(N6,PL!$C$11:$C$57,0)),"Kan ikke vises")),IF(alle_aar_valg=1,INDIRECT(N$6&"!BDU_familiepleje")*INDEX(PL!$F$11:$F$57,MATCH(N6,PL!$C$11:$C$57,0)),IF(alle_aar_valg=2,INDIRECT(N$6&"_sam!BDU_familiepleje_sam")*INDEX(PL!$F$11:$F$57,MATCH(N6,PL!$C$11:$C$57,0)),IF(alle_aar_valg=3,INDIRECT(N$6&"_sam!BDU_familiepleje_reg")*INDEX(PL!$F$11:$F$57,MATCH(N6,PL!$C$11:$C$57,0)),INDIRECT(N$6&"_sam!BDU_familiepleje")*INDEX(PL!$F$11:$F$57,MATCH(N6,PL!$C$11:$C$57,0))))))) ->  | O19: =IF(O$6="","",IF(O6='2024'!$B$2,(IF(alle_aar_valg=1,'2024'!BDU_familiepleje*INDEX(PL!$F$11:$F$57,MATCH(O6,PL!$C$11:$C$57,0)),"Kan ikke vises")),IF(alle_aar_valg=1,INDIRECT(O$6&"!BDU_familiepleje")*INDEX(PL!$F$11:$F$57,MATCH(O6,PL!$C$11:$C$57,0)),IF(alle_aar_valg=2,INDIRECT(O$6&"_sam!BDU_familiepleje_sam")*INDEX(PL!$F$11:$F$57,MATCH(O6,PL!$C$11:$C$57,0)),IF(alle_aar_valg=3,INDIRECT(O$6&"_sam!BDU_familiepleje_reg")*INDEX(PL!$F$11:$F$57,MATCH(O6,PL!$C$11:$C$57,0)),INDIRECT(O$6&"_sam!BDU_familiepleje")*INDEX(PL!$F$11:$F$57,MATCH(O6,PL!$C$11:$C$57,0))))))) ->  | P19: =IF(P$6="","",IF(P6='2024'!$B$2,(IF(alle_aar_valg=1,'2024'!BDU_familiepleje*INDEX(PL!$F$11:$F$57,MATCH(P6,PL!$C$11:$C$57,0)),"Kan ikke vises")),IF(alle_aar_valg=1,INDIRECT(P$6&"!BDU_familiepleje")*INDEX(PL!$F$11:$F$57,MATCH(P6,PL!$C$11:$C$57,0)),IF(alle_aar_valg=2,INDIRECT(P$6&"_sam!BDU_familiepleje_sam")*INDEX(PL!$F$11:$F$57,MATCH(P6,PL!$C$11:$C$57,0)),IF(alle_aar_valg=3,INDIRECT(P$6&"_sam!BDU_familiepleje_reg")*INDEX(PL!$F$11:$F$57,MATCH(P6,PL!$C$11:$C$57,0)),INDIRECT(P$6&"_sam!BDU_familiepleje")*INDEX(PL!$F$11:$F$57,MATCH(P6,PL!$C$11:$C$57,0))))))) ->  | Q19: =IF(Q$6="","",IF(Q6='2024'!$B$2,(IF(alle_aar_valg=1,'2024'!BDU_familiepleje*INDEX(PL!$F$11:$F$57,MATCH(Q6,PL!$C$11:$C$57,0)),"Kan ikke vises")),IF(alle_aar_valg=1,INDIRECT(Q$6&"!BDU_familiepleje")*INDEX(PL!$F$11:$F$57,MATCH(Q6,PL!$C$11:$C$57,0)),IF(alle_aar_valg=2,INDIRECT(Q$6&"_sam!BDU_familiepleje_sam")*INDEX(PL!$F$11:$F$57,MATCH(Q6,PL!$C$11:$C$57,0)),IF(alle_aar_valg=3,INDIRECT(Q$6&"_sam!BDU_familiepleje_reg")*INDEX(PL!$F$11:$F$57,MATCH(Q6,PL!$C$11:$C$57,0)),INDIRECT(Q$6&"_sam!BDU_familiepleje")*INDEX(PL!$F$11:$F$57,MATCH(Q6,PL!$C$11:$C$57,0))))))) ->  | R19: =IF(R$6="","",IF(R6='2024'!$B$2,(IF(alle_aar_valg=1,'2024'!BDU_familiepleje*INDEX(PL!$F$11:$F$57,MATCH(R6,PL!$C$11:$C$57,0)),"Kan ikke vises")),IF(alle_aar_valg=1,INDIRECT(R$6&"!BDU_familiepleje")*INDEX(PL!$F$11:$F$57,MATCH(R6,PL!$C$11:$C$57,0)),IF(alle_aar_valg=2,INDIRECT(R$6&"_sam!BDU_familiepleje_sam")*INDEX(PL!$F$11:$F$57,MATCH(R6,PL!$C$11:$C$57,0)),IF(alle_aar_valg=3,INDIRECT(R$6&"_sam!BDU_familiepleje_reg")*INDEX(PL!$F$11:$F$57,MATCH(R6,PL!$C$11:$C$57,0)),INDIRECT(R$6&"_sam!BDU_familiepleje")*INDEX(PL!$F$11:$F$57,MATCH(R6,PL!$C$11:$C$57,0))))))) ->  | S19: =IF(S$6="","",IF(S6='2024'!$B$2,(IF(alle_aar_valg=1,'2024'!BDU_familiepleje*INDEX(PL!$F$11:$F$57,MATCH(S6,PL!$C$11:$C$57,0)),"Kan ikke vises")),IF(alle_aar_valg=1,INDIRECT(S$6&"!BDU_familiepleje")*INDEX(PL!$F$11:$F$57,MATCH(S6,PL!$C$11:$C$57,0)),IF(alle_aar_valg=2,INDIRECT(S$6&"_sam!BDU_familiepleje_sam")*INDEX(PL!$F$11:$F$57,MATCH(S6,PL!$C$11:$C$57,0)),IF(alle_aar_valg=3,INDIRECT(S$6&"_sam!BDU_familiepleje_reg")*INDEX(PL!$F$11:$F$57,MATCH(S6,PL!$C$11:$C$57,0)),INDIRECT(S$6&"_sam!BDU_familiepleje")*INDEX(PL!$F$11:$F$57,MATCH(S6,PL!$C$11:$C$57,0))))))) ->  | T19: =IF(T$6="","",IF(T6='2024'!$B$2,(IF(alle_aar_valg=1,'2024'!BDU_familiepleje*INDEX(PL!$F$11:$F$57,MATCH(T6,PL!$C$11:$C$57,0)),"Kan ikke vises")),IF(alle_aar_valg=1,INDIRECT(T$6&"!BDU_familiepleje")*INDEX(PL!$F$11:$F$57,MATCH(T6,PL!$C$11:$C$57,0)),IF(alle_aar_valg=2,INDIRECT(T$6&"_sam!BDU_familiepleje_sam")*INDEX(PL!$F$11:$F$57,MATCH(T6,PL!$C$11:$C$57,0)),IF(alle_aar_valg=3,INDIRECT(T$6&"_sam!BDU_familiepleje_reg")*INDEX(PL!$F$11:$F$57,MATCH(T6,PL!$C$11:$C$57,0)),INDIRECT(T$6&"_sam!BDU_familiepleje")*INDEX(PL!$F$11:$F$57,MATCH(T6,PL!$C$11:$C$57,0))))))) ->  | U19: =IF(U$6="","",IF(U6='2024'!$B$2,(IF(alle_aar_valg=1,'2024'!BDU_familiepleje*INDEX(PL!$F$11:$F$57,MATCH(U6,PL!$C$11:$C$57,0)),"Kan ikke vises")),IF(alle_aar_valg=1,INDIRECT(U$6&"!BDU_familiepleje")*INDEX(PL!$F$11:$F$57,MATCH(U6,PL!$C$11:$C$57,0)),IF(alle_aar_valg=2,INDIRECT(U$6&"_sam!BDU_familiepleje_sam")*INDEX(PL!$F$11:$F$57,MATCH(U6,PL!$C$11:$C$57,0)),IF(alle_aar_valg=3,INDIRECT(U$6&"_sam!BDU_familiepleje_reg")*INDEX(PL!$F$11:$F$57,MATCH(U6,PL!$C$11:$C$57,0)),INDIRECT(U$6&"_sam!BDU_familiepleje")*INDEX(PL!$F$11:$F$57,MATCH(U6,PL!$C$11:$C$57,0))))))) ->  | V19: =IF(V$6="","",IF(V6='2024'!$B$2,(IF(alle_aar_valg=1,'2024'!BDU_familiepleje*INDEX(PL!$F$11:$F$57,MATCH(V6,PL!$C$11:$C$57,0)),"Kan ikke vises")),IF(alle_aar_valg=1,INDIRECT(V$6&"!BDU_familiepleje")*INDEX(PL!$F$11:$F$57,MATCH(V6,PL!$C$11:$C$57,0)),IF(alle_aar_valg=2,INDIRECT(V$6&"_sam!BDU_familiepleje_sam")*INDEX(PL!$F$11:$F$57,MATCH(V6,PL!$C$11:$C$57,0)),IF(alle_aar_valg=3,INDIRECT(V$6&"_sam!BDU_familiepleje_reg")*INDEX(PL!$F$11:$F$57,MATCH(V6,PL!$C$11:$C$57,0)),INDIRECT(V$6&"_sam!BDU_familiepleje")*INDEX(PL!$F$11:$F$57,MATCH(V6,PL!$C$11:$C$57,0))))))) ->  | W19: =IF(W$6="","",IF(W6='2024'!$B$2,(IF(alle_aar_valg=1,'2024'!BDU_familiepleje*INDEX(PL!$F$11:$F$57,MATCH(W6,PL!$C$11:$C$57,0)),"Kan ikke vises")),IF(alle_aar_valg=1,INDIRECT(W$6&"!BDU_familiepleje")*INDEX(PL!$F$11:$F$57,MATCH(W6,PL!$C$11:$C$57,0)),IF(alle_aar_valg=2,INDIRECT(W$6&"_sam!BDU_familiepleje_sam")*INDEX(PL!$F$11:$F$57,MATCH(W6,PL!$C$11:$C$57,0)),IF(alle_aar_valg=3,INDIRECT(W$6&"_sam!BDU_familiepleje_reg")*INDEX(PL!$F$11:$F$57,MATCH(W6,PL!$C$11:$C$57,0)),INDIRECT(W$6&"_sam!BDU_familiepleje")*INDEX(PL!$F$11:$F$57,MATCH(W6,PL!$C$11:$C$57,0))))))) -> 
B20: Trin 6: Institutionsanbringelser | C20: =IF(C$6="","",IF(C6='2024'!$B$2,(IF(alle_aar_valg=1,'2024'!BDU_institution*INDEX(PL!$F$11:$F$57,MATCH(C6,PL!$C$11:$C$57,0)),"Kan ikke vises")),IF(alle_aar_valg=1,INDIRECT(C$6&"!BDU_institution")*INDEX(PL!$F$11:$F$57,MATCH(C6,PL!$C$11:$C$57,0)),IF(alle_aar_valg=2,INDIRECT(C$6&"_sam!BDU_institution_sam")*INDEX(PL!$F$11:$F$57,MATCH(C6,PL!$C$11:$C$57,0)),IF(alle_aar_valg=3,INDIRECT(C$6&"_sam!BDU_institution_reg")*INDEX(PL!$F$11:$F$57,MATCH(C6,PL!$C$11:$C$57,0)),INDIRECT(C$6&"_sam!BDU_institution")*INDEX(PL!$F$11:$F$57,MATCH(C6,PL!$C$11:$C$57,0))))))) -> 23600.22962 | D20: =IF(D$6="","",IF(D6='2024'!$B$2,(IF(alle_aar_valg=1,'2024'!BDU_institution*INDEX(PL!$F$11:$F$57,MATCH(D6,PL!$C$11:$C$57,0)),"Kan ikke vises")),IF(alle_aar_valg=1,INDIRECT(D$6&"!BDU_institution")*INDEX(PL!$F$11:$F$57,MATCH(D6,PL!$C$11:$C$57,0)),IF(alle_aar_valg=2,INDIRECT(D$6&"_sam!BDU_institution_sam")*INDEX(PL!$F$11:$F$57,MATCH(D6,PL!$C$11:$C$57,0)),IF(alle_aar_valg=3,INDIRECT(D$6&"_sam!BDU_institution_reg")*INDEX(PL!$F$11:$F$57,MATCH(D6,PL!$C$11:$C$57,0)),INDIRECT(D$6&"_sam!BDU_institution")*INDEX(PL!$F$11:$F$57,MATCH(D6,PL!$C$11:$C$57,0))))))) -> 23147.7678 | E20: =IF(E$6="","",IF(E6='2024'!$B$2,(IF(alle_aar_valg=1,'2024'!BDU_institution*INDEX(PL!$F$11:$F$57,MATCH(E6,PL!$C$11:$C$57,0)),"Kan ikke vises")),IF(alle_aar_valg=1,INDIRECT(E$6&"!BDU_institution")*INDEX(PL!$F$11:$F$57,MATCH(E6,PL!$C$11:$C$57,0)),IF(alle_aar_valg=2,INDIRECT(E$6&"_sam!BDU_institution_sam")*INDEX(PL!$F$11:$F$57,MATCH(E6,PL!$C$11:$C$57,0)),IF(alle_aar_valg=3,INDIRECT(E$6&"_sam!BDU_institution_reg")*INDEX(PL!$F$11:$F$57,MATCH(E6,PL!$C$11:$C$57,0)),INDIRECT(E$6&"_sam!BDU_institution")*INDEX(PL!$F$11:$F$57,MATCH(E6,PL!$C$11:$C$57,0))))))) -> 18482.09533 | F20: =IF(F$6="","",IF(F6='2024'!$B$2,(IF(alle_aar_valg=1,'2024'!BDU_institution*INDEX(PL!$F$11:$F$57,MATCH(F6,PL!$C$11:$C$57,0)),"Kan ikke vises")),IF(alle_aar_valg=1,INDIRECT(F$6&"!BDU_institution")*INDEX(PL!$F$11:$F$57,MATCH(F6,PL!$C$11:$C$57,0)),IF(alle_aar_valg=2,INDIRECT(F$6&"_sam!BDU_institution_sam")*INDEX(PL!$F$11:$F$57,MATCH(F6,PL!$C$11:$C$57,0)),IF(alle_aar_valg=3,INDIRECT(F$6&"_sam!BDU_institution_reg")*INDEX(PL!$F$11:$F$57,MATCH(F6,PL!$C$11:$C$57,0)),INDIRECT(F$6&"_sam!BDU_institution")*INDEX(PL!$F$11:$F$57,MATCH(F6,PL!$C$11:$C$57,0))))))) -> 17911.53687 | G20: =IF(G$6="","",IF(G6='2024'!$B$2,(IF(alle_aar_valg=1,'2024'!BDU_institution*INDEX(PL!$F$11:$F$57,MATCH(G6,PL!$C$11:$C$57,0)),"Kan ikke vises")),IF(alle_aar_valg=1,INDIRECT(G$6&"!BDU_institution")*INDEX(PL!$F$11:$F$57,MATCH(G6,PL!$C$11:$C$57,0)),IF(alle_aar_valg=2,INDIRECT(G$6&"_sam!BDU_institution_sam")*INDEX(PL!$F$11:$F$57,MATCH(G6,PL!$C$11:$C$57,0)),IF(alle_aar_valg=3,INDIRECT(G$6&"_sam!BDU_institution_reg")*INDEX(PL!$F$11:$F$57,MATCH(G6,PL!$C$11:$C$57,0)),INDIRECT(G$6&"_sam!BDU_institution")*INDEX(PL!$F$11:$F$57,MATCH(G6,PL!$C$11:$C$57,0))))))) -> 29621.82 | H20: =IF(H$6="","",IF(H6='2024'!$B$2,(IF(alle_aar_valg=1,'2024'!BDU_institution*INDEX(PL!$F$11:$F$57,MATCH(H6,PL!$C$11:$C$57,0)),"Kan ikke vises")),IF(alle_aar_valg=1,INDIRECT(H$6&"!BDU_institution")*INDEX(PL!$F$11:$F$57,MATCH(H6,PL!$C$11:$C$57,0)),IF(alle_aar_valg=2,INDIRECT(H$6&"_sam!BDU_institution_sam")*INDEX(PL!$F$11:$F$57,MATCH(H6,PL!$C$11:$C$57,0)),IF(alle_aar_valg=3,INDIRECT(H$6&"_sam!BDU_institution_reg")*INDEX(PL!$F$11:$F$57,MATCH(H6,PL!$C$11:$C$57,0)),INDIRECT(H$6&"_sam!BDU_institution")*INDEX(PL!$F$11:$F$57,MATCH(H6,PL!$C$11:$C$57,0))))))) -> 41349 | I20: =IF(I$6="","",IF(I6='2024'!$B$2,(IF(alle_aar_valg=1,'2024'!BDU_institution*INDEX(PL!$F$11:$F$57,MATCH(I6,PL!$C$11:$C$57,0)),"Kan ikke vises")),IF(alle_aar_valg=1,INDIRECT(I$6&"!BDU_institution")*INDEX(PL!$F$11:$F$57,MATCH(I6,PL!$C$11:$C$57,0)),IF(alle_aar_valg=2,INDIRECT(I$6&"_sam!BDU_institution_sam")*INDEX(PL!$F$11:$F$57,MATCH(I6,PL!$C$11:$C$57,0)),IF(alle_aar_valg=3,INDIRECT(I$6&"_sam!BDU_institution_reg")*INDEX(PL!$F$11:$F$57,MATCH(I6,PL!$C$11:$C$57,0)),INDIRECT(I$6&"_sam!BDU_institution")*INDEX(PL!$F$11:$F$57,MATCH(I6,PL!$C$11:$C$57,0))))))) ->  | J20: =IF(J$6="","",IF(J6='2024'!$B$2,(IF(alle_aar_valg=1,'2024'!BDU_institution*INDEX(PL!$F$11:$F$57,MATCH(J6,PL!$C$11:$C$57,0)),"Kan ikke vises")),IF(alle_aar_valg=1,INDIRECT(J$6&"!BDU_institution")*INDEX(PL!$F$11:$F$57,MATCH(J6,PL!$C$11:$C$57,0)),IF(alle_aar_valg=2,INDIRECT(J$6&"_sam!BDU_institution_sam")*INDEX(PL!$F$11:$F$57,MATCH(J6,PL!$C$11:$C$57,0)),IF(alle_aar_valg=3,INDIRECT(J$6&"_sam!BDU_institution_reg")*INDEX(PL!$F$11:$F$57,MATCH(J6,PL!$C$11:$C$57,0)),INDIRECT(J$6&"_sam!BDU_institution")*INDEX(PL!$F$11:$F$57,MATCH(J6,PL!$C$11:$C$57,0))))))) ->  | K20: =IF(K$6="","",IF(K6='2024'!$B$2,(IF(alle_aar_valg=1,'2024'!BDU_institution*INDEX(PL!$F$11:$F$57,MATCH(K6,PL!$C$11:$C$57,0)),"Kan ikke vises")),IF(alle_aar_valg=1,INDIRECT(K$6&"!BDU_institution")*INDEX(PL!$F$11:$F$57,MATCH(K6,PL!$C$11:$C$57,0)),IF(alle_aar_valg=2,INDIRECT(K$6&"_sam!BDU_institution_sam")*INDEX(PL!$F$11:$F$57,MATCH(K6,PL!$C$11:$C$57,0)),IF(alle_aar_valg=3,INDIRECT(K$6&"_sam!BDU_institution_reg")*INDEX(PL!$F$11:$F$57,MATCH(K6,PL!$C$11:$C$57,0)),INDIRECT(K$6&"_sam!BDU_institution")*INDEX(PL!$F$11:$F$57,MATCH(K6,PL!$C$11:$C$57,0))))))) ->  | L20: =IF(L$6="","",IF(L6='2024'!$B$2,(IF(alle_aar_valg=1,'2024'!BDU_institution*INDEX(PL!$F$11:$F$57,MATCH(L6,PL!$C$11:$C$57,0)),"Kan ikke vises")),IF(alle_aar_valg=1,INDIRECT(L$6&"!BDU_institution")*INDEX(PL!$F$11:$F$57,MATCH(L6,PL!$C$11:$C$57,0)),IF(alle_aar_valg=2,INDIRECT(L$6&"_sam!BDU_institution_sam")*INDEX(PL!$F$11:$F$57,MATCH(L6,PL!$C$11:$C$57,0)),IF(alle_aar_valg=3,INDIRECT(L$6&"_sam!BDU_institution_reg")*INDEX(PL!$F$11:$F$57,MATCH(L6,PL!$C$11:$C$57,0)),INDIRECT(L$6&"_sam!BDU_institution")*INDEX(PL!$F$11:$F$57,MATCH(L6,PL!$C$11:$C$57,0))))))) ->  | M20: =IF(M$6="","",IF(M6='2024'!$B$2,(IF(alle_aar_valg=1,'2024'!BDU_institution*INDEX(PL!$F$11:$F$57,MATCH(M6,PL!$C$11:$C$57,0)),"Kan ikke vises")),IF(alle_aar_valg=1,INDIRECT(M$6&"!BDU_institution")*INDEX(PL!$F$11:$F$57,MATCH(M6,PL!$C$11:$C$57,0)),IF(alle_aar_valg=2,INDIRECT(M$6&"_sam!BDU_institution_sam")*INDEX(PL!$F$11:$F$57,MATCH(M6,PL!$C$11:$C$57,0)),IF(alle_aar_valg=3,INDIRECT(M$6&"_sam!BDU_institution_reg")*INDEX(PL!$F$11:$F$57,MATCH(M6,PL!$C$11:$C$57,0)),INDIRECT(M$6&"_sam!BDU_institution")*INDEX(PL!$F$11:$F$57,MATCH(M6,PL!$C$11:$C$57,0))))))) ->  | N20: =IF(N$6="","",IF(N6='2024'!$B$2,(IF(alle_aar_valg=1,'2024'!BDU_institution*INDEX(PL!$F$11:$F$57,MATCH(N6,PL!$C$11:$C$57,0)),"Kan ikke vises")),IF(alle_aar_valg=1,INDIRECT(N$6&"!BDU_institution")*INDEX(PL!$F$11:$F$57,MATCH(N6,PL!$C$11:$C$57,0)),IF(alle_aar_valg=2,INDIRECT(N$6&"_sam!BDU_institution_sam")*INDEX(PL!$F$11:$F$57,MATCH(N6,PL!$C$11:$C$57,0)),IF(alle_aar_valg=3,INDIRECT(N$6&"_sam!BDU_institution_reg")*INDEX(PL!$F$11:$F$57,MATCH(N6,PL!$C$11:$C$57,0)),INDIRECT(N$6&"_sam!BDU_institution")*INDEX(PL!$F$11:$F$57,MATCH(N6,PL!$C$11:$C$57,0))))))) ->  | O20: =IF(O$6="","",IF(O6='2024'!$B$2,(IF(alle_aar_valg=1,'2024'!BDU_institution*INDEX(PL!$F$11:$F$57,MATCH(O6,PL!$C$11:$C$57,0)),"Kan ikke vises")),IF(alle_aar_valg=1,INDIRECT(O$6&"!BDU_institution")*INDEX(PL!$F$11:$F$57,MATCH(O6,PL!$C$11:$C$57,0)),IF(alle_aar_valg=2,INDIRECT(O$6&"_sam!BDU_institution_sam")*INDEX(PL!$F$11:$F$57,MATCH(O6,PL!$C$11:$C$57,0)),IF(alle_aar_valg=3,INDIRECT(O$6&"_sam!BDU_institution_reg")*INDEX(PL!$F$11:$F$57,MATCH(O6,PL!$C$11:$C$57,0)),INDIRECT(O$6&"_sam!BDU_institution")*INDEX(PL!$F$11:$F$57,MATCH(O6,PL!$C$11:$C$57,0))))))) ->  | P20: =IF(P$6="","",IF(P6='2024'!$B$2,(IF(alle_aar_valg=1,'2024'!BDU_institution*INDEX(PL!$F$11:$F$57,MATCH(P6,PL!$C$11:$C$57,0)),"Kan ikke vises")),IF(alle_aar_valg=1,INDIRECT(P$6&"!BDU_institution")*INDEX(PL!$F$11:$F$57,MATCH(P6,PL!$C$11:$C$57,0)),IF(alle_aar_valg=2,INDIRECT(P$6&"_sam!BDU_institution_sam")*INDEX(PL!$F$11:$F$57,MATCH(P6,PL!$C$11:$C$57,0)),IF(alle_aar_valg=3,INDIRECT(P$6&"_sam!BDU_institution_reg")*INDEX(PL!$F$11:$F$57,MATCH(P6,PL!$C$11:$C$57,0)),INDIRECT(P$6&"_sam!BDU_institution")*INDEX(PL!$F$11:$F$57,MATCH(P6,PL!$C$11:$C$57,0))))))) ->  | Q20: =IF(Q$6="","",IF(Q6='2024'!$B$2,(IF(alle_aar_valg=1,'2024'!BDU_institution*INDEX(PL!$F$11:$F$57,MATCH(Q6,PL!$C$11:$C$57,0)),"Kan ikke vises")),IF(alle_aar_valg=1,INDIRECT(Q$6&"!BDU_institution")*INDEX(PL!$F$11:$F$57,MATCH(Q6,PL!$C$11:$C$57,0)),IF(alle_aar_valg=2,INDIRECT(Q$6&"_sam!BDU_institution_sam")*INDEX(PL!$F$11:$F$57,MATCH(Q6,PL!$C$11:$C$57,0)),IF(alle_aar_valg=3,INDIRECT(Q$6&"_sam!BDU_institution_reg")*INDEX(PL!$F$11:$F$57,MATCH(Q6,PL!$C$11:$C$57,0)),INDIRECT(Q$6&"_sam!BDU_institution")*INDEX(PL!$F$11:$F$57,MATCH(Q6,PL!$C$11:$C$57,0))))))) ->  | R20: =IF(R$6="","",IF(R6='2024'!$B$2,(IF(alle_aar_valg=1,'2024'!BDU_institution*INDEX(PL!$F$11:$F$57,MATCH(R6,PL!$C$11:$C$57,0)),"Kan ikke vises")),IF(alle_aar_valg=1,INDIRECT(R$6&"!BDU_institution")*INDEX(PL!$F$11:$F$57,MATCH(R6,PL!$C$11:$C$57,0)),IF(alle_aar_valg=2,INDIRECT(R$6&"_sam!BDU_institution_sam")*INDEX(PL!$F$11:$F$57,MATCH(R6,PL!$C$11:$C$57,0)),IF(alle_aar_valg=3,INDIRECT(R$6&"_sam!BDU_institution_reg")*INDEX(PL!$F$11:$F$57,MATCH(R6,PL!$C$11:$C$57,0)),INDIRECT(R$6&"_sam!BDU_institution")*INDEX(PL!$F$11:$F$57,MATCH(R6,PL!$C$11:$C$57,0))))))) ->  | S20: =IF(S$6="","",IF(S6='2024'!$B$2,(IF(alle_aar_valg=1,'2024'!BDU_institution*INDEX(PL!$F$11:$F$57,MATCH(S6,PL!$C$11:$C$57,0)),"Kan ikke vises")),IF(alle_aar_valg=1,INDIRECT(S$6&"!BDU_institution")*INDEX(PL!$F$11:$F$57,MATCH(S6,PL!$C$11:$C$57,0)),IF(alle_aar_valg=2,INDIRECT(S$6&"_sam!BDU_institution_sam")*INDEX(PL!$F$11:$F$57,MATCH(S6,PL!$C$11:$C$57,0)),IF(alle_aar_valg=3,INDIRECT(S$6&"_sam!BDU_institution_reg")*INDEX(PL!$F$11:$F$57,MATCH(S6,PL!$C$11:$C$57,0)),INDIRECT(S$6&"_sam!BDU_institution")*INDEX(PL!$F$11:$F$57,MATCH(S6,PL!$C$11:$C$57,0))))))) ->  | T20: =IF(T$6="","",IF(T6='2024'!$B$2,(IF(alle_aar_valg=1,'2024'!BDU_institution*INDEX(PL!$F$11:$F$57,MATCH(T6,PL!$C$11:$C$57,0)),"Kan ikke vises")),IF(alle_aar_valg=1,INDIRECT(T$6&"!BDU_institution")*INDEX(PL!$F$11:$F$57,MATCH(T6,PL!$C$11:$C$57,0)),IF(alle_aar_valg=2,INDIRECT(T$6&"_sam!BDU_institution_sam")*INDEX(PL!$F$11:$F$57,MATCH(T6,PL!$C$11:$C$57,0)),IF(alle_aar_valg=3,INDIRECT(T$6&"_sam!BDU_institution_reg")*INDEX(PL!$F$11:$F$57,MATCH(T6,PL!$C$11:$C$57,0)),INDIRECT(T$6&"_sam!BDU_institution")*INDEX(PL!$F$11:$F$57,MATCH(T6,PL!$C$11:$C$57,0))))))) ->  | U20: =IF(U$6="","",IF(U6='2024'!$B$2,(IF(alle_aar_valg=1,'2024'!BDU_institution*INDEX(PL!$F$11:$F$57,MATCH(U6,PL!$C$11:$C$57,0)),"Kan ikke vises")),IF(alle_aar_valg=1,INDIRECT(U$6&"!BDU_institution")*INDEX(PL!$F$11:$F$57,MATCH(U6,PL!$C$11:$C$57,0)),IF(alle_aar_valg=2,INDIRECT(U$6&"_sam!BDU_institution_sam")*INDEX(PL!$F$11:$F$57,MATCH(U6,PL!$C$11:$C$57,0)),IF(alle_aar_valg=3,INDIRECT(U$6&"_sam!BDU_institution_reg")*INDEX(PL!$F$11:$F$57,MATCH(U6,PL!$C$11:$C$57,0)),INDIRECT(U$6&"_sam!BDU_institution")*INDEX(PL!$F$11:$F$57,MATCH(U6,PL!$C$11:$C$57,0))))))) ->  | V20: =IF(V$6="","",IF(V6='2024'!$B$2,(IF(alle_aar_valg=1,'2024'!BDU_institution*INDEX(PL!$F$11:$F$57,MATCH(V6,PL!$C$11:$C$57,0)),"Kan ikke vises")),IF(alle_aar_valg=1,INDIRECT(V$6&"!BDU_institution")*INDEX(PL!$F$11:$F$57,MATCH(V6,PL!$C$11:$C$57,0)),IF(alle_aar_valg=2,INDIRECT(V$6&"_sam!BDU_institution_sam")*INDEX(PL!$F$11:$F$57,MATCH(V6,PL!$C$11:$C$57,0)),IF(alle_aar_valg=3,INDIRECT(V$6&"_sam!BDU_institution_reg")*INDEX(PL!$F$11:$F$57,MATCH(V6,PL!$C$11:$C$57,0)),INDIRECT(V$6&"_sam!BDU_institution")*INDEX(PL!$F$11:$F$57,MATCH(V6,PL!$C$11:$C$57,0))))))) ->  | W20: =IF(W$6="","",IF(W6='2024'!$B$2,(IF(alle_aar_valg=1,'2024'!BDU_institution*INDEX(PL!$F$11:$F$57,MATCH(W6,PL!$C$11:$C$57,0)),"Kan ikke vises")),IF(alle_aar_valg=1,INDIRECT(W$6&"!BDU_institution")*INDEX(PL!$F$11:$F$57,MATCH(W6,PL!$C$11:$C$57,0)),IF(alle_aar_valg=2,INDIRECT(W$6&"_sam!BDU_institution_sam")*INDEX(PL!$F$11:$F$57,MATCH(W6,PL!$C$11:$C$57,0)),IF(alle_aar_valg=3,INDIRECT(W$6&"_sam!BDU_institution_reg")*INDEX(PL!$F$11:$F$57,MATCH(W6,PL!$C$11:$C$57,0)),INDIRECT(W$6&"_sam!BDU_institution")*INDEX(PL!$F$11:$F$57,MATCH(W6,PL!$C$11:$C$57,0))))))) -> 
B21: Ikke-trinspecifikke grupperinger | C21: =IF(C$6="","",IF(C6='2024'!$B$2,(IF(alle_aar_valg=1,'2024'!BDU_universal*INDEX(PL!$F$11:$F$57,MATCH(C6,PL!$C$11:$C$57,0)),"Kan ikke vises")),IF(alle_aar_valg=1,INDIRECT(C$6&"!BDU_universal")*INDEX(PL!$F$11:$F$57,MATCH(C6,PL!$C$11:$C$57,0)),IF(alle_aar_valg=2,INDIRECT(C$6&"_sam!BDU_universal_sam")*INDEX(PL!$F$11:$F$57,MATCH(C6,PL!$C$11:$C$57,0)),IF(alle_aar_valg=3,INDIRECT(C$6&"_sam!BDU_universal_reg")*INDEX(PL!$F$11:$F$57,MATCH(C6,PL!$C$11:$C$57,0)),INDIRECT(C$6&"_sam!BDU_universal")*INDEX(PL!$F$11:$F$57,MATCH(C6,PL!$C$11:$C$57,0))))))) -> 29335.8108 | D21: =IF(D$6="","",IF(D6='2024'!$B$2,(IF(alle_aar_valg=1,'2024'!BDU_universal*INDEX(PL!$F$11:$F$57,MATCH(D6,PL!$C$11:$C$57,0)),"Kan ikke vises")),IF(alle_aar_valg=1,INDIRECT(D$6&"!BDU_universal")*INDEX(PL!$F$11:$F$57,MATCH(D6,PL!$C$11:$C$57,0)),IF(alle_aar_valg=2,INDIRECT(D$6&"_sam!BDU_universal_sam")*INDEX(PL!$F$11:$F$57,MATCH(D6,PL!$C$11:$C$57,0)),IF(alle_aar_valg=3,INDIRECT(D$6&"_sam!BDU_universal_reg")*INDEX(PL!$F$11:$F$57,MATCH(D6,PL!$C$11:$C$57,0)),INDIRECT(D$6&"_sam!BDU_universal")*INDEX(PL!$F$11:$F$57,MATCH(D6,PL!$C$11:$C$57,0))))))) -> 29810.27805 | E21: =IF(E$6="","",IF(E6='2024'!$B$2,(IF(alle_aar_valg=1,'2024'!BDU_universal*INDEX(PL!$F$11:$F$57,MATCH(E6,PL!$C$11:$C$57,0)),"Kan ikke vises")),IF(alle_aar_valg=1,INDIRECT(E$6&"!BDU_universal")*INDEX(PL!$F$11:$F$57,MATCH(E6,PL!$C$11:$C$57,0)),IF(alle_aar_valg=2,INDIRECT(E$6&"_sam!BDU_universal_sam")*INDEX(PL!$F$11:$F$57,MATCH(E6,PL!$C$11:$C$57,0)),IF(alle_aar_valg=3,INDIRECT(E$6&"_sam!BDU_universal_reg")*INDEX(PL!$F$11:$F$57,MATCH(E6,PL!$C$11:$C$57,0)),INDIRECT(E$6&"_sam!BDU_universal")*INDEX(PL!$F$11:$F$57,MATCH(E6,PL!$C$11:$C$57,0))))))) -> 30758.76845 | F21: =IF(F$6="","",IF(F6='2024'!$B$2,(IF(alle_aar_valg=1,'2024'!BDU_universal*INDEX(PL!$F$11:$F$57,MATCH(F6,PL!$C$11:$C$57,0)),"Kan ikke vises")),IF(alle_aar_valg=1,INDIRECT(F$6&"!BDU_universal")*INDEX(PL!$F$11:$F$57,MATCH(F6,PL!$C$11:$C$57,0)),IF(alle_aar_valg=2,INDIRECT(F$6&"_sam!BDU_universal_sam")*INDEX(PL!$F$11:$F$57,MATCH(F6,PL!$C$11:$C$57,0)),IF(alle_aar_valg=3,INDIRECT(F$6&"_sam!BDU_universal_reg")*INDEX(PL!$F$11:$F$57,MATCH(F6,PL!$C$11:$C$57,0)),INDIRECT(F$6&"_sam!BDU_universal")*INDEX(PL!$F$11:$F$57,MATCH(F6,PL!$C$11:$C$57,0))))))) -> 30422.53537 | G21: =IF(G$6="","",IF(G6='2024'!$B$2,(IF(alle_aar_valg=1,'2024'!BDU_universal*INDEX(PL!$F$11:$F$57,MATCH(G6,PL!$C$11:$C$57,0)),"Kan ikke vises")),IF(alle_aar_valg=1,INDIRECT(G$6&"!BDU_universal")*INDEX(PL!$F$11:$F$57,MATCH(G6,PL!$C$11:$C$57,0)),IF(alle_aar_valg=2,INDIRECT(G$6&"_sam!BDU_universal_sam")*INDEX(PL!$F$11:$F$57,MATCH(G6,PL!$C$11:$C$57,0)),IF(alle_aar_valg=3,INDIRECT(G$6&"_sam!BDU_universal_reg")*INDEX(PL!$F$11:$F$57,MATCH(G6,PL!$C$11:$C$57,0)),INDIRECT(G$6&"_sam!BDU_universal")*INDEX(PL!$F$11:$F$57,MATCH(G6,PL!$C$11:$C$57,0))))))) -> 32264.808 | H21: =IF(H$6="","",IF(H6='2024'!$B$2,(IF(alle_aar_valg=1,'2024'!BDU_universal*INDEX(PL!$F$11:$F$57,MATCH(H6,PL!$C$11:$C$57,0)),"Kan ikke vises")),IF(alle_aar_valg=1,INDIRECT(H$6&"!BDU_universal")*INDEX(PL!$F$11:$F$57,MATCH(H6,PL!$C$11:$C$57,0)),IF(alle_aar_valg=2,INDIRECT(H$6&"_sam!BDU_universal_sam")*INDEX(PL!$F$11:$F$57,MATCH(H6,PL!$C$11:$C$57,0)),IF(alle_aar_valg=3,INDIRECT(H$6&"_sam!BDU_universal_reg")*INDEX(PL!$F$11:$F$57,MATCH(H6,PL!$C$11:$C$57,0)),INDIRECT(H$6&"_sam!BDU_universal")*INDEX(PL!$F$11:$F$57,MATCH(H6,PL!$C$11:$C$57,0))))))) -> 35465 | I21: =IF(I$6="","",IF(I6='2024'!$B$2,(IF(alle_aar_valg=1,'2024'!BDU_universal*INDEX(PL!$F$11:$F$57,MATCH(I6,PL!$C$11:$C$57,0)),"Kan ikke vises")),IF(alle_aar_valg=1,INDIRECT(I$6&"!BDU_universal")*INDEX(PL!$F$11:$F$57,MATCH(I6,PL!$C$11:$C$57,0)),IF(alle_aar_valg=2,INDIRECT(I$6&"_sam!BDU_universal_sam")*INDEX(PL!$F$11:$F$57,MATCH(I6,PL!$C$11:$C$57,0)),IF(alle_aar_valg=3,INDIRECT(I$6&"_sam!BDU_universal_reg")*INDEX(PL!$F$11:$F$57,MATCH(I6,PL!$C$11:$C$57,0)),INDIRECT(I$6&"_sam!BDU_universal")*INDEX(PL!$F$11:$F$57,MATCH(I6,PL!$C$11:$C$57,0))))))) ->  | J21: =IF(J$6="","",IF(J6='2024'!$B$2,(IF(alle_aar_valg=1,'2024'!BDU_universal*INDEX(PL!$F$11:$F$57,MATCH(J6,PL!$C$11:$C$57,0)),"Kan ikke vises")),IF(alle_aar_valg=1,INDIRECT(J$6&"!BDU_universal")*INDEX(PL!$F$11:$F$57,MATCH(J6,PL!$C$11:$C$57,0)),IF(alle_aar_valg=2,INDIRECT(J$6&"_sam!BDU_universal_sam")*INDEX(PL!$F$11:$F$57,MATCH(J6,PL!$C$11:$C$57,0)),IF(alle_aar_valg=3,INDIRECT(J$6&"_sam!BDU_universal_reg")*INDEX(PL!$F$11:$F$57,MATCH(J6,PL!$C$11:$C$57,0)),INDIRECT(J$6&"_sam!BDU_universal")*INDEX(PL!$F$11:$F$57,MATCH(J6,PL!$C$11:$C$57,0))))))) ->  | K21: =IF(K$6="","",IF(K6='2024'!$B$2,(IF(alle_aar_valg=1,'2024'!BDU_universal*INDEX(PL!$F$11:$F$57,MATCH(K6,PL!$C$11:$C$57,0)),"Kan ikke vises")),IF(alle_aar_valg=1,INDIRECT(K$6&"!BDU_universal")*INDEX(PL!$F$11:$F$57,MATCH(K6,PL!$C$11:$C$57,0)),IF(alle_aar_valg=2,INDIRECT(K$6&"_sam!BDU_universal_sam")*INDEX(PL!$F$11:$F$57,MATCH(K6,PL!$C$11:$C$57,0)),IF(alle_aar_valg=3,INDIRECT(K$6&"_sam!BDU_universal_reg")*INDEX(PL!$F$11:$F$57,MATCH(K6,PL!$C$11:$C$57,0)),INDIRECT(K$6&"_sam!BDU_universal")*INDEX(PL!$F$11:$F$57,MATCH(K6,PL!$C$11:$C$57,0))))))) ->  | L21: =IF(L$6="","",IF(L6='2024'!$B$2,(IF(alle_aar_valg=1,'2024'!BDU_universal*INDEX(PL!$F$11:$F$57,MATCH(L6,PL!$C$11:$C$57,0)),"Kan ikke vises")),IF(alle_aar_valg=1,INDIRECT(L$6&"!BDU_universal")*INDEX(PL!$F$11:$F$57,MATCH(L6,PL!$C$11:$C$57,0)),IF(alle_aar_valg=2,INDIRECT(L$6&"_sam!BDU_universal_sam")*INDEX(PL!$F$11:$F$57,MATCH(L6,PL!$C$11:$C$57,0)),IF(alle_aar_valg=3,INDIRECT(L$6&"_sam!BDU_universal_reg")*INDEX(PL!$F$11:$F$57,MATCH(L6,PL!$C$11:$C$57,0)),INDIRECT(L$6&"_sam!BDU_universal")*INDEX(PL!$F$11:$F$57,MATCH(L6,PL!$C$11:$C$57,0))))))) ->  | M21: =IF(M$6="","",IF(M6='2024'!$B$2,(IF(alle_aar_valg=1,'2024'!BDU_universal*INDEX(PL!$F$11:$F$57,MATCH(M6,PL!$C$11:$C$57,0)),"Kan ikke vises")),IF(alle_aar_valg=1,INDIRECT(M$6&"!BDU_universal")*INDEX(PL!$F$11:$F$57,MATCH(M6,PL!$C$11:$C$57,0)),IF(alle_aar_valg=2,INDIRECT(M$6&"_sam!BDU_universal_sam")*INDEX(PL!$F$11:$F$57,MATCH(M6,PL!$C$11:$C$57,0)),IF(alle_aar_valg=3,INDIRECT(M$6&"_sam!BDU_universal_reg")*INDEX(PL!$F$11:$F$57,MATCH(M6,PL!$C$11:$C$57,0)),INDIRECT(M$6&"_sam!BDU_universal")*INDEX(PL!$F$11:$F$57,MATCH(M6,PL!$C$11:$C$57,0))))))) ->  | N21: =IF(N$6="","",IF(N6='2024'!$B$2,(IF(alle_aar_valg=1,'2024'!BDU_universal*INDEX(PL!$F$11:$F$57,MATCH(N6,PL!$C$11:$C$57,0)),"Kan ikke vises")),IF(alle_aar_valg=1,INDIRECT(N$6&"!BDU_universal")*INDEX(PL!$F$11:$F$57,MATCH(N6,PL!$C$11:$C$57,0)),IF(alle_aar_valg=2,INDIRECT(N$6&"_sam!BDU_universal_sam")*INDEX(PL!$F$11:$F$57,MATCH(N6,PL!$C$11:$C$57,0)),IF(alle_aar_valg=3,INDIRECT(N$6&"_sam!BDU_universal_reg")*INDEX(PL!$F$11:$F$57,MATCH(N6,PL!$C$11:$C$57,0)),INDIRECT(N$6&"_sam!BDU_universal")*INDEX(PL!$F$11:$F$57,MATCH(N6,PL!$C$11:$C$57,0))))))) ->  | O21: =IF(O$6="","",IF(O6='2024'!$B$2,(IF(alle_aar_valg=1,'2024'!BDU_universal*INDEX(PL!$F$11:$F$57,MATCH(O6,PL!$C$11:$C$57,0)),"Kan ikke vises")),IF(alle_aar_valg=1,INDIRECT(O$6&"!BDU_universal")*INDEX(PL!$F$11:$F$57,MATCH(O6,PL!$C$11:$C$57,0)),IF(alle_aar_valg=2,INDIRECT(O$6&"_sam!BDU_universal_sam")*INDEX(PL!$F$11:$F$57,MATCH(O6,PL!$C$11:$C$57,0)),IF(alle_aar_valg=3,INDIRECT(O$6&"_sam!BDU_universal_reg")*INDEX(PL!$F$11:$F$57,MATCH(O6,PL!$C$11:$C$57,0)),INDIRECT(O$6&"_sam!BDU_universal")*INDEX(PL!$F$11:$F$57,MATCH(O6,PL!$C$11:$C$57,0))))))) ->  | P21: =IF(P$6="","",IF(P6='2024'!$B$2,(IF(alle_aar_valg=1,'2024'!BDU_universal*INDEX(PL!$F$11:$F$57,MATCH(P6,PL!$C$11:$C$57,0)),"Kan ikke vises")),IF(alle_aar_valg=1,INDIRECT(P$6&"!BDU_universal")*INDEX(PL!$F$11:$F$57,MATCH(P6,PL!$C$11:$C$57,0)),IF(alle_aar_valg=2,INDIRECT(P$6&"_sam!BDU_universal_sam")*INDEX(PL!$F$11:$F$57,MATCH(P6,PL!$C$11:$C$57,0)),IF(alle_aar_valg=3,INDIRECT(P$6&"_sam!BDU_universal_reg")*INDEX(PL!$F$11:$F$57,MATCH(P6,PL!$C$11:$C$57,0)),INDIRECT(P$6&"_sam!BDU_universal")*INDEX(PL!$F$11:$F$57,MATCH(P6,PL!$C$11:$C$57,0))))))) ->  | Q21: =IF(Q$6="","",IF(Q6='2024'!$B$2,(IF(alle_aar_valg=1,'2024'!BDU_universal*INDEX(PL!$F$11:$F$57,MATCH(Q6,PL!$C$11:$C$57,0)),"Kan ikke vises")),IF(alle_aar_valg=1,INDIRECT(Q$6&"!BDU_universal")*INDEX(PL!$F$11:$F$57,MATCH(Q6,PL!$C$11:$C$57,0)),IF(alle_aar_valg=2,INDIRECT(Q$6&"_sam!BDU_universal_sam")*INDEX(PL!$F$11:$F$57,MATCH(Q6,PL!$C$11:$C$57,0)),IF(alle_aar_valg=3,INDIRECT(Q$6&"_sam!BDU_universal_reg")*INDEX(PL!$F$11:$F$57,MATCH(Q6,PL!$C$11:$C$57,0)),INDIRECT(Q$6&"_sam!BDU_universal")*INDEX(PL!$F$11:$F$57,MATCH(Q6,PL!$C$11:$C$57,0))))))) ->  | R21: =IF(R$6="","",IF(R6='2024'!$B$2,(IF(alle_aar_valg=1,'2024'!BDU_universal*INDEX(PL!$F$11:$F$57,MATCH(R6,PL!$C$11:$C$57,0)),"Kan ikke vises")),IF(alle_aar_valg=1,INDIRECT(R$6&"!BDU_universal")*INDEX(PL!$F$11:$F$57,MATCH(R6,PL!$C$11:$C$57,0)),IF(alle_aar_valg=2,INDIRECT(R$6&"_sam!BDU_universal_sam")*INDEX(PL!$F$11:$F$57,MATCH(R6,PL!$C$11:$C$57,0)),IF(alle_aar_valg=3,INDIRECT(R$6&"_sam!BDU_universal_reg")*INDEX(PL!$F$11:$F$57,MATCH(R6,PL!$C$11:$C$57,0)),INDIRECT(R$6&"_sam!BDU_universal")*INDEX(PL!$F$11:$F$57,MATCH(R6,PL!$C$11:$C$57,0))))))) ->  | S21: =IF(S$6="","",IF(S6='2024'!$B$2,(IF(alle_aar_valg=1,'2024'!BDU_universal*INDEX(PL!$F$11:$F$57,MATCH(S6,PL!$C$11:$C$57,0)),"Kan ikke vises")),IF(alle_aar_valg=1,INDIRECT(S$6&"!BDU_universal")*INDEX(PL!$F$11:$F$57,MATCH(S6,PL!$C$11:$C$57,0)),IF(alle_aar_valg=2,INDIRECT(S$6&"_sam!BDU_universal_sam")*INDEX(PL!$F$11:$F$57,MATCH(S6,PL!$C$11:$C$57,0)),IF(alle_aar_valg=3,INDIRECT(S$6&"_sam!BDU_universal_reg")*INDEX(PL!$F$11:$F$57,MATCH(S6,PL!$C$11:$C$57,0)),INDIRECT(S$6&"_sam!BDU_universal")*INDEX(PL!$F$11:$F$57,MATCH(S6,PL!$C$11:$C$57,0))))))) ->  | T21: =IF(T$6="","",IF(T6='2024'!$B$2,(IF(alle_aar_valg=1,'2024'!BDU_universal*INDEX(PL!$F$11:$F$57,MATCH(T6,PL!$C$11:$C$57,0)),"Kan ikke vises")),IF(alle_aar_valg=1,INDIRECT(T$6&"!BDU_universal")*INDEX(PL!$F$11:$F$57,MATCH(T6,PL!$C$11:$C$57,0)),IF(alle_aar_valg=2,INDIRECT(T$6&"_sam!BDU_universal_sam")*INDEX(PL!$F$11:$F$57,MATCH(T6,PL!$C$11:$C$57,0)),IF(alle_aar_valg=3,INDIRECT(T$6&"_sam!BDU_universal_reg")*INDEX(PL!$F$11:$F$57,MATCH(T6,PL!$C$11:$C$57,0)),INDIRECT(T$6&"_sam!BDU_universal")*INDEX(PL!$F$11:$F$57,MATCH(T6,PL!$C$11:$C$57,0))))))) ->  | U21: =IF(U$6="","",IF(U6='2024'!$B$2,(IF(alle_aar_valg=1,'2024'!BDU_universal*INDEX(PL!$F$11:$F$57,MATCH(U6,PL!$C$11:$C$57,0)),"Kan ikke vises")),IF(alle_aar_valg=1,INDIRECT(U$6&"!BDU_universal")*INDEX(PL!$F$11:$F$57,MATCH(U6,PL!$C$11:$C$57,0)),IF(alle_aar_valg=2,INDIRECT(U$6&"_sam!BDU_universal_sam")*INDEX(PL!$F$11:$F$57,MATCH(U6,PL!$C$11:$C$57,0)),IF(alle_aar_valg=3,INDIRECT(U$6&"_sam!BDU_universal_reg")*INDEX(PL!$F$11:$F$57,MATCH(U6,PL!$C$11:$C$57,0)),INDIRECT(U$6&"_sam!BDU_universal")*INDEX(PL!$F$11:$F$57,MATCH(U6,PL!$C$11:$C$57,0))))))) ->  | V21: =IF(V$6="","",IF(V6='2024'!$B$2,(IF(alle_aar_valg=1,'2024'!BDU_universal*INDEX(PL!$F$11:$F$57,MATCH(V6,PL!$C$11:$C$57,0)),"Kan ikke vises")),IF(alle_aar_valg=1,INDIRECT(V$6&"!BDU_universal")*INDEX(PL!$F$11:$F$57,MATCH(V6,PL!$C$11:$C$57,0)),IF(alle_aar_valg=2,INDIRECT(V$6&"_sam!BDU_universal_sam")*INDEX(PL!$F$11:$F$57,MATCH(V6,PL!$C$11:$C$57,0)),IF(alle_aar_valg=3,INDIRECT(V$6&"_sam!BDU_universal_reg")*INDEX(PL!$F$11:$F$57,MATCH(V6,PL!$C$11:$C$57,0)),INDIRECT(V$6&"_sam!BDU_universal")*INDEX(PL!$F$11:$F$57,MATCH(V6,PL!$C$11:$C$57,0))))))) ->  | W21: =IF(W$6="","",IF(W6='2024'!$B$2,(IF(alle_aar_valg=1,'2024'!BDU_universal*INDEX(PL!$F$11:$F$57,MATCH(W6,PL!$C$11:$C$57,0)),"Kan ikke vises")),IF(alle_aar_valg=1,INDIRECT(W$6&"!BDU_universal")*INDEX(PL!$F$11:$F$57,MATCH(W6,PL!$C$11:$C$57,0)),IF(alle_aar_valg=2,INDIRECT(W$6&"_sam!BDU_universal_sam")*INDEX(PL!$F$11:$F$57,MATCH(W6,PL!$C$11:$C$57,0)),IF(alle_aar_valg=3,INDIRECT(W$6&"_sam!BDU_universal_reg")*INDEX(PL!$F$11:$F$57,MATCH(W6,PL!$C$11:$C$57,0)),INDIRECT(W$6&"_sam!BDU_universal")*INDEX(PL!$F$11:$F$57,MATCH(W6,PL!$C$11:$C$57,0))))))) -> 
B22: Refusioner | C22: =IF(C$6="","",IF(C6='2024'!$B$2,(IF(alle_aar_valg=1,[0]!Ref*INDEX(PL!$F$11:$F$57,MATCH(C6,PL!$C$11:$C$57,0)),"Kan ikke vises")),IF(alle_aar_valg=1,INDIRECT(C$6&"!Ref")*INDEX(PL!$F$11:$F$57,MATCH(C6,PL!$C$11:$C$57,0)),IF(alle_aar_valg=2,INDIRECT(C$6&"_sam!Ref_sam")*INDEX(PL!$F$11:$F$57,MATCH(C6,PL!$C$11:$C$57,0)),IF(alle_aar_valg=3,INDIRECT(C$6&"_sam!Ref_reg")*INDEX(PL!$F$11:$F$57,MATCH(C6,PL!$C$11:$C$57,0)),INDIRECT(C$6&"_sam!Ref")*INDEX(PL!$F$11:$F$57,MATCH(C6,PL!$C$11:$C$57,0))))))) -> -3322.138589 | D22: =IF(D$6="","",IF(D6='2024'!$B$2,(IF(alle_aar_valg=1,[0]!Ref*INDEX(PL!$F$11:$F$57,MATCH(D6,PL!$C$11:$C$57,0)),"Kan ikke vises")),IF(alle_aar_valg=1,INDIRECT(D$6&"!Ref")*INDEX(PL!$F$11:$F$57,MATCH(D6,PL!$C$11:$C$57,0)),IF(alle_aar_valg=2,INDIRECT(D$6&"_sam!Ref_sam")*INDEX(PL!$F$11:$F$57,MATCH(D6,PL!$C$11:$C$57,0)),IF(alle_aar_valg=3,INDIRECT(D$6&"_sam!Ref_reg")*INDEX(PL!$F$11:$F$57,MATCH(D6,PL!$C$11:$C$57,0)),INDIRECT(D$6&"_sam!Ref")*INDEX(PL!$F$11:$F$57,MATCH(D6,PL!$C$11:$C$57,0))))))) -> -4335.77881 | E22: =IF(E$6="","",IF(E6='2024'!$B$2,(IF(alle_aar_valg=1,[0]!Ref*INDEX(PL!$F$11:$F$57,MATCH(E6,PL!$C$11:$C$57,0)),"Kan ikke vises")),IF(alle_aar_valg=1,INDIRECT(E$6&"!Ref")*INDEX(PL!$F$11:$F$57,MATCH(E6,PL!$C$11:$C$57,0)),IF(alle_aar_valg=2,INDIRECT(E$6&"_sam!Ref_sam")*INDEX(PL!$F$11:$F$57,MATCH(E6,PL!$C$11:$C$57,0)),IF(alle_aar_valg=3,INDIRECT(E$6&"_sam!Ref_reg")*INDEX(PL!$F$11:$F$57,MATCH(E6,PL!$C$11:$C$57,0)),INDIRECT(E$6&"_sam!Ref")*INDEX(PL!$F$11:$F$57,MATCH(E6,PL!$C$11:$C$57,0))))))) -> -3656.167679 | F22: =IF(F$6="","",IF(F6='2024'!$B$2,(IF(alle_aar_valg=1,[0]!Ref*INDEX(PL!$F$11:$F$57,MATCH(F6,PL!$C$11:$C$57,0)),"Kan ikke vises")),IF(alle_aar_valg=1,INDIRECT(F$6&"!Ref")*INDEX(PL!$F$11:$F$57,MATCH(F6,PL!$C$11:$C$57,0)),IF(alle_aar_valg=2,INDIRECT(F$6&"_sam!Ref_sam")*INDEX(PL!$F$11:$F$57,MATCH(F6,PL!$C$11:$C$57,0)),IF(alle_aar_valg=3,INDIRECT(F$6&"_sam!Ref_reg")*INDEX(PL!$F$11:$F$57,MATCH(F6,PL!$C$11:$C$57,0)),INDIRECT(F$6&"_sam!Ref")*INDEX(PL!$F$11:$F$57,MATCH(F6,PL!$C$11:$C$57,0))))))) -> -6759.734276 | G22: =IF(G$6="","",IF(G6='2024'!$B$2,(IF(alle_aar_valg=1,[0]!Ref*INDEX(PL!$F$11:$F$57,MATCH(G6,PL!$C$11:$C$57,0)),"Kan ikke vises")),IF(alle_aar_valg=1,INDIRECT(G$6&"!Ref")*INDEX(PL!$F$11:$F$57,MATCH(G6,PL!$C$11:$C$57,0)),IF(alle_aar_valg=2,INDIRECT(G$6&"_sam!Ref_sam")*INDEX(PL!$F$11:$F$57,MATCH(G6,PL!$C$11:$C$57,0)),IF(alle_aar_valg=3,INDIRECT(G$6&"_sam!Ref_reg")*INDEX(PL!$F$11:$F$57,MATCH(G6,PL!$C$11:$C$57,0)),INDIRECT(G$6&"_sam!Ref")*INDEX(PL!$F$11:$F$57,MATCH(G6,PL!$C$11:$C$57,0))))))) -> -14923.476 | H22: =IF(H$6="","",IF(H6='2024'!$B$2,(IF(alle_aar_valg=1,[0]!Ref*INDEX(PL!$F$11:$F$57,MATCH(H6,PL!$C$11:$C$57,0)),"Kan ikke vises")),IF(alle_aar_valg=1,INDIRECT(H$6&"!Ref")*INDEX(PL!$F$11:$F$57,MATCH(H6,PL!$C$11:$C$57,0)),IF(alle_aar_valg=2,INDIRECT(H$6&"_sam!Ref_sam")*INDEX(PL!$F$11:$F$57,MATCH(H6,PL!$C$11:$C$57,0)),IF(alle_aar_valg=3,INDIRECT(H$6&"_sam!Ref_reg")*INDEX(PL!$F$11:$F$57,MATCH(H6,PL!$C$11:$C$57,0)),INDIRECT(H$6&"_sam!Ref")*INDEX(PL!$F$11:$F$57,MATCH(H6,PL!$C$11:$C$57,0))))))) -> -29896 | I22: =IF(I$6="","",IF(I6='2024'!$B$2,(IF(alle_aar_valg=1,[0]!Ref*INDEX(PL!$F$11:$F$57,MATCH(I6,PL!$C$11:$C$57,0)),"Kan ikke vises")),IF(alle_aar_valg=1,INDIRECT(I$6&"!Ref")*INDEX(PL!$F$11:$F$57,MATCH(I6,PL!$C$11:$C$57,0)),IF(alle_aar_valg=2,INDIRECT(I$6&"_sam!Ref_sam")*INDEX(PL!$F$11:$F$57,MATCH(I6,PL!$C$11:$C$57,0)),IF(alle_aar_valg=3,INDIRECT(I$6&"_sam!Ref_reg")*INDEX(PL!$F$11:$F$57,MATCH(I6,PL!$C$11:$C$57,0)),INDIRECT(I$6&"_sam!Ref")*INDEX(PL!$F$11:$F$57,MATCH(I6,PL!$C$11:$C$57,0))))))) ->  | J22: =IF(J$6="","",IF(J6='2024'!$B$2,(IF(alle_aar_valg=1,[0]!Ref*INDEX(PL!$F$11:$F$57,MATCH(J6,PL!$C$11:$C$57,0)),"Kan ikke vises")),IF(alle_aar_valg=1,INDIRECT(J$6&"!Ref")*INDEX(PL!$F$11:$F$57,MATCH(J6,PL!$C$11:$C$57,0)),IF(alle_aar_valg=2,INDIRECT(J$6&"_sam!Ref_sam")*INDEX(PL!$F$11:$F$57,MATCH(J6,PL!$C$11:$C$57,0)),IF(alle_aar_valg=3,INDIRECT(J$6&"_sam!Ref_reg")*INDEX(PL!$F$11:$F$57,MATCH(J6,PL!$C$11:$C$57,0)),INDIRECT(J$6&"_sam!Ref")*INDEX(PL!$F$11:$F$57,MATCH(J6,PL!$C$11:$C$57,0))))))) ->  | K22: =IF(K$6="","",IF(K6='2024'!$B$2,(IF(alle_aar_valg=1,[0]!Ref*INDEX(PL!$F$11:$F$57,MATCH(K6,PL!$C$11:$C$57,0)),"Kan ikke vises")),IF(alle_aar_valg=1,INDIRECT(K$6&"!Ref")*INDEX(PL!$F$11:$F$57,MATCH(K6,PL!$C$11:$C$57,0)),IF(alle_aar_valg=2,INDIRECT(K$6&"_sam!Ref_sam")*INDEX(PL!$F$11:$F$57,MATCH(K6,PL!$C$11:$C$57,0)),IF(alle_aar_valg=3,INDIRECT(K$6&"_sam!Ref_reg")*INDEX(PL!$F$11:$F$57,MATCH(K6,PL!$C$11:$C$57,0)),INDIRECT(K$6&"_sam!Ref")*INDEX(PL!$F$11:$F$57,MATCH(K6,PL!$C$11:$C$57,0))))))) ->  | L22: =IF(L$6="","",IF(L6='2024'!$B$2,(IF(alle_aar_valg=1,[0]!Ref*INDEX(PL!$F$11:$F$57,MATCH(L6,PL!$C$11:$C$57,0)),"Kan ikke vises")),IF(alle_aar_valg=1,INDIRECT(L$6&"!Ref")*INDEX(PL!$F$11:$F$57,MATCH(L6,PL!$C$11:$C$57,0)),IF(alle_aar_valg=2,INDIRECT(L$6&"_sam!Ref_sam")*INDEX(PL!$F$11:$F$57,MATCH(L6,PL!$C$11:$C$57,0)),IF(alle_aar_valg=3,INDIRECT(L$6&"_sam!Ref_reg")*INDEX(PL!$F$11:$F$57,MATCH(L6,PL!$C$11:$C$57,0)),INDIRECT(L$6&"_sam!Ref")*INDEX(PL!$F$11:$F$57,MATCH(L6,PL!$C$11:$C$57,0))))))) ->  | M22: =IF(M$6="","",IF(M6='2024'!$B$2,(IF(alle_aar_valg=1,[0]!Ref*INDEX(PL!$F$11:$F$57,MATCH(M6,PL!$C$11:$C$57,0)),"Kan ikke vises")),IF(alle_aar_valg=1,INDIRECT(M$6&"!Ref")*INDEX(PL!$F$11:$F$57,MATCH(M6,PL!$C$11:$C$57,0)),IF(alle_aar_valg=2,INDIRECT(M$6&"_sam!Ref_sam")*INDEX(PL!$F$11:$F$57,MATCH(M6,PL!$C$11:$C$57,0)),IF(alle_aar_valg=3,INDIRECT(M$6&"_sam!Ref_reg")*INDEX(PL!$F$11:$F$57,MATCH(M6,PL!$C$11:$C$57,0)),INDIRECT(M$6&"_sam!Ref")*INDEX(PL!$F$11:$F$57,MATCH(M6,PL!$C$11:$C$57,0))))))) ->  | N22: =IF(N$6="","",IF(N6='2024'!$B$2,(IF(alle_aar_valg=1,[0]!Ref*INDEX(PL!$F$11:$F$57,MATCH(N6,PL!$C$11:$C$57,0)),"Kan ikke vises")),IF(alle_aar_valg=1,INDIRECT(N$6&"!Ref")*INDEX(PL!$F$11:$F$57,MATCH(N6,PL!$C$11:$C$57,0)),IF(alle_aar_valg=2,INDIRECT(N$6&"_sam!Ref_sam")*INDEX(PL!$F$11:$F$57,MATCH(N6,PL!$C$11:$C$57,0)),IF(alle_aar_valg=3,INDIRECT(N$6&"_sam!Ref_reg")*INDEX(PL!$F$11:$F$57,MATCH(N6,PL!$C$11:$C$57,0)),INDIRECT(N$6&"_sam!Ref")*INDEX(PL!$F$11:$F$57,MATCH(N6,PL!$C$11:$C$57,0))))))) ->  | O22: =IF(O$6="","",IF(O6='2024'!$B$2,(IF(alle_aar_valg=1,[0]!Ref*INDEX(PL!$F$11:$F$57,MATCH(O6,PL!$C$11:$C$57,0)),"Kan ikke vises")),IF(alle_aar_valg=1,INDIRECT(O$6&"!Ref")*INDEX(PL!$F$11:$F$57,MATCH(O6,PL!$C$11:$C$57,0)),IF(alle_aar_valg=2,INDIRECT(O$6&"_sam!Ref_sam")*INDEX(PL!$F$11:$F$57,MATCH(O6,PL!$C$11:$C$57,0)),IF(alle_aar_valg=3,INDIRECT(O$6&"_sam!Ref_reg")*INDEX(PL!$F$11:$F$57,MATCH(O6,PL!$C$11:$C$57,0)),INDIRECT(O$6&"_sam!Ref")*INDEX(PL!$F$11:$F$57,MATCH(O6,PL!$C$11:$C$57,0))))))) ->  | P22: =IF(P$6="","",IF(P6='2024'!$B$2,(IF(alle_aar_valg=1,[0]!Ref*INDEX(PL!$F$11:$F$57,MATCH(P6,PL!$C$11:$C$57,0)),"Kan ikke vises")),IF(alle_aar_valg=1,INDIRECT(P$6&"!Ref")*INDEX(PL!$F$11:$F$57,MATCH(P6,PL!$C$11:$C$57,0)),IF(alle_aar_valg=2,INDIRECT(P$6&"_sam!Ref_sam")*INDEX(PL!$F$11:$F$57,MATCH(P6,PL!$C$11:$C$57,0)),IF(alle_aar_valg=3,INDIRECT(P$6&"_sam!Ref_reg")*INDEX(PL!$F$11:$F$57,MATCH(P6,PL!$C$11:$C$57,0)),INDIRECT(P$6&"_sam!Ref")*INDEX(PL!$F$11:$F$57,MATCH(P6,PL!$C$11:$C$57,0))))))) ->  | Q22: =IF(Q$6="","",IF(Q6='2024'!$B$2,(IF(alle_aar_valg=1,[0]!Ref*INDEX(PL!$F$11:$F$57,MATCH(Q6,PL!$C$11:$C$57,0)),"Kan ikke vises")),IF(alle_aar_valg=1,INDIRECT(Q$6&"!Ref")*INDEX(PL!$F$11:$F$57,MATCH(Q6,PL!$C$11:$C$57,0)),IF(alle_aar_valg=2,INDIRECT(Q$6&"_sam!Ref_sam")*INDEX(PL!$F$11:$F$57,MATCH(Q6,PL!$C$11:$C$57,0)),IF(alle_aar_valg=3,INDIRECT(Q$6&"_sam!Ref_reg")*INDEX(PL!$F$11:$F$57,MATCH(Q6,PL!$C$11:$C$57,0)),INDIRECT(Q$6&"_sam!Ref")*INDEX(PL!$F$11:$F$57,MATCH(Q6,PL!$C$11:$C$57,0))))))) ->  | R22: =IF(R$6="","",IF(R6='2024'!$B$2,(IF(alle_aar_valg=1,[0]!Ref*INDEX(PL!$F$11:$F$57,MATCH(R6,PL!$C$11:$C$57,0)),"Kan ikke vises")),IF(alle_aar_valg=1,INDIRECT(R$6&"!Ref")*INDEX(PL!$F$11:$F$57,MATCH(R6,PL!$C$11:$C$57,0)),IF(alle_aar_valg=2,INDIRECT(R$6&"_sam!Ref_sam")*INDEX(PL!$F$11:$F$57,MATCH(R6,PL!$C$11:$C$57,0)),IF(alle_aar_valg=3,INDIRECT(R$6&"_sam!Ref_reg")*INDEX(PL!$F$11:$F$57,MATCH(R6,PL!$C$11:$C$57,0)),INDIRECT(R$6&"_sam!Ref")*INDEX(PL!$F$11:$F$57,MATCH(R6,PL!$C$11:$C$57,0))))))) ->  | S22: =IF(S$6="","",IF(S6='2024'!$B$2,(IF(alle_aar_valg=1,[0]!Ref*INDEX(PL!$F$11:$F$57,MATCH(S6,PL!$C$11:$C$57,0)),"Kan ikke vises")),IF(alle_aar_valg=1,INDIRECT(S$6&"!Ref")*INDEX(PL!$F$11:$F$57,MATCH(S6,PL!$C$11:$C$57,0)),IF(alle_aar_valg=2,INDIRECT(S$6&"_sam!Ref_sam")*INDEX(PL!$F$11:$F$57,MATCH(S6,PL!$C$11:$C$57,0)),IF(alle_aar_valg=3,INDIRECT(S$6&"_sam!Ref_reg")*INDEX(PL!$F$11:$F$57,MATCH(S6,PL!$C$11:$C$57,0)),INDIRECT(S$6&"_sam!Ref")*INDEX(PL!$F$11:$F$57,MATCH(S6,PL!$C$11:$C$57,0))))))) ->  | T22: =IF(T$6="","",IF(T6='2024'!$B$2,(IF(alle_aar_valg=1,[0]!Ref*INDEX(PL!$F$11:$F$57,MATCH(T6,PL!$C$11:$C$57,0)),"Kan ikke vises")),IF(alle_aar_valg=1,INDIRECT(T$6&"!Ref")*INDEX(PL!$F$11:$F$57,MATCH(T6,PL!$C$11:$C$57,0)),IF(alle_aar_valg=2,INDIRECT(T$6&"_sam!Ref_sam")*INDEX(PL!$F$11:$F$57,MATCH(T6,PL!$C$11:$C$57,0)),IF(alle_aar_valg=3,INDIRECT(T$6&"_sam!Ref_reg")*INDEX(PL!$F$11:$F$57,MATCH(T6,PL!$C$11:$C$57,0)),INDIRECT(T$6&"_sam!Ref")*INDEX(PL!$F$11:$F$57,MATCH(T6,PL!$C$11:$C$57,0))))))) ->  | U22: =IF(U$6="","",IF(U6='2024'!$B$2,(IF(alle_aar_valg=1,[0]!Ref*INDEX(PL!$F$11:$F$57,MATCH(U6,PL!$C$11:$C$57,0)),"Kan ikke vises")),IF(alle_aar_valg=1,INDIRECT(U$6&"!Ref")*INDEX(PL!$F$11:$F$57,MATCH(U6,PL!$C$11:$C$57,0)),IF(alle_aar_valg=2,INDIRECT(U$6&"_sam!Ref_sam")*INDEX(PL!$F$11:$F$57,MATCH(U6,PL!$C$11:$C$57,0)),IF(alle_aar_valg=3,INDIRECT(U$6&"_sam!Ref_reg")*INDEX(PL!$F$11:$F$57,MATCH(U6,PL!$C$11:$C$57,0)),INDIRECT(U$6&"_sam!Ref")*INDEX(PL!$F$11:$F$57,MATCH(U6,PL!$C$11:$C$57,0))))))) ->  | V22: =IF(V$6="","",IF(V6='2024'!$B$2,(IF(alle_aar_valg=1,[0]!Ref*INDEX(PL!$F$11:$F$57,MATCH(V6,PL!$C$11:$C$57,0)),"Kan ikke vises")),IF(alle_aar_valg=1,INDIRECT(V$6&"!Ref")*INDEX(PL!$F$11:$F$57,MATCH(V6,PL!$C$11:$C$57,0)),IF(alle_aar_valg=2,INDIRECT(V$6&"_sam!Ref_sam")*INDEX(PL!$F$11:$F$57,MATCH(V6,PL!$C$11:$C$57,0)),IF(alle_aar_valg=3,INDIRECT(V$6&"_sam!Ref_reg")*INDEX(PL!$F$11:$F$57,MATCH(V6,PL!$C$11:$C$57,0)),INDIRECT(V$6&"_sam!Ref")*INDEX(PL!$F$11:$F$57,MATCH(V6,PL!$C$11:$C$57,0))))))) ->  | W22: =IF(W$6="","",IF(W6='2024'!$B$2,(IF(alle_aar_valg=1,[0]!Ref*INDEX(PL!$F$11:$F$57,MATCH(W6,PL!$C$11:$C$57,0)),"Kan ikke vises")),IF(alle_aar_valg=1,INDIRECT(W$6&"!Ref")*INDEX(PL!$F$11:$F$57,MATCH(W6,PL!$C$11:$C$57,0)),IF(alle_aar_valg=2,INDIRECT(W$6&"_sam!Ref_sam")*INDEX(PL!$F$11:$F$57,MATCH(W6,PL!$C$11:$C$57,0)),IF(alle_aar_valg=3,INDIRECT(W$6&"_sam!Ref_reg")*INDEX(PL!$F$11:$F$57,MATCH(W6,PL!$C$11:$C$57,0)),INDIRECT(W$6&"_sam!Ref")*INDEX(PL!$F$11:$F$57,MATCH(W6,PL!$C$11:$C$57,0))))))) -> 
B26: =IF(figur4_valg=1,"Udgifter i alt pr. barn, kr., "&Prisår&"-priser",IF(figur4_valg=2,"Administrationsudgifter pr. barn, kr., "&Prisår&"-priser","Serviceudgifter pr. barn, kr., "&Prisår&"-priser")) -> Serviceudgifter pr. barn, kr., 2023-priser
C27: ='Dine valg'!$J$10 -> 2018 | D27: ='Dine valg'!$J$11 -> 2019 | E27: ='Dine valg'!$J$12 -> 2020 | F27: ='Dine valg'!$J$13 -> 2021 | G27: ='Dine valg'!$J$14 -> 2022 | H27: ='Dine valg'!$J$15 -> 2023 | I27: ='Dine valg'!$J$16 ->  | J27: ='Dine valg'!$K$10 ->  | K27: ='Dine valg'!$K$11 ->  | L27: ='Dine valg'!$K$12 ->  | M27: ='Dine valg'!$K$13 ->  | N27: ='Dine valg'!$K$14 ->  | O27: ='Dine valg'!$K$15 ->  | P27: ='Dine valg'!$K$16 ->  | Q27: ='Dine valg'!$L$10 ->  | R27: ='Dine valg'!$L$11 ->  | S27: ='Dine valg'!$L$12 ->  | T27: ='Dine valg'!$L$13 ->  | U27: ='Dine valg'!$L$14 ->  | V27: ='Dine valg'!$L$15 ->  | W27: ='Dine valg'!$L$16 -> 
B28: =""&Kommune&"" -> Fredericia | C28: ="" ->  | D28: ="" ->  | E28: ="" ->  | F28: ="" ->  | G28: ="" ->  | H28: ="" ->  | I28: ="" ->  | J28: ="" ->  | K28: ="" ->  | L28: ="" ->  | M28: ="" ->  | N28: ="" ->  | O28: ="" ->  | P28: ="" ->  | Q28: ="" -> 
B29: =IF(figur4_valg=1,"Udgifter i alt pr. barn, kr., "&Prisår&"-priser",IF(figur4_valg=2,"Administrationsudgifter pr. barn, kr., "&Prisår&"-priser","Serviceudgifter pr. barn, kr., "&Prisår&"-priser")) -> Serviceudgifter pr. barn, kr., 2023-priser | C29: =IF(figur4_valg=1,(INDIRECT(C$6&"!Samlede_NDU")*1000)/C$30,IF(figur4_valg=2,(INDIRECT(C$6&"!Administration")*1000)/C$30,(INDIRECT(C$6&"!NDU_service")*1000)/C$30)) -> 7475.486953 | D29: =IF(figur4_valg=1,(INDIRECT(D$6&"!Samlede_NDU")*1000)/D$30,IF(figur4_valg=2,(INDIRECT(D$6&"!Administration")*1000)/D$30,(INDIRECT(D$6&"!NDU_service")*1000)/D$30)) -> 7271.89523 | E29: =IF(figur4_valg=1,(INDIRECT(E$6&"!Samlede_NDU")*1000)/E$30,IF(figur4_valg=2,(INDIRECT(E$6&"!Administration")*1000)/E$30,(INDIRECT(E$6&"!NDU_service")*1000)/E$30)) -> 7725.158562 | F29: =IF(figur4_valg=1,(INDIRECT(F$6&"!Samlede_NDU")*1000)/F$30,IF(figur4_valg=2,(INDIRECT(F$6&"!Administration")*1000)/F$30,(INDIRECT(F$6&"!NDU_service")*1000)/F$30)) -> 7826.946944 | G29: =IF(figur4_valg=1,(INDIRECT(G$6&"!Samlede_NDU")*1000)/G$30,IF(figur4_valg=2,(INDIRECT(G$6&"!Administration")*1000)/G$30,(INDIRECT(G$6&"!NDU_service")*1000)/G$30)) -> 9363.636364 | H29: =IF(figur4_valg=1,(INDIRECT(H$6&"!Samlede_NDU")*1000)/H$30,IF(figur4_valg=2,(INDIRECT(H$6&"!Administration")*1000)/H$30,(INDIRECT(H$6&"!NDU_service")*1000)/H$30)) -> 10386.94818 | I29: =IF(figur4_valg=1,(INDIRECT(I$6&"!Samlede_NDU")*1000)/I$30,IF(figur4_valg=2,(INDIRECT(I$6&"!Administration")*1000)/I$30,(INDIRECT(I$6&"!NDU_service")*1000)/I$30)) ->  | J29: =IF(figur4_valg=1,(INDIRECT(J$6&"!Samlede_NDU")*1000)/J$30,IF(figur4_valg=2,(INDIRECT(J$6&"!Administration")*1000)/J$30,(INDIRECT(J$6&"!NDU_service")*1000)/J$30)) ->  | K29: =IF(figur4_valg=1,(INDIRECT(K$6&"!Samlede_NDU")*1000)/K$30,IF(figur4_valg=2,(INDIRECT(K$6&"!Administration")*1000)/K$30,(INDIRECT(K$6&"!NDU_service")*1000)/K$30)) ->  | L29: =IF(figur4_valg=1,(INDIRECT(L$6&"!Samlede_NDU")*1000)/L$30,IF(figur4_valg=2,(INDIRECT(L$6&"!Administration")*1000)/L$30,(INDIRECT(L$6&"!NDU_service")*1000)/L$30)) ->  | M29: =IF(figur4_valg=1,(INDIRECT(M$6&"!Samlede_NDU")*1000)/M$30,IF(figur4_valg=2,(INDIRECT(M$6&"!Administration")*1000)/M$30,(INDIRECT(M$6&"!NDU_service")*1000)/M$30)) ->  | N29: =IF(figur4_valg=1,(INDIRECT(N$6&"!Samlede_NDU")*1000)/N$30,IF(figur4_valg=2,(INDIRECT(N$6&"!Administration")*1000)/N$30,(INDIRECT(N$6&"!NDU_service")*1000)/N$30)) ->  | O29: =IF(figur4_valg=1,(INDIRECT(O$6&"!Samlede_NDU")*1000)/O$30,IF(figur4_valg=2,(INDIRECT(O$6&"!Administration")*1000)/O$30,(INDIRECT(O$6&"!NDU_service")*1000)/O$30)) ->  | P29: =IF(figur4_valg=1,(INDIRECT(P$6&"!Samlede_NDU")*1000)/P$30,IF(figur4_valg=2,(INDIRECT(P$6&"!Administration")*1000)/P$30,(INDIRECT(P$6&"!NDU_service")*1000)/P$30)) ->  | Q29: =IF(figur4_valg=1,(INDIRECT(Q$6&"!Samlede_NDU")*1000)/Q$30,IF(figur4_valg=2,(INDIRECT(Q$6&"!Administration")*1000)/Q$30,(INDIRECT(Q$6&"!NDU_service")*1000)/Q$30)) ->  | R29: =IF(figur4_valg=1,(INDIRECT(R$6&"!Samlede_NDU")*1000)/R$30,IF(figur4_valg=2,(INDIRECT(R$6&"!Administration")*1000)/R$30,(INDIRECT(R$6&"!NDU_service")*1000)/R$30)) ->  | S29: =IF(figur4_valg=1,(INDIRECT(S$6&"!Samlede_NDU")*1000)/S$30,IF(figur4_valg=2,(INDIRECT(S$6&"!Administration")*1000)/S$30,(INDIRECT(S$6&"!NDU_service")*1000)/S$30)) ->  | T29: =IF(figur4_valg=1,(INDIRECT(T$6&"!Samlede_NDU")*1000)/T$30,IF(figur4_valg=2,(INDIRECT(T$6&"!Administration")*1000)/T$30,(INDIRECT(T$6&"!NDU_service")*1000)/T$30)) ->  | U29: =IF(figur4_valg=1,(INDIRECT(U$6&"!Samlede_NDU")*1000)/U$30,IF(figur4_valg=2,(INDIRECT(U$6&"!Administration")*1000)/U$30,(INDIRECT(U$6&"!NDU_service")*1000)/U$30)) ->  | V29: =IF(figur4_valg=1,(INDIRECT(V$6&"!Samlede_NDU")*1000)/V$30,IF(figur4_valg=2,(INDIRECT(V$6&"!Administration")*1000)/V$30,(INDIRECT(V$6&"!NDU_service")*1000)/V$30)) ->  | W29: =IF(figur4_valg=1,(INDIRECT(W$6&"!Samlede_NDU")*1000)/W$30,IF(figur4_valg=2,(INDIRECT(W$6&"!Administration")*1000)/W$30,(INDIRECT(W$6&"!NDU_service")*1000)/W$30)) -> 
B30: Antal 0-22-årige | C30: =(IF(ISNA(INDEX(befolkning,MATCH(1,(bef_kom=Kommune)*(bef_aar=C$6),0),3))=TRUE,0,INDEX(befolkning,MATCH(1,(bef_kom=Kommune)*(bef_aar=C$6),0),3))) -> 13605 | D30: =(IF(ISNA(INDEX(befolkning,MATCH(1,(bef_kom=Kommune)*(bef_aar=D$6),0),3))=TRUE,0,INDEX(befolkning,MATCH(1,(bef_kom=Kommune)*(bef_aar=D$6),0),3))) -> 13439 | E30: =(IF(ISNA(INDEX(befolkning,MATCH(1,(bef_kom=Kommune)*(bef_aar=E$6),0),3))=TRUE,0,INDEX(befolkning,MATCH(1,(bef_kom=Kommune)*(bef_aar=E$6),0),3))) -> 13244 | F30: =(IF(ISNA(INDEX(befolkning,MATCH(1,(bef_kom=Kommune)*(bef_aar=F$6),0),3))=TRUE,0,INDEX(befolkning,MATCH(1,(bef_kom=Kommune)*(bef_aar=F$6),0),3))) -> 12892 | G30: =(IF(ISNA(INDEX(befolkning,MATCH(1,(bef_kom=Kommune)*(bef_aar=G$6),0),3))=TRUE,0,INDEX(befolkning,MATCH(1,(bef_kom=Kommune)*(bef_aar=G$6),0),3))) -> 12936 | H30: =(IF(ISNA(INDEX(befolkning,MATCH(1,(bef_kom=Kommune)*(bef_aar=H$6),0),3))=TRUE,0,INDEX(befolkning,MATCH(1,(bef_kom=Kommune)*(bef_aar=H$6),0),3))) -> 13025 | I30: =(IF(ISNA(INDEX(befolkning,MATCH(1,(bef_kom=Kommune)*(bef_aar=I$6),0),3))=TRUE,0,INDEX(befolkning,MATCH(1,(bef_kom=Kommune)*(bef_aar=I$6),0),3))) -> 0 | J30: =(IF(ISNA(INDEX(befolkning,MATCH(1,(bef_kom=Kommune)*(bef_aar=J$6),0),3))=TRUE,0,INDEX(befolkning,MATCH(1,(bef_kom=Kommune)*(bef_aar=J$6),0),3))) -> 0 | K30: =(IF(ISNA(INDEX(befolkning,MATCH(1,(bef_kom=Kommune)*(bef_aar=K$6),0),3))=TRUE,0,INDEX(befolkning,MATCH(1,(bef_kom=Kommune)*(bef_aar=K$6),0),3))) -> 0 | L30: =(IF(ISNA(INDEX(befolkning,MATCH(1,(bef_kom=Kommune)*(bef_aar=L$6),0),3))=TRUE,0,INDEX(befolkning,MATCH(1,(bef_kom=Kommune)*(bef_aar=L$6),0),3))) -> 0 | M30: =(IF(ISNA(INDEX(befolkning,MATCH(1,(bef_kom=Kommune)*(bef_aar=M$6),0),3))=TRUE,0,INDEX(befolkning,MATCH(1,(bef_kom=Kommune)*(bef_aar=M$6),0),3))) -> 0 | N30: =(IF(ISNA(INDEX(befolkning,MATCH(1,(bef_kom=Kommune)*(bef_aar=N$6),0),3))=TRUE,0,INDEX(befolkning,MATCH(1,(bef_kom=Kommune)*(bef_aar=N$6),0),3))) -> 0 | O30: =(IF(ISNA(INDEX(befolkning,MATCH(1,(bef_kom=Kommune)*(bef_aar=O$6),0),3))=TRUE,0,INDEX(befolkning,MATCH(1,(bef_kom=Kommune)*(bef_aar=O$6),0),3))) -> 0 | P30: =(IF(ISNA(INDEX(befolkning,MATCH(1,(bef_kom=Kommune)*(bef_aar=P$6),0),3))=TRUE,0,INDEX(befolkning,MATCH(1,(bef_kom=Kommune)*(bef_aar=P$6),0),3))) -> 0 | Q30: =(IF(ISNA(INDEX(befolkning,MATCH(1,(bef_kom=Kommune)*(bef_aar=Q$6),0),3))=TRUE,0,INDEX(befolkning,MATCH(1,(bef_kom=Kommune)*(bef_aar=Q$6),0),3))) -> 0 | R30: =(IF(ISNA(INDEX(befolkning,MATCH(1,(bef_kom=Kommune)*(bef_aar=R$6),0),3))=TRUE,0,INDEX(befolkning,MATCH(1,(bef_kom=Kommune)*(bef_aar=R$6),0),3))) -> 0 | S30: =(IF(ISNA(INDEX(befolkning,MATCH(1,(bef_kom=Kommune)*(bef_aar=S$6),0),3))=TRUE,0,INDEX(befolkning,MATCH(1,(bef_kom=Kommune)*(bef_aar=S$6),0),3))) -> 0 | T30: =(IF(ISNA(INDEX(befolkning,MATCH(1,(bef_kom=Kommune)*(bef_aar=T$6),0),3))=TRUE,0,INDEX(befolkning,MATCH(1,(bef_kom=Kommune)*(bef_aar=T$6),0),3))) -> 0 | U30: =(IF(ISNA(INDEX(befolkning,MATCH(1,(bef_kom=Kommune)*(bef_aar=U$6),0),3))=TRUE,0,INDEX(befolkning,MATCH(1,(bef_kom=Kommune)*(bef_aar=U$6),0),3))) -> 0 | V30: =(IF(ISNA(INDEX(befolkning,MATCH(1,(bef_kom=Kommune)*(bef_aar=V$6),0),3))=TRUE,0,INDEX(befolkning,MATCH(1,(bef_kom=Kommune)*(bef_aar=V$6),0),3))) -> 0 | W30: =(IF(ISNA(INDEX(befolkning,MATCH(1,(bef_kom=Kommune)*(bef_aar=W$6),0),3))=TRUE,0,INDEX(befolkning,MATCH(1,(bef_kom=Kommune)*(bef_aar=W$6),0),3))) -> 0
B31: Sammenligningsgruppe, gns. | C31: ="" ->  | D31: ="" ->  | E31: ="" ->  | F31: ="" ->  | G31: ="" ->  | H31: ="" ->  | I31: ="" ->  | J31: ="" ->  | K31: ="" ->  | L31: ="" ->  | M31: ="" ->  | N31: ="" ->  | O31: ="" ->  | P31: ="" ->  | Q31: ="" -> 
B32: =IF(figur4_valg=1,"Udgifter i alt pr. barn, kr., "&Prisår&"-priser",IF(figur4_valg=2,"Administrationsudgifter pr. barn, kr., "&Prisår&"-priser","Serviceudgifter pr. barn, kr., "&Prisår&"-priser")) -> Serviceudgifter pr. barn, kr., 2023-priser | C32: =IF(figur4_valg=1,(INDIRECT(C$6&"_sam!Samlede_NDU_sam")*1000)/C$33,IF(figur4_valg=2,(INDIRECT(C$6&"_sam!Administration_sam")*1000)/C$33,(INDIRECT(C$6&"_sam!NDU_service_sam")*1000)/C$33)) -> 6227.504689 | D32: =IF(figur4_valg=1,(INDIRECT(D$6&"_sam!Samlede_NDU_sam")*1000)/D$33,IF(figur4_valg=2,(INDIRECT(D$6&"_sam!Administration_sam")*1000)/D$33,(INDIRECT(D$6&"_sam!NDU_service_sam")*1000)/D$33)) -> 6038.302267 | E32: =IF(figur4_valg=1,(INDIRECT(E$6&"_sam!Samlede_NDU_sam")*1000)/E$33,IF(figur4_valg=2,(INDIRECT(E$6&"_sam!Administration_sam")*1000)/E$33,(INDIRECT(E$6&"_sam!NDU_service_sam")*1000)/E$33)) -> 5840.437932 | F32: =IF(figur4_valg=1,(INDIRECT(F$6&"_sam!Samlede_NDU_sam")*1000)/F$33,IF(figur4_valg=2,(INDIRECT(F$6&"_sam!Administration_sam")*1000)/F$33,(INDIRECT(F$6&"_sam!NDU_service_sam")*1000)/F$33)) -> 6104.505066 | G32: =IF(figur4_valg=1,(INDIRECT(G$6&"_sam!Samlede_NDU_sam")*1000)/G$33,IF(figur4_valg=2,(INDIRECT(G$6&"_sam!Administration_sam")*1000)/G$33,(INDIRECT(G$6&"_sam!NDU_service_sam")*1000)/G$33)) -> 6709.006784 | H32: =IF(figur4_valg=1,(INDIRECT(H$6&"_sam!Samlede_NDU_sam")*1000)/H$33,IF(figur4_valg=2,(INDIRECT(H$6&"_sam!Administration_sam")*1000)/H$33,(INDIRECT(H$6&"_sam!NDU_service_sam")*1000)/H$33)) -> 6795.824318 | I32: =IF(figur4_valg=1,(INDIRECT(I$6&"_sam!Samlede_NDU_sam")*1000)/I$33,IF(figur4_valg=2,(INDIRECT(I$6&"_sam!Administration_sam")*1000)/I$33,(INDIRECT(I$6&"_sam!NDU_service_sam")*1000)/I$33)) ->  | J32: =IF(figur4_valg=1,(INDIRECT(J$6&"_sam!Samlede_NDU_sam")*1000)/J$33,IF(figur4_valg=2,(INDIRECT(J$6&"_sam!Administration_sam")*1000)/J$33,(INDIRECT(J$6&"_sam!NDU_service_sam")*1000)/J$33)) ->  | K32: =IF(figur4_valg=1,(INDIRECT(K$6&"_sam!Samlede_NDU_sam")*1000)/K$33,IF(figur4_valg=2,(INDIRECT(K$6&"_sam!Administration_sam")*1000)/K$33,(INDIRECT(K$6&"_sam!NDU_service_sam")*1000)/K$33)) ->  | L32: =IF(figur4_valg=1,(INDIRECT(L$6&"_sam!Samlede_NDU_sam")*1000)/L$33,IF(figur4_valg=2,(INDIRECT(L$6&"_sam!Administration_sam")*1000)/L$33,(INDIRECT(L$6&"_sam!NDU_service_sam")*1000)/L$33)) ->  | M32: =IF(figur4_valg=1,(INDIRECT(M$6&"_sam!Samlede_NDU_sam")*1000)/M$33,IF(figur4_valg=2,(INDIRECT(M$6&"_sam!Administration_sam")*1000)/M$33,(INDIRECT(M$6&"_sam!NDU_service_sam")*1000)/M$33)) ->  | N32: =IF(figur4_valg=1,(INDIRECT(N$6&"_sam!Samlede_NDU_sam")*1000)/N$33,IF(figur4_valg=2,(INDIRECT(N$6&"_sam!Administration_sam")*1000)/N$33,(INDIRECT(N$6&"_sam!NDU_service_sam")*1000)/N$33)) ->  | O32: =IF(figur4_valg=1,(INDIRECT(O$6&"_sam!Samlede_NDU_sam")*1000)/O$33,IF(figur4_valg=2,(INDIRECT(O$6&"_sam!Administration_sam")*1000)/O$33,(INDIRECT(O$6&"_sam!NDU_service_sam")*1000)/O$33)) ->  | P32: =IF(figur4_valg=1,(INDIRECT(P$6&"_sam!Samlede_NDU_sam")*1000)/P$33,IF(figur4_valg=2,(INDIRECT(P$6&"_sam!Administration_sam")*1000)/P$33,(INDIRECT(P$6&"_sam!NDU_service_sam")*1000)/P$33)) ->  | Q32: =IF(figur4_valg=1,(INDIRECT(Q$6&"_sam!Samlede_NDU_sam")*1000)/Q$33,IF(figur4_valg=2,(INDIRECT(Q$6&"_sam!Administration_sam")*1000)/Q$33,(INDIRECT(Q$6&"_sam!NDU_service_sam")*1000)/Q$33)) ->  | R32: =IF(figur4_valg=1,(INDIRECT(R$6&"_sam!Samlede_NDU_sam")*1000)/R$33,IF(figur4_valg=2,(INDIRECT(R$6&"_sam!Administration_sam")*1000)/R$33,(INDIRECT(R$6&"_sam!NDU_service_sam")*1000)/R$33)) ->  | S32: =IF(figur4_valg=1,(INDIRECT(S$6&"_sam!Samlede_NDU_sam")*1000)/S$33,IF(figur4_valg=2,(INDIRECT(S$6&"_sam!Administration_sam")*1000)/S$33,(INDIRECT(S$6&"_sam!NDU_service_sam")*1000)/S$33)) ->  | T32: =IF(figur4_valg=1,(INDIRECT(T$6&"_sam!Samlede_NDU_sam")*1000)/T$33,IF(figur4_valg=2,(INDIRECT(T$6&"_sam!Administration_sam")*1000)/T$33,(INDIRECT(T$6&"_sam!NDU_service_sam")*1000)/T$33)) ->  | U32: =IF(figur4_valg=1,(INDIRECT(U$6&"_sam!Samlede_NDU_sam")*1000)/U$33,IF(figur4_valg=2,(INDIRECT(U$6&"_sam!Administration_sam")*1000)/U$33,(INDIRECT(U$6&"_sam!NDU_service_sam")*1000)/U$33)) ->  | V32: =IF(figur4_valg=1,(INDIRECT(V$6&"_sam!Samlede_NDU_sam")*1000)/V$33,IF(figur4_valg=2,(INDIRECT(V$6&"_sam!Administration_sam")*1000)/V$33,(INDIRECT(V$6&"_sam!NDU_service_sam")*1000)/V$33)) ->  | W32: =IF(figur4_valg=1,(INDIRECT(W$6&"_sam!Samlede_NDU_sam")*1000)/W$33,IF(figur4_valg=2,(INDIRECT(W$6&"_sam!Administration_sam")*1000)/W$33,(INDIRECT(W$6&"_sam!NDU_service_sam")*1000)/W$33)) -> 
B33: Antal 0-22-årige | C33: =INDIRECT("Bef_sam_"&C$6) -> 95431 | D33: =INDIRECT("Bef_sam_"&D$6) -> 95869 | E33: 96088 | F33: =INDIRECT("Bef_sam_"&F$6) -> 96225 | G33: 95961 | H33: 96128
B34: =""&Region&"" -> Syddanmark | C34: ="" ->  | D34: ="" ->  | E34: ="" ->  | F34: ="" ->  | G34: ="" ->  | H34: ="" ->  | I34: ="" ->  | J34: ="" ->  | K34: ="" ->  | L34: ="" ->  | M34: ="" ->  | N34: ="" ->  | O34: ="" ->  | P34: ="" ->  | Q34: ="" -> 
B35: =IF(figur4_valg=1,"Udgifter i alt pr. barn, kr., "&Prisår&"-priser",IF(figur4_valg=2,"Administrationsudgifter pr. barn, kr., "&Prisår&"-priser","Serviceudgifter pr. barn, kr., "&Prisår&"-priser")) -> Serviceudgifter pr. barn, kr., 2023-priser | C35: =IF(figur4_valg=1,(INDIRECT(C$6&"_sam!Samlede_NDU_reg")*1000)/C$36,IF(figur4_valg=2,(INDIRECT(C$6&"_sam!Administration_reg")*1000)/C$36,(INDIRECT(C$6&"_sam!NDU_service_reg")*1000)/C$36)) -> 8431.921987 | D35: =IF(figur4_valg=1,(INDIRECT(D$6&"_sam!Samlede_NDU_reg")*1000)/D$36,IF(figur4_valg=2,(INDIRECT(D$6&"_sam!Administration_reg")*1000)/D$36,(INDIRECT(D$6&"_sam!NDU_service_reg")*1000)/D$36)) -> 8898.800672 | E35: =IF(figur4_valg=1,(INDIRECT(E$6&"_sam!Samlede_NDU_reg")*1000)/E$36,IF(figur4_valg=2,(INDIRECT(E$6&"_sam!Administration_reg")*1000)/E$36,(INDIRECT(E$6&"_sam!NDU_service_reg")*1000)/E$36)) -> 9422.087894 | F35: =IF(figur4_valg=1,(INDIRECT(F$6&"_sam!Samlede_NDU_reg")*1000)/F$36,IF(figur4_valg=2,(INDIRECT(F$6&"_sam!Administration_reg")*1000)/F$36,(INDIRECT(F$6&"_sam!NDU_service_reg")*1000)/F$36)) -> 9608.99331 | G35: =IF(figur4_valg=1,(INDIRECT(G$6&"_sam!Samlede_NDU_reg")*1000)/G$36,IF(figur4_valg=2,(INDIRECT(G$6&"_sam!Administration_reg")*1000)/G$36,(INDIRECT(G$6&"_sam!NDU_service_reg")*1000)/G$36)) -> 9876.506226 | H35: =IF(figur4_valg=1,(INDIRECT(H$6&"_sam!Samlede_NDU_reg")*1000)/H$36,IF(figur4_valg=2,(INDIRECT(H$6&"_sam!Administration_reg")*1000)/H$36,(INDIRECT(H$6&"_sam!NDU_service_reg")*1000)/H$36)) -> 10512.18758 | I35: =IF(figur4_valg=1,(INDIRECT(I$6&"_sam!Samlede_NDU_reg")*1000)/I$36,IF(figur4_valg=2,(INDIRECT(I$6&"_sam!Administration_reg")*1000)/I$36,(INDIRECT(I$6&"_sam!NDU_service_reg")*1000)/I$36)) ->  | J35: =IF(figur4_valg=1,(INDIRECT(J$6&"_sam!Samlede_NDU_reg")*1000)/J$36,IF(figur4_valg=2,(INDIRECT(J$6&"_sam!Administration_reg")*1000)/J$36,(INDIRECT(J$6&"_sam!NDU_service_reg")*1000)/J$36)) ->  | K35: =IF(figur4_valg=1,(INDIRECT(K$6&"_sam!Samlede_NDU_reg")*1000)/K$36,IF(figur4_valg=2,(INDIRECT(K$6&"_sam!Administration_reg")*1000)/K$36,(INDIRECT(K$6&"_sam!NDU_service_reg")*1000)/K$36)) ->  | L35: =IF(figur4_valg=1,(INDIRECT(L$6&"_sam!Samlede_NDU_reg")*1000)/L$36,IF(figur4_valg=2,(INDIRECT(L$6&"_sam!Administration_reg")*1000)/L$36,(INDIRECT(L$6&"_sam!NDU_service_reg")*1000)/L$36)) ->  | M35: =IF(figur4_valg=1,(INDIRECT(M$6&"_sam!Samlede_NDU_reg")*1000)/M$36,IF(figur4_valg=2,(INDIRECT(M$6&"_sam!Administration_reg")*1000)/M$36,(INDIRECT(M$6&"_sam!NDU_service_reg")*1000)/M$36)) ->  | N35: =IF(figur4_valg=1,(INDIRECT(N$6&"_sam!Samlede_NDU_reg")*1000)/N$36,IF(figur4_valg=2,(INDIRECT(N$6&"_sam!Administration_reg")*1000)/N$36,(INDIRECT(N$6&"_sam!NDU_service_reg")*1000)/N$36)) ->  | O35: =IF(figur4_valg=1,(INDIRECT(O$6&"_sam!Samlede_NDU_reg")*1000)/O$36,IF(figur4_valg=2,(INDIRECT(O$6&"_sam!Administration_reg")*1000)/O$36,(INDIRECT(O$6&"_sam!NDU_service_reg")*1000)/O$36)) ->  | P35: =IF(figur4_valg=1,(INDIRECT(P$6&"_sam!Samlede_NDU_reg")*1000)/P$36,IF(figur4_valg=2,(INDIRECT(P$6&"_sam!Administration_reg")*1000)/P$36,(INDIRECT(P$6&"_sam!NDU_service_reg")*1000)/P$36)) ->  | Q35: =IF(figur4_valg=1,(INDIRECT(Q$6&"_sam!Samlede_NDU_reg")*1000)/Q$36,IF(figur4_valg=2,(INDIRECT(Q$6&"_sam!Administration_reg")*1000)/Q$36,(INDIRECT(Q$6&"_sam!NDU_service_reg")*1000)/Q$36)) ->  | R35: =IF(figur4_valg=1,(INDIRECT(R$6&"_sam!Samlede_NDU_reg")*1000)/R$36,IF(figur4_valg=2,(INDIRECT(R$6&"_sam!Administration_reg")*1000)/R$36,(INDIRECT(R$6&"_sam!NDU_service_reg")*1000)/R$36)) ->  | S35: =IF(figur4_valg=1,(INDIRECT(S$6&"_sam!Samlede_NDU_reg")*1000)/S$36,IF(figur4_valg=2,(INDIRECT(S$6&"_sam!Administration_reg")*1000)/S$36,(INDIRECT(S$6&"_sam!NDU_service_reg")*1000)/S$36)) ->  | T35: =IF(figur4_valg=1,(INDIRECT(T$6&"_sam!Samlede_NDU_reg")*1000)/T$36,IF(figur4_valg=2,(INDIRECT(T$6&"_sam!Administration_reg")*1000)/T$36,(INDIRECT(T$6&"_sam!NDU_service_reg")*1000)/T$36)) ->  | U35: =IF(figur4_valg=1,(INDIRECT(U$6&"_sam!Samlede_NDU_reg")*1000)/U$36,IF(figur4_valg=2,(INDIRECT(U$6&"_sam!Administration_reg")*1000)/U$36,(INDIRECT(U$6&"_sam!NDU_service_reg")*1000)/U$36)) ->  | V35: =IF(figur4_valg=1,(INDIRECT(V$6&"_sam!Samlede_NDU_reg")*1000)/V$36,IF(figur4_valg=2,(INDIRECT(V$6&"_sam!Administration_reg")*1000)/V$36,(INDIRECT(V$6&"_sam!NDU_service_reg")*1000)/V$36)) ->  | W35: =IF(figur4_valg=1,(INDIRECT(W$6&"_sam!Samlede_NDU_reg")*1000)/W$36,IF(figur4_valg=2,(INDIRECT(W$6&"_sam!Administration_reg")*1000)/W$36,(INDIRECT(W$6&"_sam!NDU_service_reg")*1000)/W$36)) -> 
B36: Antal 0-22-årige | C36: =INDIRECT(C$6&"_sam!Bef_reg_"&C$6) -> 324253 | D36: =INDIRECT(D$6&"_sam!Bef_reg_"&D$6) -> 320763 | E36: =INDIRECT(E$6&"_sam!Bef_reg_"&E$6) -> 317133 | F36: =INDIRECT(F$6&"_sam!Bef_reg_"&F$6) -> 313900 | G36: 313117 | H36: 313598 | I36: =INDIRECT(I$6&"_sam!Bef_reg") -> 
B37: Hele landet | C37: ="" ->  | D37: ="" ->  | E37: ="" ->  | F37: ="" ->  | G37: ="" ->  | H37: ="" ->  | I37: ="" ->  | J37: ="" ->  | K37: ="" ->  | L37: ="" ->  | M37: ="" ->  | N37: ="" ->  | O37: ="" ->  | P37: ="" ->  | Q37: ="" -> 
B38: =IF(figur4_valg=1,"Udgifter i alt pr. barn, kr., "&Prisår&"-priser",IF(figur4_valg=2,"Administrationsudgifter pr. barn, kr., "&Prisår&"-priser","Serviceudgifter pr. barn, kr., "&Prisår&"-priser")) -> Serviceudgifter pr. barn, kr., 2023-priser | C38: =IF(figur4_valg=1,(INDIRECT(C$6&"_sam!Samlede_NDU")*1000)/C$39,IF(figur4_valg=2,(INDIRECT(C$6&"_sam!Administration")*1000)/C$39,(INDIRECT(C$6&"_sam!NDU_service")*1000)/C$39)) -> 8491.852999 | D38: =IF(figur4_valg=1,(INDIRECT(D$6&"_sam!Samlede_NDU")*1000)/D$39,IF(figur4_valg=2,(INDIRECT(D$6&"_sam!Administration")*1000)/D$39,(INDIRECT(D$6&"_sam!NDU_service")*1000)/D$39)) -> 8731.652751 | E38: =IF(figur4_valg=1,(INDIRECT(E$6&"_sam!Samlede_NDU")*1000)/E$39,IF(figur4_valg=2,(INDIRECT(E$6&"_sam!Administration")*1000)/E$39,(INDIRECT(E$6&"_sam!NDU_service")*1000)/E$39)) -> 9036.051446 | F38: =IF(figur4_valg=1,(INDIRECT(F$6&"_sam!Samlede_NDU")*1000)/F$39,IF(figur4_valg=2,(INDIRECT(F$6&"_sam!Administration")*1000)/F$39,(INDIRECT(F$6&"_sam!NDU_service")*1000)/F$39)) -> 9238.245953 | G38: =IF(figur4_valg=1,(INDIRECT(G$6&"_sam!Samlede_NDU")*1000)/G$39,IF(figur4_valg=2,(INDIRECT(G$6&"_sam!Administration")*1000)/G$39,(INDIRECT(G$6&"_sam!NDU_service")*1000)/G$39)) -> 9645.779582 | H38: =IF(figur4_valg=1,(INDIRECT(H$6&"_sam!Samlede_NDU")*1000)/H$39,IF(figur4_valg=2,(INDIRECT(H$6&"_sam!Administration")*1000)/H$39,(INDIRECT(H$6&"_sam!NDU_service")*1000)/H$39)) -> 10117.63619 | I38: =IF(figur4_valg=1,(INDIRECT(I$6&"_sam!Samlede_NDU")*1000)/I$39,IF(figur4_valg=2,(INDIRECT(I$6&"_sam!Administration")*1000)/I$39,(INDIRECT(I$6&"_sam!NDU_service")*1000)/I$39)) ->  | J38: =IF(figur4_valg=1,(INDIRECT(J$6&"_sam!Samlede_NDU")*1000)/J$39,IF(figur4_valg=2,(INDIRECT(J$6&"_sam!Administration")*1000)/J$39,(INDIRECT(J$6&"_sam!NDU_service")*1000)/J$39)) ->  | K38: =IF(figur4_valg=1,(INDIRECT(K$6&"_sam!Samlede_NDU")*1000)/K$39,IF(figur4_valg=2,(INDIRECT(K$6&"_sam!Administration")*1000)/K$39,(INDIRECT(K$6&"_sam!NDU_service")*1000)/K$39)) ->  | L38: =IF(figur4_valg=1,(INDIRECT(L$6&"_sam!Samlede_NDU")*1000)/L$39,IF(figur4_valg=2,(INDIRECT(L$6&"_sam!Administration")*1000)/L$39,(INDIRECT(L$6&"_sam!NDU_service")*1000)/L$39)) ->  | M38: =IF(figur4_valg=1,(INDIRECT(M$6&"_sam!Samlede_NDU")*1000)/M$39,IF(figur4_valg=2,(INDIRECT(M$6&"_sam!Administration")*1000)/M$39,(INDIRECT(M$6&"_sam!NDU_service")*1000)/M$39)) ->  | N38: =IF(figur4_valg=1,(INDIRECT(N$6&"_sam!Samlede_NDU")*1000)/N$39,IF(figur4_valg=2,(INDIRECT(N$6&"_sam!Administration")*1000)/N$39,(INDIRECT(N$6&"_sam!NDU_service")*1000)/N$39)) ->  | O38: =IF(figur4_valg=1,(INDIRECT(O$6&"_sam!Samlede_NDU")*1000)/O$39,IF(figur4_valg=2,(INDIRECT(O$6&"_sam!Administration")*1000)/O$39,(INDIRECT(O$6&"_sam!NDU_service")*1000)/O$39)) ->  | P38: =IF(figur4_valg=1,(INDIRECT(P$6&"_sam!Samlede_NDU")*1000)/P$39,IF(figur4_valg=2,(INDIRECT(P$6&"_sam!Administration")*1000)/P$39,(INDIRECT(P$6&"_sam!NDU_service")*1000)/P$39)) ->  | Q38: =IF(figur4_valg=1,(INDIRECT(Q$6&"_sam!Samlede_NDU")*1000)/Q$39,IF(figur4_valg=2,(INDIRECT(Q$6&"_sam!Administration")*1000)/Q$39,(INDIRECT(Q$6&"_sam!NDU_service")*1000)/Q$39)) ->  | R38: =IF(figur4_valg=1,(INDIRECT(R$6&"_sam!Samlede_NDU")*1000)/R$39,IF(figur4_valg=2,(INDIRECT(R$6&"_sam!Administration")*1000)/R$39,(INDIRECT(R$6&"_sam!NDU_service")*1000)/R$39)) ->  | S38: =IF(figur4_valg=1,(INDIRECT(S$6&"_sam!Samlede_NDU")*1000)/S$39,IF(figur4_valg=2,(INDIRECT(S$6&"_sam!Administration")*1000)/S$39,(INDIRECT(S$6&"_sam!NDU_service")*1000)/S$39)) ->  | T38: =IF(figur4_valg=1,(INDIRECT(T$6&"_sam!Samlede_NDU")*1000)/T$39,IF(figur4_valg=2,(INDIRECT(T$6&"_sam!Administration")*1000)/T$39,(INDIRECT(T$6&"_sam!NDU_service")*1000)/T$39)) ->  | U38: =IF(figur4_valg=1,(INDIRECT(U$6&"_sam!Samlede_NDU")*1000)/U$39,IF(figur4_valg=2,(INDIRECT(U$6&"_sam!Administration")*1000)/U$39,(INDIRECT(U$6&"_sam!NDU_service")*1000)/U$39)) ->  | V38: =IF(figur4_valg=1,(INDIRECT(V$6&"_sam!Samlede_NDU")*1000)/V$39,IF(figur4_valg=2,(INDIRECT(V$6&"_sam!Administration")*1000)/V$39,(INDIRECT(V$6&"_sam!NDU_service")*1000)/V$39)) ->  | W38: =IF(figur4_valg=1,(INDIRECT(W$6&"_sam!Samlede_NDU")*1000)/W$39,IF(figur4_valg=2,(INDIRECT(W$6&"_sam!Administration")*1000)/W$39,(INDIRECT(W$6&"_sam!NDU_service")*1000)/W$39)) -> 
B39: Antal 0-22-årige | C39: =INDIRECT(C$6&"_sam!Bef_dk") -> 1537130 | D39: =INDIRECT(D$6&"_sam!Bef_dk") -> 1527804 | E39: 1518885 | F39: 1510267 | G39: 1510040 | H39: 1516081
B42: =IF(figur5_valg=1,"Udgifter til forebyggende indsatser pr. barn, kr., "&Prisår&"-priser",IF(figur5_valg=2,"Udgifter til hjemmebaserede foranstaltninger pr. barn, kr., "&Prisår&"-priser",IF(figur5_valg=3,"Udgifter til slægts- eller netværkspleje pr. barn, kr., "&Prisår&"-priser",IF(figur5_valg=4,"Udgifter til familiepleje pr. barn, kr., "&Prisår&"-priser",IF(figur5_valg=5,"Udgifter til institutionsanbringelser pr. barn, kr., "&Prisår&"-priser",IF(figur5_valg=6,"Udgifter til ikke-trinspecifikke grupperinger pr. barn, kr., "&Prisår&"-priser","Refusioner pr. barn, kr., "&Prisår&"-priser")))))) -> Udgifter til hjemmebaserede foranstaltninger pr. barn, kr., 2023-priser
C43: ='Dine valg'!$J$10 -> 2018 | D43: ='Dine valg'!$J$11 -> 2019 | E43: ='Dine valg'!$J$12 -> 2020 | F43: ='Dine valg'!$J$13 -> 2021 | G43: ='Dine valg'!$J$14 -> 2022 | H43: ='Dine valg'!$J$15 -> 2023 | I43: ='Dine valg'!$J$16 ->  | J43: ='Dine valg'!$K$10 ->  | K43: ='Dine valg'!$K$11 ->  | L43: ='Dine valg'!$K$12 ->  | M43: ='Dine valg'!$K$13 ->  | N43: ='Dine valg'!$K$14 ->  | O43: ='Dine valg'!$K$15 ->  | P43: ='Dine valg'!$K$16 ->  | Q43: ='Dine valg'!$L$10 ->  | R43: ='Dine valg'!$L$11 ->  | S43: ='Dine valg'!$L$12 ->  | T43: ='Dine valg'!$L$13 ->  | U43: ='Dine valg'!$L$14 ->  | V43: ='Dine valg'!$L$15 ->  | W43: ='Dine valg'!$L$16 -> 
B44: =""&Kommune&"" -> Fredericia | C44: ="" ->  | D44: ="" ->  | E44: ="" ->  | F44: ="" ->  | G44: ="" ->  | H44: ="" ->  | I44: ="" ->  | J44: ="" ->  | K44: ="" ->  | L44: ="" ->  | M44: ="" ->  | N44: ="" ->  | O44: ="" ->  | P44: ="" ->  | Q44: ="" -> 
B45: =IF(figur5_valg=1,"Udgifter til forebyggende indsatser pr. barn, kr., "&Prisår&"-priser",IF(figur5_valg=2,"Udgifter til hjemmebaserede foranstaltninger pr. barn, kr., "&Prisår&"-priser",IF(figur5_valg=3,"Udgifter til slægts- eller netværkspleje pr. barn, kr., "&Prisår&"-priser",IF(figur5_valg=4,"Udgifter til familiepleje pr. barn, kr., "&Prisår&"-priser",IF(figur5_valg=5,"Udgifter til institutionsanbringelser pr. barn, kr., "&Prisår&"-priser",IF(figur5_valg=6,"Udgifter til ikke-trinspecifikke grupperinger pr. barn, kr., "&Prisår&"-priser","Refusioner pr. barn, kr., "&Prisår&"-priser")))))) -> Udgifter til hjemmebaserede foranstaltninger pr. barn, kr., 2023-priser | C45: =IF(figur5_valg=1,IF(C$6<2015,#N/A,(INDIRECT(C$6&"!BDU_forebyggende")*1000)/C$46),IF(figur5_valg=2,(INDIRECT(C$6&"!BDU_hjemme")*1000)/C$46,IF(figur5_valg=3,(INDIRECT(C$6&"!BDU_netværk")*1000)/C$46,IF(figur5_valg=4,(INDIRECT(C$6&"!BDU_familiepleje")*1000)/C$46,IF(figur5_valg=5,(INDIRECT(C$6&"!BDU_institution")*1000)/C$46,IF(figur5_valg=6,(INDIRECT(C$6&"!BDU_universal")*1000)/C$46,(INDIRECT(C$6&"!Ref")*1000)/C$46)))))) -> 1357.22161 | D45: =IF(figur5_valg=1,IF(D$6<2015,#N/A,(INDIRECT(D$6&"!BDU_forebyggende")*1000)/D$46),IF(figur5_valg=2,(INDIRECT(D$6&"!BDU_hjemme")*1000)/D$46,IF(figur5_valg=3,(INDIRECT(D$6&"!BDU_netværk")*1000)/D$46,IF(figur5_valg=4,(INDIRECT(D$6&"!BDU_familiepleje")*1000)/D$46,IF(figur5_valg=5,(INDIRECT(D$6&"!BDU_institution")*1000)/D$46,IF(figur5_valg=6,(INDIRECT(D$6&"!BDU_universal")*1000)/D$46,(INDIRECT(D$6&"!Ref")*1000)/D$46)))))) -> 1127.09279 | E45: =IF(figur5_valg=1,IF(E$6<2015,#N/A,(INDIRECT(E$6&"!BDU_forebyggende")*1000)/E$46),IF(figur5_valg=2,(INDIRECT(E$6&"!BDU_hjemme")*1000)/E$46,IF(figur5_valg=3,(INDIRECT(E$6&"!BDU_netværk")*1000)/E$46,IF(figur5_valg=4,(INDIRECT(E$6&"!BDU_familiepleje")*1000)/E$46,IF(figur5_valg=5,(INDIRECT(E$6&"!BDU_institution")*1000)/E$46,IF(figur5_valg=6,(INDIRECT(E$6&"!BDU_universal")*1000)/E$46,(INDIRECT(E$6&"!Ref")*1000)/E$46)))))) -> 1576.41196 | F45: =IF(figur5_valg=1,IF(F$6<2015,#N/A,(INDIRECT(F$6&"!BDU_forebyggende")*1000)/F$46),IF(figur5_valg=2,(INDIRECT(F$6&"!BDU_hjemme")*1000)/F$46,IF(figur5_valg=3,(INDIRECT(F$6&"!BDU_netværk")*1000)/F$46,IF(figur5_valg=4,(INDIRECT(F$6&"!BDU_familiepleje")*1000)/F$46,IF(figur5_valg=5,(INDIRECT(F$6&"!BDU_institution")*1000)/F$46,IF(figur5_valg=6,(INDIRECT(F$6&"!BDU_universal")*1000)/F$46,(INDIRECT(F$6&"!Ref")*1000)/F$46)))))) -> 1652.57524 | G45: =IF(figur5_valg=1,IF(G$6<2015,#N/A,(INDIRECT(G$6&"!BDU_forebyggende")*1000)/G$46),IF(figur5_valg=2,(INDIRECT(G$6&"!BDU_hjemme")*1000)/G$46,IF(figur5_valg=3,(INDIRECT(G$6&"!BDU_netværk")*1000)/G$46,IF(figur5_valg=4,(INDIRECT(G$6&"!BDU_familiepleje")*1000)/G$46,IF(figur5_valg=5,(INDIRECT(G$6&"!BDU_institution")*1000)/G$46,IF(figur5_valg=6,(INDIRECT(G$6&"!BDU_universal")*1000)/G$46,(INDIRECT(G$6&"!Ref")*1000)/G$46)))))) -> 2216.218306 | H45: =IF(figur5_valg=1,IF(H$6<2015,#N/A,(INDIRECT(H$6&"!BDU_forebyggende")*1000)/H$46),IF(figur5_valg=2,(INDIRECT(H$6&"!BDU_hjemme")*1000)/H$46,IF(figur5_valg=3,(INDIRECT(H$6&"!BDU_netværk")*1000)/H$46,IF(figur5_valg=4,(INDIRECT(H$6&"!BDU_familiepleje")*1000)/H$46,IF(figur5_valg=5,(INDIRECT(H$6&"!BDU_institution")*1000)/H$46,IF(figur5_valg=6,(INDIRECT(H$6&"!BDU_universal")*1000)/H$46,(INDIRECT(H$6&"!Ref")*1000)/H$46)))))) -> 2728.291747 | I45: =IF(figur5_valg=1,IF(I$6<2015,#N/A,(INDIRECT(I$6&"!BDU_forebyggende")*1000)/I$46),IF(figur5_valg=2,(INDIRECT(I$6&"!BDU_hjemme")*1000)/I$46,IF(figur5_valg=3,(INDIRECT(I$6&"!BDU_netværk")*1000)/I$46,IF(figur5_valg=4,(INDIRECT(I$6&"!BDU_familiepleje")*1000)/I$46,IF(figur5_valg=5,(INDIRECT(I$6&"!BDU_institution")*1000)/I$46,IF(figur5_valg=6,(INDIRECT(I$6&"!BDU_universal")*1000)/I$46,(INDIRECT(I$6&"!Ref")*1000)/I$46)))))) ->  | J45: =IF(figur5_valg=1,IF(J$6<2015,#N/A,(INDIRECT(J$6&"!BDU_forebyggende")*1000)/J$46),IF(figur5_valg=2,(INDIRECT(J$6&"!BDU_hjemme")*1000)/J$46,IF(figur5_valg=3,(INDIRECT(J$6&"!BDU_netværk")*1000)/J$46,IF(figur5_valg=4,(INDIRECT(J$6&"!BDU_familiepleje")*1000)/J$46,IF(figur5_valg=5,(INDIRECT(J$6&"!BDU_institution")*1000)/J$46,IF(figur5_valg=6,(INDIRECT(J$6&"!BDU_universal")*1000)/J$46,(INDIRECT(J$6&"!Ref")*1000)/J$46)))))) ->  | K45: =IF(figur5_valg=1,IF(K$6<2015,#N/A,(INDIRECT(K$6&"!BDU_forebyggende")*1000)/K$46),IF(figur5_valg=2,(INDIRECT(K$6&"!BDU_hjemme")*1000)/K$46,IF(figur5_valg=3,(INDIRECT(K$6&"!BDU_netværk")*1000)/K$46,IF(figur5_valg=4,(INDIRECT(K$6&"!BDU_familiepleje")*1000)/K$46,IF(figur5_valg=5,(INDIRECT(K$6&"!BDU_institution")*1000)/K$46,IF(figur5_valg=6,(INDIRECT(K$6&"!BDU_universal")*1000)/K$46,(INDIRECT(K$6&"!Ref")*1000)/K$46)))))) ->  | L45: =IF(figur5_valg=1,IF(L$6<2015,#N/A,(INDIRECT(L$6&"!BDU_forebyggende")*1000)/L$46),IF(figur5_valg=2,(INDIRECT(L$6&"!BDU_hjemme")*1000)/L$46,IF(figur5_valg=3,(INDIRECT(L$6&"!BDU_netværk")*1000)/L$46,IF(figur5_valg=4,(INDIRECT(L$6&"!BDU_familiepleje")*1000)/L$46,IF(figur5_valg=5,(INDIRECT(L$6&"!BDU_institution")*1000)/L$46,IF(figur5_valg=6,(INDIRECT(L$6&"!BDU_universal")*1000)/L$46,(INDIRECT(L$6&"!Ref")*1000)/L$46)))))) ->  | M45: =IF(figur5_valg=1,IF(M$6<2015,#N/A,(INDIRECT(M$6&"!BDU_forebyggende")*1000)/M$46),IF(figur5_valg=2,(INDIRECT(M$6&"!BDU_hjemme")*1000)/M$46,IF(figur5_valg=3,(INDIRECT(M$6&"!BDU_netværk")*1000)/M$46,IF(figur5_valg=4,(INDIRECT(M$6&"!BDU_familiepleje")*1000)/M$46,IF(figur5_valg=5,(INDIRECT(M$6&"!BDU_institution")*1000)/M$46,IF(figur5_valg=6,(INDIRECT(M$6&"!BDU_universal")*1000)/M$46,(INDIRECT(M$6&"!Ref")*1000)/M$46)))))) ->  | N45: =IF(figur5_valg=1,IF(N$6<2015,#N/A,(INDIRECT(N$6&"!BDU_forebyggende")*1000)/N$46),IF(figur5_valg=2,(INDIRECT(N$6&"!BDU_hjemme")*1000)/N$46,IF(figur5_valg=3,(INDIRECT(N$6&"!BDU_netværk")*1000)/N$46,IF(figur5_valg=4,(INDIRECT(N$6&"!BDU_familiepleje")*1000)/N$46,IF(figur5_valg=5,(INDIRECT(N$6&"!BDU_institution")*1000)/N$46,IF(figur5_valg=6,(INDIRECT(N$6&"!BDU_universal")*1000)/N$46,(INDIRECT(N$6&"!Ref")*1000)/N$46)))))) ->  | O45: =IF(figur5_valg=1,IF(O$6<2015,#N/A,(INDIRECT(O$6&"!BDU_forebyggende")*1000)/O$46),IF(figur5_valg=2,(INDIRECT(O$6&"!BDU_hjemme")*1000)/O$46,IF(figur5_valg=3,(INDIRECT(O$6&"!BDU_netværk")*1000)/O$46,IF(figur5_valg=4,(INDIRECT(O$6&"!BDU_familiepleje")*1000)/O$46,IF(figur5_valg=5,(INDIRECT(O$6&"!BDU_institution")*1000)/O$46,IF(figur5_valg=6,(INDIRECT(O$6&"!BDU_universal")*1000)/O$46,(INDIRECT(O$6&"!Ref")*1000)/O$46)))))) ->  | P45: =IF(figur5_valg=1,IF(P$6<2015,#N/A,(INDIRECT(P$6&"!BDU_forebyggende")*1000)/P$46),IF(figur5_valg=2,(INDIRECT(P$6&"!BDU_hjemme")*1000)/P$46,IF(figur5_valg=3,(INDIRECT(P$6&"!BDU_netværk")*1000)/P$46,IF(figur5_valg=4,(INDIRECT(P$6&"!BDU_familiepleje")*1000)/P$46,IF(figur5_valg=5,(INDIRECT(P$6&"!BDU_institution")*1000)/P$46,IF(figur5_valg=6,(INDIRECT(P$6&"!BDU_universal")*1000)/P$46,(INDIRECT(P$6&"!Ref")*1000)/P$46)))))) ->  | Q45: =IF(figur5_valg=1,IF(Q$6<2015,#N/A,(INDIRECT(Q$6&"!BDU_forebyggende")*1000)/Q$46),IF(figur5_valg=2,(INDIRECT(Q$6&"!BDU_hjemme")*1000)/Q$46,IF(figur5_valg=3,(INDIRECT(Q$6&"!BDU_netværk")*1000)/Q$46,IF(figur5_valg=4,(INDIRECT(Q$6&"!BDU_familiepleje")*1000)/Q$46,IF(figur5_valg=5,(INDIRECT(Q$6&"!BDU_institution")*1000)/Q$46,IF(figur5_valg=6,(INDIRECT(Q$6&"!BDU_universal")*1000)/Q$46,(INDIRECT(Q$6&"!Ref")*1000)/Q$46)))))) ->  | R45: =IF(figur5_valg=1,IF(R$6<2015,#N/A,(INDIRECT(R$6&"!BDU_forebyggende")*1000)/R$46),IF(figur5_valg=2,(INDIRECT(R$6&"!BDU_hjemme")*1000)/R$46,IF(figur5_valg=3,(INDIRECT(R$6&"!BDU_netværk")*1000)/R$46,IF(figur5_valg=4,(INDIRECT(R$6&"!BDU_familiepleje")*1000)/R$46,IF(figur5_valg=5,(INDIRECT(R$6&"!BDU_institution")*1000)/R$46,IF(figur5_valg=6,(INDIRECT(R$6&"!BDU_universal")*1000)/R$46,(INDIRECT(R$6&"!Ref")*1000)/R$46)))))) ->  | S45: =IF(figur5_valg=1,IF(S$6<2015,#N/A,(INDIRECT(S$6&"!BDU_forebyggende")*1000)/S$46),IF(figur5_valg=2,(INDIRECT(S$6&"!BDU_hjemme")*1000)/S$46,IF(figur5_valg=3,(INDIRECT(S$6&"!BDU_netværk")*1000)/S$46,IF(figur5_valg=4,(INDIRECT(S$6&"!BDU_familiepleje")*1000)/S$46,IF(figur5_valg=5,(INDIRECT(S$6&"!BDU_institution")*1000)/S$46,IF(figur5_valg=6,(INDIRECT(S$6&"!BDU_universal")*1000)/S$46,(INDIRECT(S$6&"!Ref")*1000)/S$46)))))) ->  | T45: =IF(figur5_valg=1,IF(T$6<2015,#N/A,(INDIRECT(T$6&"!BDU_forebyggende")*1000)/T$46),IF(figur5_valg=2,(INDIRECT(T$6&"!BDU_hjemme")*1000)/T$46,IF(figur5_valg=3,(INDIRECT(T$6&"!BDU_netværk")*1000)/T$46,IF(figur5_valg=4,(INDIRECT(T$6&"!BDU_familiepleje")*1000)/T$46,IF(figur5_valg=5,(INDIRECT(T$6&"!BDU_institution")*1000)/T$46,IF(figur5_valg=6,(INDIRECT(T$6&"!BDU_universal")*1000)/T$46,(INDIRECT(T$6&"!Ref")*1000)/T$46)))))) ->  | U45: =IF(figur5_valg=1,IF(U$6<2015,#N/A,(INDIRECT(U$6&"!BDU_forebyggende")*1000)/U$46),IF(figur5_valg=2,(INDIRECT(U$6&"!BDU_hjemme")*1000)/U$46,IF(figur5_valg=3,(INDIRECT(U$6&"!BDU_netværk")*1000)/U$46,IF(figur5_valg=4,(INDIRECT(U$6&"!BDU_familiepleje")*1000)/U$46,IF(figur5_valg=5,(INDIRECT(U$6&"!BDU_institution")*1000)/U$46,IF(figur5_valg=6,(INDIRECT(U$6&"!BDU_universal")*1000)/U$46,(INDIRECT(U$6&"!Ref")*1000)/U$46)))))) ->  | V45: =IF(figur5_valg=1,IF(V$6<2015,#N/A,(INDIRECT(V$6&"!BDU_forebyggende")*1000)/V$46),IF(figur5_valg=2,(INDIRECT(V$6&"!BDU_hjemme")*1000)/V$46,IF(figur5_valg=3,(INDIRECT(V$6&"!BDU_netværk")*1000)/V$46,IF(figur5_valg=4,(INDIRECT(V$6&"!BDU_familiepleje")*1000)/V$46,IF(figur5_valg=5,(INDIRECT(V$6&"!BDU_institution")*1000)/V$46,IF(figur5_valg=6,(INDIRECT(V$6&"!BDU_universal")*1000)/V$46,(INDIRECT(V$6&"!Ref")*1000)/V$46)))))) ->  | W45: =IF(figur5_valg=1,IF(W$6<2015,#N/A,(INDIRECT(W$6&"!BDU_forebyggende")*1000)/W$46),IF(figur5_valg=2,(INDIRECT(W$6&"!BDU_hjemme")*1000)/W$46,IF(figur5_valg=3,(INDIRECT(W$6&"!BDU_netværk")*1000)/W$46,IF(figur5_valg=4,(INDIRECT(W$6&"!BDU_familiepleje")*1000)/W$46,IF(figur5_valg=5,(INDIRECT(W$6&"!BDU_institution")*1000)/W$46,IF(figur5_valg=6,(INDIRECT(W$6&"!BDU_universal")*1000)/W$46,(INDIRECT(W$6&"!Ref")*1000)/W$46)))))) -> 
B46: Antal 0-22-årige | C46: =(IF(ISNA(INDEX(befolkning,MATCH(1,(bef_kom=Kommune)*(bef_aar=C$6),0),3))=TRUE,0,INDEX(befolkning,MATCH(1,(bef_kom=Kommune)*(bef_aar=C$6),0),3))) -> 13605 | D46: =(IF(ISNA(INDEX(befolkning,MATCH(1,(bef_kom=Kommune)*(bef_aar=D$6),0),3))=TRUE,0,INDEX(befolkning,MATCH(1,(bef_kom=Kommune)*(bef_aar=D$6),0),3))) -> 13439 | E46: =(IF(ISNA(INDEX(befolkning,MATCH(1,(bef_kom=Kommune)*(bef_aar=E$6),0),3))=TRUE,0,INDEX(befolkning,MATCH(1,(bef_kom=Kommune)*(bef_aar=E$6),0),3))) -> 13244 | F46: =(IF(ISNA(INDEX(befolkning,MATCH(1,(bef_kom=Kommune)*(bef_aar=F$6),0),3))=TRUE,0,INDEX(befolkning,MATCH(1,(bef_kom=Kommune)*(bef_aar=F$6),0),3))) -> 12892 | G46: =(IF(ISNA(INDEX(befolkning,MATCH(1,(bef_kom=Kommune)*(bef_aar=G$6),0),3))=TRUE,0,INDEX(befolkning,MATCH(1,(bef_kom=Kommune)*(bef_aar=G$6),0),3))) -> 12936 | H46: =(IF(ISNA(INDEX(befolkning,MATCH(1,(bef_kom=Kommune)*(bef_aar=H$6),0),3))=TRUE,0,INDEX(befolkning,MATCH(1,(bef_kom=Kommune)*(bef_aar=H$6),0),3))) -> 13025 | I46: =(IF(ISNA(INDEX(befolkning,MATCH(1,(bef_kom=Kommune)*(bef_aar=I$6),0),3))=TRUE,0,INDEX(befolkning,MATCH(1,(bef_kom=Kommune)*(bef_aar=I$6),0),3))) -> 0 | J46: =(IF(ISNA(INDEX(befolkning,MATCH(1,(bef_kom=Kommune)*(bef_aar=J$6),0),3))=TRUE,0,INDEX(befolkning,MATCH(1,(bef_kom=Kommune)*(bef_aar=J$6),0),3))) -> 0 | K46: =(IF(ISNA(INDEX(befolkning,MATCH(1,(bef_kom=Kommune)*(bef_aar=K$6),0),3))=TRUE,0,INDEX(befolkning,MATCH(1,(bef_kom=Kommune)*(bef_aar=K$6),0),3))) -> 0 | L46: =(IF(ISNA(INDEX(befolkning,MATCH(1,(bef_kom=Kommune)*(bef_aar=L$6),0),3))=TRUE,0,INDEX(befolkning,MATCH(1,(bef_kom=Kommune)*(bef_aar=L$6),0),3))) -> 0 | M46: =(IF(ISNA(INDEX(befolkning,MATCH(1,(bef_kom=Kommune)*(bef_aar=M$6),0),3))=TRUE,0,INDEX(befolkning,MATCH(1,(bef_kom=Kommune)*(bef_aar=M$6),0),3))) -> 0 | N46: =(IF(ISNA(INDEX(befolkning,MATCH(1,(bef_kom=Kommune)*(bef_aar=N$6),0),3))=TRUE,0,INDEX(befolkning,MATCH(1,(bef_kom=Kommune)*(bef_aar=N$6),0),3))) -> 0 | O46: =(IF(ISNA(INDEX(befolkning,MATCH(1,(bef_kom=Kommune)*(bef_aar=O$6),0),3))=TRUE,0,INDEX(befolkning,MATCH(1,(bef_kom=Kommune)*(bef_aar=O$6),0),3))) -> 0 | P46: =(IF(ISNA(INDEX(befolkning,MATCH(1,(bef_kom=Kommune)*(bef_aar=P$6),0),3))=TRUE,0,INDEX(befolkning,MATCH(1,(bef_kom=Kommune)*(bef_aar=P$6),0),3))) -> 0 | Q46: =(IF(ISNA(INDEX(befolkning,MATCH(1,(bef_kom=Kommune)*(bef_aar=Q$6),0),3))=TRUE,0,INDEX(befolkning,MATCH(1,(bef_kom=Kommune)*(bef_aar=Q$6),0),3))) -> 0 | R46: =(IF(ISNA(INDEX(befolkning,MATCH(1,(bef_kom=Kommune)*(bef_aar=R$6),0),3))=TRUE,0,INDEX(befolkning,MATCH(1,(bef_kom=Kommune)*(bef_aar=R$6),0),3))) -> 0 | S46: =(IF(ISNA(INDEX(befolkning,MATCH(1,(bef_kom=Kommune)*(bef_aar=S$6),0),3))=TRUE,0,INDEX(befolkning,MATCH(1,(bef_kom=Kommune)*(bef_aar=S$6),0),3))) -> 0 | T46: =(IF(ISNA(INDEX(befolkning,MATCH(1,(bef_kom=Kommune)*(bef_aar=T$6),0),3))=TRUE,0,INDEX(befolkning,MATCH(1,(bef_kom=Kommune)*(bef_aar=T$6),0),3))) -> 0 | U46: =(IF(ISNA(INDEX(befolkning,MATCH(1,(bef_kom=Kommune)*(bef_aar=U$6),0),3))=TRUE,0,INDEX(befolkning,MATCH(1,(bef_kom=Kommune)*(bef_aar=U$6),0),3))) -> 0 | V46: =(IF(ISNA(INDEX(befolkning,MATCH(1,(bef_kom=Kommune)*(bef_aar=V$6),0),3))=TRUE,0,INDEX(befolkning,MATCH(1,(bef_kom=Kommune)*(bef_aar=V$6),0),3))) -> 0 | W46: =(IF(ISNA(INDEX(befolkning,MATCH(1,(bef_kom=Kommune)*(bef_aar=W$6),0),3))=TRUE,0,INDEX(befolkning,MATCH(1,(bef_kom=Kommune)*(bef_aar=W$6),0),3))) -> 0
B47: Sammenligningsgruppe, gns. | C47: ="" ->  | D47: ="" ->  | E47: ="" ->  | F47: ="" ->  | G47: ="" ->  | H47: ="" ->  | I47: ="" ->  | J47: ="" ->  | K47: ="" ->  | L47: ="" ->  | M47: ="" ->  | N47: ="" ->  | O47: ="" ->  | P47: ="" ->  | Q47: ="" -> 
